Workbook

Sheet Directions
A1: DIRECTIONS:
A3: 1. | B3: In the "Essbase Input" tab select a 'Legal Entity', a 'Location', a 'Reporting Year', and a 'Period' .
A4: 2. | B4: Click the Retrieve Button
A5: 3. | B5: Review the data in the "Pt X ….. " tabs.

Sheet Essbase Input
A1: Essbase Input
A3: Smart View Retrieve Values (All 'EB PT x' tabs) | F3: Recommended Legal Entity / Location Combinations
A4: Legal Entity | C4: UnitedHealthcare Ins Co | D4: Select One | F4: Dental Benefit Prov CA Inc | H4: Locations
A5: Location | C5: =VLOOKUP(C4,Tables!B:K,9,FALSE) -> California - CA | D5: Verify Location | F5: Unimerica Insurance Company | H5: California - CA
A6: Operating Unit | C6: =VLOOKUP(C4,Tables!B:I,6,FALSE) -> UnitedHealthcare Domestic | D6: Verify OU | F6: UnitedHealthcare Ins Co | H6: California - CA
A7: Product | C7: =VLOOKUP(C4,Tables!B:H,7,FALSE) -> Stand Alone Dental | D7: Verify Product | F7: Golden Rule Insurance Company | H7: California - CA
A8: Reporting Year | C8: 2017 | D8: Select One | F8: UnitedHealthcare Life Ins Co | H8: California - CA
A9: Period | C9: 4th Quarter | D9: Select One
A11: For Use in 'EB PT 4' tab only
A12: Current Year | C12: =VLOOKUP($C$8,Tables!$P$3:$R$7,3,FALSE) -> 2018 | F12: Directions to Retrieve Smart View Data
A13: Reporting Year | C13: =+C8 -> 2017 | F13: 1. Update the appropriate Smart View values in cells C4-C9.
A14: PY 1 | C14: =VLOOKUP($C$8,Tables!$P$3:$R$7,2,FALSE) -> 2016 | F14: 2. Click on the Smart View menu above.
A15: PY 2 | C15: =VLOOKUP($C$8,Tables!$P$3:$S$7,4,FALSE) -> 2015 | F15: 3. Under "Refresh", select "Refresh all Worksheets"
F16: (Note: The tabs containing Smart View pulls do not need to be unhid before retrieving the data.)
B22: View Pre-Adjusted Forms Only | C22: View Final Forms Only | D22: View All Financial Forms | F22: View Smart View Tabs Only

Sheet Tables (hidden)
P1: Current | Q1: Prior | R1: Future | S1: Prior | U1: Current Year | V1: Current Year | W1: Current Year
A2: Blank | B2: Legal Entity (Essbase) | C2: Legal Entity | D2: DMHC # | E2: DBAs | F2: DPPO/DHMO | G2: Operating Unit | H2: Product | I2: OU | J2: Location | L2: Locations | M2: Abbrv | O2: Customers | P2: Year | Q2: Year | R2: Year | S2: Year 2 | T2: Period | U2: Balance (Essbase) | V2: Month (Essbase) | W2: YTD (Essbase)
A3: DMHC | B3: Dental Benefit Prov CA Inc | C3: Dental Benefit Providers of California, Inc. | D3: 933-0255 | E3: N/A | F3: DHMO | G3: Operating Units | H3: Stand Alone Dental | I3: 07210 - UHIC - Dental | J3: Locations | L3: Alabama - AL | M3: =RIGHT(L3,2) -> AL | O3: Individual | P3: 2017 | Q3: 2016 | R3: 2018 | S3: 2015 | T3: January | U3: January_Bal | V3: January | W3: January_YTD
A4: BLUE | B4: Golden Rule Insurance Company | C4: Golden Rule Insurance Company | E4: UnitedHealthOne | F4: DPPO | G4: UnitedHealthcare Domestic | H4: Stand Alone Dental | I4: 07211 - UHIC-AMSLIC-DENTAL | J4: California - CA | L4: Alaska - AK | M4: =RIGHT(L4,2) -> AK | O4: Small Group Employer | P4: 2016 | Q4: 2015 | R4: 2017 | S4: 2014 | T4: February | U4: February_Bal | V4: February | W4: February_YTD
A5: BLUE | B5: Unimerica Insurance Company | C5: Unimerica Insurance Company | E5: Unimerica Life Insurance Company | F5: DPPO | G5: UnitedHealthcare Domestic | H5: Stand Alone Dental | I5: UHIC Dental | J5: California - CA | L5: Arizona - AZ | M5: AZ | O5: Large Group Employer | P5: 2015 | Q5: 2014 | R5: 2016 | S5: 2013 | T5: 1st Quarter | U5: March_Bal | V5: March | W5: March_YTD
A6: BLUE | B6: UnitedHealthcare Ins Co | C6: UnitedHealthcare Insurance Company | E6: N/A | F6: DPPO | G6: UnitedHealthcare Domestic | H6: Stand Alone Dental | I6: 07220 - NATL PACIFIC DENTAL, INC. TX | J6: California - CA | L6: Arkansas - AR | M6: AR | O6: Blank Customer | P6: 2014 | Q6: 2013 | R6: 2015 | S6: 2012 | T6: April | U6: April_Bal | V6: April | W6: April_YTD
A7: BLUE | B7: UnitedHealthcare Life Ins Co | C7: UnitedHealthcare Life Insurance Company | E7: N/A | F7: DPPO | G7: UnitedHealthcare Domestic | H7: Stand Alone Dental | I7: 07221 - NATL PACIFIC DENTAL, INC. MD | J7: California - CA | L7: California - CA | M7: CA | P7: 2013 | Q7: 2012 | R7: 2014 | S7: 2011 | T7: May | U7: May_Bal | V7: May | W7: May_YTD
I8: National Pacifice Dental, Inc. | L8: Colorado - CO | M8: CO | P8: 2012 | Q8: 2011 | R8: 2013 | S8: 2010 | T8: 2nd Quarter | U8: June_Bal | V8: June | W8: June_YTD
I9: 07230 - PACIFIC UNION DENTAL, INC. | L9: Connecticut - CT | M9: CT | T9: July | U9: July_Bal | V9: July | W9: July_YTD
I10: 07231 - DENTAL BENEFIT PROVIDERS, INC. | L10: Delaware - DE | M10: DE | T10: August | U10: August_Bal | V10: August | W10: August_YTD
I11: 07232 - PACIFICARE DENTAL | L11: Florida - FL | M11: FL | T11: 3rd Quarter | U11: September_Bal | V11: September | W11: September_YTD
I12: Dental Benefit Providers of CA | L12: Georgia - GA | M12: GA | T12: October | U12: October_Bal | V12: October | W12: October_YTD
A13: DMHC | B13: ACN Group of California, Inc. | C13: ACN Group of California, Inc. | I13: 07200 - Dental E&I | L13: Hawaii - HI | M13: HI | T13: November | U13: November_Bal | V13: November | W13: November_YTD
A14: BLUE | B14: All Savers Insurance Company | C14: All Savers Insurance Company | I14: 07234 - Dental C&S | L14: Idaho - ID | M14: ID | T14: 4th Quarter | U14: December_Bal | V14: December | W14: December_YTD
A15: BLUE | B15: All Savers Life Ins Co of CA | C15: All Savers Life Insurance Company of California | I15: 07235 - Dental M&R | L15: Illinois - IL | M15: IL
A16: ORANGE | B16: AmeriChoice of Georgia, Inc. | C16: AmeriChoice of Georgia, Inc. | I16: 27200 - Dental Exchanges | L16: Indiana - IN | M16: IN
A17: ORANGE | B17: AmeriChoice of New Jersey Inc | C17: AmeriChoice of New Jersey, Inc. | I17: Dental OU | L17: Iowa - IA | M17: IA
A18: ORANGE | B18: Care Improve Plus of Tx Insur | C18: Care Improvement Plus of Texas Insurance Company | I18: Operating Units | L18: Kansas - KS | M18: KS
A19: ORANGE | B19: Care Improve Plus S Cntrl Insu | C19: Care Improvement Plus South Central Insurance Company | L19: Kentucky - KY | M19: KY
A20: ORANGE | B20: Care Improve Plus Wisc Insu Co | C20: Care Improvement Plus Wisconsin Insurance Company | L20: Louisiana - LA | M20: LA
A21: ORANGE | B21: Dental Benefit Prov IL Inc | C21: Dental Benefit Providers of Illinois, Inc. | L21: Maine - ME | M21: ME
A22: ORANGE | B22: Health Plan of Nevada, Inc. | C22: Health Plan of Nevada, Inc. | L22: Maryland - MD | M22: MD
A23: ORANGE | B23: MAMSI Life and Health Ins Co | C23: MAMSI Life and Health Insurance Company | L23: Massachusetts - MA | M23: MA
A24: ORANGE | B24: MD-Individ Practice Assoc Inc | C24: MD-Individual Practice Association, Inc. | L24: Michigan - MI | M24: MI
A25: ORANGE | B25: Medica Health Plans of FL Inc. | C25: Medica Health Plans of Florida, Inc. | L25: Minnesota - MN | M25: MN
A26: ORANGE | B26: Medica HealthCare Plans, Inc. | C26: Medica HealthCare Plans, Inc. | L26: Mississippi - MS | M26: MS
A27: BLUE | B27: Midwest Security Life Ins Co | C27: Midwest Security Life Insurance Company | L27: Missouri - MO | M27: MO
A28: ORANGE | B28: National Pacific Dental, Inc. | C28: National Pacific Dental, Inc. | L28: Montana - MT | M28: MT
A29: ORANGE | B29: Neighborhood Hlth Partnership | C29: Neighborhood Health Partnership, Inc. | L29: Nebraska - NE | M29: NE
A30: ORANGE | B30: Nevada Pacific Dental | C30: Nevada Pacific Dental | L30: Nevada - NV | M30: NV
A31: ORANGE | B31: Optimum Choice, Inc. | C31: Optimum Choice, Inc. | L31: New Hampshire - NH | M31: NH
A32: ORANGE | B32: Oxford Health Insurance, Inc. | C32: Oxford Health Insurance, Inc. | L32: New Jersey - NJ | M32: NJ
A33: ORANGE | B33: Oxford Health Plans (CT), Inc. | C33: Oxford Health Plans (CT), Inc. | L33: New Mexico - NM | M33: NM
A34: ORANGE | B34: Oxford Health Plans (NJ), Inc. | C34: Oxford Health Plans (NJ), Inc. | L34: New York - NY | M34: NY
A35: ORANGE | B35: Oxford Hlth Plns (NY) Inc | C35: Oxford Health Plans (NY), Inc. | L35: North Carolina - NC | M35: NC
A36: BLUE | B36: PacifiCare Life & Hlth Ins Co | C36: Pacificare Life and Health Insurance Company | L36: North Dakota - ND | M36: ND
A37: ORANGE | B37: PacifiCare Life Assurance Co | C37: PacifiCare Life Assurance Company | L37: Ohio - OH | M37: OH
A38: ORANGE | B38: PacifiCare of Arizona, Inc. | C38: PacifiCare of Arizona, Inc. | L38: Oklahoma - OK | M38: OK
A39: ORANGE | B39: PacifiCare of Colorado, Inc. | C39: PacifiCare of Colorado, Inc. | L39: Oregon - OR | M39: OR
A40: ORANGE | B40: PacifiCare of Nevada, Inc. | C40: PacifiCare of Nevada, Inc. | L40: Pennsylvania - PA | M40: PA
A41: ORANGE | B41: Phys Health Choice of TX, LLC | C41: Physicians Health Choice of Texas, LLC | L41: Rhode Island - RI | M41: RI
A42: ORANGE | B42: Pref Care Partners, Inc. | C42: Preferred Care Partners, Inc. | L42: South Carolina - SC | M42: SC
A43: ORANGE | B43: Sierra Hlth & Life Ins Co Inc | C43: Sierra Health and Life Insurance Company, Inc. | L43: South Dakota - SD | M43: SD
A44: ORANGE | B44: UHC Benefits of Texas, Inc. | C44: UnitedHealthcare Benefits of Texas, Inc. | L44: Tennessee - TN | M44: TN
A45: ORANGE | B45: UHC Community Plan of OH, Inc. | C45: UnitedHealthcare Community Plan of Ohio, Inc. | L45: Texas - TX | M45: TX
A46: ORANGE | B46: UHC Community Plan Texas LLC | C46: UnitedHealthcare Community Plan of Texas, L.L.C. | L46: Utah - UT | M46: UT
A47: ORANGE | B47: UHC Community Plan, Inc. | C47: UnitedHealthcare Community Plan, Inc. | L47: Vermont - VT | M47: VT
A48: ORANGE | B48: UHC Ins Co of the River Valley | C48: UnitedHealthcare Insurance Company of the River Valley | L48: Virginia - VA | M48: VA
A49: ORANGE | B49: UHC of Alabama Inc | C49: UnitedHealthcare of Alabama, Inc. | L49: Washington - WA | M49: WA
A50: ORANGE | B50: UHC of Arizona Inc | C50: UnitedHealthcare of Arizona, Inc. | L50: West Virginia - WV | M50: WV
A51: ORANGE | B51: UHC of Arkansas Inc | C51: UnitedHealthcare of Arkansas, Inc. | L51: Wisconsin - WI | M51: WI
A52: DMHC | B52: UHC of California | C52: UHC of California | L52: Wyoming - WY | M52: WY
A53: ORANGE | B53: UHC of Colorado Inc | C53: UnitedHealthcare of Colorado, Inc. | L53: District Of Columbia - DC | M53: DC
A54: ORANGE | B54: UHC of Florida Inc | C54: UnitedHealthcare of Florida, Inc.
A55: ORANGE | B55: UHC of Georgia Inc | C55: UnitedHealthcare of Georgia, Inc. | L55: American Samoa | M55: AS
A56: ORANGE | B56: UHC of Illinois Inc | C56: UnitedHealthcare of Illinois, Inc. | L56: Canada | M56: CA
A57: ORANGE | B57: UHC of Kentucky Ltd | C57: UnitedHealthcare of Kentucky, Ltd. | L57: Virgin Islands | M57: VI
A58: ORANGE | B58: UHC of Louisiana Inc | C58: UnitedHealthcare of Louisiana, Inc.
A59: ORANGE | B59: UHC of Mississippi Inc | C59: UnitedHealthcare of Mississippi, Inc. | L59: Total Central Regional | M59: XX
A60: ORANGE | B60: UHC of New England Inc | C60: UnitedHealthcare of New England, Inc. | L60: Total Northeast Regional | M60: XX
A61: ORANGE | B61: UHC of New York Inc | C61: UnitedHealthcare of New York, Inc. | L61: Total Southeast Regional | M61: XX
A62: ORANGE | B62: UHC of North Carolina Inc | C62: UnitedHealthcare of North Carolina, Inc. | L62: Total West Regional | M62: XX
A63: ORANGE | B63: UHC of Oklahoma, Inc. | C63: UnitedHealthcare of Oklahoma, Inc.
A64: ORANGE | B64: UHC of Oregon, Inc. | C64: UnitedHealthcare of Oregon, Inc. | L64: US Regions States | M64: XX
A65: ORANGE | B65: UHC of the Mid-Atlantic Inc | C65: UnitedHealthcare of the Mid-Atlantic, Inc. | L65: US Regions Other | M65: XX
A66: ORANGE | B66: UHC of the Midlands Inc | C66: UnitedHealthcare of the Midlands, Inc.
A67: ORANGE | B67: UHC of the Midwest Inc | C67: UnitedHealthcare of the Midwest, Inc. | L67: Central Region US | M67: XX
A68: ORANGE | B68: UHC of Washington, Inc. | C68: UnitedHealthcare of Washington, Inc. | L68: Northeast Region US | M68: XX
A69: ORANGE | B69: UHC of Wisconsin Inc | C69: UnitedHealthcare of Wisconsin, Inc. | L69: Southeast Region US | M69: XX
A70: ORANGE | B70: UHC Plan River Valley Inc | C70: UnitedHealthcare Plan of the River Valley, Inc. | L70: West Region US | M70: XX
A71: BLUE | B71: Unimerica Life Ins Co of NY | C71: Unimerica Life Insurance Company of New York
A72: ORANGE | B72: Unison HP of the Cptl Area Inc | C72: Unison Health Plan of the Capital Area, Inc. | L72: Corporate Other Region | M72: XX
A73: ORANGE | B73: UnitedHealthcare Ins Co of IL | C73: UnitedHealthcare Insurance Company of Illinois | L73: Segment Support | M73: XX
A74: ORANGE | B74: UnitedHealthcare Ins Co of NY | C74: UnitedHealthcare Insurance Company of New York | L74: Corporate Segment | M74: XX
A75: BLUE | B75: UnitedHealthcare Life Ins Co | C75: UnitedHealthcare Life Insurance Company
A76: ORANGE | B76: UnitedHealthcare of New Mexico | C76: UnitedHealthcare of New Mexico, Inc.
A77: ORANGE | B77: UnitedHealthcare of Ohio, Inc. | C77: UnitedHealthcare of Ohio, Inc.
A78: ORANGE | B78: UnitedHealthcare of PA, Inc. | C78: UnitedHealthcare of Pennsylvania, Inc.
A79: ORANGE | B79: UnitedHealthcare of Texas Inc | C79: UnitedHealthcare of Texas, Inc.
A80: ORANGE | B80: UnitedHealthcare of Utah, Inc. | C80: UnitedHealthcare of Utah, Inc.
A81: DMHC | B81: US Behavioral Health Plan CA | C81: U.S. Behavioral Health Plan, California

Sheet Essbase Changes (hidden)
A1: Changes made to Essbase pulls between Federal MLR Form and DMHC MLR Form
A3: Comment | D3: Reason
A4: 1. | B4: Part 1, Line 1.1, changed the Essbase pull from Account Node 'Health Premiums Earned' to 'Prem Earned Inc Risk Prgms' | D4: Federal form included Federal and State High Risk Pools in the MLR calculation (Part 4). The DMHC Form doesn't mention High Risk Pools, however, to include these, we took the next node up in the MLR Tree to include the two pools.
A5: 2. | B5: Part 1, Line 4.4, changed the Project Essbase pull from 'Improving HC Quality Expenses' to 'Health Care Reform' | D5: To capture all other HCR G&A expenses on Line 4.4 not included in other lines. The federal form had the Cost Containment and Other in separate lines.
A6: 3. | B6: Part 2, Line 2.1b, added Accounts 'Direct Contract Reserve' and 'Healthcare Receivables' Essbase retrieves to this line. | D6: These were separate lines in the federal MLR form but are not included in the DMHC form. Part of the calculation in the federal form to reach 'Total Incurred Claims'
A7: 4.

Sheet Dashboard
A1: ='Essbase Input'!C4 -> UnitedHealthcare Ins Co
A2: =+'Essbase Input'!C5 -> California - CA
A3: =+'Essbase Input'!C7 -> Stand Alone Dental
A4: ='Essbase Input'!C8 -> 2017
B6: Health Insurance Coverage | O6: UHG Other Health Reconciliation
B7: DHMO Products | H7: DPPO & Indemnity Products | O7: Subtotal of CA Dental Business | P7: Vision | Q7: Life/Disability | R7: Other Health | S7: Federal MLR Other Health Total | T7: Tie out to Federal MLR Lines | U7: Corporate Market OU | V7: Other Dental Product Diff. Total | W7: CA Dental MLR vs. Fed Other Health
B8: Individual | D8: Small Group | F8: Large Group | H8: Individual | J8: Small Group | L8: Large Group
A9: Metrics | B9: ='Pt 1 Summary of Data'!$F$17 -> Total as of 12/31/17 | C9: ='Pt 1 Summary of Data'!$G$17 -> Total as of 3/31/18 | D9: ='Pt 1 Summary of Data'!$F$17 -> Total as of 12/31/17 | E9: ='Pt 1 Summary of Data'!$G$17 -> Total as of 3/31/18 | F9: ='Pt 1 Summary of Data'!$F$17 -> Total as of 12/31/17 | G9: ='Pt 1 Summary of Data'!$G$17 -> Total as of 3/31/18 | H9: ='Pt 1 Summary of Data'!$F$17 -> Total as of 12/31/17 | I9: ='Pt 1 Summary of Data'!$G$17 -> Total as of 3/31/18 | J9: ='Pt 1 Summary of Data'!$F$17 -> Total as of 12/31/17 | K9: ='Pt 1 Summary of Data'!$G$17 -> Total as of 3/31/18 | L9: ='Pt 1 Summary of Data'!$F$17 -> Total as of 12/31/17 | M9: ='Pt 1 Summary of Data'!$G$17 -> Total as of 3/31/18 | O9: ='Pt 1 Summary of Data'!$F$17 -> Total as of 12/31/17 | P9: ='Pt 1 Summary of Data'!$F$17 -> Total as of 12/31/17 | Q9: ='Pt 1 Summary of Data'!$F$17 -> Total as of 12/31/17 | R9: ='Pt 1 Summary of Data'!$F$17 -> Total as of 12/31/17 | S9: ='Pt 1 Summary of Data'!$F$17 -> Total as of 12/31/17 | W9: ='Pt 1 Summary of Data'!$F$17 -> Total as of 12/31/17
A10: Gross Margin
A11: Health Premiums Earned PMPM (Line 1.1 / Member Months) | B11: =IF(ISERROR('Pt 1 Summary of Data - Final'!F20/'Pt 1 Summary of Data - Final'!F47),0,'Pt 1 Summary of Data - Final'!F20/'Pt 1 Summary of Data - Final'!F47) -> 0 | C11: =IF(ISERROR('Pt 1 Summary of Data - Final'!G20/'Pt 1 Summary of Data - Final'!G47),0,'Pt 1 Summary of Data - Final'!G20/'Pt 1 Summary of Data - Final'!G47) -> 0 | D11: =IF(ISERROR('Pt 1 Summary of Data - Final'!H20/'Pt 1 Summary of Data - Final'!H47),0,'Pt 1 Summary of Data - Final'!H20/'Pt 1 Summary of Data - Final'!H47) -> 0 | E11: =IF(ISERROR('Pt 1 Summary of Data - Final'!I20/'Pt 1 Summary of Data - Final'!I47),0,'Pt 1 Summary of Data - Final'!I20/'Pt 1 Summary of Data - Final'!I47) -> 0 | F11: =IF(ISERROR('Pt 1 Summary of Data - Final'!J20/'Pt 1 Summary of Data - Final'!J47),0,'Pt 1 Summary of Data - Final'!J20/'Pt 1 Summary of Data - Final'!J47) -> 0 | G11: =IF(ISERROR('Pt 1 Summary of Data - Final'!K20/'Pt 1 Summary of Data - Final'!K47),0,'Pt 1 Summary of Data - Final'!K20/'Pt 1 Summary of Data - Final'!K47) -> 0 | H11: =IF(ISERROR('Pt 1 Summary of Data - Final'!L20/'Pt 1 Summary of Data - Final'!L47),0,'Pt 1 Summary of Data - Final'!L20/'Pt 1 Summary of Data - Final'!L47) -> 0 | I11: =IF(ISERROR('Pt 1 Summary of Data - Final'!M20/'Pt 1 Summary of Data - Final'!M47),0,'Pt 1 Summary of Data - Final'!M20/'Pt 1 Summary of Data - Final'!M47) -> 0 | J11: =IF(ISERROR('Pt 1 Summary of Data - Final'!N20/'Pt 1 Summary of Data - Final'!N47),0,'Pt 1 Summary of Data - Final'!N20/'Pt 1 Summary of Data - Final'!N47) -> 40.9516212 | K11: =IF(ISERROR('Pt 1 Summary of Data - Final'!O20/'Pt 1 Summary of Data - Final'!O47),0,'Pt 1 Summary of Data - Final'!O20/'Pt 1 Summary of Data - Final'!O47) -> 40.42788275 | L11: =IF(ISERROR('Pt 1 Summary of Data - Final'!P20/'Pt 1 Summary of Data - Final'!P47),0,'Pt 1 Summary of Data - Final'!P20/'Pt 1 Summary of Data - Final'!P47) -> 36.93710387 | M11: =IF(ISERROR('Pt 1 Summary of Data - Final'!Q20/'Pt 1 Summary of Data - Final'!Q47),0,'Pt 1 Summary of Data - Final'!Q20/'Pt 1 Summary of Data - Final'!Q47) -> 37.19930717 | O11: =IF(ISERROR('Pt 1 Summary of Data - Final'!S20/'Pt 1 Summary of Data - Final'!S47),0,'Pt 1 Summary of Data - Final'!S20/'Pt 1 Summary of Data - Final'!S47) -> 38.12105011 | P11: =IF(ISERROR('Pt 1 Summary of Data - Final'!T20/'Pt 1 Summary of Data - Final'!T47),0,'Pt 1 Summary of Data - Final'!T20/'Pt 1 Summary of Data - Final'!T47) -> 4.299654148 | Q11: =IF(ISERROR('Pt 1 Summary of Data - Final'!U20/'Pt 1 Summary of Data - Final'!U47),0,'Pt 1 Summary of Data - Final'!U20/'Pt 1 Summary of Data - Final'!U47) -> 21.82190007 | R11: =IF(ISERROR('Pt 1 Summary of Data - Final'!AD20/'Pt 1 Summary of Data - Final'!AD47),0,'Pt 1 Summary of Data - Final'!AD20/'Pt 1 Summary of Data - Final'!AD47) -> 176.8990946 | S11: =IF(ISERROR('Pt 1 Summary of Data - Final'!AE20/'Pt 1 Summary of Data - Final'!AE47),0,'Pt 1 Summary of Data - Final'!AE20/'Pt 1 Summary of Data - Final'!AE47) -> 103.7049798 | T11: =IF(ISERROR('Pt 1 Summary of Data - Final'!AF20/'Pt 1 Summary of Data - Final'!AF47),0,'Pt 1 Summary of Data - Final'!AF20/'Pt 1 Summary of Data - Final'!AF47) -> 0 | U11: =IF(ISERROR('Pt 1 Summary of Data - Final'!AG20/'Pt 1 Summary of Data - Final'!AG47),0,'Pt 1 Summary of Data - Final'!AG20/'Pt 1 Summary of Data - Final'!AG47) -> 0 | V11: =IF(ISERROR('Pt 1 Summary of Data - Final'!AH20/'Pt 1 Summary of Data - Final'!AH47),0,'Pt 1 Summary of Data - Final'!AH20/'Pt 1 Summary of Data - Final'!AH47) -> 0 | W11: =IF(ISERROR('Pt 1 Summary of Data - Final'!AI20/'Pt 1 Summary of Data - Final'!AI47),0,'Pt 1 Summary of Data - Final'!AI20/'Pt 1 Summary of Data - Final'!AI47) -> 0
A12: Total Incurred Claims PMPM (Line 2.1 / Member Months) | B12: =IF(ISERROR('Pt 1 Summary of Data - Final'!F23/'Pt 1 Summary of Data - Final'!F47),0,'Pt 1 Summary of Data - Final'!F23/'Pt 1 Summary of Data - Final'!F47) -> 0 | C12: =IF(ISERROR('Pt 1 Summary of Data - Final'!G23/'Pt 1 Summary of Data - Final'!G47),0,'Pt 1 Summary of Data - Final'!G23/'Pt 1 Summary of Data - Final'!G47) -> 0 | D12: =IF(ISERROR('Pt 1 Summary of Data - Final'!H23/'Pt 1 Summary of Data - Final'!H47),0,'Pt 1 Summary of Data - Final'!H23/'Pt 1 Summary of Data - Final'!H47) -> 0 | E12: =IF(ISERROR('Pt 1 Summary of Data - Final'!I23/'Pt 1 Summary of Data - Final'!I47),0,'Pt 1 Summary of Data - Final'!I23/'Pt 1 Summary of Data - Final'!I47) -> 0 | F12: =IF(ISERROR('Pt 1 Summary of Data - Final'!J23/'Pt 1 Summary of Data - Final'!J47),0,'Pt 1 Summary of Data - Final'!J23/'Pt 1 Summary of Data - Final'!J47) -> 0 | G12: =IF(ISERROR('Pt 1 Summary of Data - Final'!K23/'Pt 1 Summary of Data - Final'!K47),0,'Pt 1 Summary of Data - Final'!K23/'Pt 1 Summary of Data - Final'!K47) -> 0 | H12: =IF(ISERROR('Pt 1 Summary of Data - Final'!L23/'Pt 1 Summary of Data - Final'!L47),0,'Pt 1 Summary of Data - Final'!L23/'Pt 1 Summary of Data - Final'!L47) -> 0 | I12: =IF(ISERROR('Pt 1 Summary of Data - Final'!M23/'Pt 1 Summary of Data - Final'!M47),0,'Pt 1 Summary of Data - Final'!M23/'Pt 1 Summary of Data - Final'!M47) -> 0 | J12: =IF(ISERROR('Pt 1 Summary of Data - Final'!N23/'Pt 1 Summary of Data - Final'!N47),0,'Pt 1 Summary of Data - Final'!N23/'Pt 1 Summary of Data - Final'!N47) -> 22.47010825 | K12: =IF(ISERROR('Pt 1 Summary of Data - Final'!O23/'Pt 1 Summary of Data - Final'!O47),0,'Pt 1 Summary of Data - Final'!O23/'Pt 1 Summary of Data - Final'!O47) -> 22.29774982 | L12: =IF(ISERROR('Pt 1 Summary of Data - Final'!P23/'Pt 1 Summary of Data - Final'!P47),0,'Pt 1 Summary of Data - Final'!P23/'Pt 1 Summary of Data - Final'!P47) -> 28.60397442 | M12: =IF(ISERROR('Pt 1 Summary of Data - Final'!Q23/'Pt 1 Summary of Data - Final'!Q47),0,'Pt 1 Summary of Data - Final'!Q23/'Pt 1 Summary of Data - Final'!Q47) -> 28.70431171 | O12: =IF(ISERROR('Pt 1 Summary of Data - Final'!S23/'Pt 1 Summary of Data - Final'!S47),0,'Pt 1 Summary of Data - Final'!S23/'Pt 1 Summary of Data - Final'!S47) -> 26.79499784 | P12: =IF(ISERROR('Pt 1 Summary of Data - Final'!T23/'Pt 1 Summary of Data - Final'!T47),0,'Pt 1 Summary of Data - Final'!T23/'Pt 1 Summary of Data - Final'!T47) -> 2.197916019 | Q12: =IF(ISERROR('Pt 1 Summary of Data - Final'!U23/'Pt 1 Summary of Data - Final'!U47),0,'Pt 1 Summary of Data - Final'!U23/'Pt 1 Summary of Data - Final'!U47) -> 16.47768802 | R12: =IF(ISERROR('Pt 1 Summary of Data - Final'!AD23/'Pt 1 Summary of Data - Final'!AD47),0,'Pt 1 Summary of Data - Final'!AD23/'Pt 1 Summary of Data - Final'!AD47) -> 154.767712 | S12: =IF(ISERROR('Pt 1 Summary of Data - Final'!AE23/'Pt 1 Summary of Data - Final'!AE47),0,'Pt 1 Summary of Data - Final'!AE23/'Pt 1 Summary of Data - Final'!AE47) -> 89.35133951 | T12: =IF(ISERROR('Pt 1 Summary of Data - Final'!AF23/'Pt 1 Summary of Data - Final'!AF47),0,'Pt 1 Summary of Data - Final'!AF23/'Pt 1 Summary of Data - Final'!AF47) -> 0 | U12: =IF(ISERROR('Pt 1 Summary of Data - Final'!AG23/'Pt 1 Summary of Data - Final'!AG47),0,'Pt 1 Summary of Data - Final'!AG23/'Pt 1 Summary of Data - Final'!AG47) -> 0 | V12: =IF(ISERROR('Pt 1 Summary of Data - Final'!AH23/'Pt 1 Summary of Data - Final'!AH47),0,'Pt 1 Summary of Data - Final'!AH23/'Pt 1 Summary of Data - Final'!AH47) -> 0 | W12: =IF(ISERROR('Pt 1 Summary of Data - Final'!AI23/'Pt 1 Summary of Data - Final'!AI47),0,'Pt 1 Summary of Data - Final'!AI23/'Pt 1 Summary of Data - Final'!AI47) -> 0
A13: Non-Claims Costs
A14: Total Non-Claims Costs % of Premiums (Line 4.5 / Line 1.1) | B14: =IF(ISERROR('Pt 1 Summary of Data - Final'!F43/'Pt 1 Summary of Data - Final'!F20),0,'Pt 1 Summary of Data - Final'!F43/'Pt 1 Summary of Data - Final'!F20) -> 0 | C14: =IF(ISERROR('Pt 1 Summary of Data - Final'!G43/'Pt 1 Summary of Data - Final'!G20),0,'Pt 1 Summary of Data - Final'!G43/'Pt 1 Summary of Data - Final'!G20) -> 0 | D14: =IF(ISERROR('Pt 1 Summary of Data - Final'!H43/'Pt 1 Summary of Data - Final'!H20),0,'Pt 1 Summary of Data - Final'!H43/'Pt 1 Summary of Data - Final'!H20) -> 0 | E14: =IF(ISERROR('Pt 1 Summary of Data - Final'!I43/'Pt 1 Summary of Data - Final'!I20),0,'Pt 1 Summary of Data - Final'!I43/'Pt 1 Summary of Data - Final'!I20) -> 0 | F14: =IF(ISERROR('Pt 1 Summary of Data - Final'!J43/'Pt 1 Summary of Data - Final'!J20),0,'Pt 1 Summary of Data - Final'!J43/'Pt 1 Summary of Data - Final'!J20) -> 0 | G14: =IF(ISERROR('Pt 1 Summary of Data - Final'!K43/'Pt 1 Summary of Data - Final'!K20),0,'Pt 1 Summary of Data - Final'!K43/'Pt 1 Summary of Data - Final'!K20) -> 0 | H14: =IF(ISERROR('Pt 1 Summary of Data - Final'!L43/'Pt 1 Summary of Data - Final'!L20),0,'Pt 1 Summary of Data - Final'!L43/'Pt 1 Summary of Data - Final'!L20) -> 0 | I14: =IF(ISERROR('Pt 1 Summary of Data - Final'!M43/'Pt 1 Summary of Data - Final'!M20),0,'Pt 1 Summary of Data - Final'!M43/'Pt 1 Summary of Data - Final'!M20) -> 0 | J14: =IF(ISERROR('Pt 1 Summary of Data - Final'!N43/'Pt 1 Summary of Data - Final'!N20),0,'Pt 1 Summary of Data - Final'!N43/'Pt 1 Summary of Data - Final'!N20) -> 0.2231422947 | K14: =IF(ISERROR('Pt 1 Summary of Data - Final'!O43/'Pt 1 Summary of Data - Final'!O20),0,'Pt 1 Summary of Data - Final'!O43/'Pt 1 Summary of Data - Final'!O20) -> 0.2260330768 | L14: =IF(ISERROR('Pt 1 Summary of Data - Final'!P43/'Pt 1 Summary of Data - Final'!P20),0,'Pt 1 Summary of Data - Final'!P43/'Pt 1 Summary of Data - Final'!P20) -> 0.1684923711 | M14: =IF(ISERROR('Pt 1 Summary of Data - Final'!Q43/'Pt 1 Summary of Data - Final'!Q20),0,'Pt 1 Summary of Data - Final'!Q43/'Pt 1 Summary of Data - Final'!Q20) -> 0.1673047345 | O14: =IF(ISERROR('Pt 1 Summary of Data - Final'!S43/'Pt 1 Summary of Data - Final'!S20),0,'Pt 1 Summary of Data - Final'!S43/'Pt 1 Summary of Data - Final'!S20) -> 0.1858062577 | P14: =IF(ISERROR('Pt 1 Summary of Data - Final'!T43/'Pt 1 Summary of Data - Final'!T20),0,'Pt 1 Summary of Data - Final'!T43/'Pt 1 Summary of Data - Final'!T20) -> 0.1951817645 | Q14: =IF(ISERROR('Pt 1 Summary of Data - Final'!U43/'Pt 1 Summary of Data - Final'!U20),0,'Pt 1 Summary of Data - Final'!U43/'Pt 1 Summary of Data - Final'!U20) -> 0.1574015954 | R14: =IF(ISERROR('Pt 1 Summary of Data - Final'!AD43/'Pt 1 Summary of Data - Final'!AD20),0,'Pt 1 Summary of Data - Final'!AD43/'Pt 1 Summary of Data - Final'!AD20) -> 0.1551200047 | S14: =IF(ISERROR('Pt 1 Summary of Data - Final'!AE43/'Pt 1 Summary of Data - Final'!AE20),0,'Pt 1 Summary of Data - Final'!AE43/'Pt 1 Summary of Data - Final'!AE20) -> 0.1570932772 | T14: =IF(ISERROR('Pt 1 Summary of Data - Final'!AF43/'Pt 1 Summary of Data - Final'!AF20),0,'Pt 1 Summary of Data - Final'!AF43/'Pt 1 Summary of Data - Final'!AF20) -> 0 | U14: =IF(ISERROR('Pt 1 Summary of Data - Final'!AG43/'Pt 1 Summary of Data - Final'!AG20),0,'Pt 1 Summary of Data - Final'!AG43/'Pt 1 Summary of Data - Final'!AG20) -> 0 | V14: =IF(ISERROR('Pt 1 Summary of Data - Final'!AH43/'Pt 1 Summary of Data - Final'!AH20),0,'Pt 1 Summary of Data - Final'!AH43/'Pt 1 Summary of Data - Final'!AH20) -> 0 | W14: =IF(ISERROR('Pt 1 Summary of Data - Final'!AI43/'Pt 1 Summary of Data - Final'!AI20),0,'Pt 1 Summary of Data - Final'!AI43/'Pt 1 Summary of Data - Final'!AI20) -> 0.8182318787
A15: Direct Sal. & Benefits % of Premiums (Line 4.1 / Line 1.1) | B15: =IF(ISERROR('Pt 1 Summary of Data - Final'!F37/'Pt 1 Summary of Data - Final'!F$20),0,'Pt 1 Summary of Data - Final'!F37/'Pt 1 Summary of Data - Final'!F$20) -> 0 | C15: =IF(ISERROR('Pt 1 Summary of Data - Final'!G37/'Pt 1 Summary of Data - Final'!G$20),0,'Pt 1 Summary of Data - Final'!G37/'Pt 1 Summary of Data - Final'!G$20) -> 0 | D15: =IF(ISERROR('Pt 1 Summary of Data - Final'!H37/'Pt 1 Summary of Data - Final'!H$20),0,'Pt 1 Summary of Data - Final'!H37/'Pt 1 Summary of Data - Final'!H$20) -> 0 | E15: =IF(ISERROR('Pt 1 Summary of Data - Final'!I37/'Pt 1 Summary of Data - Final'!I$20),0,'Pt 1 Summary of Data - Final'!I37/'Pt 1 Summary of Data - Final'!I$20) -> 0 | F15: =IF(ISERROR('Pt 1 Summary of Data - Final'!J37/'Pt 1 Summary of Data - Final'!J$20),0,'Pt 1 Summary of Data - Final'!J37/'Pt 1 Summary of Data - Final'!J$20) -> 0 | G15: =IF(ISERROR('Pt 1 Summary of Data - Final'!K37/'Pt 1 Summary of Data - Final'!K$20),0,'Pt 1 Summary of Data - Final'!K37/'Pt 1 Summary of Data - Final'!K$20) -> 0 | H15: =IF(ISERROR('Pt 1 Summary of Data - Final'!L37/'Pt 1 Summary of Data - Final'!L$20),0,'Pt 1 Summary of Data - Final'!L37/'Pt 1 Summary of Data - Final'!L$20) -> 0 | I15: =IF(ISERROR('Pt 1 Summary of Data - Final'!M37/'Pt 1 Summary of Data - Final'!M$20),0,'Pt 1 Summary of Data - Final'!M37/'Pt 1 Summary of Data - Final'!M$20) -> 0 | J15: =IF(ISERROR('Pt 1 Summary of Data - Final'!N37/'Pt 1 Summary of Data - Final'!N$20),0,'Pt 1 Summary of Data - Final'!N37/'Pt 1 Summary of Data - Final'!N$20) -> 0.007759791922 | K15: =IF(ISERROR('Pt 1 Summary of Data - Final'!O37/'Pt 1 Summary of Data - Final'!O$20),0,'Pt 1 Summary of Data - Final'!O37/'Pt 1 Summary of Data - Final'!O$20) -> 0.007860319112 | L15: =IF(ISERROR('Pt 1 Summary of Data - Final'!P37/'Pt 1 Summary of Data - Final'!P$20),0,'Pt 1 Summary of Data - Final'!P37/'Pt 1 Summary of Data - Final'!P$20) -> 0.007879914816 | M15: =IF(ISERROR('Pt 1 Summary of Data - Final'!Q37/'Pt 1 Summary of Data - Final'!Q$20),0,'Pt 1 Summary of Data - Final'!Q37/'Pt 1 Summary of Data - Final'!Q$20) -> 0.007824372391 | O15: =IF(ISERROR('Pt 1 Summary of Data - Final'!S37/'Pt 1 Summary of Data - Final'!S$20),0,'Pt 1 Summary of Data - Final'!S37/'Pt 1 Summary of Data - Final'!S$20) -> 0.007841858156 | P15: =IF(ISERROR('Pt 1 Summary of Data - Final'!T37/'Pt 1 Summary of Data - Final'!T$20),0,'Pt 1 Summary of Data - Final'!T37/'Pt 1 Summary of Data - Final'!T$20) -> 0.005749199301 | Q15: =IF(ISERROR('Pt 1 Summary of Data - Final'!U37/'Pt 1 Summary of Data - Final'!U$20),0,'Pt 1 Summary of Data - Final'!U37/'Pt 1 Summary of Data - Final'!U$20) -> 0.01184384646 | R15: =IF(ISERROR('Pt 1 Summary of Data - Final'!AD37/'Pt 1 Summary of Data - Final'!AD$20),0,'Pt 1 Summary of Data - Final'!AD37/'Pt 1 Summary of Data - Final'!AD$20) -> 0.001067333968 | S15: =IF(ISERROR('Pt 1 Summary of Data - Final'!AE37/'Pt 1 Summary of Data - Final'!AE$20),0,'Pt 1 Summary of Data - Final'!AE37/'Pt 1 Summary of Data - Final'!AE$20) -> 0.001482649794 | T15: =IF(ISERROR('Pt 1 Summary of Data - Final'!AF37/'Pt 1 Summary of Data - Final'!AF$20),0,'Pt 1 Summary of Data - Final'!AF37/'Pt 1 Summary of Data - Final'!AF$20) -> 0 | U15: =IF(ISERROR('Pt 1 Summary of Data - Final'!AG37/'Pt 1 Summary of Data - Final'!AG$20),0,'Pt 1 Summary of Data - Final'!AG37/'Pt 1 Summary of Data - Final'!AG$20) -> 0 | V15: =IF(ISERROR('Pt 1 Summary of Data - Final'!AH37/'Pt 1 Summary of Data - Final'!AH$20),0,'Pt 1 Summary of Data - Final'!AH37/'Pt 1 Summary of Data - Final'!AH$20) -> 0 | W15: =IF(ISERROR('Pt 1 Summary of Data - Final'!AI37/'Pt 1 Summary of Data - Final'!AI$20),0,'Pt 1 Summary of Data - Final'!AI37/'Pt 1 Summary of Data - Final'!AI$20) -> 0
A16: Agents, Broker Fees & Comm. % of Premiums (Line 4.2 / Line 1.1) | B16: =IF(ISERROR('Pt 1 Summary of Data - Final'!F38/'Pt 1 Summary of Data - Final'!F$20),0,'Pt 1 Summary of Data - Final'!F38/'Pt 1 Summary of Data - Final'!F$20) -> 0 | C16: =IF(ISERROR('Pt 1 Summary of Data - Final'!G38/'Pt 1 Summary of Data - Final'!G$20),0,'Pt 1 Summary of Data - Final'!G38/'Pt 1 Summary of Data - Final'!G$20) -> 0 | D16: =IF(ISERROR('Pt 1 Summary of Data - Final'!H38/'Pt 1 Summary of Data - Final'!H$20),0,'Pt 1 Summary of Data - Final'!H38/'Pt 1 Summary of Data - Final'!H$20) -> 0 | E16: =IF(ISERROR('Pt 1 Summary of Data - Final'!I38/'Pt 1 Summary of Data - Final'!I$20),0,'Pt 1 Summary of Data - Final'!I38/'Pt 1 Summary of Data - Final'!I$20) -> 0 | F16: =IF(ISERROR('Pt 1 Summary of Data - Final'!J38/'Pt 1 Summary of Data - Final'!J$20),0,'Pt 1 Summary of Data - Final'!J38/'Pt 1 Summary of Data - Final'!J$20) -> 0 | G16: =IF(ISERROR('Pt 1 Summary of Data - Final'!K38/'Pt 1 Summary of Data - Final'!K$20),0,'Pt 1 Summary of Data - Final'!K38/'Pt 1 Summary of Data - Final'!K$20) -> 0 | H16: =IF(ISERROR('Pt 1 Summary of Data - Final'!L38/'Pt 1 Summary of Data - Final'!L$20),0,'Pt 1 Summary of Data - Final'!L38/'Pt 1 Summary of Data - Final'!L$20) -> 0 | I16: =IF(ISERROR('Pt 1 Summary of Data - Final'!M38/'Pt 1 Summary of Data - Final'!M$20),0,'Pt 1 Summary of Data - Final'!M38/'Pt 1 Summary of Data - Final'!M$20) -> 0 | J16: =IF(ISERROR('Pt 1 Summary of Data - Final'!N38/'Pt 1 Summary of Data - Final'!N$20),0,'Pt 1 Summary of Data - Final'!N38/'Pt 1 Summary of Data - Final'!N$20) -> 0.1175295275 | K16: =IF(ISERROR('Pt 1 Summary of Data - Final'!O38/'Pt 1 Summary of Data - Final'!O$20),0,'Pt 1 Summary of Data - Final'!O38/'Pt 1 Summary of Data - Final'!O$20) -> 0.1190521087 | L16: =IF(ISERROR('Pt 1 Summary of Data - Final'!P38/'Pt 1 Summary of Data - Final'!P$20),0,'Pt 1 Summary of Data - Final'!P38/'Pt 1 Summary of Data - Final'!P$20) -> 0.06067079757 | M16: =IF(ISERROR('Pt 1 Summary of Data - Final'!Q38/'Pt 1 Summary of Data - Final'!Q$20),0,'Pt 1 Summary of Data - Final'!Q38/'Pt 1 Summary of Data - Final'!Q$20) -> 0.06024315294 | O16: =IF(ISERROR('Pt 1 Summary of Data - Final'!S38/'Pt 1 Summary of Data - Final'!S$20),0,'Pt 1 Summary of Data - Final'!S38/'Pt 1 Summary of Data - Final'!S$20) -> 0.07868446108 | P16: =IF(ISERROR('Pt 1 Summary of Data - Final'!T38/'Pt 1 Summary of Data - Final'!T$20),0,'Pt 1 Summary of Data - Final'!T38/'Pt 1 Summary of Data - Final'!T$20) -> 0.07026711249 | Q16: =IF(ISERROR('Pt 1 Summary of Data - Final'!U38/'Pt 1 Summary of Data - Final'!U$20),0,'Pt 1 Summary of Data - Final'!U38/'Pt 1 Summary of Data - Final'!U$20) -> 0.09877130235 | R16: =IF(ISERROR('Pt 1 Summary of Data - Final'!AD38/'Pt 1 Summary of Data - Final'!AD$20),0,'Pt 1 Summary of Data - Final'!AD38/'Pt 1 Summary of Data - Final'!AD$20) -> 0.03106135628 | S16: =IF(ISERROR('Pt 1 Summary of Data - Final'!AE38/'Pt 1 Summary of Data - Final'!AE$20),0,'Pt 1 Summary of Data - Final'!AE38/'Pt 1 Summary of Data - Final'!AE$20) -> 0.03404690279 | T16: =IF(ISERROR('Pt 1 Summary of Data - Final'!AF38/'Pt 1 Summary of Data - Final'!AF$20),0,'Pt 1 Summary of Data - Final'!AF38/'Pt 1 Summary of Data - Final'!AF$20) -> 0 | U16: =IF(ISERROR('Pt 1 Summary of Data - Final'!AG38/'Pt 1 Summary of Data - Final'!AG$20),0,'Pt 1 Summary of Data - Final'!AG38/'Pt 1 Summary of Data - Final'!AG$20) -> 0 | V16: =IF(ISERROR('Pt 1 Summary of Data - Final'!AH38/'Pt 1 Summary of Data - Final'!AH$20),0,'Pt 1 Summary of Data - Final'!AH38/'Pt 1 Summary of Data - Final'!AH$20) -> 0 | W16: =IF(ISERROR('Pt 1 Summary of Data - Final'!AI38/'Pt 1 Summary of Data - Final'!AI$20),0,'Pt 1 Summary of Data - Final'!AI38/'Pt 1 Summary of Data - Final'!AI$20) -> 0.0205098975
A17: Management Fee % of Premiums (Acct 76000 / Line 1.1) | B17: =IF(VLOOKUP('Essbase Input'!$C$4,Tables!$B$3:$F$6,5,FALSE)="DPPO",0,IF(ISERROR('EB PT 1'!$I$51/'Pt 1 Summary of Data - Final'!F20),0,'EB PT 1'!$I$51/'Pt 1 Summary of Data - Final'!F20)) -> 0 | C17: =+B17 -> 0 | D17: =IF(VLOOKUP('Essbase Input'!$C$4,Tables!$B$3:$F$6,5,FALSE)="DPPO",0,IF(ISERROR('EB PT 1'!$K$51/'Pt 1 Summary of Data - Final'!H20),0,'EB PT 1'!$K$51/'Pt 1 Summary of Data - Final'!H20)) -> 0 | E17: =+D17 -> 0 | F17: =IF(VLOOKUP('Essbase Input'!$C$4,Tables!$B$3:$F$6,5,FALSE)="DPPO",0,IF(ISERROR('EB PT 1'!$M$51/'Pt 1 Summary of Data - Final'!J20),0,'EB PT 1'!$M$51/'Pt 1 Summary of Data - Final'!J20)) -> 0 | G17: =+F17 -> 0 | H17: =IF(VLOOKUP('Essbase Input'!$C$4,Tables!$B$3:$F$6,5,FALSE)="DHMO",0,IF('Essbase Input'!$C$4="Golden Rule Insurance Company",'EB PT 1'!$R$51/'Pt 1 Summary of Data - Final'!L20,IF(ISERROR('EB PT 1'!$I$51/'Pt 1 Summary of Data - Final'!L20),0,'EB PT 1'!$I$51/'Pt 1 Summary of Data - Final'!L20))) -> 0 | I17: =+H17 -> 0 | J17: =IF(VLOOKUP('Essbase Input'!$C$4,Tables!$B$3:$F$6,5,FALSE)="DHMO",0,IF('Essbase Input'!$C$4="Golden Rule Insurance Company",0,IF(ISERROR('EB PT 1'!$K$51/'Pt 1 Summary of Data - Final'!N20),0,'EB PT 1'!$K$51/'Pt 1 Summary of Data - Final'!N20))) -> -1.03322506e-18 | K17: =+J17 -> -1.03322506e-18 | L17: =IF(VLOOKUP('Essbase Input'!$C$4,Tables!$B$3:$F$6,5,FALSE)="DHMO",0,IF('Essbase Input'!$C$4="Golden Rule Insurance Company",0,IF(ISERROR('EB PT 1'!$M$51/'Pt 1 Summary of Data - Final'!P20),0,'EB PT 1'!$M$51/'Pt 1 Summary of Data - Final'!P20))) -> 0.1533362898 | M17: =+L17 -> 0.1533362898 | O17: =IF(ISERROR('EB PT 1'!O51/'Pt 1 Summary of Data - Final'!S20),0,'EB PT 1'!O51/'Pt 1 Summary of Data - Final'!S20) -> 0.1047571475 | P17: =IF(ISERROR('EB PT 1'!T51/'Pt 1 Summary of Data - Final'!T20),0,'EB PT 1'!T51/'Pt 1 Summary of Data - Final'!T20) -> 0.1252205362 | Q17: =IF(ISERROR('EB PT 1'!U51/'Pt 1 Summary of Data - Final'!U20),0,'EB PT 1'!U51/'Pt 1 Summary of Data - Final'!U20) -> 0.130399995 | R17: =IF(ISERROR('EB PT 1'!AO51/'Pt 1 Summary of Data - Final'!AD20),0,'EB PT 1'!AO51/'Pt 1 Summary of Data - Final'!AD20) -> 0.05611948556
A18: Salaries as a % of MGMT Fees (Line 4.1 / Acct 76000) | B18: =IF(VLOOKUP('Essbase Input'!$C$4,Tables!$B$3:$F$6,5,FALSE)="DPPO",0,IF(ISERROR('Pt 1 Summary of Data - Final'!F37/'EB PT 1'!$I$51),0,'Pt 1 Summary of Data - Final'!F37/'EB PT 1'!$I$51)) -> 0 | C18: =+B18 -> 0 | D18: =IF(VLOOKUP('Essbase Input'!$C$4,Tables!$B$3:$F$6,5,FALSE)="DPPO",0,IF(ISERROR('Pt 1 Summary of Data - Final'!H37/'EB PT 1'!$K$51),0,'Pt 1 Summary of Data - Final'!H37/'EB PT 1'!$K$51)) -> 0 | E18: =+D18 -> 0 | F18: =IF(VLOOKUP('Essbase Input'!$C$4,Tables!$B$3:$F$6,5,FALSE)="DPPO",0,IF(ISERROR('Pt 1 Summary of Data - Final'!J37/'EB PT 1'!$M$51),0,'Pt 1 Summary of Data - Final'!J37/'EB PT 1'!$M$51)) -> 0 | G18: 0 | H18: =IF(VLOOKUP('Essbase Input'!$C$4,Tables!$B$3:$F$6,5,FALSE)="DHMO",0,IF('Essbase Input'!$C$4="Golden Rule Insurance Company",'Pt 1 Summary of Data - Final'!L37/'EB PT 1'!$R$51,IF(ISERROR('Pt 1 Summary of Data - Final'!L37/'EB PT 1'!$I$51),0,'Pt 1 Summary of Data - Final'!L37/'EB PT 1'!$I$51))) -> 0 | I18: =+H18 -> 0 | J18: =IF(VLOOKUP('Essbase Input'!$C$4,Tables!$B$3:$F$6,5,FALSE)="DHMO",0,IF('Essbase Input'!$C$4="Golden Rule Insurance Company",0,IF(ISERROR('Pt 1 Summary of Data - Final'!N37/'EB PT 1'!$K$51),0,'Pt 1 Summary of Data - Final'!N37/'EB PT 1'!$K$51))) -> -7510262983137622 | K18: -7510262983137622 | L18: =IF(VLOOKUP('Essbase Input'!$C$4,Tables!$B$3:$F$6,5,FALSE)="DHMO",0,IF('Essbase Input'!$C$4="Golden Rule Insurance Company",0,IF(ISERROR('Pt 1 Summary of Data - Final'!P37/'EB PT 1'!$M$51),0,'Pt 1 Summary of Data - Final'!P37/'EB PT 1'!$M$51))) -> 0.05138975795 | M18: 0.05138975795 | O18: =+'Pt 1 Summary of Data - Final'!S37/'EB PT 1'!O51 -> 0.07485749984 | P18: ='Pt 1 Summary of Data - Final'!T37/'EB PT 1'!T51 -> 0.0459125913 | Q18: ='Pt 1 Summary of Data - Final'!U37/'EB PT 1'!U51 -> 0.09082704692 | R18: ='Pt 1 Summary of Data - Final'!AD37/'EB PT 1'!AO51 -> 0.01901895495
A19: Taxes
A20: Effective Tax Rate - Federal (Line 3.1 / (Line 1.1 - 2.1 - 4.5)) | B20: =IF(ISERROR(SUM('Pt 1 Summary of Data - Final'!F27:F28)/('Pt 1 Summary of Data - Final'!F20-'Pt 1 Summary of Data - Final'!F23-'Pt 1 Summary of Data - Final'!F43)),0,SUM('Pt 1 Summary of Data - Final'!F27:F28)/('Pt 1 Summary of Data - Final'!F20-'Pt 1 Summary of Data - Final'!F23-'Pt 1 Summary of Data - Final'!F43)) -> 0 | C20: =IF(ISERROR(SUM('Pt 1 Summary of Data - Final'!G27:G28)/('Pt 1 Summary of Data - Final'!G20-'Pt 1 Summary of Data - Final'!G23-'Pt 1 Summary of Data - Final'!G43)),0,SUM('Pt 1 Summary of Data - Final'!G27:G28)/('Pt 1 Summary of Data - Final'!G20-'Pt 1 Summary of Data - Final'!G23-'Pt 1 Summary of Data - Final'!G43)) -> 0 | D20: =IF(ISERROR(SUM('Pt 1 Summary of Data - Final'!H27:H28)/('Pt 1 Summary of Data - Final'!H20-'Pt 1 Summary of Data - Final'!H23-'Pt 1 Summary of Data - Final'!H43)),0,SUM('Pt 1 Summary of Data - Final'!H27:H28)/('Pt 1 Summary of Data - Final'!H20-'Pt 1 Summary of Data - Final'!H23-'Pt 1 Summary of Data - Final'!H43)) -> 0 | E20: =IF(ISERROR(SUM('Pt 1 Summary of Data - Final'!I27:I28)/('Pt 1 Summary of Data - Final'!I20-'Pt 1 Summary of Data - Final'!I23-'Pt 1 Summary of Data - Final'!I43)),0,SUM('Pt 1 Summary of Data - Final'!I27:I28)/('Pt 1 Summary of Data - Final'!I20-'Pt 1 Summary of Data - Final'!I23-'Pt 1 Summary of Data - Final'!I43)) -> 0 | F20: =IF(ISERROR(SUM('Pt 1 Summary of Data - Final'!J27:J28)/('Pt 1 Summary of Data - Final'!J20-'Pt 1 Summary of Data - Final'!J23-'Pt 1 Summary of Data - Final'!J43)),0,SUM('Pt 1 Summary of Data - Final'!J27:J28)/('Pt 1 Summary of Data - Final'!J20-'Pt 1 Summary of Data - Final'!J23-'Pt 1 Summary of Data - Final'!J43)) -> 0 | G20: =IF(ISERROR(SUM('Pt 1 Summary of Data - Final'!K27:K28)/('Pt 1 Summary of Data - Final'!K20-'Pt 1 Summary of Data - Final'!K23-'Pt 1 Summary of Data - Final'!K43)),0,SUM('Pt 1 Summary of Data - Final'!K27:K28)/('Pt 1 Summary of Data - Final'!K20-'Pt 1 Summary of Data - Final'!K23-'Pt 1 Summary of Data - Final'!K43)) -> 0 | H20: =IF(ISERROR(SUM('Pt 1 Summary of Data - Final'!L27:L28)/('Pt 1 Summary of Data - Final'!L20-'Pt 1 Summary of Data - Final'!L23-'Pt 1 Summary of Data - Final'!L43)),0,SUM('Pt 1 Summary of Data - Final'!L27:L28)/('Pt 1 Summary of Data - Final'!L20-'Pt 1 Summary of Data - Final'!L23-'Pt 1 Summary of Data - Final'!L43)) -> 0 | I20: =IF(ISERROR(SUM('Pt 1 Summary of Data - Final'!M27:M28)/('Pt 1 Summary of Data - Final'!M20-'Pt 1 Summary of Data - Final'!M23-'Pt 1 Summary of Data - Final'!M43)),0,SUM('Pt 1 Summary of Data - Final'!M27:M28)/('Pt 1 Summary of Data - Final'!M20-'Pt 1 Summary of Data - Final'!M23-'Pt 1 Summary of Data - Final'!M43)) -> 0 | J20: =IF(ISERROR(SUM('Pt 1 Summary of Data - Final'!N27:N28)/('Pt 1 Summary of Data - Final'!N20-'Pt 1 Summary of Data - Final'!N23-'Pt 1 Summary of Data - Final'!N43)),0,SUM('Pt 1 Summary of Data - Final'!N27:N28)/('Pt 1 Summary of Data - Final'!N20-'Pt 1 Summary of Data - Final'!N23-'Pt 1 Summary of Data - Final'!N43)) -> 0.3378430221 | K20: =IF(ISERROR(SUM('Pt 1 Summary of Data - Final'!O27:O28)/('Pt 1 Summary of Data - Final'!O20-'Pt 1 Summary of Data - Final'!O23-'Pt 1 Summary of Data - Final'!O43)),0,SUM('Pt 1 Summary of Data - Final'!O27:O28)/('Pt 1 Summary of Data - Final'!O20-'Pt 1 Summary of Data - Final'!O23-'Pt 1 Summary of Data - Final'!O43)) -> 0.351044762 | L20: =IF(ISERROR(SUM('Pt 1 Summary of Data - Final'!P27:P28)/('Pt 1 Summary of Data - Final'!P20-'Pt 1 Summary of Data - Final'!P23-'Pt 1 Summary of Data - Final'!P43)),0,SUM('Pt 1 Summary of Data - Final'!P27:P28)/('Pt 1 Summary of Data - Final'!P20-'Pt 1 Summary of Data - Final'!P23-'Pt 1 Summary of Data - Final'!P43)) -> 0.3284246547 | M20: =IF(ISERROR(SUM('Pt 1 Summary of Data - Final'!Q27:Q28)/('Pt 1 Summary of Data - Final'!Q20-'Pt 1 Summary of Data - Final'!Q23-'Pt 1 Summary of Data - Final'!Q43)),0,SUM('Pt 1 Summary of Data - Final'!Q27:Q28)/('Pt 1 Summary of Data - Final'!Q20-'Pt 1 Summary of Data - Final'!Q23-'Pt 1 Summary of Data - Final'!Q43)) -> 0.3050199841 | O20: =IF(ISERROR(SUM('Pt 1 Summary of Data - Final'!S27:S28)/('Pt 1 Summary of Data - Final'!S20-'Pt 1 Summary of Data - Final'!S23-'Pt 1 Summary of Data - Final'!S43)),0,SUM('Pt 1 Summary of Data - Final'!S27:S28)/('Pt 1 Summary of Data - Final'!S20-'Pt 1 Summary of Data - Final'!S23-'Pt 1 Summary of Data - Final'!S43)) -> 0.3345413738 | P20: =IF(ISERROR(SUM('Pt 1 Summary of Data - Final'!T27:T28)/('Pt 1 Summary of Data - Final'!T20-'Pt 1 Summary of Data - Final'!T23-'Pt 1 Summary of Data - Final'!T43)),0,SUM('Pt 1 Summary of Data - Final'!T27:T28)/('Pt 1 Summary of Data - Final'!T20-'Pt 1 Summary of Data - Final'!T23-'Pt 1 Summary of Data - Final'!T43)) -> 0.3363077127 | Q20: =IF(ISERROR(SUM('Pt 1 Summary of Data - Final'!U27:U28)/('Pt 1 Summary of Data - Final'!U20-'Pt 1 Summary of Data - Final'!U23-'Pt 1 Summary of Data - Final'!U43)),0,SUM('Pt 1 Summary of Data - Final'!U27:U28)/('Pt 1 Summary of Data - Final'!U20-'Pt 1 Summary of Data - Final'!U23-'Pt 1 Summary of Data - Final'!U43)) -> 1.298845852 | R20: =IF(ISERROR(SUM('Pt 1 Summary of Data - Final'!AD27:AD28)/('Pt 1 Summary of Data - Final'!AD20-'Pt 1 Summary of Data - Final'!AD23-'Pt 1 Summary of Data - Final'!AD43)),0,SUM('Pt 1 Summary of Data - Final'!AD27:AD28)/('Pt 1 Summary of Data - Final'!AD20-'Pt 1 Summary of Data - Final'!AD23-'Pt 1 Summary of Data - Final'!AD43)) -> 0.04497915321 | S20: =IF(ISERROR(SUM('Pt 1 Summary of Data - Final'!AE27:AE28)/('Pt 1 Summary of Data - Final'!AE20-'Pt 1 Summary of Data - Final'!AE23-'Pt 1 Summary of Data - Final'!AE43)),0,SUM('Pt 1 Summary of Data - Final'!AE27:AE28)/('Pt 1 Summary of Data - Final'!AE20-'Pt 1 Summary of Data - Final'!AE23-'Pt 1 Summary of Data - Final'!AE43)) -> -0.1252984781 | T20: =IF(ISERROR(SUM('Pt 1 Summary of Data - Final'!AF27:AF28)/('Pt 1 Summary of Data - Final'!AF20-'Pt 1 Summary of Data - Final'!AF23-'Pt 1 Summary of Data - Final'!AF43)),0,SUM('Pt 1 Summary of Data - Final'!AF27:AF28)/('Pt 1 Summary of Data - Final'!AF20-'Pt 1 Summary of Data - Final'!AF23-'Pt 1 Summary of Data - Final'!AF43)) -> 0 | U20: =IF(ISERROR(SUM('Pt 1 Summary of Data - Final'!AG27:AG28)/('Pt 1 Summary of Data - Final'!AG20-'Pt 1 Summary of Data - Final'!AG23-'Pt 1 Summary of Data - Final'!AG43)),0,SUM('Pt 1 Summary of Data - Final'!AG27:AG28)/('Pt 1 Summary of Data - Final'!AG20-'Pt 1 Summary of Data - Final'!AG23-'Pt 1 Summary of Data - Final'!AG43)) -> 0 | V20: =IF(ISERROR(SUM('Pt 1 Summary of Data - Final'!AH27:AH28)/('Pt 1 Summary of Data - Final'!AH20-'Pt 1 Summary of Data - Final'!AH23-'Pt 1 Summary of Data - Final'!AH43)),0,SUM('Pt 1 Summary of Data - Final'!AH27:AH28)/('Pt 1 Summary of Data - Final'!AH20-'Pt 1 Summary of Data - Final'!AH23-'Pt 1 Summary of Data - Final'!AH43)) -> 0 | W20: =IF(ISERROR(SUM('Pt 1 Summary of Data - Final'!AI27:AI28)/('Pt 1 Summary of Data - Final'!AI20-'Pt 1 Summary of Data - Final'!AI23-'Pt 1 Summary of Data - Final'!AI43)),0,SUM('Pt 1 Summary of Data - Final'!AI27:AI28)/('Pt 1 Summary of Data - Final'!AI20-'Pt 1 Summary of Data - Final'!AI23-'Pt 1 Summary of Data - Final'!AI43)) -> -14.9100459
A21: Effective Tax Rate - State & Local (Line 3.2 / (Line 1.1 - 2.1 - 4.5)) | B21: =IF(ISERROR(SUM('Pt 1 Summary of Data - Final'!F30:F33)/('Pt 1 Summary of Data - Final'!F20-'Pt 1 Summary of Data - Final'!F23-'Pt 1 Summary of Data - Final'!F43)),0,SUM('Pt 1 Summary of Data - Final'!F30:F33)/('Pt 1 Summary of Data - Final'!F20-'Pt 1 Summary of Data - Final'!F23-'Pt 1 Summary of Data - Final'!F43)) -> 0 | C21: =IF(ISERROR(SUM('Pt 1 Summary of Data - Final'!G30:G33)/('Pt 1 Summary of Data - Final'!G20-'Pt 1 Summary of Data - Final'!G23-'Pt 1 Summary of Data - Final'!G43)),0,SUM('Pt 1 Summary of Data - Final'!G30:G33)/('Pt 1 Summary of Data - Final'!G20-'Pt 1 Summary of Data - Final'!G23-'Pt 1 Summary of Data - Final'!G43)) -> 0 | D21: =IF(ISERROR(SUM('Pt 1 Summary of Data - Final'!H30:H33)/('Pt 1 Summary of Data - Final'!H20-'Pt 1 Summary of Data - Final'!H23-'Pt 1 Summary of Data - Final'!H43)),0,SUM('Pt 1 Summary of Data - Final'!H30:H33)/('Pt 1 Summary of Data - Final'!H20-'Pt 1 Summary of Data - Final'!H23-'Pt 1 Summary of Data - Final'!H43)) -> 0 | E21: =IF(ISERROR(SUM('Pt 1 Summary of Data - Final'!I30:I33)/('Pt 1 Summary of Data - Final'!I20-'Pt 1 Summary of Data - Final'!I23-'Pt 1 Summary of Data - Final'!I43)),0,SUM('Pt 1 Summary of Data - Final'!I30:I33)/('Pt 1 Summary of Data - Final'!I20-'Pt 1 Summary of Data - Final'!I23-'Pt 1 Summary of Data - Final'!I43)) -> 0 | F21: =IF(ISERROR(SUM('Pt 1 Summary of Data - Final'!J30:J33)/('Pt 1 Summary of Data - Final'!J20-'Pt 1 Summary of Data - Final'!J23-'Pt 1 Summary of Data - Final'!J43)),0,SUM('Pt 1 Summary of Data - Final'!J30:J33)/('Pt 1 Summary of Data - Final'!J20-'Pt 1 Summary of Data - Final'!J23-'Pt 1 Summary of Data - Final'!J43)) -> 0 | G21: =IF(ISERROR(SUM('Pt 1 Summary of Data - Final'!K30:K33)/('Pt 1 Summary of Data - Final'!K20-'Pt 1 Summary of Data - Final'!K23-'Pt 1 Summary of Data - Final'!K43)),0,SUM('Pt 1 Summary of Data - Final'!K30:K33)/('Pt 1 Summary of Data - Final'!K20-'Pt 1 Summary of Data - Final'!K23-'Pt 1 Summary of Data - Final'!K43)) -> 0 | H21: =IF(ISERROR(SUM('Pt 1 Summary of Data - Final'!L30:L33)/('Pt 1 Summary of Data - Final'!L20-'Pt 1 Summary of Data - Final'!L23-'Pt 1 Summary of Data - Final'!L43)),0,SUM('Pt 1 Summary of Data - Final'!L30:L33)/('Pt 1 Summary of Data - Final'!L20-'Pt 1 Summary of Data - Final'!L23-'Pt 1 Summary of Data - Final'!L43)) -> -0.4 | I21: =IF(ISERROR(SUM('Pt 1 Summary of Data - Final'!M30:M33)/('Pt 1 Summary of Data - Final'!M20-'Pt 1 Summary of Data - Final'!M23-'Pt 1 Summary of Data - Final'!M43)),0,SUM('Pt 1 Summary of Data - Final'!M30:M33)/('Pt 1 Summary of Data - Final'!M20-'Pt 1 Summary of Data - Final'!M23-'Pt 1 Summary of Data - Final'!M43)) -> -0.4 | J21: =IF(ISERROR(SUM('Pt 1 Summary of Data - Final'!N30:N33)/('Pt 1 Summary of Data - Final'!N20-'Pt 1 Summary of Data - Final'!N23-'Pt 1 Summary of Data - Final'!N43)),0,SUM('Pt 1 Summary of Data - Final'!N30:N33)/('Pt 1 Summary of Data - Final'!N20-'Pt 1 Summary of Data - Final'!N23-'Pt 1 Summary of Data - Final'!N43)) -> 0.00504182788 | K21: =IF(ISERROR(SUM('Pt 1 Summary of Data - Final'!O30:O33)/('Pt 1 Summary of Data - Final'!O20-'Pt 1 Summary of Data - Final'!O23-'Pt 1 Summary of Data - Final'!O43)),0,SUM('Pt 1 Summary of Data - Final'!O30:O33)/('Pt 1 Summary of Data - Final'!O20-'Pt 1 Summary of Data - Final'!O23-'Pt 1 Summary of Data - Final'!O43)) -> 0.00523884512 | L21: =IF(ISERROR(SUM('Pt 1 Summary of Data - Final'!P30:P33)/('Pt 1 Summary of Data - Final'!P20-'Pt 1 Summary of Data - Final'!P23-'Pt 1 Summary of Data - Final'!P43)),0,SUM('Pt 1 Summary of Data - Final'!P30:P33)/('Pt 1 Summary of Data - Final'!P20-'Pt 1 Summary of Data - Final'!P23-'Pt 1 Summary of Data - Final'!P43)) -> 0.03277921185 | M21: =IF(ISERROR(SUM('Pt 1 Summary of Data - Final'!Q30:Q33)/('Pt 1 Summary of Data - Final'!Q20-'Pt 1 Summary of Data - Final'!Q23-'Pt 1 Summary of Data - Final'!Q43)),0,SUM('Pt 1 Summary of Data - Final'!Q30:Q33)/('Pt 1 Summary of Data - Final'!Q20-'Pt 1 Summary of Data - Final'!Q23-'Pt 1 Summary of Data - Final'!Q43)) -> 0.03044325246 | O21: =IF(ISERROR(SUM('Pt 1 Summary of Data - Final'!S30:S33)/('Pt 1 Summary of Data - Final'!S20-'Pt 1 Summary of Data - Final'!S23-'Pt 1 Summary of Data - Final'!S43)),0,SUM('Pt 1 Summary of Data - Final'!S30:S33)/('Pt 1 Summary of Data - Final'!S20-'Pt 1 Summary of Data - Final'!S23-'Pt 1 Summary of Data - Final'!S43)) -> 0.01476534329 | P21: =IF(ISERROR(SUM('Pt 1 Summary of Data - Final'!T30:T33)/('Pt 1 Summary of Data - Final'!T20-'Pt 1 Summary of Data - Final'!T23-'Pt 1 Summary of Data - Final'!T43)),0,SUM('Pt 1 Summary of Data - Final'!T30:T33)/('Pt 1 Summary of Data - Final'!T20-'Pt 1 Summary of Data - Final'!T23-'Pt 1 Summary of Data - Final'!T43)) -> 0.009558487305 | Q21: =IF(ISERROR(SUM('Pt 1 Summary of Data - Final'!U30:U33)/('Pt 1 Summary of Data - Final'!U20-'Pt 1 Summary of Data - Final'!U23-'Pt 1 Summary of Data - Final'!U43)),0,SUM('Pt 1 Summary of Data - Final'!U30:U33)/('Pt 1 Summary of Data - Final'!U20-'Pt 1 Summary of Data - Final'!U23-'Pt 1 Summary of Data - Final'!U43)) -> -0.1161138775 | R21: =IF(ISERROR(SUM('Pt 1 Summary of Data - Final'!AD30:AD33)/('Pt 1 Summary of Data - Final'!AD20-'Pt 1 Summary of Data - Final'!AD23-'Pt 1 Summary of Data - Final'!AD43)),0,SUM('Pt 1 Summary of Data - Final'!AD30:AD33)/('Pt 1 Summary of Data - Final'!AD20-'Pt 1 Summary of Data - Final'!AD23-'Pt 1 Summary of Data - Final'!AD43)) -> 0.8513832397 | S21: =IF(ISERROR(SUM('Pt 1 Summary of Data - Final'!AE30:AE33)/('Pt 1 Summary of Data - Final'!AE20-'Pt 1 Summary of Data - Final'!AE23-'Pt 1 Summary of Data - Final'!AE43)),0,SUM('Pt 1 Summary of Data - Final'!AE30:AE33)/('Pt 1 Summary of Data - Final'!AE20-'Pt 1 Summary of Data - Final'!AE23-'Pt 1 Summary of Data - Final'!AE43)) -> 1.274638067 | T21: =IF(ISERROR(SUM('Pt 1 Summary of Data - Final'!AF30:AF33)/('Pt 1 Summary of Data - Final'!AF20-'Pt 1 Summary of Data - Final'!AF23-'Pt 1 Summary of Data - Final'!AF43)),0,SUM('Pt 1 Summary of Data - Final'!AF30:AF33)/('Pt 1 Summary of Data - Final'!AF20-'Pt 1 Summary of Data - Final'!AF23-'Pt 1 Summary of Data - Final'!AF43)) -> 0 | U21: =IF(ISERROR(SUM('Pt 1 Summary of Data - Final'!AG30:AG33)/('Pt 1 Summary of Data - Final'!AG20-'Pt 1 Summary of Data - Final'!AG23-'Pt 1 Summary of Data - Final'!AG43)),0,SUM('Pt 1 Summary of Data - Final'!AG30:AG33)/('Pt 1 Summary of Data - Final'!AG20-'Pt 1 Summary of Data - Final'!AG23-'Pt 1 Summary of Data - Final'!AG43)) -> 0 | V21: =IF(ISERROR(SUM('Pt 1 Summary of Data - Final'!AH30:AH33)/('Pt 1 Summary of Data - Final'!AH20-'Pt 1 Summary of Data - Final'!AH23-'Pt 1 Summary of Data - Final'!AH43)),0,SUM('Pt 1 Summary of Data - Final'!AH30:AH33)/('Pt 1 Summary of Data - Final'!AH20-'Pt 1 Summary of Data - Final'!AH23-'Pt 1 Summary of Data - Final'!AH43)) -> 0 | W21: =IF(ISERROR(SUM('Pt 1 Summary of Data - Final'!AI30:AI33)/('Pt 1 Summary of Data - Final'!AI20-'Pt 1 Summary of Data - Final'!AI23-'Pt 1 Summary of Data - Final'!AI43)),0,SUM('Pt 1 Summary of Data - Final'!AI30:AI33)/('Pt 1 Summary of Data - Final'!AI20-'Pt 1 Summary of Data - Final'!AI23-'Pt 1 Summary of Data - Final'!AI43)) -> 0.0004258742251
A22: Non-Claims Costs - QI/HIT
A23: QI/HIT % of Premiums | B23: =IF(VLOOKUP('Essbase Input'!$C$4,Tables!$B$3:$F$6,5,FALSE)="DPPO",0,IF(ISERROR(SUM('EB PT 1'!$I$38:$I$43)/'Pt 1 Summary of Data - Final'!F20),0,SUM('EB PT 1'!$I$38:$I$43)/'Pt 1 Summary of Data - Final'!F20)) -> 0 | C23: =+B23 -> 0 | D23: =IF(VLOOKUP('Essbase Input'!$C$4,Tables!$B$3:$F$6,5,FALSE)="DPPO",0,IF(ISERROR(SUM('EB PT 1'!$K$38:$K$43)/'Pt 1 Summary of Data - Final'!H20),0,SUM('EB PT 1'!$K$38:$K$43)/'Pt 1 Summary of Data - Final'!H20)) -> 0 | E23: =+D23 -> 0 | F23: =IF(VLOOKUP('Essbase Input'!$C$4,Tables!$B$3:$F$6,5,FALSE)="DPPO",0,IF(ISERROR(SUM('EB PT 1'!$M$38:$M$43)/'Pt 1 Summary of Data - Final'!J20),0,SUM('EB PT 1'!$M$38:$M$43)/'Pt 1 Summary of Data - Final'!J20)) -> 0 | G23: =+F23 -> 0 | H23: =IF(VLOOKUP('Essbase Input'!$C$4,Tables!$B$3:$F$6,5,FALSE)="DHMO",0,IF('Essbase Input'!$C$4="Golden Rule Insurance Company",SUM('EB PT 1'!$R$38:$R$43)/'Pt 1 Summary of Data - Final'!L20,IF(ISERROR(SUM('EB PT 1'!$I$38:$I$43)/'Pt 1 Summary of Data - Final'!L20),0,SUM('EB PT 1'!$I$38:$I$43)/'Pt 1 Summary of Data - Final'!L20))) -> 0 | I23: =+H23 -> 0 | J23: =IF(VLOOKUP('Essbase Input'!$C$4,Tables!$B$3:$F$6,5,FALSE)="DHMO",0,IF('Essbase Input'!$C$4="Golden Rule Insurance Company",0,IF(ISERROR(SUM('EB PT 1'!$K$38:$K$43)/'Pt 1 Summary of Data - Final'!N20),0,SUM('EB PT 1'!$K$38:$K$43)/'Pt 1 Summary of Data - Final'!N20))) -> 3.354241217e-19 | K23: =+J23 -> 3.354241217e-19 | L23: =IF(VLOOKUP('Essbase Input'!$C$4,Tables!$B$3:$F$6,5,FALSE)="DHMO",0,IF('Essbase Input'!$C$4="Golden Rule Insurance Company",0,IF(ISERROR(SUM('EB PT 1'!$M$38:$M$43)/'Pt 1 Summary of Data - Final'!P20),0,SUM('EB PT 1'!$M$38:$M$43)/'Pt 1 Summary of Data - Final'!P20))) -> 0.02647677661 | M23: =+L23 -> 0.02647677661 | O23: =IF(ISERROR(SUM('EB PT 1'!$O$38:$O$43)/'Pt 1 Summary of Data - Final'!S20),0,SUM('EB PT 1'!$O$38:$O$43)/'Pt 1 Summary of Data - Final'!S20) -> 0.01808855293 | P23: =IF(ISERROR(SUM('EB PT 1'!$T$38:$T$43)/'Pt 1 Summary of Data - Final'!T20),0,SUM('EB PT 1'!$T$38:$T$43)/'Pt 1 Summary of Data - Final'!T20) -> 0.01237327988 | Q23: =IF(ISERROR(SUM('EB PT 1'!U38:U43)/'Pt 1 Summary of Data - Final'!U20),0,SUM('EB PT 1'!U38:U43)/'Pt 1 Summary of Data - Final'!U20) -> 0 | R23: =IF(ISERROR(SUM('EB PT 1'!AO38:AO43)/'Pt 1 Summary of Data - Final'!AD20),0,SUM('EB PT 1'!AO38:AO43)/'Pt 1 Summary of Data - Final'!AD20) -> 0.01385530495
A24: QI/HIT % of Non-Claims Costs | B24: =IF(VLOOKUP('Essbase Input'!$C$4,Tables!$B$3:$F$6,5,FALSE)="DPPO",0,IF(ISERROR(SUM('EB PT 1'!$I$38:$I$43)/'Pt 1 Summary of Data - Final'!F43),0,SUM('EB PT 1'!$I$38:$I$43)/'Pt 1 Summary of Data - Final'!F43)) -> 0 | C24: =+B24 -> 0 | D24: =IF(VLOOKUP('Essbase Input'!$C$4,Tables!$B$3:$F$6,5,FALSE)="DPPO",0,IF(ISERROR(SUM('EB PT 1'!$K$38:$K$43)/'Pt 1 Summary of Data - Final'!H43),0,SUM('EB PT 1'!$K$38:$K$43)/'Pt 1 Summary of Data - Final'!H43)) -> 0 | E24: =+D24 -> 0 | F24: =IF(VLOOKUP('Essbase Input'!$C$4,Tables!$B$3:$F$6,5,FALSE)="DPPO",0,IF(ISERROR(SUM('EB PT 1'!$M$38:$M$43)/'Pt 1 Summary of Data - Final'!J43),0,SUM('EB PT 1'!$M$38:$M$43)/'Pt 1 Summary of Data - Final'!J43)) -> 0 | G24: =+F24 -> 0 | H24: =IF(VLOOKUP('Essbase Input'!$C$4,Tables!$B$3:$F$6,5,FALSE)="DHMO",0,IF('Essbase Input'!$C$4="Golden Rule Insurance Company",SUM('EB PT 1'!$R$38:$R$43)/'Pt 1 Summary of Data - Final'!L43,IF(ISERROR(SUM('EB PT 1'!$I$38:$I$43)/'Pt 1 Summary of Data - Final'!L43),0,SUM('EB PT 1'!$I$38:$I$43)/'Pt 1 Summary of Data - Final'!L43))) -> 0 | I24: =+H24 -> 0 | J24: =IF(VLOOKUP('Essbase Input'!$C$4,Tables!$B$3:$F$6,5,FALSE)="DHMO",0,IF('Essbase Input'!$C$4="Golden Rule Insurance Company",0,IF(ISERROR(SUM('EB PT 1'!$K$38:$K$43)/'Pt 1 Summary of Data - Final'!N43),0,SUM('EB PT 1'!$K$38:$K$43)/'Pt 1 Summary of Data - Final'!N43))) -> 1.503184872e-18 | K24: =+J24 -> 1.503184872e-18 | L24: =IF(VLOOKUP('Essbase Input'!$C$4,Tables!$B$3:$F$6,5,FALSE)="DHMO",0,IF('Essbase Input'!$C$4="Golden Rule Insurance Company",0,IF(ISERROR(SUM('EB PT 1'!$M$38:$M$43)/'Pt 1 Summary of Data - Final'!P43),0,SUM('EB PT 1'!$M$38:$M$43)/'Pt 1 Summary of Data - Final'!P43))) -> 0.1571393199 | M24: =+L24 -> 0.1571393199 | O24: =IF(ISERROR(SUM('EB PT 1'!$O$38:$O$43)/'Pt 1 Summary of Data - Final'!S43),0,SUM('EB PT 1'!$O$38:$O$43)/'Pt 1 Summary of Data - Final'!S43) -> 0.09735168858 | P24: =IF(ISERROR(SUM('EB PT 1'!T38:T43)/'Pt 1 Summary of Data - Final'!T43),0,SUM('EB PT 1'!T38:T43)/'Pt 1 Summary of Data - Final'!T43) -> 0.06339362652 | Q24: =IF(ISERROR(SUM('EB PT 1'!U38:U43)/'Pt 1 Summary of Data - Final'!U43),0,SUM('EB PT 1'!U38:U43)/'Pt 1 Summary of Data - Final'!U43) -> 0 | R24: =IF(ISERROR(SUM('EB PT 1'!AO38:AO43)/'Pt 1 Summary of Data - Final'!AD43),0,SUM('EB PT 1'!AO38:AO43)/'Pt 1 Summary of Data - Final'!AD43) -> 0.08931991062
A25: QI/HIT PMPM | B25: =IF(VLOOKUP('Essbase Input'!$C$4,Tables!$B$3:$F$6,5,FALSE)="DPPO",0,IF(ISERROR(SUM('EB PT 1'!$I$38:$I$43)/'Pt 1 Summary of Data - Final'!F47),0,SUM('EB PT 1'!$I$38:$I$43)/'Pt 1 Summary of Data - Final'!F47)) -> 0 | C25: =+B25 -> 0 | D25: =IF(VLOOKUP('Essbase Input'!$C$4,Tables!$B$3:$F$6,5,FALSE)="DPPO",0,IF(ISERROR(SUM('EB PT 1'!$K$38:$K$43)/'Pt 1 Summary of Data - Final'!H47),0,SUM('EB PT 1'!$K$38:$K$43)/'Pt 1 Summary of Data - Final'!H47)) -> 0 | E25: =+D25 -> 0 | F25: =IF(VLOOKUP('Essbase Input'!$C$4,Tables!$B$3:$F$6,5,FALSE)="DPPO",0,IF(ISERROR(SUM('EB PT 1'!$M$38:$M$43)/'Pt 1 Summary of Data - Final'!J47),0,SUM('EB PT 1'!$M$38:$M$43)/'Pt 1 Summary of Data - Final'!J47)) -> 0 | G25: =+F25 -> 0 | H25: =IF(VLOOKUP('Essbase Input'!$C$4,Tables!$B$3:$F$6,5,FALSE)="DHMO",0,IF('Essbase Input'!$C$4="Golden Rule Insurance Company",SUM('EB PT 1'!$R$38:$R$43)/'Pt 1 Summary of Data - Final'!L47,IF(ISERROR(SUM('EB PT 1'!$I$38:$I$43)/'Pt 1 Summary of Data - Final'!L47),0,SUM('EB PT 1'!$I$38:$I$43)/'Pt 1 Summary of Data - Final'!L47))) -> 0 | I25: =+H25 -> 0 | J25: =IF(VLOOKUP('Essbase Input'!$C$4,Tables!$B$3:$F$6,5,FALSE)="DHMO",0,IF('Essbase Input'!$C$4="Golden Rule Insurance Company",0,IF(ISERROR(SUM('EB PT 1'!$K$38:$K$43)/'Pt 1 Summary of Data - Final'!N47),0,SUM('EB PT 1'!$K$38:$K$43)/'Pt 1 Summary of Data - Final'!N47))) -> 1.373616157e-17 | K25: =+J25 -> 1.373616157e-17 | L25: =IF(VLOOKUP('Essbase Input'!$C$4,Tables!$B$3:$F$6,5,FALSE)="DHMO",0,IF('Essbase Input'!$C$4="Golden Rule Insurance Company",0,IF(ISERROR(SUM('EB PT 1'!$M$38:$M$43)/'Pt 1 Summary of Data - Final'!P47),0,SUM('EB PT 1'!$M$38:$M$43)/'Pt 1 Summary of Data - Final'!P47))) -> 0.9779754477 | M25: =+L25 -> 0.9779754477 | O25: =IF(ISERROR(SUM('EB PT 1'!$O$38:$O$43)/'Pt 1 Summary of Data - Final'!S47),0,SUM('EB PT 1'!$O$38:$O$43)/'Pt 1 Summary of Data - Final'!S47) -> 0.6895546328 | P25: =IF(ISERROR(SUM('EB PT 1'!T38:T43)/'Pt 1 Summary of Data - Final'!T47),0,SUM('EB PT 1'!T38:T43)/'Pt 1 Summary of Data - Final'!T47) -> 0.05320082416 | Q25: =IF(ISERROR(SUM('EB PT 1'!U38:U43)/'Pt 1 Summary of Data - Final'!U47),0,SUM('EB PT 1'!U38:U43)/'Pt 1 Summary of Data - Final'!U47) -> 0 | R25: =IF(ISERROR(SUM('EB PT 1'!AO38:AO43)/'Pt 1 Summary of Data - Final'!AD47),0,SUM('EB PT 1'!AO38:AO43)/'Pt 1 Summary of Data - Final'!AD47) -> 2.450990901
A26: MLR
A27: MLR % (Part 4 Line 4.1) | B27: =IF(ISERROR('Pt 4 MLR Calculation - Final'!$H$33),0,'Pt 4 MLR Calculation - Final'!$H$33) ->  | C27: =+B27 ->  | D27: =IF(ISERROR('Pt 4 MLR Calculation - Final'!$L$33),0,'Pt 4 MLR Calculation - Final'!$L$33) ->  | E27: =+D27 ->  | F27: =IF(ISERROR('Pt 4 MLR Calculation - Final'!$P$33),0,'Pt 4 MLR Calculation - Final'!$P$33) ->  | G27: =+F27 ->  | H27: =IF(ISERROR('Pt 4 MLR Calculation - Final'!$T$33),0,'Pt 4 MLR Calculation - Final'!$T$33) -> 0 | I27: =+H27 -> 0 | J27: =IF(ISERROR('Pt 4 MLR Calculation - Final'!$X$33),0,'Pt 4 MLR Calculation - Final'!$X$33) -> 0.6124782968 | K27: =+J27 -> 0.6124782968 | L27: =IF(ISERROR('Pt 4 MLR Calculation - Final'!$AB$33),0,'Pt 4 MLR Calculation - Final'!$AB$33) -> 0.8464751317 | M27: =+L27 -> 0.8464751317
A28: Membership
A29: Member Months per Covered Life (Other Indicators: Line 5.2 / Line 5.1) | B29: =IF(ISERROR('Pt 1 Summary of Data - Final'!F47/'Pt 1 Summary of Data - Final'!F46),0,'Pt 1 Summary of Data - Final'!F47/'Pt 1 Summary of Data - Final'!F46) -> 0 | C29: =IF(ISERROR('Pt 1 Summary of Data - Final'!G47/'Pt 1 Summary of Data - Final'!G46),0,'Pt 1 Summary of Data - Final'!G47/'Pt 1 Summary of Data - Final'!G46) -> 0 | D29: =IF(ISERROR('Pt 1 Summary of Data - Final'!H47/'Pt 1 Summary of Data - Final'!H46),0,'Pt 1 Summary of Data - Final'!H47/'Pt 1 Summary of Data - Final'!H46) -> 0 | E29: =IF(ISERROR('Pt 1 Summary of Data - Final'!I47/'Pt 1 Summary of Data - Final'!I46),0,'Pt 1 Summary of Data - Final'!I47/'Pt 1 Summary of Data - Final'!I46) -> 0 | F29: =IF(ISERROR('Pt 1 Summary of Data - Final'!J47/'Pt 1 Summary of Data - Final'!J46),0,'Pt 1 Summary of Data - Final'!J47/'Pt 1 Summary of Data - Final'!J46) -> 0 | G29: =IF(ISERROR('Pt 1 Summary of Data - Final'!K47/'Pt 1 Summary of Data - Final'!K46),0,'Pt 1 Summary of Data - Final'!K47/'Pt 1 Summary of Data - Final'!K46) -> 0 | H29: =IF(ISERROR('Pt 1 Summary of Data - Final'!L47/'Pt 1 Summary of Data - Final'!L46),0,'Pt 1 Summary of Data - Final'!L47/'Pt 1 Summary of Data - Final'!L46) -> 0 | I29: =IF(ISERROR('Pt 1 Summary of Data - Final'!M47/'Pt 1 Summary of Data - Final'!M46),0,'Pt 1 Summary of Data - Final'!M47/'Pt 1 Summary of Data - Final'!M46) -> 0 | J29: =IF(ISERROR('Pt 1 Summary of Data - Final'!N47/'Pt 1 Summary of Data - Final'!N46),0,'Pt 1 Summary of Data - Final'!N47/'Pt 1 Summary of Data - Final'!N46) -> 11.18884387 | K29: =IF(ISERROR('Pt 1 Summary of Data - Final'!O47/'Pt 1 Summary of Data - Final'!O46),0,'Pt 1 Summary of Data - Final'!O47/'Pt 1 Summary of Data - Final'!O46) -> 11.18884387 | L29: =IF(ISERROR('Pt 1 Summary of Data - Final'!P47/'Pt 1 Summary of Data - Final'!P46),0,'Pt 1 Summary of Data - Final'!P47/'Pt 1 Summary of Data - Final'!P46) -> 9.792470928 | M29: =IF(ISERROR('Pt 1 Summary of Data - Final'!Q47/'Pt 1 Summary of Data - Final'!Q46),0,'Pt 1 Summary of Data - Final'!Q47/'Pt 1 Summary of Data - Final'!Q46) -> 9.792470928 | O29: =IF(ISERROR('Pt 1 Summary of Data - Final'!S47/'Pt 1 Summary of Data - Final'!S46),0,'Pt 1 Summary of Data - Final'!S47/'Pt 1 Summary of Data - Final'!S46) -> 10.16666184 | P29: =IF(ISERROR('Pt 1 Summary of Data - Final'!T47/'Pt 1 Summary of Data - Final'!T46),0,'Pt 1 Summary of Data - Final'!T47/'Pt 1 Summary of Data - Final'!T46) -> 11.97941007 | Q29: =IF(ISERROR('Pt 1 Summary of Data - Final'!U47/'Pt 1 Summary of Data - Final'!U46),0,'Pt 1 Summary of Data - Final'!U47/'Pt 1 Summary of Data - Final'!U46) -> 107.4348865 | R29: =IF(ISERROR('Pt 1 Summary of Data - Final'!AD47/'Pt 1 Summary of Data - Final'!AD46),0,'Pt 1 Summary of Data - Final'!AD47/'Pt 1 Summary of Data - Final'!AD46) -> 11.78024924 | S29: =IF(ISERROR('Pt 1 Summary of Data - Final'!AE47/'Pt 1 Summary of Data - Final'!AE46),0,'Pt 1 Summary of Data - Final'!AE47/'Pt 1 Summary of Data - Final'!AE46) -> 11.6797903 | T29: =IF(ISERROR('Pt 1 Summary of Data - Final'!AF47/'Pt 1 Summary of Data - Final'!AF46),0,'Pt 1 Summary of Data - Final'!AF47/'Pt 1 Summary of Data - Final'!AF46) -> 0 | U29: =IF(ISERROR('Pt 1 Summary of Data - Final'!AG47/'Pt 1 Summary of Data - Final'!AG46),0,'Pt 1 Summary of Data - Final'!AG47/'Pt 1 Summary of Data - Final'!AG46) -> 0 | V29: =IF(ISERROR('Pt 1 Summary of Data - Final'!AH47/'Pt 1 Summary of Data - Final'!AH46),0,'Pt 1 Summary of Data - Final'!AH47/'Pt 1 Summary of Data - Final'!AH46) -> 0 | W29: =IF(ISERROR('Pt 1 Summary of Data - Final'!AI47/'Pt 1 Summary of Data - Final'!AI46),0,'Pt 1 Summary of Data - Final'!AI47/'Pt 1 Summary of Data - Final'!AI46) -> 0

Sheet Cover Page
B1: Department of Managed Health Care/Department of Insurance
B2: Medical Loss Ratio Reporting Form
B3: Dental Coverage
A6: 1. | B6: MLR Reporting Year | C6: ='Essbase Input'!$C$8 -> 2017
A7: 2. | B7: Enter DMHC Health Plan ID. Insurers may leave this field blank | C7: =IF(VLOOKUP('Essbase Input'!$C$4,Tables!$B$3:$E$12,3,FALSE)="","",VLOOKUP('Essbase Input'!$C$4,Tables!$B$3:$E$12,3,FALSE)) -> 
A8: 3. | B8: Legal Name | C8: =VLOOKUP('Essbase Input'!$C$4,Tables!$B$3:$E$12,2,FALSE) -> UnitedHealthcare Insurance Company
A9: 4. | B9: DBA | C9: =IF(VLOOKUP('Essbase Input'!$C$4,Tables!$B$3:$E$12,4,FALSE)="","N/A",VLOOKUP('Essbase Input'!$C$4,Tables!$B$3:$E$12,4,FALSE)) -> N/A
A10: 5. | B10: Federal Tax Exempt Status? Please enter Yes or No | C10: No
B14: Cell Key:
B15: Blank cells require input from Health plan or Health insurer
B19: version 4.22.15

Sheet EB PT 1 (hidden)
A1: Part | B1: Ln | C1: Year | D1: ="Account" -> Account | E1: ="IDB Period" -> IDB Period | F1: ="Period" -> Period | G1: ="Reinsurance" -> Reinsurance | H1: ="Project" -> Project | I1: 1 | J1: 2 | K1: 3 | L1: 4 | M1: 5 | N1: 6 | O1: 5 | P1: 6 | Q1: 1 | R1: GRIC | S1: Other Health MLR Total | T1: Vision | U1: Life/Disability | V1: Stop Loss (1) | W1: Stop Loss (1) | X1: Stop Loss (1) | Y1: Stop Loss (2) | Z1: Stop Loss (2) | AA1: Stop Loss (2) | AB1: Stop Loss (2) | AC1: Supp Hospital | AD1: Supp Hospital | AE1: Supp Hospital | AF1: Supp Hospital | AG1: Medicare Supp | AH1: Medicare Supp | AI1: Medicare Supp | AJ1: Medicare Supp | AK1: Student Health | AL1: Student Health | AM1: Wrap | AN1: Ind Short Term | AO1: Other Health Business | AP1: Other Differences
A2: ="Not Used" -> Not Used | I2: Views | J2: Views | K2: Views | L2: Views | M2: Views | N2: Views | O2: Views | P2: Views | Q2: Views | R2: Views | S2: Views | T2: Views | U2: Views | V2: Views | W2: Views | X2: Views | Y2: Views | Z2: Views | AA2: Views | AB2: Views | AC2: Views | AD2: Views | AE2: Views | AF2: Views | AG2: Views | AH2: Views | AI2: Views | AJ2: Views | AK2: Views | AL2: Views | AM2: Views | AN2: Views | AO2: Views
A3: ="Linked Cell" -> Linked Cell | I3: Sources | J3: Sources | K3: Sources | L3: Sources | M3: Sources | N3: Sources | O3: Sources | P3: Sources | Q3: Sources | R3: Sources | S3: Sources | T3: Sources | U3: Sources | V3: Sources | W3: Sources | X3: Sources | Y3: Sources | Z3: Sources | AA3: Sources | AB3: Sources | AC3: Sources | AD3: Sources | AE3: Sources | AF3: Sources | AG3: Sources | AH3: Sources | AI3: Sources | AJ3: Sources | AK3: Sources | AL3: Sources | AM3: Sources | AN3: Sources | AO3: Sources
A4: ="Separate Rows" -> Separate Rows | I4: Departments | J4: Departments | K4: Departments | L4: Departments | M4: Departments | N4: Departments | O4: Departments | P4: Departments | Q4: Departments | R4: Departments | S4: Departments | T4: Departments | U4: Departments | V4: Departments | W4: Departments | X4: Departments | Y4: Departments | Z4: Departments | AA4: Departments | AB4: Departments | AC4: Departments | AD4: Departments | AE4: Departments | AF4: Departments | AG4: Departments | AH4: Departments | AI4: Departments | AJ4: Departments | AK4: Departments | AL4: Departments | AM4: Departments | AN4: Departments | AO4: Departments
A5: Ties Out | I5: NAIC Supp HC Exhibit | J5: =I5 -> NAIC Supp HC Exhibit | K5: =I5 -> NAIC Supp HC Exhibit | L5: =J5 -> NAIC Supp HC Exhibit | M5: =K5 -> NAIC Supp HC Exhibit | N5: =L5 -> NAIC Supp HC Exhibit | O5: =M5 -> NAIC Supp HC Exhibit | P5: =O5 -> NAIC Supp HC Exhibit | Q5: =P5 -> NAIC Supp HC Exhibit | R5: =P5 -> NAIC Supp HC Exhibit | S5: =R5 -> NAIC Supp HC Exhibit | T5: NAIC Supp HC Exhibit | U5: NAIC Supp HC Exhibit | V5: NAIC Supp HC Exhibit | W5: NAIC Supp HC Exhibit | X5: NAIC Supp HC Exhibit | Y5: NAIC Supp HC Exhibit | Z5: NAIC Supp HC Exhibit | AA5: NAIC Supp HC Exhibit | AB5: NAIC Supp HC Exhibit | AC5: NAIC Supp HC Exhibit | AD5: NAIC Supp HC Exhibit | AE5: NAIC Supp HC Exhibit | AF5: NAIC Supp HC Exhibit | AG5: NAIC Supp HC Exhibit | AH5: NAIC Supp HC Exhibit | AI5: NAIC Supp HC Exhibit | AJ5: NAIC Supp HC Exhibit | AK5: NAIC Supp HC Exhibit | AL5: NAIC Supp HC Exhibit | AM5: NAIC Supp HC Exhibit | AN5: NAIC Supp HC Exhibit | AO5: =U5 -> NAIC Supp HC Exhibit
A6: ="Question" -> Question | I6: ='Essbase Input'!C6 -> UnitedHealthcare Domestic | J6: =$I$6 -> UnitedHealthcare Domestic | K6: =$I$6 -> UnitedHealthcare Domestic | L6: =$I$6 -> UnitedHealthcare Domestic | M6: =$I$6 -> UnitedHealthcare Domestic | N6: =$I$6 -> UnitedHealthcare Domestic | O6: =N6 -> UnitedHealthcare Domestic | P6: =O6 -> UnitedHealthcare Domestic | Q6: Total UnitedHealth Grp-Rollup | R6: Operating Units | S6: Operating Units | T6: Operating Units | U6: Operating Units | V6: Operating Units | W6: Operating Units | X6: Operating Units | Y6: Operating Units | Z6: Operating Units | AA6: Operating Units | AB6: Operating Units | AC6: Operating Units | AD6: Operating Units | AE6: Operating Units | AF6: Operating Units | AG6: Operating Units | AH6: Operating Units | AI6: Operating Units | AJ6: Operating Units | AK6: Operating Units | AL6: Operating Units | AM6: Operating Units | AN6: Operating Units | AO6: Operating Units
I7: ='Essbase Input'!C7 -> Stand Alone Dental | J7: =I7 -> Stand Alone Dental | K7: =J7 -> Stand Alone Dental | L7: =K7 -> Stand Alone Dental | M7: =L7 -> Stand Alone Dental | N7: =M7 -> Stand Alone Dental | O7: =N7 -> Stand Alone Dental | P7: =O7 -> Stand Alone Dental | Q7: =P7 -> Stand Alone Dental | R7: =P7 -> Stand Alone Dental | S7: Other Health Business | T7: Stand Alone Vision | U7: Non Stand Alone Dental/Vision | V7: 322000 - Stop Loss - Individual | W7: 322010 - Stop Loss PEL | X7: 322100 - Stop Loss - Aggregate | Y7: 150000 - Stop Loss - Individual | Z7: 150010 - Stop Loss - Terminal Ind | AA7: 151000 - Stop Loss - Aggregate | AB7: 151010 - Stop Loss - Terminal Aggregate | AC7: 204000 - Supplemental Hospital Insur | AD7: 204010 - Hospital Advantage Plans | AE7: 204020 - Essential Health Insurance Pln | AF7: 204030 - Essential Plus Health Insur | AG7: 203000 - Medicare Supplement - Indiv | AH7: 203010 - Medicare Supplement - Group | AI7: 203100 - Natl Acct Med Supp/Retiree | AJ7: 203510 - Medicare Supplement - Pre-Std | AK7: 112000 - Student Health Plans | AL7: 113000 - Student Health - Accident Only | AM7: 202080 - Wrap - NonGap | AN7: 106410 - Individual Short Term | AO7: Other Bus(excluded by Statute)
I8: Individual | J8: =I8 -> Individual | K8: Small Group Employer | L8: =K8 -> Small Group Employer | M8: Large Group Employer | N8: =M8 -> Large Group Employer | O8: Customers | P8: =O8 -> Customers | Q8: =O8 -> Customers | R8: Customers | S8: MLR Customers | T8: MLR Customers | U8: MLR Customers | V8: MLR Customers | W8: MLR Customers | X8: MLR Customers | Y8: MLR Customers | Z8: MLR Customers | AA8: MLR Customers | AB8: MLR Customers | AC8: MLR Customers | AD8: MLR Customers | AE8: MLR Customers | AF8: MLR Customers | AG8: MLR Customers | AH8: MLR Customers | AI8: MLR Customers | AJ8: MLR Customers | AK8: MLR Customers | AL8: MLR Customers | AM8: MLR Customers | AN8: MLR Customers | AO8: MLR Customers
I9: ='Essbase Input'!$C$4 -> UnitedHealthcare Ins Co | J9: =$I$9 -> UnitedHealthcare Ins Co | K9: =$I$9 -> UnitedHealthcare Ins Co | L9: =$I$9 -> UnitedHealthcare Ins Co | M9: =$I$9 -> UnitedHealthcare Ins Co | N9: =$I$9 -> UnitedHealthcare Ins Co | O9: =N9 -> UnitedHealthcare Ins Co | P9: =N9 -> UnitedHealthcare Ins Co | Q9: =P9 -> UnitedHealthcare Ins Co | R9: UnitedHealthcare Ins Co | S9: UnitedHealthcare Ins Co | T9: UnitedHealthcare Ins Co | U9: UnitedHealthcare Ins Co | V9: UnitedHealthcare Ins Co | W9: UnitedHealthcare Ins Co | X9: UnitedHealthcare Ins Co | Y9: UnitedHealthcare Ins Co | Z9: UnitedHealthcare Ins Co | AA9: UnitedHealthcare Ins Co | AB9: UnitedHealthcare Ins Co | AC9: UnitedHealthcare Ins Co | AD9: UnitedHealthcare Ins Co | AE9: UnitedHealthcare Ins Co | AF9: UnitedHealthcare Ins Co | AG9: UnitedHealthcare Ins Co | AH9: UnitedHealthcare Ins Co | AI9: UnitedHealthcare Ins Co | AJ9: UnitedHealthcare Ins Co | AK9: UnitedHealthcare Ins Co | AL9: UnitedHealthcare Ins Co | AM9: UnitedHealthcare Ins Co | AN9: UnitedHealthcare Ins Co | AO9: =U9 -> UnitedHealthcare Ins Co | AP9: =AO9 -> UnitedHealthcare Ins Co
I10: ='Essbase Input'!C5 -> California - CA | J10: =I10 -> California - CA | K10: =$I$10 -> California - CA | L10: California - CA | M10: California - CA | N10: California - CA | O10: California - CA | P10: California - CA | Q10: =P10 -> California - CA | R10: California - CA | S10: California - CA | T10: California - CA | U10: California - CA | V10: California - CA | W10: California - CA | X10: California - CA | Y10: California - CA | Z10: California - CA | AA10: California - CA | AB10: California - CA | AC10: California - CA | AD10: California - CA | AE10: California - CA | AF10: California - CA | AG10: California - CA | AH10: California - CA | AI10: California - CA | AJ10: California - CA | AK10: California - CA | AL10: California - CA | AM10: California - CA | AN10: California - CA | AO10: =U10 -> California - CA
I11: ='Essbase Input'!C13 -> 2017 | J11: ='Essbase Input'!C12 -> 2018 | K11: =$I$11 -> 2017 | L11: =$J$11 -> 2018 | M11: =$I$11 -> 2017 | N11: =$J$11 -> 2018 | O11: =M11 -> 2017 | P11: =N11 -> 2018 | Q11: =O11 -> 2017 | R11: =Q11 -> 2017 | S11: 2017 | T11: 2017 | U11: 2017 | V11: 2017 | W11: 2017 | X11: 2017 | Y11: 2017 | Z11: 2017 | AA11: 2017 | AB11: 2017 | AC11: 2017 | AD11: 2017 | AE11: 2017 | AF11: 2017 | AG11: 2017 | AH11: 2017 | AI11: 2017 | AJ11: 2017 | AK11: 2017 | AL11: 2017 | AM11: 2017 | AN11: 2017 | AO11: =U11 -> 2017 | AP11: 2014
A12: 1 | B12: 3.1a | C12: =$I$11 -> 2017 | D12: Fed Tax & Assess - Nontaxable | E12: IDB Periods | F12: Total Year | G12: Reinsurance | H12: All Other Projects | I12: 0 | J12: 0 | K12: 0 | L12: 1.028042929e-11 | M12: 2330375.08 | N12: 4.565333701e-11 | O12: 2330375.08 | P12: 5.59337663e-11 | Q12: 2323408.73 | R12: 2323408.73 | S12: 2227496.23 | T12: 1360911.42 | U12: 223011.69 | V12: 0 | W12: 0 | X12: 0 | Y12: -106012 | Z12: -247.67 | AA12: 369918.7 | AB12: -197.44 | AC12: 72118.56 | AD12: 1929.36 | AE12: 315.14 | AF12: 277.38 | AG12: -162906.66 | AH12: -20031.64 | AI12: -645625.91 | AJ12: 4806388.37 | AK12: 2707.03 | AL12: 9444.26 | AM12: -6014884.09 | AN12: -60015.63 | AO12: -1665120.92
A13: 1 | B13: 3.1b | C13: 2017 | D13: Fed Tax & Assess - Taxable | E13: IDB Periods | F13: Total Year | G13: Reinsurance | H13: All Other Projects | I13: 0 | J13: 0 | K13: 0 | L13: 0 | M13: 0 | N13: 0 | O13: 0 | P13: 0 | Q13: 0 | R13: 0 | S13: 300724.29 | T13: 0 | U13: 0 | V13: 0 | W13: 0 | X13: 0 | Y13: 0 | Z13: 0 | AA13: 0 | AB13: 0 | AC13: 0 | AD13: 0 | AE13: 0 | AF13: 0 | AG13: 0 | AH13: 9225.18 | AI13: 169.72 | AJ13: 0 | AK13: 0 | AL13: 0 | AM13: 291335.87 | AN13: -6.48 | AO13: 300724.29
A14: 1 | B14: 3.2a | C14: 2017 | D14: State Ins & Other Taxes | E14: IDB Periods | F14: Total Year | G14: Reinsurance | H14: All Other Projects | I14: 0 | J14: 0 | K14: 20.54 | L14: 21.95 | M14: 649.92 | N14: 5.87 | O14: 670.46 | P14: 27.82 | Q14: 670.46 | R14: 670.46 | S14: 8518.1 | T14: 116.26 | U14: -0.04 | V14: 0 | W14: 0 | X14: 0 | Y14: 736.76 | Z14: 0 | AA14: 14.04 | AB14: 0 | AC14: 43.33 | AD14: 0.94 | AE14: 0.18 | AF14: 0.13 | AG14: 0.56 | AH14: 32.94 | AI14: 14.17 | AJ14: 5773.18 | AK14: 0.48 | AL14: 0.24 | AM14: 1091.96 | AN14: 22.51 | AO14: 7731.42
A15: 1 | B15: 3.2a | C15: 2017 | D15: State Local Taxes | E15: IDB Periods | F15: Total Year | G15: Reinsurance | H15: All Other Projects | I15: 0 | J15: 0 | K15: 0 | L15: 0 | M15: 10656.8 | N15: 0 | O15: 10656.8 | P15: 0 | Q15: 10656.8 | R15: 10656.8 | S15: 122190.54 | T15: 3278.82 | U15: 486.18 | V15: 0 | W15: 0 | X15: 0 | Y15: 3146.26 | Z15: 0 | AA15: 0 | AB15: 0 | AC15: 2952.85 | AD15: 90.63 | AE15: 13.17 | AF15: 12.98 | AG15: 29.28 | AH15: 1362.44 | AI15: 32.68 | AJ15: 79065.42 | AK15: 0 | AL15: 23.21 | AM15: 21039.92 | AN15: -0.1 | AO15: 107768.74
A16: 1 | B16: 3.2a | C16: 2017 | D16: 92016 - Reinsur Contrib Fee - Pool | E16: IDB Periods | F16: Total Year | G16: Reinsurance | H16: 0000004362 - OR-CHIP-Med Ins Pool (MIP) | I16: 0 | J16: 0 | K16: 0 | L16: 0 | M16: 0 | N16: 0 | O16: 0 | P16: 0 | Q16: 0 | R16: 0 | S16: 0 | T16: 0 | U16: 0 | V16: 0 | W16: 0 | X16: 0 | Y16: 0 | Z16: 0 | AA16: 0 | AB16: 0 | AC16: 0 | AD16: 0 | AE16: 0 | AF16: 0 | AG16: 0 | AH16: 0 | AI16: 0 | AJ16: 0 | AK16: 0 | AL16: 0 | AM16: 0 | AN16: 0 | AO16: 0
A17: 1 | B17: 3.2b | C17: 2017 | D17: State Premium Taxes | E17: IDB Periods | F17: Total Year | G17: Reinsurance | H17: All Other Projects | I17: 0.1 | J17: 0 | K17: 18251.74 | L17: -44677.26 | M17: 54057.92 | N17: -127754.22 | O17: 72309.76 | P17: -172431.48 | Q17: 72309.76 | R17: 72309.76 | S17: -25906659.23 | T17: 34107.66 | U17: -20422.95 | V17: 0 | W17: 0 | X17: 0 | Y17: 380214.48 | Z17: 33.26 | AA17: 15216.7 | AB17: -0.36 | AC17: -269123.98 | AD17: -11144.47 | AE17: -2286.45 | AF17: -2456.53 | AG17: 215012.21 | AH17: -99370.88 | AI17: 56062.93 | AJ17: -27431199.07 | AK17: 27.05 | AL17: 74332.01 | AM17: 884409.26 | AN17: 182779.44 | AO17: -25992645.16
A18: 1 | B18: 3.2a,b | C18: 2017 | D18: 92010 - Other Premium Assessments | E18: IDB Periods | F18: Total Year | G18: Reinsurance | H18: All Other Projects | I18: 0 | J18: 0 | K18: 17264.8 | L18: -27971.74 | M18: 51859.43 | N18: -34741.34 | O18: 69124.23 | P18: -62713.08 | Q18: 69124.23 | R18: 69124.23 | S18: -28793847.84 | T18: 26116.03 | U18: -20667.51 | V18: 0 | W18: 0 | X18: 0 | Y18: 8863.94 | Z18: 57.82 | AA18: 238.39 | AB18: 2.36 | AC18: -278122.85 | AD18: -11340.92 | AE18: -2324.31 | AF18: -2482.68 | AG18: 213814.04 | AH18: -102756.9 | AI18: 52494.62 | AJ18: -28631419.21 | AK18: 27.05 | AL18: 74328.51 | AM18: -387404.29 | AN18: 182754.6 | AO18: -28868420.59
A19: 1 | B19: 3.3 | C19: 2017 | D19: Reg Authority Licenses & Fees | E19: IDB Periods | F19: Total Year | G19: Reinsurance | H19: All Other Projects | I19: 0 | J19: 0 | K19: 1240.45 | L19: 76.16 | M19: 3112.19 | N19: -1335.23 | O19: 4352.64 | P19: -1259.07 | Q19: 4352.64 | R19: 4352.64 | S19: 56834.39 | T19: 1176.88 | U19: 0.07 | V19: 0 | W19: 0 | X19: 0 | Y19: 16565.93 | Z19: 0 | AA19: 153.47 | AB19: 0 | AC19: 180.52 | AD19: 3.94 | AE19: 0.76 | AF19: 0.53 | AG19: 30.13 | AH19: 0 | AI19: -103.22 | AJ19: 24054.92 | AK19: 0 | AL19: 0 | AM19: 10417.82 | AN19: 0 | AO19: 51304.8
A20: 1 | B20: 4.1 | C20: 2017 | D20: General & Admin Expenses | E20: IDB Periods | F20: Total Year | G20: Reinsurance | H20: Direct Sales Salaries Benefits | I20: 0 | J20: 0 | K20: 0 | L20: 0 | M20: 419862.24 | N20: 216694.61 | O20: 419862.24 | P20: 216694.61 | Q20: 419862.24 | R20: 419862.24 | S20: 1601096.4 | T20: 79230.84 | U20: 23241.07 | V20: 0 | W20: 0 | X20: 0 | Y20: 0 | Z20: 0 | AA20: 0 | AB20: 0 | AC20: 38739.19 | AD20: 1188.99 | AE20: 172.72 | AF20: 170.33 | AG20: 0 | AH20: 0 | AI20: 228.79 | AJ20: 1037279.47 | AK20: 0 | AL20: 975.17 | AM20: 0 | AN20: 7.59 | AO20: 1078762.25
A21: 1 | B21: 4.1 | C21: =$J$11 -> 2018 | D21: General & Admin Expenses | E21: =CONCATENATE("IDB ",'Essbase Input'!$C$8) -> IDB 2017 | F21: Total Year | G21: Reinsurance | H21: Direct Sales Salaries Benefits | I21: 0 | J21: 0 | K21: 0 | L21: 0 | M21: 419862.24 | N21: 0 | O21: 419862.24 | P21: 0 | Q21: 419862.24 | R21: 419862.24 | S21: 1601096.4 | T21: 79230.84 | U21: 23241.07 | V21: 0 | W21: 0 | X21: 0 | Y21: 0 | Z21: 0 | AA21: 0 | AB21: 0 | AC21: 38739.19 | AD21: 1188.99 | AE21: 172.72 | AF21: 170.33 | AG21: 0 | AH21: 0 | AI21: 228.79 | AJ21: 1037279.47 | AK21: 0 | AL21: 975.17 | AM21: 0 | AN21: 7.59 | AO21: 1078762.25
A22: 1 | B22: 4.1 | C22: =$J$11 -> 2018 | D22: General & Admin Expenses | E22: =CONCATENATE("IDB ",'Essbase Input'!$C$8) -> IDB 2017 | F22: March_Bal | G22: Reinsurance | H22: Direct Sales Salaries Benefits | I22: 0 | J22: 0 | K22: 0 | L22: 0 | M22: 105197.22 | N22: 0 | O22: 105197.22 | P22: 0 | Q22: 105197.22 | R22: 105197.22 | S22: 366190.59 | T22: 20711.6 | U22: 4801.43 | V22: 0 | W22: 0 | X22: 0 | Y22: 0 | Z22: 0 | AA22: 0 | AB22: 0 | AC22: 893.24 | AD22: 55.06 | AE22: 8.47 | AF22: 2.83 | AG22: 165.63 | AH22: 0 | AI22: 55.62 | AJ22: 233988.72 | AK22: 0 | AL22: 308.09 | AM22: 0 | AN22: 2.68 | AO22: 235480.34
A23: 1 | B23: 4.2 | C23: 2017 | D23: Agents & Brokers Fees & Comms | E23: IDB Periods | F23: Total Year | G23: Reinsurance | H23: GAAP Reported Projects | I23: 327.3 | J23: 0 | K23: 1993607.77 | L23: 1185405.12 | M23: 2219250.13 | N23: 1038170.14 | O23: 4213185.2 | P23: 2223575.26 | Q23: 4213185.2 | R23: 4213185.2 | S23: 36766857.37 | T23: 968364.82 | U23: 193818.01 | V23: 0 | W23: 0 | X23: 0 | Y23: 1476866.44 | Z23: 5.58 | AA23: 34351.37 | AB23: 0 | AC23: 0 | AD23: 0 | AE23: 0 | AF23: 0 | AG23: 4526.15 | AH23: 24459 | AI23: 2535.65 | AJ23: 29851195.85 | AK23: 0 | AL23: 0 | AM23: 0 | AN23: 0 | AO23: 31393940.04
A24: 1 | B24: 4.2 | C24: =$J$11 -> 2018 | D24: Agents & Brokers Fees & Comms | E24: =CONCATENATE("IDB ",'Essbase Input'!$C$8) -> IDB 2017 | F24: Total Year | G24: Reinsurance | H24: GAAP Reported Projects | I24: 327.3 | J24: 0 | K24: 1993607.77 | L24: 0 | M24: 2219641.79 | N24: -288.58 | O24: 4213576.86 | P24: -288.58 | Q24: 4213576.86 | R24: 4213576.86 | S24: 36767334.36 | T24: 968450.15 | U24: 193818.01 | V24: 0 | W24: 0 | X24: 0 | Y24: 1476866.44 | Z24: 5.58 | AA24: 34351.37 | AB24: 0 | AC24: 0 | AD24: 0 | AE24: 0 | AF24: 0 | AG24: 4526.15 | AH24: 24459 | AI24: 2535.65 | AJ24: 29851195.85 | AK24: 0 | AL24: 0 | AM24: 0 | AN24: 0 | AO24: 31393940.04
A25: 1 | B25: 4.2 | C25: 2018 | D25: Agents & Brokers Fees & Comms | E25: =CONCATENATE("IDB ",'Essbase Input'!$C$8) -> IDB 2017 | F25: March_Bal | G25: Reinsurance | H25: GAAP Reported Projects | I25: 0 | J25: 0 | K25: 468754.19 | L25: 0 | M25: 507457.62 | N25: -267.7 | O25: 976211.81 | P25: -267.7 | Q25: 976211.81 | R25: 976211.81 | S25: 8757520.11 | T25: 250258.66 | U25: 37915.26 | V25: 0 | W25: 0 | X25: 0 | Y25: 318956.52 | Z25: 7.34 | AA25: 9081.44 | AB25: 0 | AC25: 0 | AD25: 0 | AE25: 0 | AF25: 0 | AG25: 1237.89 | AH25: 6066 | AI25: 757.98 | AJ25: 7157596.42 | AK25: 0 | AL25: 0 | AM25: 0 | AN25: 0 | AO25: 7493703.59
A26: 1 | B26: 4.3a | C26: 2017 | D26: Other Taxes | E26: IDB Periods | F26: Total Year | G26: Reinsurance | H26: GAAP Reported Projects | I26: 0 | J26: 0 | K26: 81.94 | L26: -5.69 | M26: 103007.04 | N26: -14996.59 | O26: 103088.98 | P26: -15002.28 | Q26: 103088.98 | R26: 103088.98 | S26: 630421.75 | T26: 41844.19 | U26: 4791.72 | V26: 0 | W26: 0 | X26: 0 | Y26: 59166.46 | Z26: 3.8 | AA26: 4.19 | AB26: 0.03 | AC26: 0 | AD26: 0 | AE26: 0 | AF26: 0 | AG26: 549.73 | AH26: 25649.55 | AI26: 473.69 | AJ26: 2.182609649e-11 | AK26: 0 | AL26: 287.88 | AM26: 394564.27 | AN26: -2.74 | AO26: 480696.86
A27: 1 | B27: 4.3a | C27: 2018 | D27: Other Taxes | E27: =CONCATENATE("IDB ",'Essbase Input'!$C$8) -> IDB 2017 | F27: Total Year | G27: Reinsurance | H27: GAAP Reported Projects | I27: 0 | J27: 0 | K27: 81.94 | L27: 0 | M27: 103007.04 | N27: 0 | O27: 103088.98 | P27: 0 | Q27: 103088.98 | R27: 103088.98 | S27: 617446.52 | T27: 41844.19 | U27: 4791.72 | V27: 0 | W27: 0 | X27: 0 | Y27: 59166.46 | Z27: 3.8 | AA27: 4.19 | AB27: 0.03 | AC27: 0 | AD27: 0 | AE27: 0 | AF27: 0 | AG27: 545.29 | AH27: 25421.1 | AI27: 473.69 | AJ27: 2.182609649e-11 | AK27: 0 | AL27: 287.88 | AM27: 381821.93 | AN27: -2.74 | AO27: 467721.63
A28: 1 | B28: 4.3a | C28: 2018 | D28: Other Taxes | E28: =CONCATENATE("IDB ",'Essbase Input'!$C$8) -> IDB 2017 | F28: March_Bal | G28: Reinsurance | H28: GAAP Reported Projects | I28: 0 | J28: 0 | K28: 6.31 | L28: 0 | M28: 24060.21 | N28: 0 | O28: 24066.52 | P28: 0 | Q28: 24066.52 | R28: 24066.52 | S28: 154393.18 | T28: 12426.79 | U28: 1203.73 | V28: 0 | W28: 0 | X28: 0 | Y28: 14273.79 | Z28: 0.35 | AA28: 0.35 | AB28: -0.01 | AC28: 2525.46 | AD28: 78.49 | AE28: 11.83 | AF28: 8.16 | AG28: 187.49 | AH28: 8600 | AI28: 187.24 | AJ28: 66206.27 | AK28: 0 | AL28: 70.54 | AM28: 24551.31 | AN28: -5.13 | AO28: 116696.14
A29: 1 | B29: 4.4 | C29: 2017 | D29: Other Gen & Admin Expenses | E29: IDB Periods | F29: Total Year | G29: Reinsurance | H29: GAAP Reported Projects | I29: 0.01 | J29: 0 | K29: 26440.24 | L29: 11032.68 | M29: 2786981.37 | N29: 1493781.21 | O29: 2813421.62 | P29: 1504813.89 | Q29: 2825485.1 | R29: 2825485.1 | S29: 99565905.83 | T29: 1130073.88 | U29: -10799.99 | V29: 0 | W29: 0 | X29: 0 | Y29: 1593890.75 | Z29: 0 | AA29: 2.24 | AB29: 0 | AC29: 1999191.73 | AD29: 56492.47 | AE29: 8554.14 | AF29: 8107.05 | AG29: 373294.83 | AH29: 679469.65 | AI29: 12393.41 | AJ29: 80426630.85 | AK29: 0.03 | AL29: 7782.99 | AM29: 10455469.76 | AN29: -90.03 | AO29: 95621146.92
A30: 1 | B30: 4.4 | C30: =$J$11 -> 2018 | D30: Other Gen & Admin Expenses | E30: =CONCATENATE("IDB ",'Essbase Input'!$C$8) -> IDB 2017 | F30: Total Year | G30: Reinsurance | H30: GAAP Reported Projects | I30: 0.01 | J30: 0 | K30: 29498.14 | L30: -810.11 | M30: 2792768.16 | N30: -4557.14 | O30: 2822266.31 | P30: -5367.25 | Q30: 2834329.79 | R30: 2834329.79 | S30: 100109832 | T30: 1131578.15 | U30: -16154.65 | V30: 0 | W30: 0 | X30: 0 | Y30: 1597418.12 | Z30: 0 | AA30: 2.24 | AB30: 0 | AC30: 2032059.61 | AD30: 57501.34 | AE30: 8700.71 | AF30: 8251.61 | AG30: 373179.3 | AH30: 660537.53 | AI30: 13568.36 | AJ30: 81302307.17 | AK30: 0 | AL30: 7782.99 | AM30: 10098838.4 | AN30: -83.05 | AO30: 96160078.79
A31: 1 | B31: 4.4 | C31: 2018 | D31: Other Gen & Admin Expenses | E31: =CONCATENATE("IDB ",'Essbase Input'!$C$8) -> IDB 2017 | F31: March_Bal | G31: Reinsurance | H31: GAAP Reported Projects | I31: 0 | J31: 0 | K31: 7356.36 | L31: -264.63 | M31: 601673.53 | N31: -4552.28 | O31: 609029.89 | P31: -4816.91 | Q31: 611911.95 | R31: 611911.95 | S31: 24107114.14 | T31: 308019.16 | U31: 29786.88 | V31: 0 | W31: 0 | X31: 0 | Y31: 352231.37 | Z31: 0 | AA31: 0 | AB31: 0 | AC31: 329489.46 | AD31: 9899.39 | AE31: 1547.46 | AF31: 1034.54 | AG31: 3862.14 | AH31: 191299.02 | AI31: 4923.44 | AJ31: 20040297.24 | AK31: 0 | AL31: 1743.08 | AM31: 2221180.87 | AN31: -127.7 | AO31: 23157396.15
C32: 2017 | D32: Bad Debt Exp | E32: IDB Periods | F32: Total Year | G32: Reinsurance | H32: GAAP Reported Projects | I32: 0 | J32: 0 | K32: 3083.67 | L32: 1373.41 | M32: 0 | N32: 0 | O32: 3083.67 | P32: 1373.41 | Q32: 3083.67 | R32: 3083.67 | S32: 2248.47 | T32: 4141.88 | U32: 0 | V32: 0 | W32: 0 | X32: 0 | Y32: 0.57 | Z32: 0 | AA32: 0 | AB32: 0 | AC32: 0 | AD32: 0 | AE32: 0 | AF32: 0 | AG32: 0 | AH32: 0 | AI32: 0 | AJ32: 0 | AK32: 0 | AL32: 0 | AM32: -4977.65 | AN32: 0 | AO32: -4977.08
C33: =$J$11 -> 2018 | D33: Bad Debt Exp | E33: =CONCATENATE("IDB ",'Essbase Input'!$C$8) -> IDB 2017 | F33: Total Year | G33: Reinsurance | H33: GAAP Reported Projects | I33: 0 | J33: 0 | K33: 352.22 | L33: 773.79 | M33: 0 | N33: 0 | O33: 352.22 | P33: 773.79 | Q33: 352.22 | R33: 352.22 | S33: 1724.91 | T33: 2404.55 | U33: 0 | V33: 0 | W33: 0 | X33: 0 | Y33: 0 | Z33: 0 | AA33: 0 | AB33: 0 | AC33: 0 | AD33: 0 | AE33: 0 | AF33: 0 | AG33: 0 | AH33: 0 | AI33: 0 | AJ33: 0 | AK33: 0 | AL33: 0 | AM33: -1031.86 | AN33: 0 | AO33: -1031.86
C34: 2018 | D34: Bad Debt Exp | E34: =CONCATENATE("IDB ",'Essbase Input'!$C$8) -> IDB 2017 | F34: March_Bal | G34: Reinsurance | H34: GAAP Reported Projects | I34: 0 | J34: 0 | K34: 1.39 | L34: 228.31 | M34: 0 | N34: 0 | O34: 1.39 | P34: 228.31 | Q34: 1.39 | R34: 1.39 | S34: 33.8 | T34: 4.94 | U34: 0 | V34: 0 | W34: 0 | X34: 0 | Y34: 0 | Z34: 0 | AA34: 0 | AB34: 0 | AC34: 0 | AD34: 0 | AE34: 0 | AF34: 0 | AG34: 0 | AH34: 0 | AI34: 0 | AJ34: 0 | AK34: 0 | AL34: 0 | AM34: 27.47 | AN34: 0 | AO34: 27.47
A35: 1 | B35: 4.4 | C35: 2017 | D35: General & Admin Expenses | E35: IDB Periods | F35: Total Year | G35: REINSURANCE GROUP | H35: Health Care Reform | I35: 0 | J35: 0 | K35: 0 | L35: 0 | M35: 0 | N35: 0 | O35: 0 | P35: 0 | Q35: 0 | R35: 0 | S35: 0 | T35: 0 | U35: 0 | V35: 0 | W35: 0 | X35: 0 | Y35: 0 | Z35: 0 | AA35: 0 | AB35: 0 | AC35: 0 | AD35: 0 | AE35: 0 | AF35: 0 | AG35: 0 | AH35: 0 | AI35: 0 | AJ35: 0 | AK35: 0 | AL35: 0 | AM35: 0 | AN35: 0 | AO35: 0
A36: 1 | B36: 4.4 | C36: =$J$11 -> 2018 | D36: General & Admin Expenses | E36: =CONCATENATE("IDB ",'Essbase Input'!$C$8) -> IDB 2017 | F36: Total Year | G36: REINSURANCE GROUP | H36: Health Care Reform | I36: 0 | J36: 0 | K36: 0 | L36: 0 | M36: 0 | N36: 0 | O36: 0 | P36: 0 | Q36: 0 | R36: 0 | S36: 0 | T36: 0 | U36: 0 | V36: 0 | W36: 0 | X36: 0 | Y36: 0 | Z36: 0 | AA36: 0 | AB36: 0 | AC36: 0 | AD36: 0 | AE36: 0 | AF36: 0 | AG36: 0 | AH36: 0 | AI36: 0 | AJ36: 0 | AK36: 0 | AL36: 0 | AM36: 0 | AN36: 0 | AO36: 0
A37: 1 | B37: 4.4 | C37: 2018 | D37: General & Admin Expenses | E37: =CONCATENATE("IDB ",'Essbase Input'!$C$8) -> IDB 2017 | F37: March_Bal | G37: REINSURANCE GROUP | H37: Health Care Reform | I37: 0 | J37: 0 | K37: 0 | L37: 0 | M37: 0 | N37: 0 | O37: 0 | P37: 0 | Q37: 0 | R37: 0 | S37: 0 | T37: 0 | U37: 0 | V37: 0 | W37: 0 | X37: 0 | Y37: 0 | Z37: 0 | AA37: 0 | AB37: 0 | AC37: 0 | AD37: 0 | AE37: 0 | AF37: 0 | AG37: 0 | AH37: 0 | AI37: 0 | AJ37: 0 | AK37: 0 | AL37: 0 | AM37: 0 | AN37: 0 | AO37: 0
A38: 1 | B38: 4.4 | C38: =$I$11 -> 2017 | D38: General & Admin Expenses | E38: IDB Periods | F38: Total Year | G38: NO REINSURANCE | H38: 0000003400 - QI - Imprv Outcomes | I38: 0 | J38: 0 | K38: 1.203492167e-12 | L38: 0 | M38: 72776.11 | N38: 37560.4 | O38: 72776.11 | P38: 37560.4 | Q38: 73042.82 | R38: 73042.82 | S38: 2128564.55 | T38: 0 | U38: 0 | V38: 0 | W38: 0 | X38: 0 | Y38: 0 | Z38: 0 | AA38: 0 | AB38: 0 | AC38: 13.35 | AD38: 0.58 | AE38: 108.73 | AF38: 38.81 | AG38: 0 | AH38: 36088.4 | AI38: 41.2 | AJ38: 2015463.84 | AK38: 0 | AL38: 132.95 | AM38: 3620.83 | AN38: 1.04 | AO38: 2055521.73
A39: 1 | B39: 4.4 | C39: 2017 | D39: General & Admin Expenses | E39: IDB Periods | F39: Total Year | G39: NO REINSURANCE | H39: 0000003401 - QI - Prevent Hosp Readmission | I39: 0 | J39: 0 | K39: -1.039246814e-12 | L39: 0 | M39: 55981.62 | N39: 28892.64 | O39: 55981.62 | P39: 28892.64 | Q39: 56186.78 | R39: 56186.78 | S39: 779396.95 | T39: 0 | U39: 0 | V39: 0 | W39: 0 | X39: 0 | Y39: 0 | Z39: 0 | AA39: 0 | AB39: 0 | AC39: 3.86 | AD39: 0.17 | AE39: 0.03 | AF39: 0.01 | AG39: 0 | AH39: 0 | AI39: 0 | AJ39: 723206.1 | AK39: 0 | AL39: 0 | AM39: 0 | AN39: 0 | AO39: 723210.17
A40: 1 | B40: 4.4 | C40: 2017 | D40: General & Admin Expenses | E40: IDB Periods | F40: Total Year | G40: NO REINSURANCE | H40: 0000003402 - QI - Imp Pat Saf & Red Med Err | I40: 0 | J40: 0 | K40: 0 | L40: 0 | M40: 50383.47 | N40: 26003.37 | O40: 50383.47 | P40: 26003.37 | Q40: 50568.12 | R40: 50568.12 | S40: 610843 | T40: 0 | U40: 0 | V40: 0 | W40: 0 | X40: 0 | Y40: 0 | Z40: 0 | AA40: 0 | AB40: 0 | AC40: 3.57 | AD40: 0.16 | AE40: 0.03 | AF40: 0.01 | AG40: 0.01 | AH40: -83.43 | AI40: 181.5 | AJ40: 546052.3 | AK40: 0 | AL40: 0 | AM40: 14120.73 | AN40: 0 | AO40: 560274.88
A41: 1 | B41: 4.4 | C41: 2017 | D41: General & Admin Expenses | E41: IDB Periods | F41: Total Year | G41: NO REINSURANCE | H41: 0000003403 - QI - Wellness & Health Promo | I41: 0 | J41: 0 | K41: 0 | L41: 0 | M41: 5598.17 | N41: 2889.26 | O41: 5598.17 | P41: 2889.26 | Q41: 5618.68 | R41: 5618.68 | S41: 9910342.65 | T41: 0 | U41: 0 | V41: 0 | W41: 0 | X41: 0 | Y41: 0 | Z41: 0 | AA41: 0 | AB41: 0 | AC41: 16.54 | AD41: 0.72 | AE41: 40.74 | AF41: 14.54 | AG41: 0 | AH41: 112075.41 | AI41: 228.79 | AJ41: 9792347.23 | AK41: 0 | AL41: 0 | AM41: 0 | AN41: 0 | AO41: 9904723.97
A42: 1 | B42: 4.4 | C42: 2017 | D42: General & Admin Expenses | E42: IDB Periods | F42: Total Year | G42: NO REINSURANCE | H42: Health Information Technology | I42: 0 | J42: 0 | K42: 0 | L42: 0 | M42: 39187.15 | N42: 20224.82 | O42: 39187.15 | P42: 20224.82 | Q42: 39330.76 | R42: 39330.76 | S42: 566538.89 | T42: 0 | U42: 0 | V42: 0 | W42: 0 | X42: 0 | Y42: 0 | Z42: 0 | AA42: 0 | AB42: 0 | AC42: 371.57 | AD42: 16.11 | AE42: 22 | AF42: 8.07 | AG42: 4.44 | AH42: 1998.51 | AI42: 220.04 | AJ42: 517388.42 | AK42: 0 | AL42: 0 | AM42: 7178.97 | AN42: 0 | AO42: 527208.13
A43: 1 | B43: 4.4 | C43: 2017 | D43: General & Admin Expenses | E43: IDB Periods | F43: Total Year | G43: Reinsurance | H43: Cost Containment | I43: 0 | J43: 0 | K43: 5.525423868e-12 | L43: 0 | M43: 744555.72 | N43: 384271.8 | O43: 744555.72 | P43: 384271.8 | Q43: 747304.88 | R43: 747304.88 | S43: 1150542.67 | T43: 170518.59 | U43: 0 | V43: 0 | W43: 0 | X43: 0 | Y43: 0 | Z43: 0 | AA43: 0 | AB43: 0 | AC43: 8.82 | AD43: 0.38 | AE43: 0.07 | AF43: 0.03 | AG43: 0 | AH43: -0.01 | AI43: 2334.07 | AJ43: 153915.18 | AK43: 0 | AL43: 1125.46 | AM43: 75326.45 | AN43: 8.75 | AO43: 232719.2
A44: 1 | B44: 4.4 | C44: 2017 | D44: General & Admin Expenses | E44: IDB Periods | F44: Total Year | G44: Reinsurance | H44: Other Claim Adj | I44: 0.24 | J44: -0.24 | K44: -786.73 | L44: 323.6 | M44: 1328268.47 | N44: 674702.37 | O44: 1327481.98 | P44: 675025.73 | Q44: 1332364.82 | R44: 1332364.82 | S44: 15932706.86 | T44: 299805.75 | U44: 97816.88 | V44: 0 | W44: 0 | X44: 0 | Y44: 18302.78 | Z44: 0 | AA44: -146.59 | AB44: 0 | AC44: 281281.44 | AD44: 8689.56 | AE44: 1276.24 | AF44: 1215.91 | AG44: -671.07 | AH44: -2128.8 | AI44: 3810.75 | AJ44: 13425511.32 | AK44: 0.14 | AL44: 1662.89 | AM44: 464839.15 | AN44: -734.87 | AO44: 14202719.41
A45: 1 | B45: 5.1 | C45: =$I$11 -> 2017 | D45: Number of Covered Lives | E45: IDB Periods | F45: December | G45: Reinsurance | H45: All Other Projects | I45: 0 | J45: 0 | K45: 36656 | L45: 0 | M45: 101492 | N45: 0 | O45: 138148 | P45: 0 | Q45: 138148 | R45: 138148 | S45: 891547 | T45: 267558 | U45: 837 | V45: 0 | W45: 0 | X45: 0 | Y45: 84023 | Z45: 0 | AA45: 0 | AB45: 0 | AC45: 30718 | AD45: 110 | AE45: 23 | AF45: 8 | AG45: 93 | AH45: 3894 | AI45: 69 | AJ45: 5117 | AK45: 0 | AL45: 0 | AM45: 0 | AN45: 0 | AO45: 485004
A46: 1 | B46: 5.2 | C46: 2017 | D46: SHCE Member Months | E46: IDB Periods | F46: Total Year | G46: NO REINSURANCE | H46: All Other Projects | I46: 0 | J46: 0 | K46: 409116 | L46: 258753 | M46: 995388 | N46: 483260 | O46: 1404504 | P46: 742013 | Q46: 1404504 | R46: 1404504 | S46: 10413082 | T46: 3205187 | U46: 89923 | V46: 0 | W46: 0 | X46: 0 | Y46: 1014865 | Z46: 0 | AA46: 0 | AB46: 0 | AC46: 386540 | AD46: 1718 | AE46: 330 | AF46: 93 | AG46: 1143 | AH46: 46671 | AI46: 849 | AJ46: 68249 | AK46: 0 | AL46: 0 | AM46: 0 | AN46: 0 | AO46: 5713468
A47: 1 | B47: 5.2 | C47: =$J$11 -> 2018 | D47: SHCE Member Months | E47: =CONCATENATE("IDB ",'Essbase Input'!$C$8) -> IDB 2017 | F47: Total Year | G47: NO REINSURANCE | H47: All Other Projects | I47: 0 | J47: 0 | K47: 409116 | L47: 0 | M47: 995388 | N47: 0 | O47: 1404504 | P47: 0 | Q47: 1404504 | R47: 1404504 | S47: 10412780 | T47: 3204962 | U47: 89923 | V47: 0 | W47: 0 | X47: 0 | Y47: 1014865 | Z47: 0 | AA47: 0 | AB47: 0 | AC47: 386540 | AD47: 1718 | AE47: 330 | AF47: 93 | AG47: 1143 | AH47: 46594 | AI47: 849 | AJ47: 68249 | AK47: 0 | AL47: 0 | AM47: 0 | AN47: 0 | AO47: 5713391
A48: 1 | B48: 5.2 | C48: 2018 | D48: SHCE Member Months | E48: =CONCATENATE("IDB ",'Essbase Input'!$C$8) -> IDB 2017 | F48: Q1 | G48: NO REINSURANCE | H48: All Other Projects | I48: 0 | J48: 0 | K48: 97708 | L48: 0 | M48: 249770 | N48: 0 | O48: 347478 | P48: 0 | Q48: 347478 | R48: 347478 | S48: 2585013 | T48: 801152 | U48: 16254 | V48: 0 | W48: 0 | X48: 0 | Y48: 260176 | Z48: 0 | AA48: 0 | AB48: 0 | AC48: 100528 | AD48: 513 | AE48: 93 | AF48: 24 | AG48: 293 | AH48: 11647 | AI48: 223 | AJ48: 18564 | AK48: 0 | AL48: 0 | AM48: 0 | AN48: 0 | AO48: 1420129
A49: 1 | B49: 8 | C49: 2017 | D49: Net Invest and Oth Gain/(Loss) | E49: IDB Periods | F49: Total Year | G49: Reinsurance | H49: All Other Projects | I49: -35.21 | J49: 0 | K49: -211216.44 | L49: -1078.25 | M49: -462487.77 | N49: 1082.72 | O49: -673739.42 | P49: 4.47 | Q49: -673739.42 | R49: -673739.42 | S49: -10849322.07 | T49: -173587.02 | U49: -24716.58 | V49: 0 | W49: 0 | X49: 0 | Y49: -392829.94 | Z49: 17.73 | AA49: -14256.66 | AB49: 2.02 | AC49: -54669.55 | AD49: -1195.61 | AE49: -230.49 | AF49: -159.28 | AG49: -3055.4 | AH49: -142086.43 | AI49: -4870.87 | AJ49: -7297771.58 | AK49: 0 | AL49: -1916.57 | AM49: -2061611.16 | AN49: -14.92 | AO49: -9977855.77
A50: 1 | B50: 9 | C50: 2017 | D50: Federal Income Taxes(Excl 1.5) | E50: IDB Periods | F50: Total Year | G50: Reinsurance | H50: All Other Projects | I50: 0 | J50: 0 | K50: 0 | L50: 0 | M50: 0 | N50: 0 | O50: 0 | P50: 0 | Q50: 0 | R50: 0 | S50: 4955098.92 | T50: 0 | U50: 4955098.92 | V50: 0 | W50: 0 | X50: 0 | Y50: 0 | Z50: 0 | AA50: 0 | AB50: 0 | AC50: 0 | AD50: 0 | AE50: 0 | AF50: 0 | AG50: 0 | AH50: 0 | AI50: 0 | AJ50: 0 | AK50: 0 | AL50: 0 | AM50: 0 | AN50: 0 | AO50: 0
A51: 1 | B51: 4.4 | C51: 2017 | D51: 76000 - Management Fees | E51: IDB Periods | F51: Total Year | G51: Reinsurance | H51: All Other Projects | I51: 0 | J51: 0 | K51: -1.752619577e-11 | L51: 0 | M51: 5608819.97 | N51: 2889261.75 | O51: 5608819.97 | P51: 2889261.75 | Q51: 5608819.97 | R51: 5608819.97 | S51: 64310766 | T51: 1725688.7 | U51: 255882.7 | V51: 0 | W51: 0 | X51: 0 | Y51: 1655926.04 | Z51: 0 | AA51: -5.00222086e-12 | AB51: 0 | AC51: 1554131.24 | AD51: 47699.74 | AE51: 6929.23 | AF51: 6833.14 | AG51: 15407.02 | AH51: 717076.58 | AI51: 17189.83 | AJ51: 41613376.66 | AK51: 0 | AL51: 12220.54 | AM51: 11073638.73 | AN51: -54.12 | AO51: 56720374.63
A52: 5 | B52: 2.a | C52: 2017 | D52: 76000 - Management Fees | E52: =CONCATENATE("IDB ",'Essbase Input'!$C$8) -> IDB 2017 | F52: December | G52: Reinsurance | H52: All Other Projects | I52: 0 | J52: 0 | K52: 0 | L52: 0 | M52: 485192.45 | N52: 0 | O52: 485192.45 | P52: 0 | Q52: 485192.45 | R52: 485192.45 | S52: 36412821.98 | T52: 146707.53 | U52: 25607.7 | V52: 0 | W52: 0 | X52: 0 | Y52: 133975.49 | Z52: 0 | AA52: 0 | AB52: 0 | AC52: 1243603.51 | AD52: 38101.31 | AE52: 5521.9 | AF52: 5553.7 | AG52: 1196.27 | AH52: 58815.04 | AI52: 1479.27 | AJ52: 33393919.33 | AK52: 0 | AL52: 1060.72 | AM52: 872083.07 | AN52: 4.69 | AO52: 35755314.3
A53: 5 | B53: 2.b | C53: 2017 | D53: RC022 - Number Subscribers Paid Rebate | E53: =CONCATENATE("IDB ",'Essbase Input'!$C$8) -> IDB 2017 | F53: December | G53: Reinsurance | H53: All Other Projects | I53: 0 | J53: 0 | K53: 0 | L53: 0 | M53: 0 | N53: 0 | O53: 0 | P53: 0 | Q53: 0 | R53: 0 | S53: 0 | T53: 0 | U53: 0 | V53: 0 | W53: 0 | X53: 0 | Y53: 0 | Z53: 0 | AA53: 0 | AB53: 0 | AC53: 0 | AD53: 0 | AE53: 0 | AF53: 0 | AG53: 0 | AH53: 0 | AI53: 0 | AJ53: 0 | AK53: 0 | AL53: 0 | AM53: 0 | AN53: 0 | AO53: 0
A54: 5 | B54: 4.c | C54: 2017 | D54: RC022 - Number Subscribers Paid Rebate | E54: =CONCATENATE("IDB ",'Essbase Input'!$C$8) -> IDB 2017 | F54: December | G54: Reinsurance | H54: All Other Projects | I54: 0 | J54: 0 | K54: 0 | L54: 0 | M54: 0 | N54: 0 | O54: 0 | P54: 0 | Q54: 0 | R54: 0 | S54: 0 | T54: 0 | U54: 0 | V54: 0 | W54: 0 | X54: 0 | Y54: 0 | Z54: 0 | AA54: 0 | AB54: 0 | AC54: 0 | AD54: 0 | AE54: 0 | AF54: 0 | AG54: 0 | AH54: 0 | AI54: 0 | AJ54: 0 | AK54: 0 | AL54: 0 | AM54: 0 | AN54: 0 | AO54: 0
A55: 5 | B55: 4.d | C55: 2017 | D55: RC022 - Number Subscribers Paid Rebate | E55: =CONCATENATE("IDB ",'Essbase Input'!$C$8) -> IDB 2017 | F55: December | G55: Reinsurance | H55: All Other Projects | I55: 0 | J55: 0 | K55: 0 | L55: 0 | M55: 0 | N55: 0 | O55: 0 | P55: 0 | Q55: 0 | R55: 0 | S55: 0 | T55: 0 | U55: 0 | V55: 0 | W55: 0 | X55: 0 | Y55: 0 | Z55: 0 | AA55: 0 | AB55: 0 | AC55: 0 | AD55: 0 | AE55: 0 | AF55: 0 | AG55: 0 | AH55: 0 | AI55: 0 | AJ55: 0 | AK55: 0 | AL55: 0 | AM55: 0 | AN55: 0 | AO55: 0
A56: 5 | B56: 4.e | C56: 2017 | D56: RC022 - Number Subscribers Paid Rebate | E56: =CONCATENATE("IDB ",'Essbase Input'!$C$8) -> IDB 2017 | F56: December | G56: Reinsurance | H56: All Other Projects | I56: 0 | J56: 0 | K56: 0 | L56: 0 | M56: 0 | N56: 0 | O56: 0 | P56: 0 | Q56: 0 | R56: 0 | S56: 0 | T56: 0 | U56: 0 | V56: 0 | W56: 0 | X56: 0 | Y56: 0 | Z56: 0 | AA56: 0 | AB56: 0 | AC56: 0 | AD56: 0 | AE56: 0 | AF56: 0 | AG56: 0 | AH56: 0 | AI56: 0 | AJ56: 0 | AK56: 0 | AL56: 0 | AM56: 0 | AN56: 0 | AO56: 0
A57: 5 | B57: 4.f | C57: 2017 | D57: RC022 - Number Subscribers Paid Rebate | E57: =CONCATENATE("IDB ",'Essbase Input'!$C$8) -> IDB 2017 | F57: December | G57: Reinsurance | H57: All Other Projects | I57: 0 | J57: 0 | K57: 0 | L57: 0 | M57: 0 | N57: 0 | O57: 0 | P57: 0 | Q57: 0 | R57: 0 | S57: 0 | T57: 0 | U57: 0 | V57: 0 | W57: 0 | X57: 0 | Y57: 0 | Z57: 0 | AA57: 0 | AB57: 0 | AC57: 0 | AD57: 0 | AE57: 0 | AF57: 0 | AG57: 0 | AH57: 0 | AI57: 0 | AJ57: 0 | AK57: 0 | AL57: 0 | AM57: 0 | AN57: 0 | AO57: 0
A58: 5 | B58: 4.g | C58: 2017 | D58: RC029 - Amt Unclaimed Rebates Prior Yr | E58: =CONCATENATE("IDB ",'Essbase Input'!$C$8-1) -> IDB 2016 | F58: December | G58: Reinsurance | H58: All Other Projects | I58: 0 | J58: 0 | K58: 0 | L58: 0 | M58: 0 | N58: 0 | O58: 0 | P58: 0 | Q58: 0 | R58: 0 | S58: 0 | T58: 0 | U58: 0 | V58: 0 | W58: 0 | X58: 0 | Y58: 0 | Z58: 0 | AA58: 0 | AB58: 0 | AC58: 0 | AD58: 0 | AE58: 0 | AF58: 0 | AG58: 0 | AH58: 0 | AI58: 0 | AJ58: 0 | AK58: 0 | AL58: 0 | AM58: 0 | AN58: 0 | AO58: 0
A59: 4 | B59: 5.1 | C59: =$I$11 -> 2017 | D59: RC016 - Standard & Exception MLR Pct | E59: IDB Periods | F59: Total Year | G59: Reinsurance | H59: All Other Projects | I59: 0 | J59: 0 | K59: 0 | L59: 0 | M59: 0 | N59: 0 | O59: 0 | P59: 0 | Q59: 0 | R59: 0 | S59: 0 | T59: 0 | U59: 0 | V59: 0 | W59: 0 | X59: 0 | Y59: 0 | Z59: 0 | AA59: 0 | AB59: 0 | AC59: 0 | AD59: 0 | AE59: 0 | AF59: 0 | AG59: 0 | AH59: 0 | AI59: 0 | AJ59: 0 | AK59: 0 | AL59: 0 | AM59: 0 | AN59: 0 | AO59: 0
A60: 4 | B60: 3.3 | C60: =I11 -> 2017 | D60: RC011 - Weighted Average Deductible | E60: IDB Periods | F60: Total Year | G60: Reinsurance | H60: All Other Projects | I60: 0 | J60: 0 | K60: 0 | L60: 0 | M60: 0 | N60: 0 | O60: 0 | P60: 0 | Q60: 0 | R60: 0 | S60: 0 | T60: 0 | U60: 0 | V60: 0 | W60: 0 | X60: 0 | Y60: 0 | Z60: 0 | AA60: 0 | AB60: 0 | AC60: 0 | AD60: 0 | AE60: 0 | AF60: 0 | AG60: 0 | AH60: 0 | AI60: 0 | AJ60: 0 | AK60: 0 | AL60: 0 | AM60: 0 | AN60: 0 | AO60: 0

Sheet Pt 1 Summary of Data (hidden)
B1: Department of Managed Health Care/Department of Insurance
B2: Medical Loss Ratio Reporting Form: Dental Coverage
B3: Part 1 - Summary of Data
B5: Health Plan ID | I5: Federal Tax Exempt
B6: ='Cover Page'!C7 ->  | F6: Part 1 | I6: ='Cover Page'!C10 -> No
B7: Legal Name
B8: ='Cover Page'!C8 -> UnitedHealthcare Insurance Company
B9: dBA
B10: ='Cover Page'!C9 -> N/A
B11: MLR Reporting Year
B12: ='Cover Page'!C6 -> 2017
F14: Health Insurance Coverage | L14: Health Insurance Coverage | S14: UHG Other Health Reconciliation
F15: DHMO Products | L15: DPPO & Indemnity Products | S15: Subtotal of CA Dental Business | T15: Vision | U15: Life/Disability | V15: Stop Loss | W15: Stop Loss | X15: Supp Hospital | Y15: Medicare Supp | Z15: Student Health | AA15: Wrap | AB15: Ind Short Term | AC15: Other Health | AD15: Total Other Health | AE15: Federal MLR Other Health Total | AF15: Tie out to | AG15: Corporate | AH15: Other Dental Product Diff. Total | AI15: CA Dental MLR vs. Fed Other Health
F16: Individual | H16: Small Group | J16: Large Group | L16: Individual | N16: Small Group | P16: Large Group | V16: Prdct Range 322000 | W16: Prdct Range 150000 | X16: Prdct Range 204000 | Y16: Prdct Range 203000 | Z16: Prdct Rng 112/3000 | AA16: Prdct 202080 | AB16: Prdct 106410 | AF16: Federal MLR Lines | AG16: Market OU
B17: Part 1 NOTE: REFER TO MLR INSTRUCTIONS FOR IMPORTANT INFORMATION ABOUT COMPLETING EACH COLUMN AND ROW. | F17: ="Total as of 12/31/"&RIGHT('Essbase Input'!C13,2) -> Total as of 12/31/17 | G17: ="Total as of 3/31/"&RIGHT('Essbase Input'!C12,2) -> Total as of 3/31/18 | H17: =+$F$17 -> Total as of 12/31/17 | I17: =+$G$17 -> Total as of 3/31/18 | J17: =+$F$17 -> Total as of 12/31/17 | K17: =+$G$17 -> Total as of 3/31/18 | L17: =+$F$17 -> Total as of 12/31/17 | M17: =+$G$17 -> Total as of 3/31/18 | N17: =+$F$17 -> Total as of 12/31/17 | O17: =+$G$17 -> Total as of 3/31/18 | P17: =+$F$17 -> Total as of 12/31/17 | Q17: =+$G$17 -> Total as of 3/31/18 | S17: =+$F$17 -> Total as of 12/31/17 | T17: Total as of 12/31/17 | U17: Total as of 12/31/17 | V17: Total as of 12/31/17 | W17: Total as of 12/31/17 | X17: Total as of 12/31/17 | Y17: Total as of 12/31/17 | Z17: Total as of 12/31/17 | AA17: Total as of 12/31/17 | AB17: Total as of 12/31/17 | AC17: Total as of 12/31/17 | AD17: Total as of 12/31/17 | AE17: Total as of 12/31/17 | AF17: Total as of 12/31/17 | AG17: Total as of 12/31/17 | AH17: Total as of 12/31/17 | AI17: Total as of 12/31/17
F18: 1 | G18: 2 | H18: 3 | I18: 4 | J18: 5 | K18: 6 | L18: 7 | M18: 8 | N18: 9 | O18: 10 | P18: 11 | Q18: 12
B19: 1. | C19: Premium
C20: 1.1 | D20: Total direct premium earned | F20: =IF(VLOOKUP('Essbase Input'!$C$4,Tables!$B$3:$F$7,5,FALSE)="DPPO","",'Pt 2 Premium and Claims'!F21+'Pt 2 Premium and Claims'!F22-'Pt 2 Premium and Claims'!F23-'Pt 2 Premium and Claims'!F24) ->  | G20: =IF(VLOOKUP('Essbase Input'!$C$4,Tables!$B$3:$F$7,5,FALSE)="DPPO","",'Pt 2 Premium and Claims'!G21+'Pt 2 Premium and Claims'!G22-'Pt 2 Premium and Claims'!G23-'Pt 2 Premium and Claims'!G24) ->  | H20: =IF(VLOOKUP('Essbase Input'!$C$4,Tables!$B$3:$F$7,5,FALSE)="DPPO","",'Pt 2 Premium and Claims'!H21+'Pt 2 Premium and Claims'!H22-'Pt 2 Premium and Claims'!H23-'Pt 2 Premium and Claims'!H24) ->  | I20: =IF(VLOOKUP('Essbase Input'!$C$4,Tables!$B$3:$F$7,5,FALSE)="DPPO","",'Pt 2 Premium and Claims'!I21+'Pt 2 Premium and Claims'!I22-'Pt 2 Premium and Claims'!I23-'Pt 2 Premium and Claims'!I24) ->  | J20: =IF(VLOOKUP('Essbase Input'!$C$4,Tables!$B$3:$F$7,5,FALSE)="DPPO","",'Pt 2 Premium and Claims'!J21+'Pt 2 Premium and Claims'!J22-'Pt 2 Premium and Claims'!J23-'Pt 2 Premium and Claims'!J24) ->  | K20: =IF(VLOOKUP('Essbase Input'!$C$4,Tables!$B$3:$F$7,5,FALSE)="DPPO","",'Pt 2 Premium and Claims'!K21+'Pt 2 Premium and Claims'!K22-'Pt 2 Premium and Claims'!K23-'Pt 2 Premium and Claims'!K24) ->  | L20: =IF(VLOOKUP('Essbase Input'!$C$4,Tables!$B$3:$F$7,5,FALSE)="DHMO","",'Pt 2 Premium and Claims'!L21+'Pt 2 Premium and Claims'!L22-'Pt 2 Premium and Claims'!L23-'Pt 2 Premium and Claims'!L24) -> 2802.08 | M20: =IF(VLOOKUP('Essbase Input'!$C$4,Tables!$B$3:$F$7,5,FALSE)="DHMO","",'Pt 2 Premium and Claims'!M21+'Pt 2 Premium and Claims'!M22-'Pt 2 Premium and Claims'!M23-'Pt 2 Premium and Claims'!M24) -> 0 | N20: =IF(VLOOKUP('Essbase Input'!$C$4,Tables!$B$3:$F$7,5,FALSE)="DHMO","",IF(OR('Essbase Input'!$C$4="Golden Rule Insurance Company",'Essbase Input'!$C$4="UnitedHealthcare Life Ins Co"),"",'Pt 2 Premium and Claims'!N21+'Pt 2 Premium and Claims'!N22-'Pt 2 Premium and Claims'!N23-'Pt 2 Premium and Claims'!N24)) -> 16768561.83 | O20: =IF(VLOOKUP('Essbase Input'!$C$4,Tables!$B$3:$F$7,5,FALSE)="DHMO","",IF(OR('Essbase Input'!$C$4="Golden Rule Insurance Company",'Essbase Input'!$C$4="UnitedHealthcare Life Ins Co"),"",'Pt 2 Premium and Claims'!O21+'Pt 2 Premium and Claims'!O22-'Pt 2 Premium and Claims'!O23-'Pt 2 Premium and Claims'!O24)) -> 16796596.57 | P20: =IF(VLOOKUP('Essbase Input'!$C$4,Tables!$B$3:$F$7,5,FALSE)="DHMO","",IF(OR('Essbase Input'!$C$4="Golden Rule Insurance Company",'Essbase Input'!$C$4="UnitedHealthcare Life Ins Co"),"",'Pt 2 Premium and Claims'!P21+'Pt 2 Premium and Claims'!P22-'Pt 2 Premium and Claims'!P23-'Pt 2 Premium and Claims'!P24)) -> 36717063.76 | Q20: =IF(VLOOKUP('Essbase Input'!$C$4,Tables!$B$3:$F$7,5,FALSE)="DHMO","",IF(OR('Essbase Input'!$C$4="Golden Rule Insurance Company",'Essbase Input'!$C$4="UnitedHealthcare Life Ins Co"),"",'Pt 2 Premium and Claims'!Q21+'Pt 2 Premium and Claims'!Q22-'Pt 2 Premium and Claims'!Q23-'Pt 2 Premium and Claims'!Q24)) -> 36731721.66 | S20: =IF(P20="",0,P20)+IF(N20="",0,N20)+IF(L20="",0,L20)+IF(J20="",0,J20)+IF(H20="",0,H20)+IF(F20="",0,F20) -> 53488427.67 | T20: =+'Pt 2 Premium and Claims'!T21+'Pt 2 Premium and Claims'!T22-'Pt 2 Premium and Claims'!T23-'Pt 2 Premium and Claims'!T24 -> 13781195.58 | U20: =+'Pt 2 Premium and Claims'!U21+'Pt 2 Premium and Claims'!U22-'Pt 2 Premium and Claims'!U23-'Pt 2 Premium and Claims'!U24 -> 1962290.72 | V20: =+'Pt 2 Premium and Claims'!V21+'Pt 2 Premium and Claims'!V22-'Pt 2 Premium and Claims'!V23-'Pt 2 Premium and Claims'!V24 -> 0 | W20: =+'Pt 2 Premium and Claims'!W21+'Pt 2 Premium and Claims'!W22-'Pt 2 Premium and Claims'!W23-'Pt 2 Premium and Claims'!W24 -> 32317971.22 | X20: =+'Pt 2 Premium and Claims'!X21+'Pt 2 Premium and Claims'!X22-'Pt 2 Premium and Claims'!X23-'Pt 2 Premium and Claims'!X24 -> 6139364.93 | Y20: =+'Pt 2 Premium and Claims'!Y21+'Pt 2 Premium and Claims'!Y22-'Pt 2 Premium and Claims'!Y23-'Pt 2 Premium and Claims'!Y24 -> 808164871.7 | Z20: =+'Pt 2 Premium and Claims'!Z21+'Pt 2 Premium and Claims'!Z22-'Pt 2 Premium and Claims'!Z23-'Pt 2 Premium and Claims'!Z24 -> 152168 | AA20: =+'Pt 2 Premium and Claims'!AA21+'Pt 2 Premium and Claims'!AA22-'Pt 2 Premium and Claims'!AA23-'Pt 2 Premium and Claims'!AA24 -> 163672167.1 | AB20: =+'Pt 2 Premium and Claims'!AB21+'Pt 2 Premium and Claims'!AB22-'Pt 2 Premium and Claims'!AB23-'Pt 2 Premium and Claims'!AB24 -> 1183 | AC20: =+'Pt 2 Premium and Claims'!AC21+'Pt 2 Premium and Claims'!AC22-'Pt 2 Premium and Claims'!AC23-'Pt 2 Premium and Claims'!AC24 -> 259590.1 | AD20: =SUM(V20:AC20) -> 1010707316 | AE20: =+'Pt 2 Premium and Claims'!AE21+'Pt 2 Premium and Claims'!AE22-'Pt 2 Premium and Claims'!AE23-'Pt 2 Premium and Claims'!AE24 -> 1079888458 | AF20: Sec 1 - 1.1 | AH20: =SUM(AG20:AG20) -> 0 | AI20: =ROUND((S20+T20+U20+AC20+V20+W20+X20+Y20+Z20+AA20+AB20)-AE20+AH20,0) -> 50772
B22: 2. | C22: Claims
C23: 2.1 | D23: Total incurred claims (MLR Form Part 2, Line 2.11) | F23: =IF(VLOOKUP('Essbase Input'!$C$4,Tables!$B$3:$F$7,5,FALSE)="DPPO","",'Pt 2 Premium and Claims'!F50) ->  | G23: =IF(VLOOKUP('Essbase Input'!$C$4,Tables!$B$3:$F$7,5,FALSE)="DPPO","",'Pt 2 Premium and Claims'!G50) ->  | H23: =IF(VLOOKUP('Essbase Input'!$C$4,Tables!$B$3:$F$7,5,FALSE)="DPPO","",'Pt 2 Premium and Claims'!H50) ->  | I23: =IF(VLOOKUP('Essbase Input'!$C$4,Tables!$B$3:$F$7,5,FALSE)="DPPO","",'Pt 2 Premium and Claims'!I50) ->  | J23: =IF(VLOOKUP('Essbase Input'!$C$4,Tables!$B$3:$F$7,5,FALSE)="DPPO","",'Pt 2 Premium and Claims'!J50) ->  | K23: =IF(VLOOKUP('Essbase Input'!$C$4,Tables!$B$3:$F$7,5,FALSE)="DPPO","",'Pt 2 Premium and Claims'!K50) ->  | L23: =IF(VLOOKUP('Essbase Input'!$C$4,Tables!$B$3:$F$7,5,FALSE)="DHMO","",'Pt 2 Premium and Claims'!L50) -> 2318.35 | M23: =IF(VLOOKUP('Essbase Input'!$C$4,Tables!$B$3:$F$7,5,FALSE)="DHMO","",'Pt 2 Premium and Claims'!M50) -> 2517 | N23: =IF(VLOOKUP('Essbase Input'!$C$4,Tables!$B$3:$F$7,5,FALSE)="DHMO","",IF(OR('Essbase Input'!$C$4="Golden Rule Insurance Company",'Essbase Input'!$C$4="UnitedHealthcare Life Ins Co"),"",'Pt 2 Premium and Claims'!N50)) -> 9261613.64 | O23: =IF(VLOOKUP('Essbase Input'!$C$4,Tables!$B$3:$F$7,5,FALSE)="DHMO","",IF(OR('Essbase Input'!$C$4="Golden Rule Insurance Company",'Essbase Input'!$C$4="UnitedHealthcare Life Ins Co"),"",'Pt 2 Premium and Claims'!O50)) -> 9257288.45 | P23: =IF(VLOOKUP('Essbase Input'!$C$4,Tables!$B$3:$F$7,5,FALSE)="DHMO","",IF(OR('Essbase Input'!$C$4="Golden Rule Insurance Company",'Essbase Input'!$C$4="UnitedHealthcare Life Ins Co"),"",'Pt 2 Premium and Claims'!P50)) -> 28372068.01 | Q23: =IF(VLOOKUP('Essbase Input'!$C$4,Tables!$B$3:$F$7,5,FALSE)="DHMO","",IF(OR('Essbase Input'!$C$4="Golden Rule Insurance Company",'Essbase Input'!$C$4="UnitedHealthcare Life Ins Co"),"",'Pt 2 Premium and Claims'!Q50)) -> 28383427.83 | S23: =IF(P23="",0,P23)+IF(N23="",0,N23)+IF(L23="",0,L23)+IF(J23="",0,J23)+IF(H23="",0,H23)+IF(F23="",0,F23) -> 37636000 | T23: =+'Pt 2 Premium and Claims'!T50 -> 7044731.85 | U23: =+'Pt 2 Premium and Claims'!U50 -> 1481723.14 | V23: =+'Pt 2 Premium and Claims'!V50 -> 0 | W23: =+'Pt 2 Premium and Claims'!W50 -> 27927366.15 | X23: =+'Pt 2 Premium and Claims'!X50 -> 3794940.64 | Y23: =+'Pt 2 Premium and Claims'!Y50 -> 683749908.4 | Z23: =+'Pt 2 Premium and Claims'!Z50 -> 30031.58 | AA23: =+'Pt 2 Premium and Claims'!AA50 -> 168762806.3 | AB23: =+'Pt 2 Premium and Claims'!AB50 -> -4054.22 | AC23: =+'Pt 2 Premium and Claims'!AC50 -> -628.7099997 | AD23: =SUM(V23:AC23) -> 884260370.1 | AE23: =+'Pt 2 Premium and Claims'!AE50 -> 930422825.1 | AF23: Sec 2 - 2.1 | AH23: =SUM(AG23:AG23) -> 0 | AI23: =ROUND((S23+T23+U23+AC23+V23+W23+X23+Y23+Z23+AA23+AB23)-AE23+AH23,0) -> 0
B25: 3. | C25: Federal and State Taxes and Licensing or Regulatory Fees
C26: 3.1 | D26: Federal taxes and assessments incurred by the reporting health plan or health insurer during the MLR reporting year
D27: 3.1 a Federal income taxes deductible from premium in MLR calculations | F27: =IF(VLOOKUP('Essbase Input'!$C$4,Tables!$B$3:$F$7,5,FALSE)="DPPO","",'EB PT 1'!I12) ->  | G27: =F27 ->  | H27: =IF(VLOOKUP('Essbase Input'!$C$4,Tables!$B$3:$F$7,5,FALSE)="DPPO","",'EB PT 1'!K12) ->  | I27: =H27 ->  | J27: =IF(VLOOKUP('Essbase Input'!$C$4,Tables!$B$3:$F$7,5,FALSE)="DPPO","",'EB PT 1'!M12) ->  | K27: =J27 ->  | L27: =IF(VLOOKUP('Essbase Input'!$C$4,Tables!$B$3:$F$7,5,FALSE)="DHMO","",IF(OR('Essbase Input'!$C$4="Golden Rule Insurance Company",'Essbase Input'!$C$4="UnitedHealthcare Life Ins Co"),'EB PT 1'!R12,'EB PT 1'!I12)) -> 0 | M27: =L27 -> 0 | N27: =IF(VLOOKUP('Essbase Input'!$C$4,Tables!$B$3:$F$7,5,FALSE)="DHMO","",IF(OR('Essbase Input'!$C$4="Golden Rule Insurance Company",'Essbase Input'!$C$4="UnitedHealthcare Life Ins Co"),"",'EB PT 1'!K12)) -> 0 | O27: =N27 -> 0 | P27: =IF(VLOOKUP('Essbase Input'!$C$4,Tables!$B$3:$F$7,5,FALSE)="DHMO","",IF(OR('Essbase Input'!$C$4="Golden Rule Insurance Company",'Essbase Input'!$C$4="UnitedHealthcare Life Ins Co"),"",'EB PT 1'!M12)) -> 2330375.08 | Q27: =P27 -> 2330375.08 | S27: =IF(P27="",0,P27)+IF(N27="",0,N27)+IF(L27="",0,L27)+IF(J27="",0,J27)+IF(H27="",0,H27)+IF(F27="",0,F27) -> 2330375.08 | T27: =+'EB PT 1'!T12 -> 1360911.42 | U27: =+'EB PT 1'!U12 -> 223011.69 | V27: =+'EB PT 1'!V12+'EB PT 1'!W12+'EB PT 1'!X12 -> 0 | W27: =+'EB PT 1'!AB12+'EB PT 1'!Z12+'EB PT 1'!Y12+'EB PT 1'!AA12 -> 263461.59 | X27: =+'EB PT 1'!AC12+'EB PT 1'!AD12+'EB PT 1'!AE12+'EB PT 1'!AF12 -> 74640.44 | Y27: =+'EB PT 1'!AH12+'EB PT 1'!AI12+'EB PT 1'!AJ12+'EB PT 1'!AG12 -> 3977824.16 | Z27: =+'EB PT 1'!AK12+'EB PT 1'!AL12 -> 12151.29 | AA27: =+'EB PT 1'!AM12 -> -6014884.09 | AB27: =+'EB PT 1'!AN12 -> -60015.63 | AC27: =+'EB PT 1'!AO12-SUM(V27:AB27) -> 81701.32 | AD27: =SUM(V27:AC27) -> -1665120.92 | AE27: =+'EB PT 1'!S12 -> 2227496.23 | AF27: Sec 2 - 3.1a & 3.1c | AG27: =+'EB PT 1'!AP12 -> 0 | AH27: =SUM(AG27:AG27) -> 0 | AI27: =ROUND((S27+T27+U27+AC27+V27+W27+X27+Y27+Z27+AA27+AB27)-AE27+AH27,0) -> 21681
D28: 3.1 b Other Federal Taxes (other than income tax) and assessments deductible from premium | F28: =IF(VLOOKUP('Essbase Input'!$C$4,Tables!$B$3:$F$7,5,FALSE)="DPPO","",'EB PT 1'!I13-'EB PT 1'!I16) ->  | G28: =F28 ->  | H28: =IF(VLOOKUP('Essbase Input'!$C$4,Tables!$B$3:$F$7,5,FALSE)="DPPO","",'EB PT 1'!K13-'EB PT 1'!K16) ->  | I28: =H28 ->  | J28: =IF(VLOOKUP('Essbase Input'!$C$4,Tables!$B$3:$F$7,5,FALSE)="DPPO","",'EB PT 1'!M13-'EB PT 1'!M16) ->  | K28: =J28 ->  | L28: =IF(VLOOKUP('Essbase Input'!$C$4,Tables!$B$3:$F$7,5,FALSE)="DHMO","",IF(OR('Essbase Input'!$C$4="Golden Rule Insurance Company",'Essbase Input'!$C$4="UnitedHealthcare Life Ins Co"),'EB PT 1'!R13-'EB PT 1'!R16,'EB PT 1'!I13-'EB PT 1'!I16)) -> 0 | M28: =L28 -> 0 | N28: =IF(VLOOKUP('Essbase Input'!$C$4,Tables!$B$3:$F$7,5,FALSE)="DHMO","",IF(OR('Essbase Input'!$C$4="Golden Rule Insurance Company",'Essbase Input'!$C$4="UnitedHealthcare Life Ins Co"),"",'EB PT 1'!K13-'EB PT 1'!K16)) -> 0 | O28: =N28 -> 0 | P28: =IF(VLOOKUP('Essbase Input'!$C$4,Tables!$B$3:$F$7,5,FALSE)="DHMO","",IF(OR('Essbase Input'!$C$4="Golden Rule Insurance Company",'Essbase Input'!$C$4="UnitedHealthcare Life Ins Co"),"",'EB PT 1'!M13-'EB PT 1'!M16)) -> 0 | Q28: =P28 -> 0 | S28: =IF(P28="",0,P28)+IF(N28="",0,N28)+IF(L28="",0,L28)+IF(J28="",0,J28)+IF(H28="",0,H28)+IF(F28="",0,F28) -> 0 | T28: =+'EB PT 1'!T13-'EB PT 1'!T16 -> 0 | U28: =+'EB PT 1'!U13-'EB PT 1'!U16 -> 0 | V28: =+('EB PT 1'!V13-'EB PT 1'!V16)+('EB PT 1'!W13-'EB PT 1'!W16)+('EB PT 1'!X13-'EB PT 1'!X16) -> 0 | W28: =+('EB PT 1'!Z13-'EB PT 1'!Z16)+('EB PT 1'!AB13-'EB PT 1'!AB16)+('EB PT 1'!Y13-'EB PT 1'!Y16)+('EB PT 1'!AA13-'EB PT 1'!AA16) -> 0 | X28: =+('EB PT 1'!AD13-'EB PT 1'!AD16)+('EB PT 1'!AC13-'EB PT 1'!AC16)+('EB PT 1'!AE13-'EB PT 1'!AE16)+('EB PT 1'!AF13-'EB PT 1'!AF16) -> 0 | Y28: =+('EB PT 1'!AH13-'EB PT 1'!AH16)+('EB PT 1'!AI13-'EB PT 1'!AI16)+('EB PT 1'!AJ13-'EB PT 1'!AJ16)+('EB PT 1'!AG13-'EB PT 1'!AG16) -> 9394.9 | Z28: =('EB PT 1'!AK13-'EB PT 1'!AK16)+('EB PT 1'!AL13-'EB PT 1'!AL16) -> 0 | AA28: =('EB PT 1'!AM13-'EB PT 1'!AM16) -> 291335.87 | AB28: =('EB PT 1'!AN13-'EB PT 1'!AN16) -> -6.48 | AC28: =+'EB PT 1'!AO13-'EB PT 1'!AO16-SUM(V28:AB28) -> 0 | AD28: =SUM(V28:AC28) -> 300724.29 | AE28: =+'EB PT 1'!S13-'EB PT 1'!S16 -> 300724.29 | AF28: Sec 2 - 3.1b & 3.1d | AG28: =+'EB PT 1'!AP13-'EB PT 1'!AP16 -> 0 | AH28: =SUM(AG28:AG28) -> 0 | AI28: =ROUND((S28+T28+U28+AC28+V28+W28+X28+Y28+Z28+AA28+AB28)-AE28+AH28,0) -> 0
C29: 3.2 | D29: State insurance, premium and other taxes incurred by the reporting health plan or heath insurer during the MLR reporting year (deductible from premium in MLR calculation)
D30: 3.2 a State income, excise, business, and other taxes | F30: =IF(VLOOKUP('Essbase Input'!$C$4,Tables!$B$3:$F$7,5,FALSE)="DPPO","",'EB PT 1'!I14+'EB PT 1'!I15+'EB PT 1'!I18+'EB PT 1'!I16) ->  | G30: =F30 ->  | H30: =IF(VLOOKUP('Essbase Input'!$C$4,Tables!$B$3:$F$7,5,FALSE)="DPPO","",'EB PT 1'!K14+'EB PT 1'!K15+'EB PT 1'!K18+'EB PT 1'!K16) ->  | I30: =H30 ->  | J30: =IF(VLOOKUP('Essbase Input'!$C$4,Tables!$B$3:$F$7,5,FALSE)="DPPO","",'EB PT 1'!M14+'EB PT 1'!M15+'EB PT 1'!M18+'EB PT 1'!M16) ->  | K30: =J30 ->  | L30: =IF(VLOOKUP('Essbase Input'!$C$4,Tables!$B$3:$F$7,5,FALSE)="DHMO","",IF(OR('Essbase Input'!$C$4="Golden Rule Insurance Company",'Essbase Input'!$C$4="UnitedHealthcare Life Ins Co"),'EB PT 1'!R14+'EB PT 1'!R15+'EB PT 1'!R18,'EB PT 1'!I14+'EB PT 1'!I15+'EB PT 1'!I18+'EB PT 1'!I16)) -> 0 | M30: =L30 -> 0 | N30: =IF(VLOOKUP('Essbase Input'!$C$4,Tables!$B$3:$F$7,5,FALSE)="DHMO","",IF(OR('Essbase Input'!$C$4="Golden Rule Insurance Company",'Essbase Input'!$C$4="UnitedHealthcare Life Ins Co"),"",'EB PT 1'!K14+'EB PT 1'!K15+'EB PT 1'!K18+'EB PT 1'!K16)) -> 17285.34 | O30: =N30 -> 17285.34 | P30: =IF(VLOOKUP('Essbase Input'!$C$4,Tables!$B$3:$F$7,5,FALSE)="DHMO","",IF(OR('Essbase Input'!$C$4="Golden Rule Insurance Company",'Essbase Input'!$C$4="UnitedHealthcare Life Ins Co"),"",'EB PT 1'!M14+'EB PT 1'!M15+'EB PT 1'!M18+'EB PT 1'!M16)) -> 63166.15 | Q30: =P30 -> 63166.15 | S30: =IF(P30="",0,P30)+IF(N30="",0,N30)+IF(L30="",0,L30)+IF(J30="",0,J30)+IF(H30="",0,H30)+IF(F30="",0,F30) -> 80451.49 | T30: =+'EB PT 1'!T14+'EB PT 1'!T15+'EB PT 1'!T18 -> 29511.11 | U30: =+'EB PT 1'!U14+'EB PT 1'!U15+'EB PT 1'!U18+'EB PT 1'!U16 -> -20181.37 | V30: =+('EB PT 1'!V14+'EB PT 1'!V15+'EB PT 1'!V18+'EB PT 1'!V16)+('EB PT 1'!W14+'EB PT 1'!W15+'EB PT 1'!W18+'EB PT 1'!W16)+('EB PT 1'!X14+'EB PT 1'!X15+'EB PT 1'!X18+'EB PT 1'!X16) -> 0 | W30: =+('EB PT 1'!Z14+'EB PT 1'!Z15+'EB PT 1'!Z18+'EB PT 1'!Z16)+('EB PT 1'!AB14+'EB PT 1'!AB15+'EB PT 1'!AB18+'EB PT 1'!AB16)+('EB PT 1'!Y14+'EB PT 1'!Y15+'EB PT 1'!Y18+'EB PT 1'!Y16)+('EB PT 1'!AA14+'EB PT 1'!AA15+'EB PT 1'!AA18+'EB PT 1'!AA16) -> 13059.57 | X30: =+('EB PT 1'!AD14+'EB PT 1'!AD15+'EB PT 1'!AD18+'EB PT 1'!AD16)+('EB PT 1'!AC14+'EB PT 1'!AC15+'EB PT 1'!AC18+'EB PT 1'!AC16)+('EB PT 1'!AE14+'EB PT 1'!AE15+'EB PT 1'!AE18+'EB PT 1'!AE16)+('EB PT 1'!AF14+'EB PT 1'!AF15+'EB PT 1'!AF18+'EB PT 1'!AF16) -> -291156.55 | Y30: =+('EB PT 1'!AH14+'EB PT 1'!AH15+'EB PT 1'!AH18+'EB PT 1'!AH16)+('EB PT 1'!AI14+'EB PT 1'!AI15+'EB PT 1'!AI18+'EB PT 1'!AI16)+('EB PT 1'!AJ14+'EB PT 1'!AJ15+'EB PT 1'!AJ18+'EB PT 1'!AJ16)+('EB PT 1'!AG14+'EB PT 1'!AG15+'EB PT 1'!AG18+'EB PT 1'!AG16) -> -28381556.78 | Z30: =+('EB PT 1'!AK14+'EB PT 1'!AK15+'EB PT 1'!AK18+'EB PT 1'!AK16)+('EB PT 1'!AL14+'EB PT 1'!AL15+'EB PT 1'!AL18+'EB PT 1'!AL16) -> 74379.49 | AA30: =+('EB PT 1'!AM14+'EB PT 1'!AM15+'EB PT 1'!AM18+'EB PT 1'!AM16) -> -365272.41 | AB30: =+('EB PT 1'!AN14+'EB PT 1'!AN15+'EB PT 1'!AN18+'EB PT 1'!AN16) -> 182777.01 | AC30: =+'EB PT 1'!AO14+'EB PT 1'!AO15+'EB PT 1'!AO18+'EB PT 1'!AO16-SUM(V30:AB30) -> 14849.24 | AD30: =SUM(V30:AC30) -> -28752920.43 | AE30: =+'EB PT 1'!S14+'EB PT 1'!S15+'EB PT 1'!S18+'EB PT 1'!S16 -> -28663139.2 | AF30: Sec 2 - 3.2a | AG30: =+'EB PT 1'!AP14+'EB PT 1'!AP15+'EB PT 1'!AP18+'EB PT 1'!AP16 -> 0 | AH30: =SUM(AG30:AG30) -> 0 | AI30: =ROUND((S30+T30+U30+AC30+V30+W30+X30+Y30+Z30+AA30+AB30)-AE30+AH30,0) -> 0
D31: 3.2 b State premium taxes | F31: =IF(VLOOKUP('Essbase Input'!$C$4,Tables!$B$3:$F$7,5,FALSE)="DPPO","",'EB PT 1'!I17-'EB PT 1'!I18) ->  | G31: =F31 ->  | H31: =IF(VLOOKUP('Essbase Input'!$C$4,Tables!$B$3:$F$7,5,FALSE)="DPPO","",'EB PT 1'!K17-'EB PT 1'!K18) ->  | I31: =H31 ->  | J31: =IF(VLOOKUP('Essbase Input'!$C$4,Tables!$B$3:$F$7,5,FALSE)="DPPO","",'EB PT 1'!M17-'EB PT 1'!M18) ->  | K31: =J31 ->  | L31: =IF(VLOOKUP('Essbase Input'!$C$4,Tables!$B$3:$F$7,5,FALSE)="DHMO","",IF(OR('Essbase Input'!$C$4="Golden Rule Insurance Company",'Essbase Input'!$C$4="UnitedHealthcare Life Ins Co"),'EB PT 1'!R17-'EB PT 1'!R18,'EB PT 1'!I17-'EB PT 1'!I18)) -> 0.1 | M31: =L31 -> 0.1 | N31: =IF(VLOOKUP('Essbase Input'!$C$4,Tables!$B$3:$F$7,5,FALSE)="DHMO","",IF(OR('Essbase Input'!$C$4="Golden Rule Insurance Company",'Essbase Input'!$C$4="UnitedHealthcare Life Ins Co"),"",'EB PT 1'!K17-'EB PT 1'!K18)) -> 986.94 | O31: =N31 -> 986.94 | P31: =IF(VLOOKUP('Essbase Input'!$C$4,Tables!$B$3:$F$7,5,FALSE)="DHMO","",IF(OR('Essbase Input'!$C$4="Golden Rule Insurance Company",'Essbase Input'!$C$4="UnitedHealthcare Life Ins Co"),"",'EB PT 1'!M17-'EB PT 1'!M18)) -> 2198.49 | Q31: =P31 -> 2198.49 | S31: =IF(P31="",0,P31)+IF(N31="",0,N31)+IF(L31="",0,L31)+IF(J31="",0,J31)+IF(H31="",0,H31)+IF(F31="",0,F31) -> 3185.53 | T31: =+'EB PT 1'!T17-'EB PT 1'!T18 -> 7991.63 | U31: =+'EB PT 1'!U17-'EB PT 1'!U18 -> 244.56 | V31: =+('EB PT 1'!V17-'EB PT 1'!V18)+('EB PT 1'!W17-'EB PT 1'!W18)+('EB PT 1'!X17-'EB PT 1'!X18) -> 0 | W31: =+('EB PT 1'!Z17-'EB PT 1'!Z18)+('EB PT 1'!AB17-'EB PT 1'!AB18)+('EB PT 1'!Y17-'EB PT 1'!Y18)+('EB PT 1'!AA17-'EB PT 1'!AA18) -> 386301.57 | X31: =+('EB PT 1'!AD17-'EB PT 1'!AD18)+('EB PT 1'!AC17-'EB PT 1'!AC18)+('EB PT 1'!AE17-'EB PT 1'!AE18)+('EB PT 1'!AF17-'EB PT 1'!AF18) -> 9259.33 | Y31: =+('EB PT 1'!AH17-'EB PT 1'!AH18)+('EB PT 1'!AI17-'EB PT 1'!AI18)+('EB PT 1'!AJ17-'EB PT 1'!AJ18)+('EB PT 1'!AG17-'EB PT 1'!AG18) -> 1208372.64 | Z31: =('EB PT 1'!AK17-'EB PT 1'!AK18)+('EB PT 1'!AL17-'EB PT 1'!AL18) -> 3.5 | AA31: =('EB PT 1'!AM17-'EB PT 1'!AM18) -> 1271813.55 | AB31: =('EB PT 1'!AN17-'EB PT 1'!AN18) -> 24.84 | AC31: =+'EB PT 1'!AO17-'EB PT 1'!AO18-SUM(V31:AB31) -> 0 | AD31: =SUM(V31:AC31) -> 2875775.43 | AE31: =+'EB PT 1'!S17-'EB PT 1'!S18 -> 2887188.61 | AF31: Sec 2 - 3.2b | AG31: =+'EB PT 1'!AP17-'EB PT 1'!AP18 -> 0 | AH31: =SUM(AG31:AG31) -> 0 | AI31: =ROUND((S31+T31+U31+AC31+V31+W31+X31+Y31+Z31+AA31+AB31)-AE31+AH31,0) -> 9
D32: 3.2 c Community benefit expenditures | F32: =IF(VLOOKUP('Essbase Input'!$C$4,Tables!$B$3:$F$7,5,FALSE)="DPPO","",0) ->  | G32: =F32 ->  | H32: =IF(VLOOKUP('Essbase Input'!$C$4,Tables!$B$3:$F$7,5,FALSE)="DPPO","",0) ->  | I32: =H32 ->  | J32: =IF(VLOOKUP('Essbase Input'!$C$4,Tables!$B$3:$F$7,5,FALSE)="DPPO","",0) ->  | K32: =J32 ->  | L32: =IF(VLOOKUP('Essbase Input'!$C$4,Tables!$B$3:$F$7,5,FALSE)="DHMO","",IF(OR('Essbase Input'!$C$4="Golden Rule Insurance Company",'Essbase Input'!$C$4="UnitedHealthcare Life Ins Co"),0,0)) -> 0 | M32: =L32 -> 0 | N32: =IF(VLOOKUP('Essbase Input'!$C$4,Tables!$B$3:$F$7,5,FALSE)="DHMO","",IF(OR('Essbase Input'!$C$4="Golden Rule Insurance Company",'Essbase Input'!$C$4="UnitedHealthcare Life Ins Co"),"",0)) -> 0 | O32: =N32 -> 0 | P32: =IF(VLOOKUP('Essbase Input'!$C$4,Tables!$B$3:$F$7,5,FALSE)="DHMO","",IF(OR('Essbase Input'!$C$4="Golden Rule Insurance Company",'Essbase Input'!$C$4="UnitedHealthcare Life Ins Co"),"",0)) -> 0 | Q32: =P32 -> 0 | S32: =IF(P32="",0,P32)+IF(N32="",0,N32)+IF(L32="",0,L32)+IF(J32="",0,J32)+IF(H32="",0,H32)+IF(F32="",0,F32) -> 0 | T32: 0 | U32: 0 | V32: 0 | W32: 0 | X32: 0 | Y32: 0 | Z32: 0 | AA32: 0 | AB32: 0 | AC32: 0 | AD32: =SUM(V32:AC32) -> 0 | AE32: 0 | AF32: Sec 2 - 3.2c | AG32: 0 | AH32: =SUM(AG32:AG32) -> 0 | AI32: =ROUND((S32+T32+U32+AC32+V32+W32+X32+Y32+Z32+AA32+AB32)-AE32+AH32,0) -> 0
C33: 3.3 | D33: Regulatory authority licenses and fees | F33: =IF(VLOOKUP('Essbase Input'!$C$4,Tables!$B$3:$F$7,5,FALSE)="DPPO","",'EB PT 1'!I19) ->  | G33: =F33 ->  | H33: =IF(VLOOKUP('Essbase Input'!$C$4,Tables!$B$3:$F$7,5,FALSE)="DPPO","",'EB PT 1'!K19) ->  | I33: =H33 ->  | J33: =IF(VLOOKUP('Essbase Input'!$C$4,Tables!$B$3:$F$7,5,FALSE)="DPPO","",'EB PT 1'!M19) ->  | K33: =J33 ->  | L33: =IF(VLOOKUP('Essbase Input'!$C$4,Tables!$B$3:$F$7,5,FALSE)="DHMO","",IF(OR('Essbase Input'!$C$4="Golden Rule Insurance Company",'Essbase Input'!$C$4="UnitedHealthcare Life Ins Co"),'EB PT 1'!R19,'EB PT 1'!I19)) -> 0 | M33: =L33 -> 0 | N33: =IF(VLOOKUP('Essbase Input'!$C$4,Tables!$B$3:$F$7,5,FALSE)="DHMO","",IF(OR('Essbase Input'!$C$4="Golden Rule Insurance Company",'Essbase Input'!$C$4="UnitedHealthcare Life Ins Co"),"",'EB PT 1'!K19)) -> 1240.45 | O33: =N33 -> 1240.45 | P33: =IF(VLOOKUP('Essbase Input'!$C$4,Tables!$B$3:$F$7,5,FALSE)="DHMO","",IF(OR('Essbase Input'!$C$4="Golden Rule Insurance Company",'Essbase Input'!$C$4="UnitedHealthcare Life Ins Co"),"",'EB PT 1'!M19)) -> 3112.19 | Q33: =P33 -> 3112.19 | S33: =IF(P33="",0,P33)+IF(N33="",0,N33)+IF(L33="",0,L33)+IF(J33="",0,J33)+IF(H33="",0,H33)+IF(F33="",0,F33) -> 4352.64 | T33: =+'EB PT 1'!T19 -> 1176.88 | U33: =+'EB PT 1'!U19 -> 0.07 | V33: =+'EB PT 1'!V19+'EB PT 1'!W19+'EB PT 1'!X19 -> 0 | W33: =+'EB PT 1'!Y19+'EB PT 1'!Z19+'EB PT 1'!AA19+'EB PT 1'!AB19 -> 16719.4 | X33: =+'EB PT 1'!AD19+'EB PT 1'!AE19+'EB PT 1'!AF19+'EB PT 1'!AC19 -> 185.75 | Y33: =+'EB PT 1'!AH19+'EB PT 1'!AI19+'EB PT 1'!AJ19+'EB PT 1'!AG19 -> 23981.83 | Z33: =+'EB PT 1'!AK19+'EB PT 1'!AL19 -> 0 | AA33: =+'EB PT 1'!AM19 -> 10417.82 | AB33: =+'EB PT 1'!AN19 -> 0 | AC33: =+'EB PT 1'!AO19-SUM(V33:AB33) -> 0 | AD33: =SUM(V33:AC33) -> 51304.8 | AE33: =+'EB PT 1'!S19 -> 56834.39 | AF33: Sec 2 - 3.3b | AG33: =+'EB PT 1'!AP19 -> 0 | AH33: =SUM(AG33:AG33) -> 0 | AI33: =ROUND((S33+T33+U33+AC33+V33+W33+X33+Y33+Z33+AA33+AB33)-AE33+AH33,0) -> 0
C34: 3.4 | D34: Total Federal and State Taxes and fees to be excluded from premium | F34: =IF(VLOOKUP('Essbase Input'!$C$4,Tables!$B$3:$F$7,5,FALSE)="DPPO","",SUM(F$27:F$28,F$30,F$33+IF($I$6="No",IF(MAX(F$31:F$32)=0,MIN(F$31:F$32),MAX(F$31:F$32)),SUM(F$31:F$32)))) ->  | G34: =IF(VLOOKUP('Essbase Input'!$C$4,Tables!$B$3:$F$7,5,FALSE)="DPPO","",SUM(G$27:G$28,G$30,G$33+IF($I$6="No",IF(MAX(G$31:G$32)=0,MIN(G$31:G$32),MAX(G$31:G$32)),SUM(G$31:G$32)))) ->  | H34: =IF(VLOOKUP('Essbase Input'!$C$4,Tables!$B$3:$F$7,5,FALSE)="DPPO","",SUM(H$27:H$28,H$30,H$33+IF($I$6="No",IF(MAX(H$31:H$32)=0,MIN(H$31:H$32),MAX(H$31:H$32)),SUM(H$31:H$32)))) ->  | I34: =IF(VLOOKUP('Essbase Input'!$C$4,Tables!$B$3:$F$7,5,FALSE)="DPPO","",SUM(I$27:I$28,I$30,I$33+IF($I$6="No",IF(MAX(I$31:I$32)=0,MIN(I$31:I$32),MAX(I$31:I$32)),SUM(I$31:I$32)))) ->  | J34: =IF(VLOOKUP('Essbase Input'!$C$4,Tables!$B$3:$F$7,5,FALSE)="DPPO","",SUM(J$27:J$28,J$30,J$33+IF($I$6="No",IF(MAX(J$31:J$32)=0,MIN(J$31:J$32),MAX(J$31:J$32)),SUM(J$31:J$32)))) ->  | K34: =IF(VLOOKUP('Essbase Input'!$C$4,Tables!$B$3:$F$7,5,FALSE)="DPPO","",SUM(K$27:K$28,K$30,K$33+IF($I$6="No",IF(MAX(K$31:K$32)=0,MIN(K$31:K$32),MAX(K$31:K$32)),SUM(K$31:K$32)))) ->  | L34: =IF(VLOOKUP('Essbase Input'!$C$4,Tables!$B$3:$F$7,5,FALSE)="DHMO","",SUM(L$27:L$28,L$30,L$33+IF($I$6="No",IF(MAX(L$31:L$32)=0,MIN(L$31:L$32),MAX(L$31:L$32)),SUM(L$31:L$32)))) -> 0.1 | M34: =IF(VLOOKUP('Essbase Input'!$C$4,Tables!$B$3:$F$7,5,FALSE)="DHMO","",SUM(M$27:M$28,M$30,M$33+IF($I$6="No",IF(MAX(M$31:M$32)=0,MIN(M$31:M$32),MAX(M$31:M$32)),SUM(M$31:M$32)))) -> 0.1 | N34: =IF(VLOOKUP('Essbase Input'!$C$4,Tables!$B$3:$F$7,5,FALSE)="DHMO","",IF(OR('Essbase Input'!$C$4="Golden Rule Insurance Company",'Essbase Input'!$C$4="UnitedHealthcare Life Ins Co"),"",SUM(N$27:N$28,N$30,N$33+IF($I$6="No",IF(MAX(N$31:N$32)=0,MIN(N$31:N$32),MAX(N$31:N$32)),SUM(N$31:N$32))))) -> 19512.73 | O34: =IF(VLOOKUP('Essbase Input'!$C$4,Tables!$B$3:$F$7,5,FALSE)="DHMO","",IF(OR('Essbase Input'!$C$4="Golden Rule Insurance Company",'Essbase Input'!$C$4="UnitedHealthcare Life Ins Co"),"",SUM(O$27:O$28,O$30,O$33+IF($I$6="No",IF(MAX(O$31:O$32)=0,MIN(O$31:O$32),MAX(O$31:O$32)),SUM(O$31:O$32))))) -> 19512.73 | P34: =IF(VLOOKUP('Essbase Input'!$C$4,Tables!$B$3:$F$7,5,FALSE)="DHMO","",IF(OR('Essbase Input'!$C$4="Golden Rule Insurance Company",'Essbase Input'!$C$4="UnitedHealthcare Life Ins Co"),"",SUM(P$27:P$28,P$30,P$33+IF($I$6="No",IF(MAX(P$31:P$32)=0,MIN(P$31:P$32),MAX(P$31:P$32)),SUM(P$31:P$32))))) -> 2398851.91 | Q34: =IF(VLOOKUP('Essbase Input'!$C$4,Tables!$B$3:$F$7,5,FALSE)="DHMO","",IF(OR('Essbase Input'!$C$4="Golden Rule Insurance Company",'Essbase Input'!$C$4="UnitedHealthcare Life Ins Co"),"",SUM(Q$27:Q$28,Q$30,Q$33+IF($I$6="No",IF(MAX(Q$31:Q$32)=0,MIN(Q$31:Q$32),MAX(Q$31:Q$32)),SUM(Q$31:Q$32))))) -> 2398851.91 | S34: =IF(P34="",0,P34)+IF(N34="",0,N34)+IF(L34="",0,L34)+IF(J34="",0,J34)+IF(H34="",0,H34)+IF(F34="",0,F34) -> 2418364.74 | T34: =SUM(T$27:T$28,T$30,T$33+IF($I$6="No",IF(MAX(T$31:T$32)=0,MIN(T$31:T$32),MAX(T$31:T$32)),SUM(T$31:T$32))) -> 1399591.04 | U34: =SUM(U$27:U$28,U$30,U$33+IF($I$6="No",IF(MAX(U$31:U$32)=0,MIN(U$31:U$32),MAX(U$31:U$32)),SUM(U$31:U$32))) -> 203074.95 | V34: =SUM(V$27:V$28,V$30,V$33+IF($I$6="No",IF(MAX(V$31:V$32)=0,MIN(V$31:V$32),MAX(V$31:V$32)),SUM(V$31:V$32))) -> 0 | W34: 679542.13 | X34: -207071.03 | Y34: -23161983.25 | Z34: 86534.28 | AA34: -4806589.26 | AB34: 122779.74 | AC34: 96550.56 | AD34: =SUM(V34:AC34) -> -27190236.83 | AE34: =SUM(AE$27:AE$28,AE$30,AE$33+IF($I$6="No",IF(MAX(AE$31:AE$32)=0,MIN(AE$31:AE$32),MAX(AE$31:AE$32)),SUM(AE$31:AE$32))) -> -23190895.68 | AG34: =SUM(AG$27:AG$28,AG$30,AG$33+IF($I$6="No",IF(MAX(AG$31:AG$32)=0,MIN(AG$31:AG$32),MAX(AG$31:AG$32)),SUM(AG$31:AG$32))) -> 0 | AH34: =SUM(AG34:AG34) -> 0 | AI34: =ROUND((S34+T34+U34+AC34+V34+W34+X34+Y34+Z34+AA34+AB34)-AE34+AH34,0) -> 21690
B36: 4. | C36: Non-Claims Costs
C37: 4.1 | D37: Direct sales salaries and benefits | F37: =IF(VLOOKUP('Essbase Input'!$C$4,Tables!$B$3:$F$7,5,FALSE)="DPPO","",'EB PT 1'!I20) ->  | G37: =F37 ->  | H37: =IF(VLOOKUP('Essbase Input'!$C$4,Tables!$B$3:$F$7,5,FALSE)="DPPO","",'EB PT 1'!K20) ->  | I37: =H37 ->  | J37: =IF(VLOOKUP('Essbase Input'!$C$4,Tables!$B$3:$F$7,5,FALSE)="DPPO","",'EB PT 1'!M20) ->  | K37: =J37 ->  | L37: =IF(VLOOKUP('Essbase Input'!$C$4,Tables!$B$3:$F$7,5,FALSE)="DHMO","",IF(OR('Essbase Input'!$C$4="Golden Rule Insurance Company",'Essbase Input'!$C$4="UnitedHealthcare Life Ins Co"),'EB PT 1'!R20,'EB PT 1'!I20)) -> 0 | M37: =L37 -> 0 | N37: =IF(VLOOKUP('Essbase Input'!$C$4,Tables!$B$3:$F$7,5,FALSE)="DHMO","",IF(OR('Essbase Input'!$C$4="Golden Rule Insurance Company",'Essbase Input'!$C$4="UnitedHealthcare Life Ins Co"),"",'EB PT 1'!K20)) -> 0 | O37: =N37 -> 0 | P37: =IF(VLOOKUP('Essbase Input'!$C$4,Tables!$B$3:$F$7,5,FALSE)="DHMO","",IF(OR('Essbase Input'!$C$4="Golden Rule Insurance Company",'Essbase Input'!$C$4="UnitedHealthcare Life Ins Co"),"",'EB PT 1'!M20)) -> 419862.24 | Q37: =P37 -> 419862.24 | S37: =IF(P37="",0,P37)+IF(N37="",0,N37)+IF(L37="",0,L37)+IF(J37="",0,J37)+IF(H37="",0,H37)+IF(F37="",0,F37) -> 419862.24 | T37: =+'EB PT 1'!T20 -> 79230.84 | U37: =+'EB PT 1'!U20 -> 23241.07 | V37: =+'EB PT 1'!V20+'EB PT 1'!W20+'EB PT 1'!X20 -> 0 | W37: =+'EB PT 1'!Z20+'EB PT 1'!AB20+'EB PT 1'!Y20+'EB PT 1'!AA20 -> 0 | X37: =+'EB PT 1'!AD20+'EB PT 1'!AC20+'EB PT 1'!AE20+'EB PT 1'!AF20 -> 40271.23 | Y37: =+'EB PT 1'!AH20+'EB PT 1'!AI20+'EB PT 1'!AJ20+'EB PT 1'!AG20 -> 1037508.26 | Z37: =+'EB PT 1'!AK20+'EB PT 1'!AL20 -> 975.17 | AA37: =+'EB PT 1'!AM20 -> 0 | AB37: =+'EB PT 1'!AN20 -> 7.59 | AC37: =+'EB PT 1'!AO20-SUM(V37:AB37) -> 0 | AD37: =SUM(V37:AC37) -> 1078762.25 | AE37: =+'EB PT 1'!S20 -> 1601096.4 | AF37: Sec 2 - 5.3 | AG37: =+'EB PT 1'!AP20 -> 0 | AH37: =SUM(AG37:AG37) -> 0 | AI37: =ROUND((S37+T37+U37+AC37+V37+W37+X37+Y37+Z37+AA37+AB37)-AE37+AH37,0) -> 0
C38: 4.2 | D38: Agents and brokers fees and commissions | F38: =IF(VLOOKUP('Essbase Input'!$C$4,Tables!$B$3:$F$7,5,FALSE)="DPPO","",'EB PT 1'!I23) ->  | G38: =F38 ->  | H38: =IF(VLOOKUP('Essbase Input'!$C$4,Tables!$B$3:$F$7,5,FALSE)="DPPO","",'EB PT 1'!K23) ->  | I38: =H38 ->  | J38: =IF(VLOOKUP('Essbase Input'!$C$4,Tables!$B$3:$F$7,5,FALSE)="DPPO","",'EB PT 1'!M23) ->  | K38: =J38 ->  | L38: =IF(VLOOKUP('Essbase Input'!$C$4,Tables!$B$3:$F$7,5,FALSE)="DHMO","",IF(OR('Essbase Input'!$C$4="Golden Rule Insurance Company",'Essbase Input'!$C$4="UnitedHealthcare Life Ins Co"),'EB PT 1'!R23,'EB PT 1'!I23)) -> 327.3 | M38: =L38 -> 327.3 | N38: =IF(VLOOKUP('Essbase Input'!$C$4,Tables!$B$3:$F$7,5,FALSE)="DHMO","",IF(OR('Essbase Input'!$C$4="Golden Rule Insurance Company",'Essbase Input'!$C$4="UnitedHealthcare Life Ins Co"),"",'EB PT 1'!K23)) -> 1993607.77 | O38: =N38 -> 1993607.77 | P38: =IF(VLOOKUP('Essbase Input'!$C$4,Tables!$B$3:$F$7,5,FALSE)="DHMO","",IF(OR('Essbase Input'!$C$4="Golden Rule Insurance Company",'Essbase Input'!$C$4="UnitedHealthcare Life Ins Co"),"",'EB PT 1'!M23)) -> 2219250.13 | Q38: =P38 -> 2219250.13 | S38: =IF(P38="",0,P38)+IF(N38="",0,N38)+IF(L38="",0,L38)+IF(J38="",0,J38)+IF(H38="",0,H38)+IF(F38="",0,F38) -> 4213185.2 | T38: =+'EB PT 1'!T23 -> 968364.82 | U38: =+'EB PT 1'!U23 -> 193818.01 | V38: =+'EB PT 1'!V23+'EB PT 1'!W23+'EB PT 1'!X23 -> 0 | W38: =+'EB PT 1'!Z23+'EB PT 1'!AB23+'EB PT 1'!Y23+'EB PT 1'!AA23 -> 1511223.39 | X38: =+'EB PT 1'!AD23+'EB PT 1'!AC23+'EB PT 1'!AE23+'EB PT 1'!AF23 -> 0 | Y38: =+'EB PT 1'!AH23+'EB PT 1'!AI23+'EB PT 1'!AJ23+'EB PT 1'!AG23 -> 29882716.65 | Z38: =+'EB PT 1'!AK23+'EB PT 1'!AL23 -> 0 | AA38: =+'EB PT 1'!AM23 -> 0 | AB38: =+'EB PT 1'!AN23 -> 0 | AC38: =+'EB PT 1'!AO23-SUM(V38:AB38) -> 0 | AD38: =SUM(V38:AC38) -> 31393940.04 | AE38: =+'EB PT 1'!S23 -> 36766857.37 | AF38: Sec 2 - 5.4 | AG38: =+'EB PT 1'!AP23 -> 0 | AH38: =SUM(AG38:AG38) -> 0 | AI38: =ROUND((S38+T38+U38+AC38+V38+W38+X38+Y38+Z38+AA38+AB38)-AE38+AH38,0) -> 2451
C39: 4.3 | D39: Other taxes
D40: 4.3a Taxes and assessments (exclude amounts reported in Section 3 or Line 10) | F40: =IF(VLOOKUP('Essbase Input'!$C$4,Tables!$B$3:$F$7,5,FALSE)="DPPO","",'EB PT 1'!I26) ->  | G40: =F40 ->  | H40: =IF(VLOOKUP('Essbase Input'!$C$4,Tables!$B$3:$F$7,5,FALSE)="DPPO","",'EB PT 1'!K26) ->  | I40: =H40 ->  | J40: =IF(VLOOKUP('Essbase Input'!$C$4,Tables!$B$3:$F$7,5,FALSE)="DPPO","",'EB PT 1'!M26) ->  | K40: =J40 ->  | L40: =IF(VLOOKUP('Essbase Input'!$C$4,Tables!$B$3:$F$7,5,FALSE)="DHMO","",IF(OR('Essbase Input'!$C$4="Golden Rule Insurance Company",'Essbase Input'!$C$4="UnitedHealthcare Life Ins Co"),'EB PT 1'!R26,'EB PT 1'!I26)) -> 0 | M40: =L40 -> 0 | N40: =IF(VLOOKUP('Essbase Input'!$C$4,Tables!$B$3:$F$7,5,FALSE)="DHMO","",IF(OR('Essbase Input'!$C$4="Golden Rule Insurance Company",'Essbase Input'!$C$4="UnitedHealthcare Life Ins Co"),"",'EB PT 1'!K26)) -> 81.94 | O40: =N40 -> 81.94 | P40: =IF(VLOOKUP('Essbase Input'!$C$4,Tables!$B$3:$F$7,5,FALSE)="DHMO","",IF(OR('Essbase Input'!$C$4="Golden Rule Insurance Company",'Essbase Input'!$C$4="UnitedHealthcare Life Ins Co"),"",'EB PT 1'!M26)) -> 103007.04 | Q40: =P40 -> 103007.04 | S40: =IF(P40="",0,P40)+IF(N40="",0,N40)+IF(L40="",0,L40)+IF(J40="",0,J40)+IF(H40="",0,H40)+IF(F40="",0,F40) -> 103088.98 | T40: =+'EB PT 1'!T26 -> 41844.19 | U40: =+'EB PT 1'!U26 -> 4791.72 | V40: =+'EB PT 1'!V26+'EB PT 1'!W26+'EB PT 1'!X26 -> 0 | W40: =+'EB PT 1'!Z26+'EB PT 1'!AB26+'EB PT 1'!Y26+'EB PT 1'!AA26 -> 59174.48 | X40: =+'EB PT 1'!AD26+'EB PT 1'!AC26+'EB PT 1'!AE26+'EB PT 1'!AF26 -> 0 | Y40: =+'EB PT 1'!AH26+'EB PT 1'!AI26+'EB PT 1'!AJ26+'EB PT 1'!AG26 -> 26672.97 | Z40: =+'EB PT 1'!AK26+'EB PT 1'!AL26 -> 287.88 | AA40: =+'EB PT 1'!AM26 -> 394564.27 | AB40: =+'EB PT 1'!AN26 -> -2.74 | AC40: =+'EB PT 1'!AO26-SUM(V40:AB40) -> 0 | AD40: =SUM(V40:AC40) -> 480696.86 | AE40: =+'EB PT 1'!S26 -> 630421.75 | AF40: Sec 2 - 5.5a | AG40: =+'EB PT 1'!AP26 -> 0 | AH40: =SUM(AG40:AG40) -> 0 | AI40: =ROUND((S40+T40+U40+AC40+V40+W40+X40+Y40+Z40+AA40+AB40)-AE40+AH40,0) -> 0
D41: 4.3b Fines and penalties of regulatory authorities (exclude amounts reported in Line 3.3) | F41: =IF(VLOOKUP('Essbase Input'!$C$4,Tables!$B$3:$F$7,5,FALSE)="DPPO","",0) ->  | G41: =F41 ->  | H41: =IF(VLOOKUP('Essbase Input'!$C$4,Tables!$B$3:$F$7,5,FALSE)="DPPO","",0) ->  | I41: =H41 ->  | J41: =IF(VLOOKUP('Essbase Input'!$C$4,Tables!$B$3:$F$7,5,FALSE)="DPPO","",0) ->  | K41: =J41 ->  | L41: =IF(VLOOKUP('Essbase Input'!$C$4,Tables!$B$3:$F$7,5,FALSE)="DHMO","",IF(OR('Essbase Input'!$C$4="Golden Rule Insurance Company",'Essbase Input'!$C$4="UnitedHealthcare Life Ins Co"),0,0)) -> 0 | M41: =L41 -> 0 | N41: =IF(VLOOKUP('Essbase Input'!$C$4,Tables!$B$3:$F$7,5,FALSE)="DHMO","",IF(OR('Essbase Input'!$C$4="Golden Rule Insurance Company",'Essbase Input'!$C$4="UnitedHealthcare Life Ins Co"),"",0)) -> 0 | O41: =N41 -> 0 | P41: =IF(VLOOKUP('Essbase Input'!$C$4,Tables!$B$3:$F$7,5,FALSE)="DHMO","",IF(OR('Essbase Input'!$C$4="Golden Rule Insurance Company",'Essbase Input'!$C$4="UnitedHealthcare Life Ins Co"),"",0)) -> 0 | Q41: =P41 -> 0 | S41: =IF(P41="",0,P41)+IF(N41="",0,N41)+IF(L41="",0,L41)+IF(J41="",0,J41)+IF(H41="",0,H41)+IF(F41="",0,F41) -> 0 | T41: 0 | U41: 0 | V41: 0 | W41: 0 | X41: 0 | Y41: 0 | Z41: 0 | AA41: 0 | AB41: 0 | AC41: 0 | AD41: =SUM(V41:AC41) -> 0 | AE41: 0 | AF41: Sec 2 - 5.5b | AG41: 0 | AH41: =SUM(AG41:AG41) -> 0 | AI41: =ROUND((S41+T41+U41+AC41+V41+W41+X41+Y41+Z41+AA41+AB41)-AE41+AH41,0) -> 0
C42: 4.4 | D42: Other general and administrative expenses | F42: =IF(VLOOKUP('Essbase Input'!$C$4,Tables!$B$3:$F$7,5,FALSE)="DPPO","",'EB PT 1'!I29+'EB PT 1'!I35+SUM('EB PT 1'!I38:I44)) ->  | G42: =F42 ->  | H42: =IF(VLOOKUP('Essbase Input'!$C$4,Tables!$B$3:$F$7,5,FALSE)="DPPO","",'EB PT 1'!K29+'EB PT 1'!K35+SUM('EB PT 1'!K38:K44)) ->  | I42: =H42 ->  | J42: =IF(VLOOKUP('Essbase Input'!$C$4,Tables!$B$3:$F$7,5,FALSE)="DPPO","",'EB PT 1'!M29+'EB PT 1'!M35+SUM('EB PT 1'!M38:M44)) ->  | K42: =J42 ->  | L42: =IF(VLOOKUP('Essbase Input'!$C$4,Tables!$B$3:$F$7,5,FALSE)="DHMO","",IF(OR('Essbase Input'!$C$4="Golden Rule Insurance Company",'Essbase Input'!$C$4="UnitedHealthcare Life Ins Co"),'EB PT 1'!R29+'EB PT 1'!R35+SUM('EB PT 1'!R38:R44),'EB PT 1'!I29+'EB PT 1'!I35+SUM('EB PT 1'!I38:I44))) -> 0.25 | M42: =L42 -> 0.25 | N42: =IF(VLOOKUP('Essbase Input'!$C$4,Tables!$B$3:$F$7,5,FALSE)="DHMO","",IF(OR('Essbase Input'!$C$4="Golden Rule Insurance Company",'Essbase Input'!$C$4="UnitedHealthcare Life Ins Co"),"",'EB PT 1'!K29+'EB PT 1'!K35+SUM('EB PT 1'!K38:K44))) -> 25653.51 | O42: =N42 -> 25653.51 | P42: =IF(VLOOKUP('Essbase Input'!$C$4,Tables!$B$3:$F$7,5,FALSE)="DHMO","",IF(OR('Essbase Input'!$C$4="Golden Rule Insurance Company",'Essbase Input'!$C$4="UnitedHealthcare Life Ins Co"),"",'EB PT 1'!M29+'EB PT 1'!M35+SUM('EB PT 1'!M38:M44))) -> 5083732.08 | Q42: =P42 -> 5083732.08 | S42: =IF(P42="",0,P42)+IF(N42="",0,N42)+IF(L42="",0,L42)+IF(J42="",0,J42)+IF(H42="",0,H42)+IF(F42="",0,F42) -> 5109385.84 | T42: =+'EB PT 1'!T29+'EB PT 1'!T35+SUM('EB PT 1'!T38:T44) -> 1600398.22 | U42: =+'EB PT 1'!U29+'EB PT 1'!U35+SUM('EB PT 1'!U38:U44) -> 87016.89 | V42: =+('EB PT 1'!V29+'EB PT 1'!V35+SUM('EB PT 1'!V38:V44))+('EB PT 1'!W29+'EB PT 1'!W35+SUM('EB PT 1'!W38:W44))+('EB PT 1'!X29+'EB PT 1'!X35+SUM('EB PT 1'!X38:X44)) -> 0 | W42: =+('EB PT 1'!Z29+'EB PT 1'!Z35+SUM('EB PT 1'!Z38:Z44))+('EB PT 1'!AB29+'EB PT 1'!AB35+SUM('EB PT 1'!AB38:AB44))+('EB PT 1'!Y29+'EB PT 1'!Y35+SUM('EB PT 1'!Y38:Y44))+('EB PT 1'!AA29+'EB PT 1'!AA35+SUM('EB PT 1'!AA38:AA44)) -> 1612049.18 | X42: =+('EB PT 1'!AD29+'EB PT 1'!AD35+SUM('EB PT 1'!AD38:AD44))+('EB PT 1'!AC29+'EB PT 1'!AC35+SUM('EB PT 1'!AC38:AC44))+('EB PT 1'!AE29+'EB PT 1'!AE35+SUM('EB PT 1'!AE38:AE44))+('EB PT 1'!AF29+'EB PT 1'!AF35+SUM('EB PT 1'!AF38:AF44)) -> 2365477.44 | Y42: =+('EB PT 1'!AH29+'EB PT 1'!AH35+SUM('EB PT 1'!AH38:AH44))+('EB PT 1'!AI29+'EB PT 1'!AI35+SUM('EB PT 1'!AI38:AI44))+('EB PT 1'!AJ29+'EB PT 1'!AJ35+SUM('EB PT 1'!AJ38:AJ44))+('EB PT 1'!AG29+'EB PT 1'!AG35+SUM('EB PT 1'!AG38:AG44)) -> 108819772.9 | Z42: =+('EB PT 1'!AK29+'EB PT 1'!AK35+SUM('EB PT 1'!AK38:AK44))+('EB PT 1'!AL29+'EB PT 1'!AL35+SUM('EB PT 1'!AH38:AL44)) -> 27339355.42 | AA42: =+('EB PT 1'!AM29+'EB PT 1'!AM35+SUM('EB PT 1'!AM38:AM44)) -> 11020555.89 | AB42: =+('EB PT 1'!AN29+'EB PT 1'!AN35+SUM('EB PT 1'!AN38:AN44)) -> -815.11 | AC42: =+('EB PT 1'!AO29+'EB PT 1'!AO35+SUM('EB PT 1'!AO38:AO44))-SUM(V42:AB42) -> -27328871.35 | AD42: =SUM(V42:AC42) -> 123827524.4 | AE42: =+'EB PT 1'!S29+'EB PT 1'!S35+SUM('EB PT 1'!S38:S44) -> 130644841.4 | AF42: Sec 2 - 5.6 & Sec 4 (all 4.1-6) & 5.1-2 | AG42: =+'EB PT 1'!AP29+'EB PT 1'!AP32+'EB PT 1'!AP35+SUM('EB PT 1'!AP38:AP44) -> 0 | AH42: =SUM(AG42:AG42) -> 0 | AI42: =ROUND((S42+T42+U42+AC42+V42+W42+X42+Y42+Z42+AA42+AB42)-AE42+AH42,0) -> -20516
C43: 4.5 | D43: Total non-claims costs | F43: =IF(VLOOKUP('Essbase Input'!$C$4,Tables!$B$3:$F$7,5,FALSE)="DPPO","",SUM(SUM(F37:F38)+SUM(F40:F42))) ->  | G43: =IF(VLOOKUP('Essbase Input'!$C$4,Tables!$B$3:$F$7,5,FALSE)="DPPO","",SUM(SUM(G37:G38)+SUM(G40:G42))) ->  | H43: =IF(VLOOKUP('Essbase Input'!$C$4,Tables!$B$3:$F$7,5,FALSE)="DPPO","",SUM(SUM(H37:H38)+SUM(H40:H42))) ->  | I43: =IF(VLOOKUP('Essbase Input'!$C$4,Tables!$B$3:$F$7,5,FALSE)="DPPO","",SUM(SUM(I37:I38)+SUM(I40:I42))) ->  | J43: =IF(VLOOKUP('Essbase Input'!$C$4,Tables!$B$3:$F$7,5,FALSE)="DPPO","",SUM(SUM(J37:J38)+SUM(J40:J42))) ->  | K43: =IF(VLOOKUP('Essbase Input'!$C$4,Tables!$B$3:$F$7,5,FALSE)="DPPO","",SUM(SUM(K37:K38)+SUM(K40:K42))) ->  | L43: =IF(VLOOKUP('Essbase Input'!$C$4,Tables!$B$3:$F$7,5,FALSE)="DHMO","",SUM(SUM(L37:L38)+SUM(L40:L42))) -> 327.55 | M43: =IF(VLOOKUP('Essbase Input'!$C$4,Tables!$B$3:$F$7,5,FALSE)="DHMO","",SUM(SUM(M37:M38)+SUM(M40:M42))) -> 327.55 | N43: =IF(VLOOKUP('Essbase Input'!$C$4,Tables!$B$3:$F$7,5,FALSE)="DHMO","",IF(OR('Essbase Input'!$C$4="Golden Rule Insurance Company",'Essbase Input'!$C$4="UnitedHealthcare Life Ins Co"),"",SUM(SUM(N37:N38)+SUM(N40:N42)))) -> 2019343.22 | O43: =IF(VLOOKUP('Essbase Input'!$C$4,Tables!$B$3:$F$7,5,FALSE)="DHMO","",IF(OR('Essbase Input'!$C$4="Golden Rule Insurance Company",'Essbase Input'!$C$4="UnitedHealthcare Life Ins Co"),"",SUM(SUM(O37:O38)+SUM(O40:O42)))) -> 2019343.22 | P43: =IF(VLOOKUP('Essbase Input'!$C$4,Tables!$B$3:$F$7,5,FALSE)="DHMO","",IF(OR('Essbase Input'!$C$4="Golden Rule Insurance Company",'Essbase Input'!$C$4="UnitedHealthcare Life Ins Co"),"",SUM(SUM(P37:P38)+SUM(P40:P42)))) -> 7825851.49 | Q43: =IF(VLOOKUP('Essbase Input'!$C$4,Tables!$B$3:$F$7,5,FALSE)="DHMO","",IF(OR('Essbase Input'!$C$4="Golden Rule Insurance Company",'Essbase Input'!$C$4="UnitedHealthcare Life Ins Co"),"",SUM(SUM(Q37:Q38)+SUM(Q40:Q42)))) -> 7825851.49 | S43: =IF(P43="",0,P43)+IF(N43="",0,N43)+IF(L43="",0,L43)+IF(J43="",0,J43)+IF(H43="",0,H43)+IF(F43="",0,F43) -> 9845522.26 | T43: =SUM(SUM(T37:T38)+SUM(T40:T42)) -> 2689838.07 | U43: 308867.69 | V43: 0 | W43: 3182447.05 | X43: =SUM(SUM(X37:X38)+SUM(X40:X42)) -> 2405748.67 | Y43: 139766670.8 | Z43: =SUM(SUM(Z37:Z38)+SUM(Z40:Z42)) -> 27340618.47 | AA43: 11415120.16 | AB43: =SUM(SUM(AB37:AB38)+SUM(AB40:AB42)) -> -810.26 | AC43: -27328871.35 | AD43: =SUM(V43:AC43) -> 156780923.6 | AE43: =SUM(SUM(AE37:AE38)+SUM(AE40:AE42)) -> 169643216.9 | AG43: =SUM(SUM(AG37:AG38)+SUM(AG40:AG42)) -> 0 | AH43: =SUM(AG43:AG43) -> 0 | AI43: =SUM(SUM(AI37:AI38)+SUM(AI40:AI42)) -> -18065
B45: 5. | C45: Other Indicators or information
C46: 5.1 | D46: Number of covered lives | F46: =IF(VLOOKUP('Essbase Input'!$C$4,Tables!$B$3:$F$7,5,FALSE)="DPPO","",'EB PT 1'!I45) ->  | G46: =F46 ->  | H46: =IF(VLOOKUP('Essbase Input'!$C$4,Tables!$B$3:$F$7,5,FALSE)="DPPO","",'EB PT 1'!K45) ->  | I46: =H46 ->  | J46: =IF(VLOOKUP('Essbase Input'!$C$4,Tables!$B$3:$F$7,5,FALSE)="DPPO","",'EB PT 1'!M45) ->  | K46: =J46 ->  | L46: =IF(VLOOKUP('Essbase Input'!$C$4,Tables!$B$3:$F$7,5,FALSE)="DHMO","",IF(OR('Essbase Input'!$C$4="Golden Rule Insurance Company",'Essbase Input'!$C$4="UnitedHealthcare Life Ins Co"),'EB PT 1'!R45,'EB PT 1'!I45)) -> 0 | M46: =L46 -> 0 | N46: =IF(VLOOKUP('Essbase Input'!$C$4,Tables!$B$3:$F$7,5,FALSE)="DHMO","",IF(OR('Essbase Input'!$C$4="Golden Rule Insurance Company",'Essbase Input'!$C$4="UnitedHealthcare Life Ins Co"),"",'EB PT 1'!K45)) -> 36656 | O46: =N46 -> 36656 | P46: =IF(VLOOKUP('Essbase Input'!$C$4,Tables!$B$3:$F$7,5,FALSE)="DHMO","",IF(OR('Essbase Input'!$C$4="Golden Rule Insurance Company",'Essbase Input'!$C$4="UnitedHealthcare Life Ins Co"),"",'EB PT 1'!M45)) -> 101492 | Q46: =P46 -> 101492 | S46: =IF(P46="",0,P46)+IF(N46="",0,N46)+IF(L46="",0,L46)+IF(J46="",0,J46)+IF(H46="",0,H46)+IF(F46="",0,F46) -> 138148 | T46: =+'EB PT 1'!T45 -> 267558 | U46: =+'EB PT 1'!U45 -> 837 | V46: =+'EB PT 1'!V45+'EB PT 1'!W45+'EB PT 1'!X45 -> 0 | W46: =+'EB PT 1'!Z45+'EB PT 1'!AB45+'EB PT 1'!Y45+'EB PT 1'!AA45 -> 84023 | X46: =+'EB PT 1'!AD45+'EB PT 1'!AC45+'EB PT 1'!AE45+'EB PT 1'!AF45 -> 30859 | Y46: =+'EB PT 1'!AH45+'EB PT 1'!AI45+'EB PT 1'!AJ45+'EB PT 1'!AG45 -> 9173 | Z46: =+'EB PT 1'!AK45+'EB PT 1'!AL45 -> 0 | AA46: =+'EB PT 1'!AM45 -> 0 | AB46: =+'EB PT 1'!AN45 -> 0 | AC46: =+'EB PT 1'!AO45-SUM(V46:AB46) -> 360949 | AD46: =SUM(V46:AC46) -> 485004 | AE46: =+'EB PT 1'!S45 -> 891547 | AF46: Sec 2 - 7.2 | AG46: =+'EB PT 1'!AP45 -> 0 | AH46: =SUM(AG46:AG46) -> 0 | AI46: =ROUND((S46+T46+U46+AC46+V46+W46+X46+Y46+Z46+AA46+AB46)-AE46+AH46,0) -> 0
C47: 5.2 | D47: Member months | F47: =IF(VLOOKUP('Essbase Input'!$C$4,Tables!$B$3:$F$7,5,FALSE)="DPPO","",ROUND('EB PT 1'!I46,0)) ->  | G47: =F47 ->  | H47: =IF(VLOOKUP('Essbase Input'!$C$4,Tables!$B$3:$F$7,5,FALSE)="DPPO","",ROUND('EB PT 1'!K46,0)) ->  | I47: =H47 ->  | J47: =IF(VLOOKUP('Essbase Input'!$C$4,Tables!$B$3:$F$7,5,FALSE)="DPPO","",ROUND('EB PT 1'!M46,0)) ->  | K47: =J47 ->  | L47: =IF(VLOOKUP('Essbase Input'!$C$4,Tables!$B$3:$F$7,5,FALSE)="DHMO","",IF(OR('Essbase Input'!$C$4="Golden Rule Insurance Company",'Essbase Input'!$C$4="UnitedHealthcare Life Ins Co"),'EB PT 1'!R46,ROUND('EB PT 1'!I46,0))) -> 0 | M47: =L47 -> 0 | N47: =IF(VLOOKUP('Essbase Input'!$C$4,Tables!$B$3:$F$7,5,FALSE)="DHMO","",IF(OR('Essbase Input'!$C$4="Golden Rule Insurance Company",'Essbase Input'!$C$4="UnitedHealthcare Life Ins Co"),"",ROUND('EB PT 1'!K46,0))) -> 409116 | O47: =N47 -> 409116 | P47: =IF(VLOOKUP('Essbase Input'!$C$4,Tables!$B$3:$F$7,5,FALSE)="DHMO","",IF(OR('Essbase Input'!$C$4="Golden Rule Insurance Company",'Essbase Input'!$C$4="UnitedHealthcare Life Ins Co"),"",ROUND('EB PT 1'!M46,0))) -> 995388 | Q47: =P47 -> 995388 | S47: =IF(P47="",0,P47)+IF(N47="",0,N47)+IF(L47="",0,L47)+IF(J47="",0,J47)+IF(H47="",0,H47)+IF(F47="",0,F47) -> 1404504 | T47: =ROUND('EB PT 1'!T46,0) -> 3205187 | U47: =ROUND('EB PT 1'!U46,0) -> 89923 | V47: =ROUND('EB PT 1'!V46,0)+ROUND('EB PT 1'!W46,0)+ROUND('EB PT 1'!X46,0) -> 0 | W47: =ROUND('EB PT 1'!Z46,0)+ROUND('EB PT 1'!AB46,0)+ROUND('EB PT 1'!Y46,0)+ROUND('EB PT 1'!AA46,0) -> 1014865 | X47: =ROUND('EB PT 1'!AD46,0)+ROUND('EB PT 1'!AC46,0)+ROUND('EB PT 1'!AE46,0)+ROUND('EB PT 1'!AF46,0) -> 388681 | Y47: =ROUND('EB PT 1'!AH46,0)+ROUND('EB PT 1'!AI46,0)+ROUND('EB PT 1'!AJ46,0)+ROUND('EB PT 1'!AG46,0) -> 116912 | Z47: =ROUND('EB PT 1'!AK46,0)+ROUND('EB PT 1'!AL46,0) -> 0 | AA47: =ROUND('EB PT 1'!AM46,0) -> 0 | AB47: =ROUND('EB PT 1'!AN46,0) -> 0 | AC47: =ROUND('EB PT 1'!AO46,0)-SUM(V47:AB47) -> 4193010 | AD47: =SUM(V47:AC47) -> 5713468 | AE47: =ROUND('EB PT 1'!S46,0) -> 10413082 | AF47: Sec 2 - 7.4 | AG47: =ROUND('EB PT 1'!AP46,0) -> 0 | AH47: =SUM(AG47:AG47) -> 0 | AI47: =ROUND((S47+T47+U47+AC47+V47+W47+X47+Y47+Z47+AA47+AB47)-AE47+AH47,0) -> 0
C48: 5.3 | D48: Number of life-years | F48: =IF(VLOOKUP('Essbase Input'!$C$4,Tables!$B$3:$F$7,5,FALSE)="DPPO","",F47/12) ->  | G48: =IF(VLOOKUP('Essbase Input'!$C$4,Tables!$B$3:$F$7,5,FALSE)="DPPO","",G47/12) ->  | H48: =IF(VLOOKUP('Essbase Input'!$C$4,Tables!$B$3:$F$7,5,FALSE)="DPPO","",H47/12) ->  | I48: =IF(VLOOKUP('Essbase Input'!$C$4,Tables!$B$3:$F$7,5,FALSE)="DPPO","",I47/12) ->  | J48: =IF(VLOOKUP('Essbase Input'!$C$4,Tables!$B$3:$F$7,5,FALSE)="DPPO","",J47/12) ->  | K48: =IF(VLOOKUP('Essbase Input'!$C$4,Tables!$B$3:$F$7,5,FALSE)="DPPO","",K47/12) ->  | L48: =IF(VLOOKUP('Essbase Input'!$C$4,Tables!$B$3:$F$7,5,FALSE)="DHMO","",L47/12) -> 0 | M48: =IF(VLOOKUP('Essbase Input'!$C$4,Tables!$B$3:$F$7,5,FALSE)="DHMO","",M47/12) -> 0 | N48: =IF(VLOOKUP('Essbase Input'!$C$4,Tables!$B$3:$F$7,5,FALSE)="DHMO","",IF(OR('Essbase Input'!$C$4="Golden Rule Insurance Company",'Essbase Input'!$C$4="UnitedHealthcare Life Ins Co"),"",N47/12)) -> 34093 | O48: =IF(VLOOKUP('Essbase Input'!$C$4,Tables!$B$3:$F$7,5,FALSE)="DHMO","",IF(OR('Essbase Input'!$C$4="Golden Rule Insurance Company",'Essbase Input'!$C$4="UnitedHealthcare Life Ins Co"),"",O47/12)) -> 34093 | P48: =IF(VLOOKUP('Essbase Input'!$C$4,Tables!$B$3:$F$7,5,FALSE)="DHMO","",IF(OR('Essbase Input'!$C$4="Golden Rule Insurance Company",'Essbase Input'!$C$4="UnitedHealthcare Life Ins Co"),"",P47/12)) -> 82949 | Q48: =IF(VLOOKUP('Essbase Input'!$C$4,Tables!$B$3:$F$7,5,FALSE)="DHMO","",IF(OR('Essbase Input'!$C$4="Golden Rule Insurance Company",'Essbase Input'!$C$4="UnitedHealthcare Life Ins Co"),"",Q47/12)) -> 82949 | S48: =IF(P48="",0,P48)+IF(N48="",0,N48)+IF(L48="",0,L48)+IF(J48="",0,J48)+IF(H48="",0,H48)+IF(F48="",0,F48) -> 117042 | T48: =T47/12 -> 267098.9167 | U48: 7493.583333 | V48: 0 | W48: 84572.08333 | X48: =X47/12 -> 32390.08333 | Y48: 9742.666667 | Z48: =Z47/12 -> 0 | AA48: 0 | AB48: =AB47/12 -> 0 | AC48: 349417.5 | AD48: =SUM(V48:AC48) -> 476122.3333 | AE48: =AE47/12 -> 867756.8333 | AF48: Sec 2 - 7.5 | AG48: =AG47/12 -> 0 | AH48: =SUM(AG48:AG48) -> 0 | AI48: =ROUND((S48+T48+U48+AC48+V48+W48+X48+Y48+Z48+AA48+AB48)-AE48+AH48,0) -> 0
F49: =CONCATENATE("Grand Total as of 12/31/",RIGHT('EB PT 1'!I11,2)," for ALL markets in col. 1-12") -> Grand Total as of 12/31/17 for ALL markets in col. 1-12
B51: 6. | C51: Net investment income and other gain / (loss) | F51: =-'EB PT 1'!Q49 -> 673739.42
B52: 7. | C52: Other Federal income taxes (exclude taxes on Line 3.1a and 3.1b) | F52: =-'EB PT 1'!Q50 -> 0
B54: Cell Keys:
C55: Blank cells require input from Health plan or Health insurer
C56: Grey cells require no data input
C57: Pink cells require no data input - locked down
C58: Blue cells: computed cell (formula cell)
A60: Business Rules:
D61: Line 1.1 | F61: =+F20 ->  | G61: =+G20 ->  | L61: 2802.08 | M61: 0 | N61: 16768561.83 | O61: 16796596.57 | P61: 36717063.76 | Q61: 36731721.66 | S61: 53488427.67 | T61: 13781195.58 | U61: 1962290.72 | V61: =+V20 -> 0 | W61: 32317971.22 | X61: 6139364.93 | Y61: 808164871.7 | Z61: 152168 | AA61: 163672167.1 | AB61: 1183 | AC61: 259590.1 | AE61: 1079888458 | AG61: 0 | AH61: 0 | AI61: 50772
D62: Line 2.1 | F62: =+F23 ->  | G62: =+G23 ->  | L62: 2318.35 | M62: 2517 | N62: 9261613.64 | O62: 9257288.45 | P62: 28372068.01 | Q62: 28383427.83 | S62: 37636000 | T62: 7044731.85 | U62: 1481723.14 | V62: =+V23 -> 0 | W62: 27927366.15 | X62: 3794940.64 | Y62: 683749908.4 | Z62: 30031.58 | AA62: 168762806.3 | AB62: -4054.22 | AC62: -628.7099997 | AE62: 930422825.1 | AG62: 0 | AH62: 0 | AI62: 0
D63: Line 4.5 | F63: =+F43 ->  | G63: =+G43 ->  | L63: 327.55 | M63: 327.55 | N63: 2019343.22 | O63: 2019343.22 | P63: 7825851.49 | Q63: 7825851.49 | S63: 9845522.26 | T63: 2689838.07 | U63: 308867.69 | V63: =+V43 -> 0 | W63: 3182447.05 | X63: 2405748.67 | Y63: 139766670.8 | Z63: 27340618.47 | AA63: 11415120.16 | AB63: -810.26 | AC63: -27328871.35 | AE63: 169643216.9 | AG63: 0 | AH63: 0 | AI63: -18065
D64: Member Months (Line 5.2) | F64: =+F47 ->  | G64: =+G47 ->  | L64: 0 | M64: 0 | N64: 409116 | O64: 409116 | P64: 995388 | Q64: 995388 | S64: 1404504 | T64: 3205187 | U64: 89923 | V64: =+V47 -> 0 | W64: 1014865 | X64: 388681 | Y64: 116912 | Z64: 0 | AA64: 0 | AB64: 0 | AC64: 4193010 | AE64: 10413082 | AG64: 0 | AH64: 0 | AI64: 0
A65: =IF(AJ65=0,"",IF(AJ65=1,AJ65&" FAILURE",AJ65&" FAILURES")) -> 6 FAILURES | D65: Question 1: Why is there not data on all of the following lines: 1.1, 2.1, 4.5, & Other Indicators Line 5.2? | F65: =IF(OR(SUM(F66:F69)=0,SUM(F66:F69)=4),"PASS","FAIL") -> PASS | G65: =IF(OR(SUM(G66:G69)=0,SUM(G66:G69)=4),"PASS","FAIL") -> PASS | H65: PASS | I65: PASS | J65: PASS | K65: PASS | L65: FAIL | M65: FAIL | N65: PASS | O65: PASS | P65: PASS | Q65: PASS | S65: PASS | T65: PASS | U65: PASS | V65: =IF(OR(SUM(V66:V69)=0,SUM(V66:V69)=4),"PASS","FAIL") -> PASS | W65: PASS | X65: PASS | Y65: PASS | Z65: FAIL | AA65: FAIL | AB65: FAIL | AC65: PASS | AE65: PASS | AG65: PASS | AH65: PASS | AI65: FAIL | AJ65: =COUNTIF(F65:AI65,"FAIL") -> 6 | AK65: =IF(AJ65>0,"x","") -> x
F66: =IF(ISNUMBER(F61),IF(F61<>0,1,0),0) -> 0 | G66: =IF(ISNUMBER(G61),IF(G61<>0,1,0),0) -> 0 | H66: 0 | I66: 0 | J66: 0 | K66: 0 | L66: 1 | M66: 0 | N66: 1 | O66: 1 | P66: 1 | Q66: 1 | S66: 1 | T66: 1 | U66: 1 | V66: =IF(ISNUMBER(V61),IF(V61<>0,1,0),0) -> 0 | W66: 1 | X66: 1 | Y66: 1 | Z66: 1 | AA66: 1 | AB66: 1 | AC66: 1 | AE66: 1 | AG66: 0 | AH66: 0 | AI66: 1
F67: =IF(ISNUMBER(F62),IF(F62<>0,1,0),0) -> 0 | G67: 0 | H67: 0 | I67: 0 | J67: 0 | K67: 0 | L67: 1 | M67: 1 | N67: 1 | O67: 1 | P67: 1 | Q67: 1 | S67: 1 | T67: 1 | U67: 1 | V67: =IF(ISNUMBER(V62),IF(V62<>0,1,0),0) -> 0 | W67: 1 | X67: 1 | Y67: 1 | Z67: 1 | AA67: 1 | AB67: 1 | AC67: 1 | AE67: 1 | AG67: 0 | AH67: 0 | AI67: 0
F68: 0 | G68: 0 | H68: 0 | I68: 0 | J68: 0 | K68: 0 | L68: 1 | M68: 1 | N68: 1 | O68: 1 | P68: 1 | Q68: 1 | S68: 1 | T68: 1 | U68: 1 | V68: =IF(ISNUMBER(V63),IF(V63<>0,1,0),0) -> 0 | W68: 1 | X68: 1 | Y68: 1 | Z68: 1 | AA68: 1 | AB68: 1 | AC68: 1 | AE68: 1 | AG68: 0 | AH68: 0 | AI68: 1
F69: 0 | G69: 0 | H69: 0 | I69: 0 | J69: 0 | K69: 0 | L69: 0 | M69: 0 | N69: 1 | O69: 1 | P69: 1 | Q69: 1 | S69: 1 | T69: 1 | U69: 1 | V69: =IF(ISNUMBER(V64),IF(V64<>0,1,0),0) -> 0 | W69: 1 | X69: 1 | Y69: 1 | Z69: 0 | AA69: 0 | AB69: 0 | AC69: 1 | AE69: 1 | AG69: 0 | AH69: 0 | AI69: 0
D71: Line 3.1 | F71: =+F26 -> 0 | G71: =+G26 -> 0 | H71: 0 | I71: 0 | J71: 0 | K71: 0 | L71: 0 | M71: 0 | N71: 0 | O71: 0 | P71: 0 | Q71: 0 | S71: 0 | T71: 0 | U71: 0 | V71: =+V26 -> 0 | W71: 0 | X71: 0 | Y71: 0 | Z71: 0 | AA71: 0 | AB71: 0 | AC71: 0 | AE71: 0 | AG71: 0 | AH71: 0 | AI71: 0
D72: Underwritting Gain/(Loss) | F72: =IF(ISNUMBER(F20-F23-F34-F43),F20-F23-F34-F43,0) -> 0 | G72: =IF(ISNUMBER(G20-G23-G34-G43),G20-G23-G34-G43,0) -> 0 | H72: 0 | I72: 0 | J72: 0 | K72: 0 | L72: 156.08 | M72: -2844.65 | N72: 5468092.24 | O72: 5500452.17 | P72: -1879707.65 | Q72: -1876409.57 | S72: 3588540.67 | T72: 2647034.62 | U72: -31375.06 | V72: =IF(ISNUMBER(V20-V23-V34-V43),V20-V23-V34-V43,0) -> 0 | W72: 528615.89 | X72: 145746.65 | Y72: 7810275.75 | Z72: -27305016.33 | AA72: -11699170.16 | AB72: -116732.26 | AC72: 27492539.6 | AE72: 3013312.05 | AG72: 0 | AH72: 0 | AI72: 47147
A73: =IF(AJ73=0,"",IF(AJ73=1,AJ73&" FAILURE",AJ73&" FAILURES")) ->  | D73: Question 2: Why is there federal tax data on Line 3.1, but no underwriting gain/loss? | F73: =IF(AND(F71<>0,F72=0),"FAIL","PASS") -> PASS | G73: =IF(AND(G71<>0,G72=0),"FAIL","PASS") -> PASS | H73: PASS | I73: PASS | J73: PASS | K73: PASS | L73: PASS | M73: PASS | N73: PASS | O73: PASS | P73: PASS | Q73: PASS | S73: PASS | T73: PASS | U73: PASS | V73: =IF(AND(V71<>0,V72=0),"FAIL","PASS") -> PASS | W73: PASS | X73: PASS | Y73: PASS | Z73: PASS | AA73: PASS | AB73: PASS | AC73: PASS | AE73: PASS | AG73: PASS | AH73: PASS | AI73: PASS | AJ73: =COUNTIF(F73:AI73,"FAIL") -> 0 | AK73: =IF(AJ73>0,"x","") -> 
D75: Covered Lives (Line 5.1) | F75: =+F46 ->  | G75: =+G46 ->  | L75: 0 | M75: 0 | N75: 36656 | O75: 36656 | P75: 101492 | Q75: 101492 | S75: 138148 | T75: 267558 | U75: 837 | V75: =+V46 -> 0 | W75: 84023 | X75: 30859 | Y75: 9173 | Z75: 0 | AA75: 0 | AB75: 0 | AC75: 360949 | AE75: 891547 | AG75: 0 | AH75: 0 | AI75: 0
D76: Member Months (Line 5.2) | F76: =+F47 ->  | L76: 0 | M76: 0 | N76: 409116 | O76: 409116 | P76: 995388 | Q76: 995388 | S76: 1404504 | T76: 3205187 | U76: 89923 | V76: =+V47 -> 0 | W76: 1014865 | X76: 388681 | Y76: 116912 | Z76: 0 | AA76: 0 | AB76: 0 | AC76: 4193010 | AE76: 10413082 | AG76: 0 | AH76: 0 | AI76: 0
A77: =IF(AJ77=0,"",IF(AJ77=1,AJ77&" FAILURE",AJ77&" FAILURES")) ->  | D77: Question 3: Why is there not data for both covered lives (Line 5.1) and member months (Line 5.2)? | F77: =IF(OR(AND(F75=0,F76<>0),AND(F76=0,F75<>0)),"FAIL","PASS") -> PASS | G77: =IF(OR(AND(G75=0,G76<>0),AND(G76=0,G75<>0)),"FAIL","PASS") -> PASS | H77: PASS | I77: PASS | J77: PASS | K77: PASS | L77: PASS | M77: PASS | N77: PASS | O77: PASS | P77: PASS | Q77: PASS | S77: PASS | T77: PASS | U77: PASS | V77: =IF(OR(AND(V75=0,V76<>0),AND(V76=0,V75<>0)),"FAIL","PASS") -> PASS | W77: PASS | X77: PASS | Y77: PASS | Z77: PASS | AA77: PASS | AB77: PASS | AC77: PASS | AE77: PASS | AG77: PASS | AH77: PASS | AI77: PASS | AJ77: =COUNTIF(F77:AI77,"FAIL") -> 0 | AK77: =IF(AJ77>0,"x","") -> 
D79: Covered Lives (Line 5.1) | F79: =+F46 ->  | G79: =+G46 ->  | L79: 0 | M79: 0 | N79: 36656 | O79: 36656 | P79: 101492 | Q79: 101492 | S79: 138148 | T79: 267558 | U79: 837 | V79: =+V46 -> 0 | W79: 84023 | X79: 30859 | Y79: 9173 | Z79: 0 | AA79: 0 | AB79: 0 | AC79: 360949 | AE79: 891547 | AG79: 0 | AH79: 0 | AI79: 0
D80: Member Months (Line 5.2) | F80: =+F47 ->  | L80: 0 | M80: 0 | N80: 409116 | O80: 409116 | P80: 995388 | Q80: 995388 | S80: 1404504 | T80: 3205187 | U80: 89923 | V80: =+V47 -> 0 | W80: 1014865 | X80: 388681 | Y80: 116912 | Z80: 0 | AA80: 0 | AB80: 0 | AC80: 4193010 | AE80: 10413082 | AG80: 0 | AH80: 0 | AI80: 0
D81: Life Years (Line 5.3) | F81: =+F48 ->  | L81: 0 | M81: 0 | N81: 34093 | O81: 34093 | P81: 82949 | Q81: 82949 | S81: 117042 | T81: 267098.9167 | U81: 7493.583333 | V81: =+V48 -> 0 | W81: 84572.08333 | X81: 32390.08333 | Y81: 9742.666667 | Z81: 0 | AA81: 0 | AB81: 0 | AC81: 349417.5 | AE81: 867756.8333 | AG81: 0 | AH81: 0 | AI81: 0
A82: =IF(AJ82=0,"",IF(AJ82=1,AJ82&" FAILURE",AJ82&" FAILURES")) ->  | D82: Question 4: Why is a membership indicator negative? | F82: =IF(OR(F79<0,F80<0,F81<0),"FAIL","PASS") -> PASS | G82: =IF(OR(G79<0,G80<0,G81<0),"FAIL","PASS") -> PASS | H82: PASS | I82: PASS | J82: PASS | K82: PASS | L82: PASS | M82: PASS | N82: PASS | O82: PASS | P82: PASS | Q82: PASS | S82: PASS | T82: PASS | U82: PASS | V82: =IF(OR(V79<0,V80<0,V81<0),"FAIL","PASS") -> PASS | W82: PASS | X82: PASS | Y82: PASS | Z82: PASS | AA82: PASS | AB82: PASS | AC82: PASS | AE82: PASS | AG82: PASS | AH82: PASS | AI82: PASS | AJ82: =COUNTIF(F82:AI82,"FAIL") -> 0 | AK82: =IF(AJ82>0,"x","") -> 

Sheet Pt 1 Summary of Data - Adj (hidden)
B1: UHG Adjustments
B5: Health Plan ID | I5: Federal Tax Exempt
B6: ='Cover Page'!C7 ->  | F6: Part 1 | I6: ='Cover Page'!C10 -> No
B7: Legal Name
B8: ='Cover Page'!C8 -> UnitedHealthcare Insurance Company
B9: dBA
B10: ='Cover Page'!C9 -> N/A
B11: MLR Reporting Year
B12: ='Cover Page'!C6 -> 2017
F14: Health Insurance Coverage | L14: Health Insurance Coverage | T14: UHG Other Health Reconciliation
F15: DHMO Products | L15: DPPO & Indemnity Products | T15: Vision | U15: Life/Disability | V15: Stop Loss | W15: Stop Loss | X15: Supp Hospital | Y15: Medicare Supp | Z15: Student Health | AA15: Wrap | AB15: Ind Short Term | AC15: Other Health | AD15: Total Other Health | AE15: Corporate
F16: Individual | H16: Small Group | J16: Large Group | L16: Individual | N16: Small Group | P16: Large Group | V16: Prdct Range 322000 | W16: Prdct Range 150000 | X16: Prdct Range 204000 | Y16: Prdct Range 203000 | Z16: Prdct Rng 112/3000 | AA16: Prdct 202080 | AB16: Prdct 106410 | AE16: Market OU
B17: Part 1 NOTE: REFER TO MLR INSTRUCTIONS FOR IMPORTANT INFORMATION ABOUT COMPLETING EACH COLUMN AND ROW. | F17: ="Total as of 12/31/"&RIGHT('Essbase Input'!C13,2) -> Total as of 12/31/17 | G17: ="Total as of 3/31/"&RIGHT('Essbase Input'!C12,2) -> Total as of 3/31/18 | H17: =+$F$17 -> Total as of 12/31/17 | I17: =+$G$17 -> Total as of 3/31/18 | J17: =+$F$17 -> Total as of 12/31/17 | K17: =+$G$17 -> Total as of 3/31/18 | L17: =+$F$17 -> Total as of 12/31/17 | M17: =+$G$17 -> Total as of 3/31/18 | N17: =+$F$17 -> Total as of 12/31/17 | O17: =+$G$17 -> Total as of 3/31/18 | P17: =+$F$17 -> Total as of 12/31/17 | Q17: =+$G$17 -> Total as of 3/31/18 | T17: =+$F$17 -> Total as of 12/31/17 | U17: Total as of 12/31/17 | V17: Total as of 12/31/17 | W17: Total as of 12/31/17 | X17: Total as of 12/31/17 | Y17: Total as of 12/31/17 | Z17: Total as of 12/31/17 | AA17: Total as of 12/31/17 | AB17: Total as of 12/31/17 | AC17: Total as of 12/31/17 | AD17: Total as of 12/31/17
F18: 1 | G18: 2 | H18: 3 | I18: 4 | J18: 5 | K18: 6 | L18: 7 | M18: 8 | N18: 9 | O18: 10 | P18: 11 | Q18: 12
B19: 1. | C19: Premium
C20: 1.1 | D20: Total direct premium earned | F20: =+'Pt 2 Premium and Claims - Adj'!F21+'Pt 2 Premium and Claims - Adj'!F22-'Pt 2 Premium and Claims - Adj'!F23-'Pt 2 Premium and Claims - Adj'!F24 -> 0 | G20: =+'Pt 2 Premium and Claims - Adj'!G21+'Pt 2 Premium and Claims - Adj'!G22-'Pt 2 Premium and Claims - Adj'!G23-'Pt 2 Premium and Claims - Adj'!G24 -> 0 | H20: =+'Pt 2 Premium and Claims - Adj'!H21+'Pt 2 Premium and Claims - Adj'!H22-'Pt 2 Premium and Claims - Adj'!H23-'Pt 2 Premium and Claims - Adj'!H24 -> 0 | I20: =+'Pt 2 Premium and Claims - Adj'!I21+'Pt 2 Premium and Claims - Adj'!I22-'Pt 2 Premium and Claims - Adj'!I23-'Pt 2 Premium and Claims - Adj'!I24 -> 0 | J20: =+'Pt 2 Premium and Claims - Adj'!J21+'Pt 2 Premium and Claims - Adj'!J22-'Pt 2 Premium and Claims - Adj'!J23-'Pt 2 Premium and Claims - Adj'!J24 -> 0 | K20: =+'Pt 2 Premium and Claims - Adj'!K21+'Pt 2 Premium and Claims - Adj'!K22-'Pt 2 Premium and Claims - Adj'!K23-'Pt 2 Premium and Claims - Adj'!K24 -> 0 | L20: =+'Pt 2 Premium and Claims - Adj'!L21+'Pt 2 Premium and Claims - Adj'!L22-'Pt 2 Premium and Claims - Adj'!L23-'Pt 2 Premium and Claims - Adj'!L24 -> -2802.08 | M20: =+'Pt 2 Premium and Claims - Adj'!M21+'Pt 2 Premium and Claims - Adj'!M22-'Pt 2 Premium and Claims - Adj'!M23-'Pt 2 Premium and Claims - Adj'!M24 -> 0 | N20: =+'Pt 2 Premium and Claims - Adj'!N21+'Pt 2 Premium and Claims - Adj'!N22-'Pt 2 Premium and Claims - Adj'!N23-'Pt 2 Premium and Claims - Adj'!N24 -> 194050.14 | O20: =+'Pt 2 Premium and Claims - Adj'!O21+'Pt 2 Premium and Claims - Adj'!O22-'Pt 2 Premium and Claims - Adj'!O23-'Pt 2 Premium and Claims - Adj'!O24 -> -50922.83 | P20: =+'Pt 2 Premium and Claims - Adj'!P21+'Pt 2 Premium and Claims - Adj'!P22-'Pt 2 Premium and Claims - Adj'!P23-'Pt 2 Premium and Claims - Adj'!P24 -> -138508.36 | Q20: =+'Pt 2 Premium and Claims - Adj'!Q21+'Pt 2 Premium and Claims - Adj'!Q22-'Pt 2 Premium and Claims - Adj'!Q23-'Pt 2 Premium and Claims - Adj'!Q24 -> 106491.84 | AD20: =SUM(V20:AC20) -> 0
B22: 2. | C22: Claims
C23: 2.1 | D23: Total incurred claims (MLR Form Part 2, Line 2.11) | F23: ='Pt 2 Premium and Claims - Adj'!F50 -> 0 | G23: ='Pt 2 Premium and Claims - Adj'!G50 -> 0 | H23: ='Pt 2 Premium and Claims - Adj'!H50 -> 0 | I23: ='Pt 2 Premium and Claims - Adj'!I50 -> 0 | J23: ='Pt 2 Premium and Claims - Adj'!J50 -> 0 | K23: ='Pt 2 Premium and Claims - Adj'!K50 -> 0 | L23: ='Pt 2 Premium and Claims - Adj'!L50 -> -2318.35 | M23: ='Pt 2 Premium and Claims - Adj'!M50 -> -2517 | N23: ='Pt 2 Premium and Claims - Adj'!N50 -> 45752.37 | O23: ='Pt 2 Premium and Claims - Adj'!O50 -> -21315.2 | P23: ='Pt 2 Premium and Claims - Adj'!P50 -> -45752.37 | Q23: ='Pt 2 Premium and Claims - Adj'!Q50 -> 42251.13 | AD23: =SUM(V23:AC23) -> 0
B25: 3. | C25: Federal and State Taxes and Licensing or Regulatory Fees
C26: 3.1 | D26: Federal taxes and assessments incurred by the reporting health plan or health insurer during the MLR reporting year
D27: 3.1 a Federal income taxes deductible from premium in MLR calculations | N27: 1307509.862 | O27: 1307509.862 | P27: -1644285.391 | Q27: -1644285.391 | AD27: =SUM(V27:AC27) -> 0
D28: 3.1 b Other Federal Taxes (other than income tax) and assessments deductible from premium | AD28: =SUM(V28:AC28) -> 0
C29: 3.2 | D29: State insurance, premium and other taxes incurred by the reporting health plan or heath insurer during the MLR reporting year (deductible from premium in MLR calculation)
D30: 3.2 a State income, excise, business, and other taxes | AD30: =SUM(V30:AC30) -> 0
D31: 3.2 b State premium taxes | AD31: =SUM(V31:AC31) -> 0
D32: 3.2 c Community benefit expenditures | AD32: =SUM(V32:AC32) -> 0
C33: 3.3 | D33: Regulatory authority licenses and fees | AD33: =SUM(V33:AC33) -> 0
C34: 3.4 | D34: Total Federal and State Taxes and fees to be excluded from premium | F34: =IF(VLOOKUP('Essbase Input'!$C$4,Tables!$B$3:$F$7,5,FALSE)="DPPO","",SUM(F$27:F$28,F$30,F$33+IF($I$6="No",IF(MAX(F$31:F$32)=0,MIN(F$31:F$32),MAX(F$31:F$32)),SUM(F$31:F$32)))) ->  | G34: =IF(VLOOKUP('Essbase Input'!$C$4,Tables!$B$3:$F$7,5,FALSE)="DPPO","",SUM(G$27:G$28,G$30,G$33+IF($I$6="No",IF(MAX(G$31:G$32)=0,MIN(G$31:G$32),MAX(G$31:G$32)),SUM(G$31:G$32)))) ->  | H34: =IF(VLOOKUP('Essbase Input'!$C$4,Tables!$B$3:$F$7,5,FALSE)="DPPO","",SUM(H$27:H$28,H$30,H$33+IF($I$6="No",IF(MAX(H$31:H$32)=0,MIN(H$31:H$32),MAX(H$31:H$32)),SUM(H$31:H$32)))) ->  | I34: =IF(VLOOKUP('Essbase Input'!$C$4,Tables!$B$3:$F$7,5,FALSE)="DPPO","",SUM(I$27:I$28,I$30,I$33+IF($I$6="No",IF(MAX(I$31:I$32)=0,MIN(I$31:I$32),MAX(I$31:I$32)),SUM(I$31:I$32)))) ->  | J34: =IF(VLOOKUP('Essbase Input'!$C$4,Tables!$B$3:$F$7,5,FALSE)="DPPO","",SUM(J$27:J$28,J$30,J$33+IF($I$6="No",IF(MAX(J$31:J$32)=0,MIN(J$31:J$32),MAX(J$31:J$32)),SUM(J$31:J$32)))) ->  | K34: =IF(VLOOKUP('Essbase Input'!$C$4,Tables!$B$3:$F$7,5,FALSE)="DPPO","",SUM(K$27:K$28,K$30,K$33+IF($I$6="No",IF(MAX(K$31:K$32)=0,MIN(K$31:K$32),MAX(K$31:K$32)),SUM(K$31:K$32)))) ->  | L34: =IF(VLOOKUP('Essbase Input'!$C$4,Tables!$B$3:$F$7,5,FALSE)="DHMO","",SUM(L$27:L$28,L$30,L$33+IF($I$6="No",IF(MAX(L$31:L$32)=0,MIN(L$31:L$32),MAX(L$31:L$32)),SUM(L$31:L$32)))) -> 0 | M34: =IF(VLOOKUP('Essbase Input'!$C$4,Tables!$B$3:$F$7,5,FALSE)="DHMO","",SUM(M$27:M$28,M$30,M$33+IF($I$6="No",IF(MAX(M$31:M$32)=0,MIN(M$31:M$32),MAX(M$31:M$32)),SUM(M$31:M$32)))) -> 0 | N34: =IF(VLOOKUP('Essbase Input'!$C$4,Tables!$B$3:$F$7,5,FALSE)="DHMO","",IF(OR('Essbase Input'!$C$4="Golden Rule Insurance Company",'Essbase Input'!$C$4="UnitedHealthcare Life Ins Co"),"",SUM(N$27:N$28,N$30,N$33+IF($I$6="No",IF(MAX(N$31:N$32)=0,MIN(N$31:N$32),MAX(N$31:N$32)),SUM(N$31:N$32))))) -> 1307509.862 | O34: =IF(VLOOKUP('Essbase Input'!$C$4,Tables!$B$3:$F$7,5,FALSE)="DHMO","",IF(OR('Essbase Input'!$C$4="Golden Rule Insurance Company",'Essbase Input'!$C$4="UnitedHealthcare Life Ins Co"),"",SUM(O$27:O$28,O$30,O$33+IF($I$6="No",IF(MAX(O$31:O$32)=0,MIN(O$31:O$32),MAX(O$31:O$32)),SUM(O$31:O$32))))) -> 1307509.862 | P34: =IF(VLOOKUP('Essbase Input'!$C$4,Tables!$B$3:$F$7,5,FALSE)="DHMO","",IF(OR('Essbase Input'!$C$4="Golden Rule Insurance Company",'Essbase Input'!$C$4="UnitedHealthcare Life Ins Co"),"",SUM(P$27:P$28,P$30,P$33+IF($I$6="No",IF(MAX(P$31:P$32)=0,MIN(P$31:P$32),MAX(P$31:P$32)),SUM(P$31:P$32))))) -> -1644285.391 | Q34: =IF(VLOOKUP('Essbase Input'!$C$4,Tables!$B$3:$F$7,5,FALSE)="DHMO","",IF(OR('Essbase Input'!$C$4="Golden Rule Insurance Company",'Essbase Input'!$C$4="UnitedHealthcare Life Ins Co"),"",SUM(Q$27:Q$28,Q$30,Q$33+IF($I$6="No",IF(MAX(Q$31:Q$32)=0,MIN(Q$31:Q$32),MAX(Q$31:Q$32)),SUM(Q$31:Q$32))))) -> -1644285.391 | AD34: =SUM(V34:AC34) -> 0
B36: 4. | C36: Non-Claims Costs
C37: 4.1 | D37: Direct sales salaries and benefits | N37: 131626.3393 | O37: 131626.3393 | P37: -131626.3393 | Q37: -131626.3393 | AD37: =SUM(V37:AC37) -> 0
C38: 4.2 | D38: Agents and brokers fees and commissions | L38: -327.3 | M38: -327.3 | AD38: =SUM(V38:AC38) -> 0
C39: 4.3 | D39: Other taxes
D40: 4.3a Taxes and assessments (exclude amounts reported in Section 3 or Line 10) | AD40: =SUM(V40:AC40) -> 0
D41: 4.3b Fines and penalties of regulatory authorities (exclude amounts reported in Line 3.3) | N41: 32319.97226 | O41: 32319.97226 | P41: 70769.00774 | Q41: 70769.00774 | AD41: =SUM(V41:AC41) -> 0
C42: 4.4 | D42: Other general and administrative expenses | N42: 1601786.628 | O42: 1601786.628 | P42: -1601786.628 | Q42: -1601786.628 | AD42: =SUM(V42:AC42) -> 0
C43: 4.5 | D43: Total non-claims costs | F43: =IF(VLOOKUP('Essbase Input'!$C$4,Tables!$B$3:$F$7,5,FALSE)="DPPO","",SUM(SUM(F37:F38)+SUM(F40:F42))) ->  | G43: =IF(VLOOKUP('Essbase Input'!$C$4,Tables!$B$3:$F$7,5,FALSE)="DPPO","",SUM(SUM(G37:G38)+SUM(G40:G42))) ->  | H43: =IF(VLOOKUP('Essbase Input'!$C$4,Tables!$B$3:$F$7,5,FALSE)="DPPO","",SUM(SUM(H37:H38)+SUM(H40:H42))) ->  | I43: =IF(VLOOKUP('Essbase Input'!$C$4,Tables!$B$3:$F$7,5,FALSE)="DPPO","",SUM(SUM(I37:I38)+SUM(I40:I42))) ->  | J43: =IF(VLOOKUP('Essbase Input'!$C$4,Tables!$B$3:$F$7,5,FALSE)="DPPO","",SUM(SUM(J37:J38)+SUM(J40:J42))) ->  | K43: =IF(VLOOKUP('Essbase Input'!$C$4,Tables!$B$3:$F$7,5,FALSE)="DPPO","",SUM(SUM(K37:K38)+SUM(K40:K42))) ->  | L43: =IF(VLOOKUP('Essbase Input'!$C$4,Tables!$B$3:$F$7,5,FALSE)="DHMO","",SUM(SUM(L37:L38)+SUM(L40:L42))) -> -327.3 | M43: =IF(VLOOKUP('Essbase Input'!$C$4,Tables!$B$3:$F$7,5,FALSE)="DHMO","",SUM(SUM(M37:M38)+SUM(M40:M42))) -> -327.3 | N43: =IF(VLOOKUP('Essbase Input'!$C$4,Tables!$B$3:$F$7,5,FALSE)="DHMO","",IF(OR('Essbase Input'!$C$4="Golden Rule Insurance Company",'Essbase Input'!$C$4="UnitedHealthcare Life Ins Co"),"",SUM(SUM(N37:N38)+SUM(N40:N42)))) -> 1765732.939 | O43: =IF(VLOOKUP('Essbase Input'!$C$4,Tables!$B$3:$F$7,5,FALSE)="DHMO","",IF(OR('Essbase Input'!$C$4="Golden Rule Insurance Company",'Essbase Input'!$C$4="UnitedHealthcare Life Ins Co"),"",SUM(SUM(O37:O38)+SUM(O40:O42)))) -> 1765732.939 | P43: =IF(VLOOKUP('Essbase Input'!$C$4,Tables!$B$3:$F$7,5,FALSE)="DHMO","",IF(OR('Essbase Input'!$C$4="Golden Rule Insurance Company",'Essbase Input'!$C$4="UnitedHealthcare Life Ins Co"),"",SUM(SUM(P37:P38)+SUM(P40:P42)))) -> -1662643.959 | Q43: =IF(VLOOKUP('Essbase Input'!$C$4,Tables!$B$3:$F$7,5,FALSE)="DHMO","",IF(OR('Essbase Input'!$C$4="Golden Rule Insurance Company",'Essbase Input'!$C$4="UnitedHealthcare Life Ins Co"),"",SUM(SUM(Q37:Q38)+SUM(Q40:Q42)))) -> -1662643.959 | AD43: =SUM(V43:AC43) -> 0
B45: 5. | C45: Other Indicators or information
C46: 5.1 | D46: Number of covered lives | N46: =-P46 -> 364 | O46: =N46 -> 364 | P46: -364 | Q46: =P46 -> -364 | AD46: =SUM(V46:AC46) -> 0
C47: 5.2 | D47: Member months | N47: =-P47 -> 5095 | O47: =N47 -> 5095 | P47: -5095 | Q47: =P47 -> -5095 | AD47: =SUM(V47:AC47) -> 0
C48: 5.3 | D48: Number of life-years | F48: =F47/12 -> 0 | G48: 0 | H48: 0 | I48: 0 | J48: 0 | K48: 0 | L48: 0 | M48: 0 | N48: 424.5833333 | O48: 424.5833333 | P48: -424.5833333 | Q48: -424.5833333 | T48: =T47/12 -> 0 | U48: 0 | V48: 0 | W48: 0 | X48: 0 | Y48: 0 | Z48: 0 | AA48: 0 | AB48: 0 | AC48: 0 | AD48: 0 | AE48: 0
F49: =CONCATENATE("Grand Total as of 12/31/",RIGHT('EB PT 1'!I11,2)," for ALL markets in col. 1-12") -> Grand Total as of 12/31/17 for ALL markets in col. 1-12
B51: 6. | C51: Net investment income and other gain / (loss)
B52: 7. | C52: Other Federal income taxes (exclude taxes on Line 3.1a and 3.1b)
B54: Cell Keys:
C55: Blank cells require input from Health plan or Health insurer
C56: Grey cells require no data input
C57: Pink cells require no data input - locked down
C58: Blue cells: computed cell (formula cell)

Sheet Pt 1 Summary of Data - Final
B1: Department of Managed Health Care/Department of Insurance
B2: Medical Loss Ratio Reporting Form: Dental Coverage
B3: Part 1 - Summary of Data
B5: Health Plan ID | I5: Federal Tax Exempt
B6: ='Cover Page'!C7 ->  | F6: Part 1 | I6: ='Cover Page'!C10 -> No
B7: Legal Name
B8: ='Cover Page'!C8 -> UnitedHealthcare Insurance Company
B9: dBA
B10: ='Cover Page'!C9 -> N/A
B11: MLR Reporting Year
B12: ='Cover Page'!C6 -> 2017
F14: Health Insurance Coverage | L14: Health Insurance Coverage | S14: UHG Other Health Reconciliation
F15: DHMO Products | L15: DPPO & Indemnity Products | S15: Subtotal of CA Dental Business | T15: Vision | U15: Life/Disability | V15: Stop Loss | W15: Stop Loss | X15: Supp Hospital | Y15: Medicare Supp | Z15: Student Health | AA15: Wrap | AB15: Ind Short Term | AC15: Other Health | AD15: Total Other Health | AE15: Federal MLR Other Health Total | AF15: Tie out to | AG15: Corporate | AH15: Other Dental Product Diff. Total | AI15: CA Dental MLR vs. Fed Other Health
F16: Individual | H16: Small Group | J16: Large Group | L16: Individual | N16: Small Group | P16: Large Group | V16: Prdct Range 322000 | W16: Prdct Range 150000 | X16: Prdct Range 204000 | Y16: Prdct Range 203000 | Z16: Prdct Rng 112/3000 | AA16: Prdct 202080 | AB16: Prdct 106410 | AF16: Federal MLR Lines | AG16: Market OU
B17: Part 1 NOTE: REFER TO MLR INSTRUCTIONS FOR IMPORTANT INFORMATION ABOUT COMPLETING EACH COLUMN AND ROW. | F17: ="Total as of 12/31/"&RIGHT('Essbase Input'!C13,2) -> Total as of 12/31/17 | G17: ="Total as of 3/31/"&RIGHT('Essbase Input'!C12,2) -> Total as of 3/31/18 | H17: =+$F$17 -> Total as of 12/31/17 | I17: =+$G$17 -> Total as of 3/31/18 | J17: =+$F$17 -> Total as of 12/31/17 | K17: =+$G$17 -> Total as of 3/31/18 | L17: =+$F$17 -> Total as of 12/31/17 | M17: =+$G$17 -> Total as of 3/31/18 | N17: =+$F$17 -> Total as of 12/31/17 | O17: =+$G$17 -> Total as of 3/31/18 | P17: =+$F$17 -> Total as of 12/31/17 | Q17: =+$G$17 -> Total as of 3/31/18 | S17: =+$F$17 -> Total as of 12/31/17 | T17: Total as of 12/31/17 | U17: Total as of 12/31/17 | V17: Total as of 12/31/17 | W17: Total as of 12/31/17 | X17: Total as of 12/31/17 | Y17: Total as of 12/31/17 | Z17: Total as of 12/31/17 | AA17: Total as of 12/31/17 | AB17: Total as of 12/31/17 | AC17: Total as of 12/31/17 | AD17: Total as of 12/31/17 | AE17: Total as of 12/31/17 | AF17: Total as of 12/31/17 | AG17: Total as of 12/31/17 | AH17: Total as of 12/31/17 | AI17: Total as of 12/31/17
F18: 1 | G18: 2 | H18: 3 | I18: 4 | J18: 5 | K18: 6 | L18: 7 | M18: 8 | N18: 9 | O18: 10 | P18: 11 | Q18: 12
B19: 1. | C19: Premium
C20: 1.1 | D20: Total direct premium earned | F20: =IF('Pt 1 Summary of Data'!F20="","",'Pt 1 Summary of Data'!F20+'Pt 1 Summary of Data - Adj'!F20) ->  | G20: =IF('Pt 1 Summary of Data'!G20="","",'Pt 1 Summary of Data'!G20+'Pt 1 Summary of Data - Adj'!G20) ->  | H20: =IF('Pt 1 Summary of Data'!H20="","",'Pt 1 Summary of Data'!H20+'Pt 1 Summary of Data - Adj'!H20) ->  | I20: =IF('Pt 1 Summary of Data'!I20="","",'Pt 1 Summary of Data'!I20+'Pt 1 Summary of Data - Adj'!I20) ->  | J20: =IF('Pt 1 Summary of Data'!J20="","",'Pt 1 Summary of Data'!J20+'Pt 1 Summary of Data - Adj'!J20) ->  | K20: =IF('Pt 1 Summary of Data'!K20="","",'Pt 1 Summary of Data'!K20+'Pt 1 Summary of Data - Adj'!K20) ->  | L20: =IF('Pt 1 Summary of Data'!L20="","",'Pt 1 Summary of Data'!L20+'Pt 1 Summary of Data - Adj'!L20) -> 0 | M20: =IF('Pt 1 Summary of Data'!M20="","",'Pt 1 Summary of Data'!M20+'Pt 1 Summary of Data - Adj'!M20) -> 0 | N20: =IF('Pt 1 Summary of Data'!N20="","",'Pt 1 Summary of Data'!N20+'Pt 1 Summary of Data - Adj'!N20) -> 16962611.97 | O20: =IF('Pt 1 Summary of Data'!O20="","",'Pt 1 Summary of Data'!O20+'Pt 1 Summary of Data - Adj'!O20) -> 16745673.74 | P20: =IF('Pt 1 Summary of Data'!P20="","",'Pt 1 Summary of Data'!P20+'Pt 1 Summary of Data - Adj'!P20) -> 36578555.4 | Q20: =IF('Pt 1 Summary of Data'!Q20="","",'Pt 1 Summary of Data'!Q20+'Pt 1 Summary of Data - Adj'!Q20) -> 36838213.5 | S20: =IF(P20="",0,P20)+IF(N20="",0,N20)+IF(L20="",0,L20)+IF(J20="",0,J20)+IF(H20="",0,H20)+IF(F20="",0,F20) -> 53541167.37 | T20: =+'Pt 1 Summary of Data'!T20+'Pt 1 Summary of Data - Adj'!T20 -> 13781195.58 | U20: =+'Pt 1 Summary of Data'!U20+'Pt 1 Summary of Data - Adj'!U20 -> 1962290.72 | V20: =+'Pt 1 Summary of Data'!V20+'Pt 1 Summary of Data - Adj'!V20 -> 0 | W20: =+'Pt 1 Summary of Data'!W20+'Pt 1 Summary of Data - Adj'!W20 -> 32317971.22 | X20: =+'Pt 1 Summary of Data'!X20+'Pt 1 Summary of Data - Adj'!X20 -> 6139364.93 | Y20: =+'Pt 1 Summary of Data'!Y20+'Pt 1 Summary of Data - Adj'!Y20 -> 808164871.7 | Z20: =+'Pt 1 Summary of Data'!Z20+'Pt 1 Summary of Data - Adj'!Z20 -> 152168 | AA20: =+'Pt 1 Summary of Data'!AA20+'Pt 1 Summary of Data - Adj'!AA20 -> 163672167.1 | AB20: =+'Pt 1 Summary of Data'!AB20+'Pt 1 Summary of Data - Adj'!AB20 -> 1183 | AC20: =+'Pt 1 Summary of Data'!AC20+'Pt 1 Summary of Data - Adj'!AC20 -> 259590.1 | AD20: =+'Pt 1 Summary of Data'!AD20+'Pt 1 Summary of Data - Adj'!AD20 -> 1010707316 | AE20: =+'Pt 2 Premium and Claims - Final'!AE21+'Pt 2 Premium and Claims - Final'!AE22-'Pt 2 Premium and Claims - Final'!AE23-'Pt 2 Premium and Claims - Final'!AE24 -> 1079888458 | AF20: Sec 1 - 1.1 | AG20: =+'Pt 1 Summary of Data'!AG20+'Pt 1 Summary of Data - Adj'!AE20 -> 0 | AH20: =SUM(AG20:AG20) -> 0 | AI20: =ROUND((S20+T20+U20+AD20)-AE20+AH20,0) -> 103511
B22: 2. | C22: Claims
C23: 2.1 | D23: Total incurred claims (MLR Form Part 2, Line 2.11) | F23: =IF('Pt 1 Summary of Data'!F23="","",'Pt 1 Summary of Data'!F23+'Pt 1 Summary of Data - Adj'!F23) ->  | G23: =IF('Pt 1 Summary of Data'!G23="","",'Pt 1 Summary of Data'!G23+'Pt 1 Summary of Data - Adj'!G23) ->  | H23: =IF('Pt 1 Summary of Data'!H23="","",'Pt 1 Summary of Data'!H23+'Pt 1 Summary of Data - Adj'!H23) ->  | I23: =IF('Pt 1 Summary of Data'!I23="","",'Pt 1 Summary of Data'!I23+'Pt 1 Summary of Data - Adj'!I23) ->  | J23: =IF('Pt 1 Summary of Data'!J23="","",'Pt 1 Summary of Data'!J23+'Pt 1 Summary of Data - Adj'!J23) ->  | K23: =IF('Pt 1 Summary of Data'!K23="","",'Pt 1 Summary of Data'!K23+'Pt 1 Summary of Data - Adj'!K23) ->  | L23: =IF('Pt 1 Summary of Data'!L23="","",'Pt 1 Summary of Data'!L23+'Pt 1 Summary of Data - Adj'!L23) -> 0 | M23: =IF('Pt 1 Summary of Data'!M23="","",'Pt 1 Summary of Data'!M23+'Pt 1 Summary of Data - Adj'!M23) -> 0 | N23: =IF('Pt 1 Summary of Data'!N23="","",'Pt 1 Summary of Data'!N23+'Pt 1 Summary of Data - Adj'!N23) -> 9307366.01 | O23: =IF('Pt 1 Summary of Data'!O23="","",'Pt 1 Summary of Data'!O23+'Pt 1 Summary of Data - Adj'!O23) -> 9235973.25 | P23: =IF('Pt 1 Summary of Data'!P23="","",'Pt 1 Summary of Data'!P23+'Pt 1 Summary of Data - Adj'!P23) -> 28326315.64 | Q23: =IF('Pt 1 Summary of Data'!Q23="","",'Pt 1 Summary of Data'!Q23+'Pt 1 Summary of Data - Adj'!Q23) -> 28425678.96 | S23: =IF(P23="",0,P23)+IF(N23="",0,N23)+IF(L23="",0,L23)+IF(J23="",0,J23)+IF(H23="",0,H23)+IF(F23="",0,F23) -> 37633681.65 | T23: =+'Pt 1 Summary of Data'!T23+'Pt 1 Summary of Data - Adj'!T23 -> 7044731.85 | U23: =+'Pt 1 Summary of Data'!U23+'Pt 1 Summary of Data - Adj'!U23 -> 1481723.14 | V23: =+'Pt 1 Summary of Data'!V23+'Pt 1 Summary of Data - Adj'!V23 -> 0 | W23: =+'Pt 1 Summary of Data'!W23+'Pt 1 Summary of Data - Adj'!W23 -> 27927366.15 | X23: =+'Pt 1 Summary of Data'!X23+'Pt 1 Summary of Data - Adj'!X23 -> 3794940.64 | Y23: =+'Pt 1 Summary of Data'!Y23+'Pt 1 Summary of Data - Adj'!Y23 -> 683749908.4 | Z23: =+'Pt 1 Summary of Data'!Z23+'Pt 1 Summary of Data - Adj'!Z23 -> 30031.58 | AA23: =+'Pt 1 Summary of Data'!AA23+'Pt 1 Summary of Data - Adj'!AA23 -> 168762806.3 | AB23: =+'Pt 1 Summary of Data'!AB23+'Pt 1 Summary of Data - Adj'!AB23 -> -4054.22 | AC23: =+'Pt 1 Summary of Data'!AC23+'Pt 1 Summary of Data - Adj'!AC23 -> -628.7099997 | AD23: =+'Pt 1 Summary of Data'!AD23+'Pt 1 Summary of Data - Adj'!AD23 -> 884260370.1 | AE23: =+'Pt 2 Premium and Claims - Final'!AE50 -> 930422825.1 | AF23: Sec 2 - 2.1 | AG23: =+'Pt 1 Summary of Data'!AG23+'Pt 1 Summary of Data - Adj'!AE23 -> 0 | AH23: =SUM(AG23:AG23) -> 0 | AI23: =ROUND((S23+T23+U23+AD23)-AE23+AH23,0) -> -2318
B25: 3. | C25: Federal and State Taxes and Licensing or Regulatory Fees
C26: 3.1 | D26: Federal taxes and assessments incurred by the reporting health plan or health insurer during the MLR reporting year
D27: 3.1 a Federal income taxes deductible from premium in MLR calculations | F27: =IF('Pt 1 Summary of Data'!F27="","",'Pt 1 Summary of Data'!F27+'Pt 1 Summary of Data - Adj'!F27) ->  | G27: =IF('Pt 1 Summary of Data'!G27="","",'Pt 1 Summary of Data'!G27+'Pt 1 Summary of Data - Adj'!G27) ->  | H27: =IF('Pt 1 Summary of Data'!H27="","",'Pt 1 Summary of Data'!H27+'Pt 1 Summary of Data - Adj'!H27) ->  | I27: =IF('Pt 1 Summary of Data'!I27="","",'Pt 1 Summary of Data'!I27+'Pt 1 Summary of Data - Adj'!I27) ->  | J27: =IF('Pt 1 Summary of Data'!J27="","",'Pt 1 Summary of Data'!J27+'Pt 1 Summary of Data - Adj'!J27) ->  | K27: =IF('Pt 1 Summary of Data'!K27="","",'Pt 1 Summary of Data'!K27+'Pt 1 Summary of Data - Adj'!K27) ->  | L27: =IF('Pt 1 Summary of Data'!L27="","",'Pt 1 Summary of Data'!L27+'Pt 1 Summary of Data - Adj'!L27) -> 0 | M27: =IF('Pt 1 Summary of Data'!M27="","",'Pt 1 Summary of Data'!M27+'Pt 1 Summary of Data - Adj'!M27) -> 0 | N27: =IF('Pt 1 Summary of Data'!N27="","",'Pt 1 Summary of Data'!N27+'Pt 1 Summary of Data - Adj'!N27) -> 1307509.862 | O27: =IF('Pt 1 Summary of Data'!O27="","",'Pt 1 Summary of Data'!O27+'Pt 1 Summary of Data - Adj'!O27) -> 1307509.862 | P27: =IF('Pt 1 Summary of Data'!P27="","",'Pt 1 Summary of Data'!P27+'Pt 1 Summary of Data - Adj'!P27) -> 686089.6886 | Q27: =IF('Pt 1 Summary of Data'!Q27="","",'Pt 1 Summary of Data'!Q27+'Pt 1 Summary of Data - Adj'!Q27) -> 686089.6886 | S27: =IF(P27="",0,P27)+IF(N27="",0,N27)+IF(L27="",0,L27)+IF(J27="",0,J27)+IF(H27="",0,H27)+IF(F27="",0,F27) -> 1993599.55 | T27: =+'Pt 1 Summary of Data'!T27+'Pt 1 Summary of Data - Adj'!T27 -> 1360911.42 | U27: =+'Pt 1 Summary of Data'!U27+'Pt 1 Summary of Data - Adj'!U27 -> 223011.69 | V27: =+'Pt 1 Summary of Data'!V27+'Pt 1 Summary of Data - Adj'!V27 -> 0 | W27: =+'Pt 1 Summary of Data'!W27+'Pt 1 Summary of Data - Adj'!W27 -> 263461.59 | X27: =+'Pt 1 Summary of Data'!X27+'Pt 1 Summary of Data - Adj'!X27 -> 74640.44 | Y27: =+'Pt 1 Summary of Data'!Y27+'Pt 1 Summary of Data - Adj'!Y27 -> 3977824.16 | Z27: =+'Pt 1 Summary of Data'!Z27+'Pt 1 Summary of Data - Adj'!Z27 -> 12151.29 | AA27: =+'Pt 1 Summary of Data'!AA27+'Pt 1 Summary of Data - Adj'!AA27 -> -6014884.09 | AB27: =+'Pt 1 Summary of Data'!AB27+'Pt 1 Summary of Data - Adj'!AB27 -> -60015.63 | AC27: =+'Pt 1 Summary of Data'!AC27+'Pt 1 Summary of Data - Adj'!AC27 -> 81701.32 | AD27: =+'Pt 1 Summary of Data'!AD27+'Pt 1 Summary of Data - Adj'!AD27 -> -1665120.92 | AE27: =+'EB PT 1'!S12 -> 2227496.23 | AF27: Sec 2 - 3.1a & 3.1c | AG27: =+'Pt 1 Summary of Data'!AG27+'Pt 1 Summary of Data - Adj'!AE27 -> 0 | AH27: =SUM(AG27:AG27) -> 0 | AI27: =ROUND((S27+T27+U27+AD27)-AE27+AH27,0) -> -315094
D28: 3.1 b Other Federal Taxes (other than income tax) and assessments deductible from premium | F28: =IF('Pt 1 Summary of Data'!F28="","",'Pt 1 Summary of Data'!F28+'Pt 1 Summary of Data - Adj'!F28) ->  | G28: =IF('Pt 1 Summary of Data'!G28="","",'Pt 1 Summary of Data'!G28+'Pt 1 Summary of Data - Adj'!G28) ->  | H28: =IF('Pt 1 Summary of Data'!H28="","",'Pt 1 Summary of Data'!H28+'Pt 1 Summary of Data - Adj'!H28) ->  | I28: =IF('Pt 1 Summary of Data'!I28="","",'Pt 1 Summary of Data'!I28+'Pt 1 Summary of Data - Adj'!I28) ->  | J28: =IF('Pt 1 Summary of Data'!J28="","",'Pt 1 Summary of Data'!J28+'Pt 1 Summary of Data - Adj'!J28) ->  | K28: =IF('Pt 1 Summary of Data'!K28="","",'Pt 1 Summary of Data'!K28+'Pt 1 Summary of Data - Adj'!K28) ->  | L28: =IF('Pt 1 Summary of Data'!L28="","",'Pt 1 Summary of Data'!L28+'Pt 1 Summary of Data - Adj'!L28) -> 0 | M28: =IF('Pt 1 Summary of Data'!M28="","",'Pt 1 Summary of Data'!M28+'Pt 1 Summary of Data - Adj'!M28) -> 0 | N28: =IF('Pt 1 Summary of Data'!N28="","",'Pt 1 Summary of Data'!N28+'Pt 1 Summary of Data - Adj'!N28) -> 0 | O28: =IF('Pt 1 Summary of Data'!O28="","",'Pt 1 Summary of Data'!O28+'Pt 1 Summary of Data - Adj'!O28) -> 0 | P28: =IF('Pt 1 Summary of Data'!P28="","",'Pt 1 Summary of Data'!P28+'Pt 1 Summary of Data - Adj'!P28) -> 0 | Q28: =IF('Pt 1 Summary of Data'!Q28="","",'Pt 1 Summary of Data'!Q28+'Pt 1 Summary of Data - Adj'!Q28) -> 0 | S28: =IF(P28="",0,P28)+IF(N28="",0,N28)+IF(L28="",0,L28)+IF(J28="",0,J28)+IF(H28="",0,H28)+IF(F28="",0,F28) -> 0 | T28: =+'Pt 1 Summary of Data'!T28+'Pt 1 Summary of Data - Adj'!T28 -> 0 | U28: =+'Pt 1 Summary of Data'!U28+'Pt 1 Summary of Data - Adj'!U28 -> 0 | V28: =+'Pt 1 Summary of Data'!V28+'Pt 1 Summary of Data - Adj'!V28 -> 0 | W28: =+'Pt 1 Summary of Data'!W28+'Pt 1 Summary of Data - Adj'!W28 -> 0 | X28: =+'Pt 1 Summary of Data'!X28+'Pt 1 Summary of Data - Adj'!X28 -> 0 | Y28: =+'Pt 1 Summary of Data'!Y28+'Pt 1 Summary of Data - Adj'!Y28 -> 9394.9 | Z28: =+'Pt 1 Summary of Data'!Z28+'Pt 1 Summary of Data - Adj'!Z28 -> 0 | AA28: =+'Pt 1 Summary of Data'!AA28+'Pt 1 Summary of Data - Adj'!AA28 -> 291335.87 | AB28: =+'Pt 1 Summary of Data'!AB28+'Pt 1 Summary of Data - Adj'!AB28 -> -6.48 | AC28: =+'Pt 1 Summary of Data'!AC28+'Pt 1 Summary of Data - Adj'!AC28 -> 0 | AD28: =+'Pt 1 Summary of Data'!AD28+'Pt 1 Summary of Data - Adj'!AD28 -> 300724.29 | AE28: =+'EB PT 1'!S13-'EB PT 1'!S16 -> 300724.29 | AF28: Sec 2 - 3.1b & 3.1d | AG28: =+'Pt 1 Summary of Data'!AG28+'Pt 1 Summary of Data - Adj'!AE28 -> 0 | AH28: =SUM(AG28:AG28) -> 0 | AI28: =ROUND((S28+T28+U28+AD28)-AE28+AH28,0) -> 0
C29: 3.2 | D29: State insurance, premium and other taxes incurred by the reporting health plan or heath insurer during the MLR reporting year (deductible from premium in MLR calculation)
D30: 3.2 a State income, excise, business, and other taxes | F30: =IF('Pt 1 Summary of Data'!F30="","",'Pt 1 Summary of Data'!F30+'Pt 1 Summary of Data - Adj'!F30) ->  | G30: =IF('Pt 1 Summary of Data'!G30="","",'Pt 1 Summary of Data'!G30+'Pt 1 Summary of Data - Adj'!G30) ->  | H30: =IF('Pt 1 Summary of Data'!H30="","",'Pt 1 Summary of Data'!H30+'Pt 1 Summary of Data - Adj'!H30) ->  | I30: =IF('Pt 1 Summary of Data'!I30="","",'Pt 1 Summary of Data'!I30+'Pt 1 Summary of Data - Adj'!I30) ->  | J30: =IF('Pt 1 Summary of Data'!J30="","",'Pt 1 Summary of Data'!J30+'Pt 1 Summary of Data - Adj'!J30) ->  | K30: =IF('Pt 1 Summary of Data'!K30="","",'Pt 1 Summary of Data'!K30+'Pt 1 Summary of Data - Adj'!K30) ->  | L30: =IF('Pt 1 Summary of Data'!L30="","",'Pt 1 Summary of Data'!L30+'Pt 1 Summary of Data - Adj'!L30) -> 0 | M30: =IF('Pt 1 Summary of Data'!M30="","",'Pt 1 Summary of Data'!M30+'Pt 1 Summary of Data - Adj'!M30) -> 0 | N30: =IF('Pt 1 Summary of Data'!N30="","",'Pt 1 Summary of Data'!N30+'Pt 1 Summary of Data - Adj'!N30) -> 17285.34 | O30: =IF('Pt 1 Summary of Data'!O30="","",'Pt 1 Summary of Data'!O30+'Pt 1 Summary of Data - Adj'!O30) -> 17285.34 | P30: =IF('Pt 1 Summary of Data'!P30="","",'Pt 1 Summary of Data'!P30+'Pt 1 Summary of Data - Adj'!P30) -> 63166.15 | Q30: =IF('Pt 1 Summary of Data'!Q30="","",'Pt 1 Summary of Data'!Q30+'Pt 1 Summary of Data - Adj'!Q30) -> 63166.15 | S30: =IF(P30="",0,P30)+IF(N30="",0,N30)+IF(L30="",0,L30)+IF(J30="",0,J30)+IF(H30="",0,H30)+IF(F30="",0,F30) -> 80451.49 | T30: =+'Pt 1 Summary of Data'!T30+'Pt 1 Summary of Data - Adj'!T30 -> 29511.11 | U30: =+'Pt 1 Summary of Data'!U30+'Pt 1 Summary of Data - Adj'!U30 -> -20181.37 | V30: =+'Pt 1 Summary of Data'!V30+'Pt 1 Summary of Data - Adj'!V30 -> 0 | W30: =+'Pt 1 Summary of Data'!W30+'Pt 1 Summary of Data - Adj'!W30 -> 13059.57 | X30: =+'Pt 1 Summary of Data'!X30+'Pt 1 Summary of Data - Adj'!X30 -> -291156.55 | Y30: =+'Pt 1 Summary of Data'!Y30+'Pt 1 Summary of Data - Adj'!Y30 -> -28381556.78 | Z30: =+'Pt 1 Summary of Data'!Z30+'Pt 1 Summary of Data - Adj'!Z30 -> 74379.49 | AA30: =+'Pt 1 Summary of Data'!AA30+'Pt 1 Summary of Data - Adj'!AA30 -> -365272.41 | AB30: =+'Pt 1 Summary of Data'!AB30+'Pt 1 Summary of Data - Adj'!AB30 -> 182777.01 | AC30: =+'Pt 1 Summary of Data'!AC30+'Pt 1 Summary of Data - Adj'!AC30 -> 14849.24 | AD30: =+'Pt 1 Summary of Data'!AD30+'Pt 1 Summary of Data - Adj'!AD30 -> -28752920.43 | AE30: =+'EB PT 1'!S14+'EB PT 1'!S15+'EB PT 1'!S18+'EB PT 1'!S16 -> -28663139.2 | AF30: Sec 2 - 3.2a | AG30: =+'Pt 1 Summary of Data'!AG30+'Pt 1 Summary of Data - Adj'!AE30 -> 0 | AH30: =SUM(AG30:AG30) -> 0 | AI30: =ROUND((S30+T30+U30+AD30)-AE30+AH30,0) -> 0
D31: 3.2 b State premium taxes | F31: =IF('Pt 1 Summary of Data'!F31="","",'Pt 1 Summary of Data'!F31+'Pt 1 Summary of Data - Adj'!F31) ->  | G31: =IF('Pt 1 Summary of Data'!G31="","",'Pt 1 Summary of Data'!G31+'Pt 1 Summary of Data - Adj'!G31) ->  | H31: =IF('Pt 1 Summary of Data'!H31="","",'Pt 1 Summary of Data'!H31+'Pt 1 Summary of Data - Adj'!H31) ->  | I31: =IF('Pt 1 Summary of Data'!I31="","",'Pt 1 Summary of Data'!I31+'Pt 1 Summary of Data - Adj'!I31) ->  | J31: =IF('Pt 1 Summary of Data'!J31="","",'Pt 1 Summary of Data'!J31+'Pt 1 Summary of Data - Adj'!J31) ->  | K31: =IF('Pt 1 Summary of Data'!K31="","",'Pt 1 Summary of Data'!K31+'Pt 1 Summary of Data - Adj'!K31) ->  | L31: =IF('Pt 1 Summary of Data'!L31="","",'Pt 1 Summary of Data'!L31+'Pt 1 Summary of Data - Adj'!L31) -> 0.1 | M31: =IF('Pt 1 Summary of Data'!M31="","",'Pt 1 Summary of Data'!M31+'Pt 1 Summary of Data - Adj'!M31) -> 0.1 | N31: =IF('Pt 1 Summary of Data'!N31="","",'Pt 1 Summary of Data'!N31+'Pt 1 Summary of Data - Adj'!N31) -> 986.94 | O31: =IF('Pt 1 Summary of Data'!O31="","",'Pt 1 Summary of Data'!O31+'Pt 1 Summary of Data - Adj'!O31) -> 986.94 | P31: =IF('Pt 1 Summary of Data'!P31="","",'Pt 1 Summary of Data'!P31+'Pt 1 Summary of Data - Adj'!P31) -> 2198.49 | Q31: =IF('Pt 1 Summary of Data'!Q31="","",'Pt 1 Summary of Data'!Q31+'Pt 1 Summary of Data - Adj'!Q31) -> 2198.49 | S31: =IF(P31="",0,P31)+IF(N31="",0,N31)+IF(L31="",0,L31)+IF(J31="",0,J31)+IF(H31="",0,H31)+IF(F31="",0,F31) -> 3185.53 | T31: =+'Pt 1 Summary of Data'!T31+'Pt 1 Summary of Data - Adj'!T31 -> 7991.63 | U31: =+'Pt 1 Summary of Data'!U31+'Pt 1 Summary of Data - Adj'!U31 -> 244.56 | V31: =+'Pt 1 Summary of Data'!V31+'Pt 1 Summary of Data - Adj'!V31 -> 0 | W31: =+'Pt 1 Summary of Data'!W31+'Pt 1 Summary of Data - Adj'!W31 -> 386301.57 | X31: =+'Pt 1 Summary of Data'!X31+'Pt 1 Summary of Data - Adj'!X31 -> 9259.33 | Y31: =+'Pt 1 Summary of Data'!Y31+'Pt 1 Summary of Data - Adj'!Y31 -> 1208372.64 | Z31: =+'Pt 1 Summary of Data'!Z31+'Pt 1 Summary of Data - Adj'!Z31 -> 3.5 | AA31: =+'Pt 1 Summary of Data'!AA31+'Pt 1 Summary of Data - Adj'!AA31 -> 1271813.55 | AB31: =+'Pt 1 Summary of Data'!AB31+'Pt 1 Summary of Data - Adj'!AB31 -> 24.84 | AC31: =+'Pt 1 Summary of Data'!AC31+'Pt 1 Summary of Data - Adj'!AC31 -> 0 | AD31: =+'Pt 1 Summary of Data'!AD31+'Pt 1 Summary of Data - Adj'!AD31 -> 2875775.43 | AE31: =+'EB PT 1'!S17-'EB PT 1'!S18 -> 2887188.61 | AF31: Sec 2 - 3.2b | AG31: =+'Pt 1 Summary of Data'!AG31+'Pt 1 Summary of Data - Adj'!AE31 -> 0 | AH31: =SUM(AG31:AG31) -> 0 | AI31: =ROUND((S31+T31+U31+AD31)-AE31+AH31,0) -> 9
D32: 3.2 c Community benefit expenditures | F32: =IF('Pt 1 Summary of Data'!F32="","",'Pt 1 Summary of Data'!F32+'Pt 1 Summary of Data - Adj'!F32) ->  | G32: =IF('Pt 1 Summary of Data'!G32="","",'Pt 1 Summary of Data'!G32+'Pt 1 Summary of Data - Adj'!G32) ->  | H32: =IF('Pt 1 Summary of Data'!H32="","",'Pt 1 Summary of Data'!H32+'Pt 1 Summary of Data - Adj'!H32) ->  | I32: =IF('Pt 1 Summary of Data'!I32="","",'Pt 1 Summary of Data'!I32+'Pt 1 Summary of Data - Adj'!I32) ->  | J32: =IF('Pt 1 Summary of Data'!J32="","",'Pt 1 Summary of Data'!J32+'Pt 1 Summary of Data - Adj'!J32) ->  | K32: =IF('Pt 1 Summary of Data'!K32="","",'Pt 1 Summary of Data'!K32+'Pt 1 Summary of Data - Adj'!K32) ->  | L32: =IF('Pt 1 Summary of Data'!L32="","",'Pt 1 Summary of Data'!L32+'Pt 1 Summary of Data - Adj'!L32) -> 0 | M32: =IF('Pt 1 Summary of Data'!M32="","",'Pt 1 Summary of Data'!M32+'Pt 1 Summary of Data - Adj'!M32) -> 0 | N32: =IF('Pt 1 Summary of Data'!N32="","",'Pt 1 Summary of Data'!N32+'Pt 1 Summary of Data - Adj'!N32) -> 0 | O32: =IF('Pt 1 Summary of Data'!O32="","",'Pt 1 Summary of Data'!O32+'Pt 1 Summary of Data - Adj'!O32) -> 0 | P32: =IF('Pt 1 Summary of Data'!P32="","",'Pt 1 Summary of Data'!P32+'Pt 1 Summary of Data - Adj'!P32) -> 0 | Q32: =IF('Pt 1 Summary of Data'!Q32="","",'Pt 1 Summary of Data'!Q32+'Pt 1 Summary of Data - Adj'!Q32) -> 0 | S32: =IF(P32="",0,P32)+IF(N32="",0,N32)+IF(L32="",0,L32)+IF(J32="",0,J32)+IF(H32="",0,H32)+IF(F32="",0,F32) -> 0 | T32: =+'Pt 1 Summary of Data'!T32+'Pt 1 Summary of Data - Adj'!T32 -> 0 | U32: =+'Pt 1 Summary of Data'!U32+'Pt 1 Summary of Data - Adj'!U32 -> 0 | V32: =+'Pt 1 Summary of Data'!V32+'Pt 1 Summary of Data - Adj'!V32 -> 0 | W32: =+'Pt 1 Summary of Data'!W32+'Pt 1 Summary of Data - Adj'!W32 -> 0 | X32: =+'Pt 1 Summary of Data'!X32+'Pt 1 Summary of Data - Adj'!X32 -> 0 | Y32: =+'Pt 1 Summary of Data'!Y32+'Pt 1 Summary of Data - Adj'!Y32 -> 0 | Z32: =+'Pt 1 Summary of Data'!Z32+'Pt 1 Summary of Data - Adj'!Z32 -> 0 | AA32: =+'Pt 1 Summary of Data'!AA32+'Pt 1 Summary of Data - Adj'!AA32 -> 0 | AB32: =+'Pt 1 Summary of Data'!AB32+'Pt 1 Summary of Data - Adj'!AB32 -> 0 | AC32: =+'Pt 1 Summary of Data'!AC32+'Pt 1 Summary of Data - Adj'!AC32 -> 0 | AD32: =+'Pt 1 Summary of Data'!AD32+'Pt 1 Summary of Data - Adj'!AD32 -> 0 | AE32: 0 | AF32: Sec 2 - 3.2c | AG32: =+'Pt 1 Summary of Data'!AG32+'Pt 1 Summary of Data - Adj'!AE32 -> 0 | AH32: =SUM(AG32:AG32) -> 0 | AI32: =ROUND((S32+T32+U32+AD32)-AE32+AH32,0) -> 0
C33: 3.3 | D33: Regulatory authority licenses and fees | F33: =IF('Pt 1 Summary of Data'!F33="","",'Pt 1 Summary of Data'!F33+'Pt 1 Summary of Data - Adj'!F33) ->  | G33: =IF('Pt 1 Summary of Data'!G33="","",'Pt 1 Summary of Data'!G33+'Pt 1 Summary of Data - Adj'!G33) ->  | H33: =IF('Pt 1 Summary of Data'!H33="","",'Pt 1 Summary of Data'!H33+'Pt 1 Summary of Data - Adj'!H33) ->  | I33: =IF('Pt 1 Summary of Data'!I33="","",'Pt 1 Summary of Data'!I33+'Pt 1 Summary of Data - Adj'!I33) ->  | J33: =IF('Pt 1 Summary of Data'!J33="","",'Pt 1 Summary of Data'!J33+'Pt 1 Summary of Data - Adj'!J33) ->  | K33: =IF('Pt 1 Summary of Data'!K33="","",'Pt 1 Summary of Data'!K33+'Pt 1 Summary of Data - Adj'!K33) ->  | L33: =IF('Pt 1 Summary of Data'!L33="","",'Pt 1 Summary of Data'!L33+'Pt 1 Summary of Data - Adj'!L33) -> 0 | M33: =IF('Pt 1 Summary of Data'!M33="","",'Pt 1 Summary of Data'!M33+'Pt 1 Summary of Data - Adj'!M33) -> 0 | N33: =IF('Pt 1 Summary of Data'!N33="","",'Pt 1 Summary of Data'!N33+'Pt 1 Summary of Data - Adj'!N33) -> 1240.45 | O33: =IF('Pt 1 Summary of Data'!O33="","",'Pt 1 Summary of Data'!O33+'Pt 1 Summary of Data - Adj'!O33) -> 1240.45 | P33: =IF('Pt 1 Summary of Data'!P33="","",'Pt 1 Summary of Data'!P33+'Pt 1 Summary of Data - Adj'!P33) -> 3112.19 | Q33: =IF('Pt 1 Summary of Data'!Q33="","",'Pt 1 Summary of Data'!Q33+'Pt 1 Summary of Data - Adj'!Q33) -> 3112.19 | S33: =IF(P33="",0,P33)+IF(N33="",0,N33)+IF(L33="",0,L33)+IF(J33="",0,J33)+IF(H33="",0,H33)+IF(F33="",0,F33) -> 4352.64 | T33: =+'Pt 1 Summary of Data'!T33+'Pt 1 Summary of Data - Adj'!T33 -> 1176.88 | U33: =+'Pt 1 Summary of Data'!U33+'Pt 1 Summary of Data - Adj'!U33 -> 0.07 | V33: =+'Pt 1 Summary of Data'!V33+'Pt 1 Summary of Data - Adj'!V33 -> 0 | W33: =+'Pt 1 Summary of Data'!W33+'Pt 1 Summary of Data - Adj'!W33 -> 16719.4 | X33: =+'Pt 1 Summary of Data'!X33+'Pt 1 Summary of Data - Adj'!X33 -> 185.75 | Y33: =+'Pt 1 Summary of Data'!Y33+'Pt 1 Summary of Data - Adj'!Y33 -> 23981.83 | Z33: =+'Pt 1 Summary of Data'!Z33+'Pt 1 Summary of Data - Adj'!Z33 -> 0 | AA33: =+'Pt 1 Summary of Data'!AA33+'Pt 1 Summary of Data - Adj'!AA33 -> 10417.82 | AB33: =+'Pt 1 Summary of Data'!AB33+'Pt 1 Summary of Data - Adj'!AB33 -> 0 | AC33: =+'Pt 1 Summary of Data'!AC33+'Pt 1 Summary of Data - Adj'!AC33 -> 0 | AD33: =+'Pt 1 Summary of Data'!AD33+'Pt 1 Summary of Data - Adj'!AD33 -> 51304.8 | AE33: =+'EB PT 1'!S19 -> 56834.39 | AF33: Sec 2 - 3.3b | AG33: =+'Pt 1 Summary of Data'!AG33+'Pt 1 Summary of Data - Adj'!AE33 -> 0 | AH33: =SUM(AG33:AG33) -> 0 | AI33: =ROUND((S33+T33+U33+AD33)-AE33+AH33,0) -> 0
C34: 3.4 | D34: Total Federal and State Taxes and fees to be excluded from premium | F34: =IF('Pt 1 Summary of Data'!F34="","",'Pt 1 Summary of Data'!F34+'Pt 1 Summary of Data - Adj'!F34) ->  | G34: =IF('Pt 1 Summary of Data'!G34="","",'Pt 1 Summary of Data'!G34+'Pt 1 Summary of Data - Adj'!G34) ->  | H34: =IF('Pt 1 Summary of Data'!H34="","",'Pt 1 Summary of Data'!H34+'Pt 1 Summary of Data - Adj'!H34) ->  | I34: =IF('Pt 1 Summary of Data'!I34="","",'Pt 1 Summary of Data'!I34+'Pt 1 Summary of Data - Adj'!I34) ->  | J34: =IF('Pt 1 Summary of Data'!J34="","",'Pt 1 Summary of Data'!J34+'Pt 1 Summary of Data - Adj'!J34) ->  | K34: =IF('Pt 1 Summary of Data'!K34="","",'Pt 1 Summary of Data'!K34+'Pt 1 Summary of Data - Adj'!K34) ->  | L34: =IF('Pt 1 Summary of Data'!L34="","",'Pt 1 Summary of Data'!L34+'Pt 1 Summary of Data - Adj'!L34) -> 0.1 | M34: =IF('Pt 1 Summary of Data'!M34="","",'Pt 1 Summary of Data'!M34+'Pt 1 Summary of Data - Adj'!M34) -> 0.1 | N34: =IF('Pt 1 Summary of Data'!N34="","",'Pt 1 Summary of Data'!N34+'Pt 1 Summary of Data - Adj'!N34) -> 1327022.592 | O34: =IF('Pt 1 Summary of Data'!O34="","",'Pt 1 Summary of Data'!O34+'Pt 1 Summary of Data - Adj'!O34) -> 1327022.592 | P34: =IF('Pt 1 Summary of Data'!P34="","",'Pt 1 Summary of Data'!P34+'Pt 1 Summary of Data - Adj'!P34) -> 754566.5186 | Q34: =IF('Pt 1 Summary of Data'!Q34="","",'Pt 1 Summary of Data'!Q34+'Pt 1 Summary of Data - Adj'!Q34) -> 754566.5186 | S34: =IF(P34="",0,P34)+IF(N34="",0,N34)+IF(L34="",0,L34)+IF(J34="",0,J34)+IF(H34="",0,H34)+IF(F34="",0,F34) -> 2081589.21 | T34: =+'Pt 1 Summary of Data'!T34+'Pt 1 Summary of Data - Adj'!T34 -> 1399591.04 | U34: =+'Pt 1 Summary of Data'!U34+'Pt 1 Summary of Data - Adj'!U34 -> 203074.95 | V34: =+'Pt 1 Summary of Data'!V34+'Pt 1 Summary of Data - Adj'!V34 -> 0 | W34: =+'Pt 1 Summary of Data'!W34+'Pt 1 Summary of Data - Adj'!W34 -> 679542.13 | X34: =+'Pt 1 Summary of Data'!X34+'Pt 1 Summary of Data - Adj'!X34 -> -207071.03 | Y34: =+'Pt 1 Summary of Data'!Y34+'Pt 1 Summary of Data - Adj'!Y34 -> -23161983.25 | Z34: =+'Pt 1 Summary of Data'!Z34+'Pt 1 Summary of Data - Adj'!Z34 -> 86534.28 | AA34: =+'Pt 1 Summary of Data'!AA34+'Pt 1 Summary of Data - Adj'!AA34 -> -4806589.26 | AB34: =+'Pt 1 Summary of Data'!AB34+'Pt 1 Summary of Data - Adj'!AB34 -> 122779.74 | AC34: =+'Pt 1 Summary of Data'!AC34+'Pt 1 Summary of Data - Adj'!AC34 -> 96550.56 | AD34: =+'Pt 1 Summary of Data'!AD34+'Pt 1 Summary of Data - Adj'!AD34 -> -27190236.83 | AE34: =SUM(AE$27:AE$28,AE$30,AE$33+IF($I$6="No",IF(MAX(AE$31:AE$32)=0,MIN(AE$31:AE$32),MAX(AE$31:AE$32)),SUM(AE$31:AE$32))) -> -23190895.68 | AG34: =+'Pt 1 Summary of Data'!AG34+'Pt 1 Summary of Data - Adj'!AE34 -> 0 | AH34: =SUM(AG34:AG34) -> 0 | AI34: =ROUND((S34+T34+U34+AD34)-AE34+AH34,0) -> -315086
B36: 4. | C36: Non-Claims Costs
C37: 4.1 | D37: Direct sales salaries and benefits | F37: =IF('Pt 1 Summary of Data'!F37="","",'Pt 1 Summary of Data'!F37+'Pt 1 Summary of Data - Adj'!F37) ->  | G37: =IF('Pt 1 Summary of Data'!G37="","",'Pt 1 Summary of Data'!G37+'Pt 1 Summary of Data - Adj'!G37) ->  | H37: =IF('Pt 1 Summary of Data'!H37="","",'Pt 1 Summary of Data'!H37+'Pt 1 Summary of Data - Adj'!H37) ->  | I37: =IF('Pt 1 Summary of Data'!I37="","",'Pt 1 Summary of Data'!I37+'Pt 1 Summary of Data - Adj'!I37) ->  | J37: =IF('Pt 1 Summary of Data'!J37="","",'Pt 1 Summary of Data'!J37+'Pt 1 Summary of Data - Adj'!J37) ->  | K37: =IF('Pt 1 Summary of Data'!K37="","",'Pt 1 Summary of Data'!K37+'Pt 1 Summary of Data - Adj'!K37) ->  | L37: =IF('Pt 1 Summary of Data'!L37="","",'Pt 1 Summary of Data'!L37+'Pt 1 Summary of Data - Adj'!L37) -> 0 | M37: =IF('Pt 1 Summary of Data'!M37="","",'Pt 1 Summary of Data'!M37+'Pt 1 Summary of Data - Adj'!M37) -> 0 | N37: =IF('Pt 1 Summary of Data'!N37="","",'Pt 1 Summary of Data'!N37+'Pt 1 Summary of Data - Adj'!N37) -> 131626.3393 | O37: =IF('Pt 1 Summary of Data'!O37="","",'Pt 1 Summary of Data'!O37+'Pt 1 Summary of Data - Adj'!O37) -> 131626.3393 | P37: =IF('Pt 1 Summary of Data'!P37="","",'Pt 1 Summary of Data'!P37+'Pt 1 Summary of Data - Adj'!P37) -> 288235.9007 | Q37: =IF('Pt 1 Summary of Data'!Q37="","",'Pt 1 Summary of Data'!Q37+'Pt 1 Summary of Data - Adj'!Q37) -> 288235.9007 | S37: =IF(P37="",0,P37)+IF(N37="",0,N37)+IF(L37="",0,L37)+IF(J37="",0,J37)+IF(H37="",0,H37)+IF(F37="",0,F37) -> 419862.24 | T37: =+'Pt 1 Summary of Data'!T37+'Pt 1 Summary of Data - Adj'!T37 -> 79230.84 | U37: =+'Pt 1 Summary of Data'!U37+'Pt 1 Summary of Data - Adj'!U37 -> 23241.07 | V37: =+'Pt 1 Summary of Data'!V37+'Pt 1 Summary of Data - Adj'!V37 -> 0 | W37: =+'Pt 1 Summary of Data'!W37+'Pt 1 Summary of Data - Adj'!W37 -> 0 | X37: =+'Pt 1 Summary of Data'!X37+'Pt 1 Summary of Data - Adj'!X37 -> 40271.23 | Y37: =+'Pt 1 Summary of Data'!Y37+'Pt 1 Summary of Data - Adj'!Y37 -> 1037508.26 | Z37: =+'Pt 1 Summary of Data'!Z37+'Pt 1 Summary of Data - Adj'!Z37 -> 975.17 | AA37: =+'Pt 1 Summary of Data'!AA37+'Pt 1 Summary of Data - Adj'!AA37 -> 0 | AB37: =+'Pt 1 Summary of Data'!AB37+'Pt 1 Summary of Data - Adj'!AB37 -> 7.59 | AC37: =+'Pt 1 Summary of Data'!AC37+'Pt 1 Summary of Data - Adj'!AC37 -> 0 | AD37: =+'Pt 1 Summary of Data'!AD37+'Pt 1 Summary of Data - Adj'!AD37 -> 1078762.25 | AE37: =+'EB PT 1'!S20 -> 1601096.4 | AF37: Sec 2 - 5.3 | AG37: =+'Pt 1 Summary of Data'!AG37+'Pt 1 Summary of Data - Adj'!AE37 -> 0 | AH37: =SUM(AG37:AG37) -> 0 | AI37: =ROUND((S37+T37+U37+AD37)-AE37+AH37,0) -> 0
C38: 4.2 | D38: Agents and brokers fees and commissions | F38: =IF('Pt 1 Summary of Data'!F38="","",'Pt 1 Summary of Data'!F38+'Pt 1 Summary of Data - Adj'!F38) ->  | G38: =IF('Pt 1 Summary of Data'!G38="","",'Pt 1 Summary of Data'!G38+'Pt 1 Summary of Data - Adj'!G38) ->  | H38: =IF('Pt 1 Summary of Data'!H38="","",'Pt 1 Summary of Data'!H38+'Pt 1 Summary of Data - Adj'!H38) ->  | I38: =IF('Pt 1 Summary of Data'!I38="","",'Pt 1 Summary of Data'!I38+'Pt 1 Summary of Data - Adj'!I38) ->  | J38: =IF('Pt 1 Summary of Data'!J38="","",'Pt 1 Summary of Data'!J38+'Pt 1 Summary of Data - Adj'!J38) ->  | K38: =IF('Pt 1 Summary of Data'!K38="","",'Pt 1 Summary of Data'!K38+'Pt 1 Summary of Data - Adj'!K38) ->  | L38: =IF('Pt 1 Summary of Data'!L38="","",'Pt 1 Summary of Data'!L38+'Pt 1 Summary of Data - Adj'!L38) -> 0 | M38: =IF('Pt 1 Summary of Data'!M38="","",'Pt 1 Summary of Data'!M38+'Pt 1 Summary of Data - Adj'!M38) -> 0 | N38: =IF('Pt 1 Summary of Data'!N38="","",'Pt 1 Summary of Data'!N38+'Pt 1 Summary of Data - Adj'!N38) -> 1993607.77 | O38: =IF('Pt 1 Summary of Data'!O38="","",'Pt 1 Summary of Data'!O38+'Pt 1 Summary of Data - Adj'!O38) -> 1993607.77 | P38: =IF('Pt 1 Summary of Data'!P38="","",'Pt 1 Summary of Data'!P38+'Pt 1 Summary of Data - Adj'!P38) -> 2219250.13 | Q38: =IF('Pt 1 Summary of Data'!Q38="","",'Pt 1 Summary of Data'!Q38+'Pt 1 Summary of Data - Adj'!Q38) -> 2219250.13 | S38: =IF(P38="",0,P38)+IF(N38="",0,N38)+IF(L38="",0,L38)+IF(J38="",0,J38)+IF(H38="",0,H38)+IF(F38="",0,F38) -> 4212857.9 | T38: =+'Pt 1 Summary of Data'!T38+'Pt 1 Summary of Data - Adj'!T38 -> 968364.82 | U38: =+'Pt 1 Summary of Data'!U38+'Pt 1 Summary of Data - Adj'!U38 -> 193818.01 | V38: =+'Pt 1 Summary of Data'!V38+'Pt 1 Summary of Data - Adj'!V38 -> 0 | W38: =+'Pt 1 Summary of Data'!W38+'Pt 1 Summary of Data - Adj'!W38 -> 1511223.39 | X38: =+'Pt 1 Summary of Data'!X38+'Pt 1 Summary of Data - Adj'!X38 -> 0 | Y38: =+'Pt 1 Summary of Data'!Y38+'Pt 1 Summary of Data - Adj'!Y38 -> 29882716.65 | Z38: =+'Pt 1 Summary of Data'!Z38+'Pt 1 Summary of Data - Adj'!Z38 -> 0 | AA38: =+'Pt 1 Summary of Data'!AA38+'Pt 1 Summary of Data - Adj'!AA38 -> 0 | AB38: =+'Pt 1 Summary of Data'!AB38+'Pt 1 Summary of Data - Adj'!AB38 -> 0 | AC38: =+'Pt 1 Summary of Data'!AC38+'Pt 1 Summary of Data - Adj'!AC38 -> 0 | AD38: =+'Pt 1 Summary of Data'!AD38+'Pt 1 Summary of Data - Adj'!AD38 -> 31393940.04 | AE38: =+'EB PT 1'!S23 -> 36766857.37 | AF38: Sec 2 - 5.4 | AG38: =+'Pt 1 Summary of Data'!AG38+'Pt 1 Summary of Data - Adj'!AE38 -> 0 | AH38: =SUM(AG38:AG38) -> 0 | AI38: =ROUND((S38+T38+U38+AD38)-AE38+AH38,0) -> 2123
C39: 4.3 | D39: Other taxes
D40: 4.3a Taxes and assessments (exclude amounts reported in Section 3 or Line 10) | F40: =IF('Pt 1 Summary of Data'!F40="","",'Pt 1 Summary of Data'!F40+'Pt 1 Summary of Data - Adj'!F40) ->  | G40: =IF('Pt 1 Summary of Data'!G40="","",'Pt 1 Summary of Data'!G40+'Pt 1 Summary of Data - Adj'!G40) ->  | H40: =IF('Pt 1 Summary of Data'!H40="","",'Pt 1 Summary of Data'!H40+'Pt 1 Summary of Data - Adj'!H40) ->  | I40: =IF('Pt 1 Summary of Data'!I40="","",'Pt 1 Summary of Data'!I40+'Pt 1 Summary of Data - Adj'!I40) ->  | J40: =IF('Pt 1 Summary of Data'!J40="","",'Pt 1 Summary of Data'!J40+'Pt 1 Summary of Data - Adj'!J40) ->  | K40: =IF('Pt 1 Summary of Data'!K40="","",'Pt 1 Summary of Data'!K40+'Pt 1 Summary of Data - Adj'!K40) ->  | L40: =IF('Pt 1 Summary of Data'!L40="","",'Pt 1 Summary of Data'!L40+'Pt 1 Summary of Data - Adj'!L40) -> 0 | M40: =IF('Pt 1 Summary of Data'!M40="","",'Pt 1 Summary of Data'!M40+'Pt 1 Summary of Data - Adj'!M40) -> 0 | N40: =IF('Pt 1 Summary of Data'!N40="","",'Pt 1 Summary of Data'!N40+'Pt 1 Summary of Data - Adj'!N40) -> 81.94 | O40: =IF('Pt 1 Summary of Data'!O40="","",'Pt 1 Summary of Data'!O40+'Pt 1 Summary of Data - Adj'!O40) -> 81.94 | P40: =IF('Pt 1 Summary of Data'!P40="","",'Pt 1 Summary of Data'!P40+'Pt 1 Summary of Data - Adj'!P40) -> 103007.04 | Q40: =IF('Pt 1 Summary of Data'!Q40="","",'Pt 1 Summary of Data'!Q40+'Pt 1 Summary of Data - Adj'!Q40) -> 103007.04 | S40: =IF(P40="",0,P40)+IF(N40="",0,N40)+IF(L40="",0,L40)+IF(J40="",0,J40)+IF(H40="",0,H40)+IF(F40="",0,F40) -> 103088.98 | T40: =+'Pt 1 Summary of Data'!T40+'Pt 1 Summary of Data - Adj'!T40 -> 41844.19 | U40: =+'Pt 1 Summary of Data'!U40+'Pt 1 Summary of Data - Adj'!U40 -> 4791.72 | V40: =+'Pt 1 Summary of Data'!V40+'Pt 1 Summary of Data - Adj'!V40 -> 0 | W40: =+'Pt 1 Summary of Data'!W40+'Pt 1 Summary of Data - Adj'!W40 -> 59174.48 | X40: =+'Pt 1 Summary of Data'!X40+'Pt 1 Summary of Data - Adj'!X40 -> 0 | Y40: =+'Pt 1 Summary of Data'!Y40+'Pt 1 Summary of Data - Adj'!Y40 -> 26672.97 | Z40: =+'Pt 1 Summary of Data'!Z40+'Pt 1 Summary of Data - Adj'!Z40 -> 287.88 | AA40: =+'Pt 1 Summary of Data'!AA40+'Pt 1 Summary of Data - Adj'!AA40 -> 394564.27 | AB40: =+'Pt 1 Summary of Data'!AB40+'Pt 1 Summary of Data - Adj'!AB40 -> -2.74 | AC40: =+'Pt 1 Summary of Data'!AC40+'Pt 1 Summary of Data - Adj'!AC40 -> 0 | AD40: =+'Pt 1 Summary of Data'!AD40+'Pt 1 Summary of Data - Adj'!AD40 -> 480696.86 | AE40: =+'EB PT 1'!S26 -> 630421.75 | AF40: Sec 2 - 5.5a | AG40: =+'Pt 1 Summary of Data'!AG40+'Pt 1 Summary of Data - Adj'!AE40 -> 0 | AH40: =SUM(AG40:AG40) -> 0 | AI40: =ROUND((S40+T40+U40+AD40)-AE40+AH40,0) -> 0
D41: 4.3b Fines and penalties of regulatory authorities (exclude amounts reported in Line 3.3) | F41: =IF('Pt 1 Summary of Data'!F41="","",'Pt 1 Summary of Data'!F41+'Pt 1 Summary of Data - Adj'!F41) ->  | G41: =IF('Pt 1 Summary of Data'!G41="","",'Pt 1 Summary of Data'!G41+'Pt 1 Summary of Data - Adj'!G41) ->  | H41: =IF('Pt 1 Summary of Data'!H41="","",'Pt 1 Summary of Data'!H41+'Pt 1 Summary of Data - Adj'!H41) ->  | I41: =IF('Pt 1 Summary of Data'!I41="","",'Pt 1 Summary of Data'!I41+'Pt 1 Summary of Data - Adj'!I41) ->  | J41: =IF('Pt 1 Summary of Data'!J41="","",'Pt 1 Summary of Data'!J41+'Pt 1 Summary of Data - Adj'!J41) ->  | K41: =IF('Pt 1 Summary of Data'!K41="","",'Pt 1 Summary of Data'!K41+'Pt 1 Summary of Data - Adj'!K41) ->  | L41: =IF('Pt 1 Summary of Data'!L41="","",'Pt 1 Summary of Data'!L41+'Pt 1 Summary of Data - Adj'!L41) -> 0 | M41: =IF('Pt 1 Summary of Data'!M41="","",'Pt 1 Summary of Data'!M41+'Pt 1 Summary of Data - Adj'!M41) -> 0 | N41: =IF('Pt 1 Summary of Data'!N41="","",'Pt 1 Summary of Data'!N41+'Pt 1 Summary of Data - Adj'!N41) -> 32319.97226 | O41: =IF('Pt 1 Summary of Data'!O41="","",'Pt 1 Summary of Data'!O41+'Pt 1 Summary of Data - Adj'!O41) -> 32319.97226 | P41: =IF('Pt 1 Summary of Data'!P41="","",'Pt 1 Summary of Data'!P41+'Pt 1 Summary of Data - Adj'!P41) -> 70769.00774 | Q41: =IF('Pt 1 Summary of Data'!Q41="","",'Pt 1 Summary of Data'!Q41+'Pt 1 Summary of Data - Adj'!Q41) -> 70769.00774 | S41: =IF(P41="",0,P41)+IF(N41="",0,N41)+IF(L41="",0,L41)+IF(J41="",0,J41)+IF(H41="",0,H41)+IF(F41="",0,F41) -> 103088.98 | T41: =+'Pt 1 Summary of Data'!T41+'Pt 1 Summary of Data - Adj'!T41 -> 0 | U41: =+'Pt 1 Summary of Data'!U41+'Pt 1 Summary of Data - Adj'!U41 -> 0 | V41: =+'Pt 1 Summary of Data'!V41+'Pt 1 Summary of Data - Adj'!V41 -> 0 | W41: =+'Pt 1 Summary of Data'!W41+'Pt 1 Summary of Data - Adj'!W41 -> 0 | X41: =+'Pt 1 Summary of Data'!X41+'Pt 1 Summary of Data - Adj'!X41 -> 0 | Y41: =+'Pt 1 Summary of Data'!Y41+'Pt 1 Summary of Data - Adj'!Y41 -> 0 | Z41: =+'Pt 1 Summary of Data'!Z41+'Pt 1 Summary of Data - Adj'!Z41 -> 0 | AA41: =+'Pt 1 Summary of Data'!AA41+'Pt 1 Summary of Data - Adj'!AA41 -> 0 | AB41: =+'Pt 1 Summary of Data'!AB41+'Pt 1 Summary of Data - Adj'!AB41 -> 0 | AC41: =+'Pt 1 Summary of Data'!AC41+'Pt 1 Summary of Data - Adj'!AC41 -> 0 | AD41: =+'Pt 1 Summary of Data'!AD41+'Pt 1 Summary of Data - Adj'!AD41 -> 0 | AE41: 0 | AF41: Sec 2 - 5.5b | AG41: =+'Pt 1 Summary of Data'!AG41+'Pt 1 Summary of Data - Adj'!AE41 -> 0 | AH41: =SUM(AG41:AG41) -> 0 | AI41: =ROUND((S41+T41+U41+AD41)-AE41+AH41,0) -> 103089
C42: 4.4 | D42: Other general and administrative expenses | F42: =IF('Pt 1 Summary of Data'!F42="","",'Pt 1 Summary of Data'!F42+'Pt 1 Summary of Data - Adj'!F42) ->  | G42: =IF('Pt 1 Summary of Data'!G42="","",'Pt 1 Summary of Data'!G42+'Pt 1 Summary of Data - Adj'!G42) ->  | H42: =IF('Pt 1 Summary of Data'!H42="","",'Pt 1 Summary of Data'!H42+'Pt 1 Summary of Data - Adj'!H42) ->  | I42: =IF('Pt 1 Summary of Data'!I42="","",'Pt 1 Summary of Data'!I42+'Pt 1 Summary of Data - Adj'!I42) ->  | J42: =IF('Pt 1 Summary of Data'!J42="","",'Pt 1 Summary of Data'!J42+'Pt 1 Summary of Data - Adj'!J42) ->  | K42: =IF('Pt 1 Summary of Data'!K42="","",'Pt 1 Summary of Data'!K42+'Pt 1 Summary of Data - Adj'!K42) ->  | L42: =IF('Pt 1 Summary of Data'!L42="","",'Pt 1 Summary of Data'!L42+'Pt 1 Summary of Data - Adj'!L42) -> 0.25 | M42: =IF('Pt 1 Summary of Data'!M42="","",'Pt 1 Summary of Data'!M42+'Pt 1 Summary of Data - Adj'!M42) -> 0.25 | N42: =IF('Pt 1 Summary of Data'!N42="","",'Pt 1 Summary of Data'!N42+'Pt 1 Summary of Data - Adj'!N42) -> 1627440.138 | O42: =IF('Pt 1 Summary of Data'!O42="","",'Pt 1 Summary of Data'!O42+'Pt 1 Summary of Data - Adj'!O42) -> 1627440.138 | P42: =IF('Pt 1 Summary of Data'!P42="","",'Pt 1 Summary of Data'!P42+'Pt 1 Summary of Data - Adj'!P42) -> 3481945.452 | Q42: =IF('Pt 1 Summary of Data'!Q42="","",'Pt 1 Summary of Data'!Q42+'Pt 1 Summary of Data - Adj'!Q42) -> 3481945.452 | S42: =IF(P42="",0,P42)+IF(N42="",0,N42)+IF(L42="",0,L42)+IF(J42="",0,J42)+IF(H42="",0,H42)+IF(F42="",0,F42) -> 5109385.84 | T42: =+'Pt 1 Summary of Data'!T42+'Pt 1 Summary of Data - Adj'!T42 -> 1600398.22 | U42: =+'Pt 1 Summary of Data'!U42+'Pt 1 Summary of Data - Adj'!U42 -> 87016.89 | V42: =+'Pt 1 Summary of Data'!V42+'Pt 1 Summary of Data - Adj'!V42 -> 0 | W42: =+'Pt 1 Summary of Data'!W42+'Pt 1 Summary of Data - Adj'!W42 -> 1612049.18 | X42: =+'Pt 1 Summary of Data'!X42+'Pt 1 Summary of Data - Adj'!X42 -> 2365477.44 | Y42: =+'Pt 1 Summary of Data'!Y42+'Pt 1 Summary of Data - Adj'!Y42 -> 108819772.9 | Z42: =+'Pt 1 Summary of Data'!Z42+'Pt 1 Summary of Data - Adj'!Z42 -> 27339355.42 | AA42: =+'Pt 1 Summary of Data'!AA42+'Pt 1 Summary of Data - Adj'!AA42 -> 11020555.89 | AB42: =+'Pt 1 Summary of Data'!AB42+'Pt 1 Summary of Data - Adj'!AB42 -> -815.11 | AC42: =+'Pt 1 Summary of Data'!AC42+'Pt 1 Summary of Data - Adj'!AC42 -> -27328871.35 | AD42: =+'Pt 1 Summary of Data'!AD42+'Pt 1 Summary of Data - Adj'!AD42 -> 123827524.4 | AE42: =+'EB PT 1'!S29+'EB PT 1'!S35+SUM('EB PT 1'!S38:S44) -> 130644841.4 | AF42: Sec 2 - 5.6 & Sec 4 (all 4.1-6) & 5.1-2 | AG42: =+'Pt 1 Summary of Data'!AG42+'Pt 1 Summary of Data - Adj'!AE42 -> 0 | AH42: =SUM(AG42:AG42) -> 0 | AI42: =ROUND((S42+T42+U42+AD42)-AE42+AH42,0) -> -20516
C43: 4.5 | D43: Total non-claims costs | F43: =IF('Pt 1 Summary of Data'!F43="","",'Pt 1 Summary of Data'!F43+'Pt 1 Summary of Data - Adj'!F43) ->  | G43: =IF('Pt 1 Summary of Data'!G43="","",'Pt 1 Summary of Data'!G43+'Pt 1 Summary of Data - Adj'!G43) ->  | H43: =IF('Pt 1 Summary of Data'!H43="","",'Pt 1 Summary of Data'!H43+'Pt 1 Summary of Data - Adj'!H43) ->  | I43: =IF('Pt 1 Summary of Data'!I43="","",'Pt 1 Summary of Data'!I43+'Pt 1 Summary of Data - Adj'!I43) ->  | J43: =IF('Pt 1 Summary of Data'!J43="","",'Pt 1 Summary of Data'!J43+'Pt 1 Summary of Data - Adj'!J43) ->  | K43: =IF('Pt 1 Summary of Data'!K43="","",'Pt 1 Summary of Data'!K43+'Pt 1 Summary of Data - Adj'!K43) ->  | L43: =IF('Pt 1 Summary of Data'!L43="","",'Pt 1 Summary of Data'!L43+'Pt 1 Summary of Data - Adj'!L43) -> 0.25 | M43: =IF('Pt 1 Summary of Data'!M43="","",'Pt 1 Summary of Data'!M43+'Pt 1 Summary of Data - Adj'!M43) -> 0.25 | N43: =IF('Pt 1 Summary of Data'!N43="","",'Pt 1 Summary of Data'!N43+'Pt 1 Summary of Data - Adj'!N43) -> 3785076.159 | O43: =IF('Pt 1 Summary of Data'!O43="","",'Pt 1 Summary of Data'!O43+'Pt 1 Summary of Data - Adj'!O43) -> 3785076.159 | P43: =IF('Pt 1 Summary of Data'!P43="","",'Pt 1 Summary of Data'!P43+'Pt 1 Summary of Data - Adj'!P43) -> 6163207.531 | Q43: =IF('Pt 1 Summary of Data'!Q43="","",'Pt 1 Summary of Data'!Q43+'Pt 1 Summary of Data - Adj'!Q43) -> 6163207.531 | S43: =IF(P43="",0,P43)+IF(N43="",0,N43)+IF(L43="",0,L43)+IF(J43="",0,J43)+IF(H43="",0,H43)+IF(F43="",0,F43) -> 9948283.94 | T43: =+'Pt 1 Summary of Data'!T43+'Pt 1 Summary of Data - Adj'!T43 -> 2689838.07 | U43: =+'Pt 1 Summary of Data'!U43+'Pt 1 Summary of Data - Adj'!U43 -> 308867.69 | V43: =+'Pt 1 Summary of Data'!V43+'Pt 1 Summary of Data - Adj'!V43 -> 0 | W43: =+'Pt 1 Summary of Data'!W43+'Pt 1 Summary of Data - Adj'!W43 -> 3182447.05 | X43: =+'Pt 1 Summary of Data'!X43+'Pt 1 Summary of Data - Adj'!X43 -> 2405748.67 | Y43: =+'Pt 1 Summary of Data'!Y43+'Pt 1 Summary of Data - Adj'!Y43 -> 139766670.8 | Z43: =+'Pt 1 Summary of Data'!Z43+'Pt 1 Summary of Data - Adj'!Z43 -> 27340618.47 | AA43: =+'Pt 1 Summary of Data'!AA43+'Pt 1 Summary of Data - Adj'!AA43 -> 11415120.16 | AB43: =+'Pt 1 Summary of Data'!AB43+'Pt 1 Summary of Data - Adj'!AB43 -> -810.26 | AC43: =+'Pt 1 Summary of Data'!AC43+'Pt 1 Summary of Data - Adj'!AC43 -> -27328871.35 | AD43: =+'Pt 1 Summary of Data'!AD43+'Pt 1 Summary of Data - Adj'!AD43 -> 156780923.6 | AE43: =SUM(SUM(AE37:AE38)+SUM(AE40:AE42)) -> 169643216.9 | AG43: =+'Pt 1 Summary of Data'!AG43+'Pt 1 Summary of Data - Adj'!AE43 -> 0 | AH43: =SUM(AG43:AG43) -> 0 | AI43: =ROUND((S43+T43+U43+AD43)-AE43+AH43,0) -> 84696
B45: 5. | C45: Other Indicators or information
C46: 5.1 | D46: Number of covered lives | F46: =IF('Pt 1 Summary of Data'!F46="","",'Pt 1 Summary of Data'!F46+'Pt 1 Summary of Data - Adj'!F46) ->  | G46: =IF('Pt 1 Summary of Data'!G46="","",'Pt 1 Summary of Data'!G46+'Pt 1 Summary of Data - Adj'!G46) ->  | H46: =IF('Pt 1 Summary of Data'!H46="","",'Pt 1 Summary of Data'!H46+'Pt 1 Summary of Data - Adj'!H46) ->  | I46: =IF('Pt 1 Summary of Data'!I46="","",'Pt 1 Summary of Data'!I46+'Pt 1 Summary of Data - Adj'!I46) ->  | J46: =IF('Pt 1 Summary of Data'!J46="","",'Pt 1 Summary of Data'!J46+'Pt 1 Summary of Data - Adj'!J46) ->  | K46: =IF('Pt 1 Summary of Data'!K46="","",'Pt 1 Summary of Data'!K46+'Pt 1 Summary of Data - Adj'!K46) ->  | L46: =IF('Pt 1 Summary of Data'!L46="","",'Pt 1 Summary of Data'!L46+'Pt 1 Summary of Data - Adj'!L46) -> 0 | M46: =IF('Pt 1 Summary of Data'!M46="","",'Pt 1 Summary of Data'!M46+'Pt 1 Summary of Data - Adj'!M46) -> 0 | N46: =IF('Pt 1 Summary of Data'!N46="","",'Pt 1 Summary of Data'!N46+'Pt 1 Summary of Data - Adj'!N46) -> 37020 | O46: =IF('Pt 1 Summary of Data'!O46="","",'Pt 1 Summary of Data'!O46+'Pt 1 Summary of Data - Adj'!O46) -> 37020 | P46: =IF('Pt 1 Summary of Data'!P46="","",'Pt 1 Summary of Data'!P46+'Pt 1 Summary of Data - Adj'!P46) -> 101128 | Q46: =IF('Pt 1 Summary of Data'!Q46="","",'Pt 1 Summary of Data'!Q46+'Pt 1 Summary of Data - Adj'!Q46) -> 101128 | S46: =IF(P46="",0,P46)+IF(N46="",0,N46)+IF(L46="",0,L46)+IF(J46="",0,J46)+IF(H46="",0,H46)+IF(F46="",0,F46) -> 138148 | T46: =+'Pt 1 Summary of Data'!T46+'Pt 1 Summary of Data - Adj'!T46 -> 267558 | U46: =+'Pt 1 Summary of Data'!U46+'Pt 1 Summary of Data - Adj'!U46 -> 837 | V46: =+'Pt 1 Summary of Data'!V46+'Pt 1 Summary of Data - Adj'!V46 -> 0 | W46: =+'Pt 1 Summary of Data'!W46+'Pt 1 Summary of Data - Adj'!W46 -> 84023 | X46: =+'Pt 1 Summary of Data'!X46+'Pt 1 Summary of Data - Adj'!X46 -> 30859 | Y46: =+'Pt 1 Summary of Data'!Y46+'Pt 1 Summary of Data - Adj'!Y46 -> 9173 | Z46: =+'Pt 1 Summary of Data'!Z46+'Pt 1 Summary of Data - Adj'!Z46 -> 0 | AA46: =+'Pt 1 Summary of Data'!AA46+'Pt 1 Summary of Data - Adj'!AA46 -> 0 | AB46: =+'Pt 1 Summary of Data'!AB46+'Pt 1 Summary of Data - Adj'!AB46 -> 0 | AC46: =+'Pt 1 Summary of Data'!AC46+'Pt 1 Summary of Data - Adj'!AC46 -> 360949 | AD46: =+'Pt 1 Summary of Data'!AD46+'Pt 1 Summary of Data - Adj'!AD46 -> 485004 | AE46: =+'EB PT 1'!S45 -> 891547 | AF46: Sec 2 - 7.2 | AG46: =+'Pt 1 Summary of Data'!AG46+'Pt 1 Summary of Data - Adj'!AE46 -> 0 | AH46: =SUM(AG46:AG46) -> 0 | AI46: =ROUND((S46+T46+U46+AD46)-AE46+AH46,0) -> 0
C47: 5.2 | D47: Member months | F47: =IF('Pt 1 Summary of Data'!F47="","",'Pt 1 Summary of Data'!F47+'Pt 1 Summary of Data - Adj'!F47) ->  | G47: =IF('Pt 1 Summary of Data'!G47="","",'Pt 1 Summary of Data'!G47+'Pt 1 Summary of Data - Adj'!G47) ->  | H47: =IF('Pt 1 Summary of Data'!H47="","",'Pt 1 Summary of Data'!H47+'Pt 1 Summary of Data - Adj'!H47) ->  | I47: =IF('Pt 1 Summary of Data'!I47="","",'Pt 1 Summary of Data'!I47+'Pt 1 Summary of Data - Adj'!I47) ->  | J47: =IF('Pt 1 Summary of Data'!J47="","",'Pt 1 Summary of Data'!J47+'Pt 1 Summary of Data - Adj'!J47) ->  | K47: =IF('Pt 1 Summary of Data'!K47="","",'Pt 1 Summary of Data'!K47+'Pt 1 Summary of Data - Adj'!K47) ->  | L47: =IF('Pt 1 Summary of Data'!L47="","",'Pt 1 Summary of Data'!L47+'Pt 1 Summary of Data - Adj'!L47) -> 0 | M47: =IF('Pt 1 Summary of Data'!M47="","",'Pt 1 Summary of Data'!M47+'Pt 1 Summary of Data - Adj'!M47) -> 0 | N47: =IF('Pt 1 Summary of Data'!N47="","",'Pt 1 Summary of Data'!N47+'Pt 1 Summary of Data - Adj'!N47) -> 414211 | O47: =IF('Pt 1 Summary of Data'!O47="","",'Pt 1 Summary of Data'!O47+'Pt 1 Summary of Data - Adj'!O47) -> 414211 | P47: =IF('Pt 1 Summary of Data'!P47="","",'Pt 1 Summary of Data'!P47+'Pt 1 Summary of Data - Adj'!P47) -> 990293 | Q47: =IF('Pt 1 Summary of Data'!Q47="","",'Pt 1 Summary of Data'!Q47+'Pt 1 Summary of Data - Adj'!Q47) -> 990293 | S47: =IF(P47="",0,P47)+IF(N47="",0,N47)+IF(L47="",0,L47)+IF(J47="",0,J47)+IF(H47="",0,H47)+IF(F47="",0,F47) -> 1404504 | T47: =+'Pt 1 Summary of Data'!T47+'Pt 1 Summary of Data - Adj'!T47 -> 3205187 | U47: =+'Pt 1 Summary of Data'!U47+'Pt 1 Summary of Data - Adj'!U47 -> 89923 | V47: =+'Pt 1 Summary of Data'!V47+'Pt 1 Summary of Data - Adj'!V47 -> 0 | W47: =+'Pt 1 Summary of Data'!W47+'Pt 1 Summary of Data - Adj'!W47 -> 1014865 | X47: =+'Pt 1 Summary of Data'!X47+'Pt 1 Summary of Data - Adj'!X47 -> 388681 | Y47: =+'Pt 1 Summary of Data'!Y47+'Pt 1 Summary of Data - Adj'!Y47 -> 116912 | Z47: =+'Pt 1 Summary of Data'!Z47+'Pt 1 Summary of Data - Adj'!Z47 -> 0 | AA47: =+'Pt 1 Summary of Data'!AA47+'Pt 1 Summary of Data - Adj'!AA47 -> 0 | AB47: =+'Pt 1 Summary of Data'!AB47+'Pt 1 Summary of Data - Adj'!AB47 -> 0 | AC47: =+'Pt 1 Summary of Data'!AC47+'Pt 1 Summary of Data - Adj'!AC47 -> 4193010 | AD47: =+'Pt 1 Summary of Data'!AD47+'Pt 1 Summary of Data - Adj'!AD47 -> 5713468 | AE47: =ROUND('EB PT 1'!S46,0) -> 10413082 | AF47: Sec 2 - 7.4 | AG47: =+'Pt 1 Summary of Data'!AG47+'Pt 1 Summary of Data - Adj'!AE47 -> 0 | AH47: =SUM(AG47:AG47) -> 0 | AI47: =ROUND((S47+T47+U47+AD47)-AE47+AH47,0) -> 0
C48: 5.3 | D48: Number of life-years | F48: =IF('Pt 1 Summary of Data'!F48="","",'Pt 1 Summary of Data'!F48+'Pt 1 Summary of Data - Adj'!F48) ->  | G48: =IF('Pt 1 Summary of Data'!G48="","",'Pt 1 Summary of Data'!G48+'Pt 1 Summary of Data - Adj'!G48) ->  | H48: =IF('Pt 1 Summary of Data'!H48="","",'Pt 1 Summary of Data'!H48+'Pt 1 Summary of Data - Adj'!H48) ->  | I48: =IF('Pt 1 Summary of Data'!I48="","",'Pt 1 Summary of Data'!I48+'Pt 1 Summary of Data - Adj'!I48) ->  | J48: =IF('Pt 1 Summary of Data'!J48="","",'Pt 1 Summary of Data'!J48+'Pt 1 Summary of Data - Adj'!J48) ->  | K48: =IF('Pt 1 Summary of Data'!K48="","",'Pt 1 Summary of Data'!K48+'Pt 1 Summary of Data - Adj'!K48) ->  | L48: =IF('Pt 1 Summary of Data'!L48="","",'Pt 1 Summary of Data'!L48+'Pt 1 Summary of Data - Adj'!L48) -> 0 | M48: =IF('Pt 1 Summary of Data'!M48="","",'Pt 1 Summary of Data'!M48+'Pt 1 Summary of Data - Adj'!M48) -> 0 | N48: =IF('Pt 1 Summary of Data'!N48="","",'Pt 1 Summary of Data'!N48+'Pt 1 Summary of Data - Adj'!N48) -> 34517.58333 | O48: =IF('Pt 1 Summary of Data'!O48="","",'Pt 1 Summary of Data'!O48+'Pt 1 Summary of Data - Adj'!O48) -> 34517.58333 | P48: =IF('Pt 1 Summary of Data'!P48="","",'Pt 1 Summary of Data'!P48+'Pt 1 Summary of Data - Adj'!P48) -> 82524.41667 | Q48: =IF('Pt 1 Summary of Data'!Q48="","",'Pt 1 Summary of Data'!Q48+'Pt 1 Summary of Data - Adj'!Q48) -> 82524.41667 | S48: =IF(P48="",0,P48)+IF(N48="",0,N48)+IF(L48="",0,L48)+IF(J48="",0,J48)+IF(H48="",0,H48)+IF(F48="",0,F48) -> 117042 | T48: =+'Pt 1 Summary of Data'!T48+'Pt 1 Summary of Data - Adj'!T48 -> 267098.9167 | U48: =+'Pt 1 Summary of Data'!U48+'Pt 1 Summary of Data - Adj'!U48 -> 7493.583333 | V48: =+'Pt 1 Summary of Data'!V48+'Pt 1 Summary of Data - Adj'!V48 -> 0 | W48: =+'Pt 1 Summary of Data'!W48+'Pt 1 Summary of Data - Adj'!W48 -> 84572.08333 | X48: =+'Pt 1 Summary of Data'!X48+'Pt 1 Summary of Data - Adj'!X48 -> 32390.08333 | Y48: =+'Pt 1 Summary of Data'!Y48+'Pt 1 Summary of Data - Adj'!Y48 -> 9742.666667 | Z48: =+'Pt 1 Summary of Data'!Z48+'Pt 1 Summary of Data - Adj'!Z48 -> 0 | AA48: =+'Pt 1 Summary of Data'!AA48+'Pt 1 Summary of Data - Adj'!AA48 -> 0 | AB48: =+'Pt 1 Summary of Data'!AB48+'Pt 1 Summary of Data - Adj'!AB48 -> 0 | AC48: =+'Pt 1 Summary of Data'!AC48+'Pt 1 Summary of Data - Adj'!AC48 -> 349417.5 | AD48: =+'Pt 1 Summary of Data'!AD48+'Pt 1 Summary of Data - Adj'!AD48 -> 476122.3333 | AE48: =AE47/12 -> 867756.8333 | AF48: Sec 2 - 7.5 | AG48: =+'Pt 1 Summary of Data'!AG48+'Pt 1 Summary of Data - Adj'!AE48 -> 0 | AH48: =SUM(AG48:AG48) -> 0 | AI48: =ROUND((S48+T48+U48+AD48)-AE48+AH48,0) -> 0
F49: =CONCATENATE("Grand Total as of 12/31/",RIGHT('EB PT 1'!I11,2)," for ALL markets in col. 1-12") -> Grand Total as of 12/31/17 for ALL markets in col. 1-12
B51: 6. | C51: Net investment income and other gain / (loss) | F51: =IF('Pt 1 Summary of Data'!F51="","",'Pt 1 Summary of Data'!F51+'Pt 1 Summary of Data - Adj'!F51) -> 673739.42
B52: 7. | C52: Other Federal income taxes (exclude taxes on Line 3.1a and 3.1b) | F52: =IF('Pt 1 Summary of Data'!F52="","",'Pt 1 Summary of Data'!F52+'Pt 1 Summary of Data - Adj'!F52) -> 0
B54: Cell Keys:
C55: Blank cells require input from Health plan or Health insurer
C56: Grey cells require no data input
C57: Pink cells require no data input - locked down
C58: Blue cells: computed cell (formula cell)
A60: Business Rules:
D61: Line 1.1 | F61: =+F20 ->  | G61: =+G20 ->  | L61: 0 | M61: 0 | N61: 16962611.97 | O61: 16745673.74 | P61: 36578555.4 | Q61: 36838213.5 | S61: 53541167.37 | T61: 13781195.58 | U61: 1962290.72 | V61: =+V20 -> 0 | W61: 32317971.22 | X61: 6139364.93 | Y61: 808164871.7 | Z61: 152168 | AA61: 163672167.1 | AB61: 1183 | AC61: 259590.1 | AD61: 1010707316 | AE61: 1079888458 | AG61: 0 | AH61: 0 | AI61: 103511
D62: Line 2.1 | F62: =+F23 ->  | G62: =+G23 ->  | L62: 0 | M62: 0 | N62: 9307366.01 | O62: 9235973.25 | P62: 28326315.64 | Q62: 28425678.96 | S62: 37633681.65 | T62: 7044731.85 | U62: 1481723.14 | V62: =+V23 -> 0 | W62: 27927366.15 | X62: 3794940.64 | Y62: 683749908.4 | Z62: 30031.58 | AA62: 168762806.3 | AB62: -4054.22 | AC62: -628.7099997 | AD62: 884260370.1 | AE62: 930422825.1 | AG62: 0 | AH62: 0 | AI62: -2318
D63: Line 4.5 | F63: =+F43 ->  | G63: =+G43 ->  | L63: 0.25 | M63: 0.25 | N63: 3785076.159 | O63: 3785076.159 | P63: 6163207.531 | Q63: 6163207.531 | S63: 9948283.94 | T63: 2689838.07 | U63: 308867.69 | V63: =+V43 -> 0 | W63: 3182447.05 | X63: 2405748.67 | Y63: 139766670.8 | Z63: 27340618.47 | AA63: 11415120.16 | AB63: -810.26 | AC63: -27328871.35 | AD63: 156780923.6 | AE63: 169643216.9 | AG63: 0 | AH63: 0 | AI63: 84696
D64: Member Months (Line 5.2) | F64: =+F47 ->  | G64: =+G47 ->  | L64: 0 | M64: 0 | N64: 414211 | O64: 414211 | P64: 990293 | Q64: 990293 | S64: 1404504 | T64: 3205187 | U64: 89923 | V64: =+V47 -> 0 | W64: 1014865 | X64: 388681 | Y64: 116912 | Z64: 0 | AA64: 0 | AB64: 0 | AC64: 4193010 | AD64: 5713468 | AE64: 10413082 | AG64: 0 | AH64: 0 | AI64: 0
A65: =IF(AJ65=0,"",IF(AJ65=1,AJ65&" FAILURE",AJ65&" FAILURES")) -> 3 FAILURES | D65: Question 1: Why is there not data on all of the following lines: 1.1, 2.1, 4.5, & Other Indicators Line 5.2? | F65: =IF(OR(SUM(F66:F69)=0,SUM(F66:F69)=4),"PASS","FAIL") -> PASS | G65: =IF(OR(SUM(G66:G69)=0,SUM(G66:G69)=4),"PASS","FAIL") -> PASS | H65: PASS | I65: PASS | J65: PASS | K65: PASS | L65: FAIL | M65: FAIL | N65: PASS | O65: PASS | P65: PASS | Q65: PASS | S65: PASS | T65: PASS | U65: PASS | V65: =IF(OR(SUM(V66:V69)=0,SUM(V66:V69)=4),"PASS","FAIL") -> PASS | W65: PASS | X65: PASS | Y65: PASS | Z65: PASS | AA65: PASS | AB65: PASS | AC65: PASS | AD65: PASS | AE65: PASS | AG65: PASS | AH65: PASS | AI65: FAIL | AJ65: =COUNTIF(F65:AI65,"FAIL") -> 3 | AK65: =IF(AJ65>0,"x","") -> x
F66: =IF(ISNUMBER(F61),IF(F61<>0,1,0),0) -> 0 | G66: =IF(ISNUMBER(G61),IF(G61<>0,1,0),0) -> 0 | H66: 0 | I66: 0 | J66: 0 | K66: 0 | L66: 0 | M66: 0 | N66: 1 | O66: 1 | P66: 1 | Q66: 1 | S66: 1 | T66: 1 | U66: 1 | AD66: 1 | AE66: 1 | AG66: 0 | AH66: 0 | AI66: 1
F67: =IF(ISNUMBER(F62),IF(F62<>0,1,0),0) -> 0 | G67: 0 | H67: 0 | I67: 0 | J67: 0 | K67: 0 | L67: 0 | M67: 0 | N67: 1 | O67: 1 | P67: 1 | Q67: 1 | S67: 1 | T67: 1 | U67: 1 | AD67: 1 | AE67: 1 | AG67: 0 | AH67: 0 | AI67: 1
F68: 0 | G68: 0 | H68: 0 | I68: 0 | J68: 0 | K68: 0 | L68: 1 | M68: 1 | N68: 1 | O68: 1 | P68: 1 | Q68: 1 | S68: 1 | T68: 1 | U68: 1 | AD68: 1 | AE68: 1 | AG68: 0 | AH68: 0 | AI68: 1
F69: 0 | G69: 0 | H69: 0 | I69: 0 | J69: 0 | K69: 0 | L69: 0 | M69: 0 | N69: 1 | O69: 1 | P69: 1 | Q69: 1 | S69: 1 | T69: 1 | U69: 1 | AD69: 1 | AE69: 1 | AG69: 0 | AH69: 0 | AI69: 0
D71: Line 3.1 | F71: =+F26 -> 0 | G71: =+G26 -> 0 | H71: 0 | I71: 0 | J71: 0 | K71: 0 | L71: 0 | M71: 0 | N71: 0 | O71: 0 | P71: 0 | Q71: 0 | S71: 0 | T71: 0 | U71: 0 | V71: =+V26 -> 0 | W71: 0 | X71: 0 | Y71: 0 | Z71: 0 | AA71: 0 | AB71: 0 | AC71: 0 | AD71: 0 | AE71: 0 | AG71: 0 | AH71: 0 | AI71: 0
D72: Underwritting Gain/(Loss) | F72: =IF(ISNUMBER(F20-F23-F34-F43),F20-F23-F34-F43,0) -> 0 | G72: =IF(ISNUMBER(G20-G23-G34-G43),G20-G23-G34-G43,0) -> 0 | H72: 0 | I72: 0 | J72: 0 | K72: 0 | L72: -0.35 | M72: -0.35 | N72: 2543147.209 | O72: 2397601.739 | P72: 1334465.711 | Q72: 1494760.491 | S72: 3877612.57 | T72: 2647034.62 | U72: -31375.06 | V72: =IF(ISNUMBER(V20-V23-V34-V43),V20-V23-V34-V43,0) -> 0 | W72: 528615.89 | X72: 145746.65 | Y72: 7810275.75 | Z72: -27305016.33 | AA72: -11699170.16 | AB72: -116732.26 | AC72: 27492539.6 | AD72: -3143740.86 | AE72: 3013312.05 | AG72: 0 | AH72: 0 | AI72: 336219
A73: =IF(AJ73=0,"",IF(AJ73=1,AJ73&" FAILURE",AJ73&" FAILURES")) ->  | D73: Question 2: Why is there federal tax data on Line 3.1, but no underwriting gain/loss? | F73: =IF(AND(F71<>0,F72=0),"FAIL","PASS") -> PASS | G73: =IF(AND(G71<>0,G72=0),"FAIL","PASS") -> PASS | H73: PASS | I73: PASS | J73: PASS | K73: PASS | L73: PASS | M73: PASS | N73: PASS | O73: PASS | P73: PASS | Q73: PASS | S73: PASS | T73: PASS | U73: PASS | V73: =IF(AND(V71<>0,V72=0),"FAIL","PASS") -> PASS | W73: PASS | X73: PASS | Y73: PASS | Z73: PASS | AA73: PASS | AB73: PASS | AC73: PASS | AD73: PASS | AE73: PASS | AG73: PASS | AH73: PASS | AI73: PASS | AJ73: =COUNTIF(F73:AI73,"FAIL") -> 0 | AK73: =IF(AJ73>0,"x","") -> 
D75: Covered Lives (Line 5.1) | F75: =+F46 ->  | G75: =+G46 ->  | L75: 0 | M75: =+M46 -> 0 | N75: 37020 | O75: 37020 | P75: 101128 | Q75: 101128 | S75: 138148 | T75: 267558 | U75: 837 | V75: =+V46 -> 0 | W75: 84023 | X75: 30859 | Y75: 9173 | Z75: 0 | AA75: 0 | AB75: 0 | AC75: 360949 | AD75: 485004 | AE75: 891547 | AG75: 0 | AH75: 0 | AI75: 0
D76: Member Months (Line 5.2) | F76: =+F47 ->  | G76: =+G47 ->  | L76: 0 | M76: 0 | N76: 414211 | O76: 414211 | P76: 990293 | Q76: 990293 | S76: 1404504 | T76: 3205187 | U76: 89923 | V76: =+V47 -> 0 | W76: 1014865 | X76: 388681 | Y76: 116912 | Z76: 0 | AA76: 0 | AB76: 0 | AC76: 4193010 | AD76: 5713468 | AE76: 10413082 | AG76: 0 | AH76: 0 | AI76: 0
A77: =IF(AJ77=0,"",IF(AJ77=1,AJ77&" FAILURE",AJ77&" FAILURES")) ->  | D77: Question 3: Why is there not data for both covered lives (Line 5.1) and member months (Line 5.2)? | F77: =IF(OR(AND(F75=0,F76<>0),AND(F76=0,F75<>0)),"FAIL","PASS") -> PASS | G77: =IF(OR(AND(G75=0,G76<>0),AND(G76=0,G75<>0)),"FAIL","PASS") -> PASS | H77: PASS | I77: PASS | J77: PASS | K77: PASS | L77: PASS | M77: =IF(OR(AND(M75=0,M76<>0),AND(M76=0,M75<>0)),"FAIL","PASS") -> PASS | N77: PASS | O77: PASS | P77: PASS | Q77: PASS | S77: PASS | T77: PASS | U77: PASS | V77: =IF(OR(AND(V75=0,V76<>0),AND(V76=0,V75<>0)),"FAIL","PASS") -> PASS | W77: PASS | X77: PASS | Y77: PASS | Z77: PASS | AA77: PASS | AB77: PASS | AC77: PASS | AD77: PASS | AE77: PASS | AG77: PASS | AH77: PASS | AI77: PASS | AJ77: =COUNTIF(F77:AI77,"FAIL") -> 0 | AK77: =IF(AJ77>0,"x","") -> 
D79: Covered Lives (Line 5.1) | F79: =+F46 ->  | G79: =+G46 ->  | L79: 0 | M79: 0 | N79: 37020 | O79: 37020 | P79: 101128 | Q79: 101128 | S79: 138148 | T79: 267558 | U79: 837 | V79: =+V46 -> 0 | W79: 84023 | X79: 30859 | Y79: 9173 | Z79: 0 | AA79: 0 | AB79: 0 | AC79: 360949 | AD79: 485004 | AE79: 891547 | AG79: 0 | AH79: 0 | AI79: 0
D80: Member Months (Line 5.2) | F80: =+F47 ->  | G80: =+G47 ->  | L80: 0 | M80: 0 | N80: 414211 | O80: 414211 | P80: 990293 | Q80: 990293 | S80: 1404504 | T80: 3205187 | U80: 89923 | V80: =+V47 -> 0 | W80: 1014865 | X80: 388681 | Y80: 116912 | Z80: 0 | AA80: 0 | AB80: 0 | AC80: 4193010 | AD80: 5713468 | AE80: 10413082 | AG80: 0 | AH80: 0 | AI80: 0
D81: Life Years (Line 5.3) | F81: =+F48 ->  | G81: =+G48 ->  | L81: 0 | M81: 0 | N81: 34517.58333 | O81: 34517.58333 | P81: 82524.41667 | Q81: 82524.41667 | S81: 117042 | T81: 267098.9167 | U81: 7493.583333 | V81: =+V48 -> 0 | W81: 84572.08333 | X81: 32390.08333 | Y81: 9742.666667 | Z81: 0 | AA81: 0 | AB81: 0 | AC81: 349417.5 | AD81: 476122.3333 | AE81: 867756.8333 | AG81: 0 | AH81: 0 | AI81: 0
A82: =IF(AJ82=0,"",IF(AJ82=1,AJ82&" FAILURE",AJ82&" FAILURES")) ->  | D82: Question 4: Why is a membership indicator negative? | F82: =IF(OR(F79<0,F80<0,F81<0),"FAIL","PASS") -> PASS | G82: =IF(OR(G79<0,G80<0,G81<0),"FAIL","PASS") -> PASS | H82: PASS | I82: PASS | J82: PASS | K82: PASS | L82: PASS | M82: PASS | N82: PASS | O82: PASS | P82: PASS | Q82: PASS | S82: PASS | T82: PASS | U82: PASS | V82: =IF(OR(V79<0,V80<0,V81<0),"FAIL","PASS") -> PASS | W82: PASS | X82: PASS | Y82: PASS | Z82: PASS | AA82: PASS | AB82: PASS | AC82: PASS | AD82: PASS | AE82: PASS | AG82: PASS | AH82: PASS | AI82: PASS | AJ82: =COUNTIF(F82:AI82,"FAIL") -> 0 | AK82: =IF(AJ82>0,"x","") -> 

Sheet EB PT 2 (hidden)
A1: Part | B1: Ln | C1: Year | D1: ="Account" -> Account | E1: ="IDB Period" -> IDB Period | F1: ="Period" -> Period | G1: ="Reinsurance" -> Reinsurance | H1: ="Project" -> Project | I1: 1 | J1: 2 | K1: 3 | L1: 4 | M1: 5 | N1: 6 | O1: 7 | P1: 8 | Q1: DBP Blank Cust | R1: GRIC | T1: Other Health MLR Total | U1: Vision | V1: Life/Disability | W1: Stop Loss (1) | X1: Stop Loss (1) | Y1: Stop Loss (1) | Z1: Stop Loss (2) | AA1: Stop Loss (2) | AB1: Stop Loss (2) | AC1: Stop Loss (2) | AD1: Supp Hospital | AE1: Supp Hospital | AF1: Supp Hospital | AG1: Supp Hospital | AH1: Medicare Supp | AI1: Medicare Supp | AJ1: Medicare Supp | AK1: Medicare Supp | AL1: Student Health | AM1: Student Health | AN1: Wrap | AO1: Ind Short Term | AP1: Other Health Business | AQ1: Other Differences
A2: ="Not Used" -> Not Used | I2: Views | J2: Views | K2: Views | L2: Views | M2: Views | N2: Views | O2: Views | P2: Views | Q2: Views | R2: Views | S2: Views | T2: Views | U2: Views | V2: Views | W2: Views | X2: Views | Y2: Views | Z2: Views | AA2: Views | AB2: Views | AC2: Views | AD2: Views | AE2: Views | AF2: Views | AG2: Views | AH2: Views | AI2: Views | AJ2: Views | AK2: Views | AL2: Views | AM2: Views | AN2: Views | AO2: Views | AP2: Views | AQ2: Views
A3: ="Linked Cell" -> Linked Cell | I3: Sources | J3: Sources | K3: Sources | L3: Sources | M3: Sources | N3: Sources | O3: Sources | P3: Sources | Q3: Sources | R3: Sources | S3: Sources | T3: Sources | U3: Sources | V3: Sources | W3: Sources | X3: Sources | Y3: Sources | Z3: Sources | AA3: Sources | AB3: Sources | AC3: Sources | AD3: Sources | AE3: Sources | AF3: Sources | AG3: Sources | AH3: Sources | AI3: Sources | AJ3: Sources | AK3: Sources | AL3: Sources | AM3: Sources | AN3: Sources | AO3: Sources | AP3: Sources | AQ3: Sources
A4: ="Separate Rows" -> Separate Rows | I4: Departments | J4: Departments | K4: Departments | L4: Departments | M4: Departments | N4: Departments | O4: Departments | P4: Departments | Q4: Departments | R4: Departments | S4: Departments | T4: Departments | U4: Departments | V4: Departments | W4: Departments | X4: Departments | Y4: Departments | Z4: Departments | AA4: Departments | AB4: Departments | AC4: Departments | AD4: Departments | AE4: Departments | AF4: Departments | AG4: Departments | AH4: Departments | AI4: Departments | AJ4: Departments | AK4: Departments | AL4: Departments | AM4: Departments | AN4: Departments | AO4: Departments | AP4: Departments | AQ4: Departments
A5: Ties Out | I5: ='EB PT 1'!I5 -> NAIC Supp HC Exhibit | J5: =I5 -> NAIC Supp HC Exhibit | K5: =I5 -> NAIC Supp HC Exhibit | L5: =J5 -> NAIC Supp HC Exhibit | M5: =K5 -> NAIC Supp HC Exhibit | N5: =L5 -> NAIC Supp HC Exhibit | O5: =M5 -> NAIC Supp HC Exhibit | P5: =O5 -> NAIC Supp HC Exhibit | Q5: ='EB PT 1'!Q5 -> NAIC Supp HC Exhibit | R5: =M5 -> NAIC Supp HC Exhibit | S5: =R5 -> NAIC Supp HC Exhibit | T5: =P5 -> NAIC Supp HC Exhibit | U5: =T5 -> NAIC Supp HC Exhibit | V5: NAIC Supp HC Exhibit | W5: NAIC Supp HC Exhibit | X5: NAIC Supp HC Exhibit | Y5: NAIC Supp HC Exhibit | Z5: NAIC Supp HC Exhibit | AA5: NAIC Supp HC Exhibit | AB5: NAIC Supp HC Exhibit | AC5: NAIC Supp HC Exhibit | AD5: NAIC Supp HC Exhibit | AE5: NAIC Supp HC Exhibit | AF5: NAIC Supp HC Exhibit | AG5: NAIC Supp HC Exhibit | AH5: NAIC Supp HC Exhibit | AI5: NAIC Supp HC Exhibit | AJ5: NAIC Supp HC Exhibit | AK5: NAIC Supp HC Exhibit | AL5: NAIC Supp HC Exhibit | AM5: NAIC Supp HC Exhibit | AN5: NAIC Supp HC Exhibit | AO5: NAIC Supp HC Exhibit | AP5: =AC5 -> NAIC Supp HC Exhibit | AQ5: =AP5 -> NAIC Supp HC Exhibit
A6: ="Question" -> Question | I6: ='EB PT 1'!I6 -> UnitedHealthcare Domestic | J6: =$I$6 -> UnitedHealthcare Domestic | K6: =$I$6 -> UnitedHealthcare Domestic | L6: =$I$6 -> UnitedHealthcare Domestic | M6: =$I$6 -> UnitedHealthcare Domestic | N6: =$I$6 -> UnitedHealthcare Domestic | O6: =N6 -> UnitedHealthcare Domestic | P6: =O6 -> UnitedHealthcare Domestic | Q6: ='EB PT 1'!Q6 -> Total UnitedHealth Grp-Rollup | R6: Operating Units | S6: Operating Units | T6: Operating Units | U6: Operating Units | V6: Operating Units | W6: Operating Units | X6: Operating Units | Y6: Operating Units | Z6: Operating Units | AA6: Operating Units | AB6: Operating Units | AC6: Operating Units | AD6: Operating Units | AE6: Operating Units | AF6: Operating Units | AG6: Operating Units | AH6: Operating Units | AI6: Operating Units | AJ6: Operating Units | AK6: Operating Units | AL6: Operating Units | AM6: Operating Units | AN6: Operating Units | AO6: Operating Units | AP6: Operating Units | AQ6: Optum
I7: ='EB PT 1'!I7 -> Stand Alone Dental | J7: =I7 -> Stand Alone Dental | K7: =I7 -> Stand Alone Dental | L7: =K7 -> Stand Alone Dental | M7: =K7 -> Stand Alone Dental | N7: =M7 -> Stand Alone Dental | O7: =I7 -> Stand Alone Dental | P7: =I7 -> Stand Alone Dental | Q7: ='EB PT 1'!Q7 -> Stand Alone Dental | R7: =P7 -> Stand Alone Dental | S7: =K7 -> Stand Alone Dental | T7: Other Health Business | U7: Stand Alone Vision | V7: Non Stand Alone Dental/Vision | W7: 322000 - Stop Loss - Individual | X7: 322010 - Stop Loss PEL | Y7: 322100 - Stop Loss - Aggregate | Z7: 150000 - Stop Loss - Individual | AA7: 150010 - Stop Loss - Terminal Ind | AB7: 151000 - Stop Loss - Aggregate | AC7: 151010 - Stop Loss - Terminal Aggregate | AD7: 204000 - Supplemental Hospital Insur | AE7: 204010 - Hospital Advantage Plans | AF7: 204020 - Essential Health Insurance Pln | AG7: 204030 - Essential Plus Health Insur | AH7: 203000 - Medicare Supplement - Indiv | AI7: 203010 - Medicare Supplement - Group | AJ7: 203100 - Natl Acct Med Supp/Retiree | AK7: 203510 - Medicare Supplement - Pre-Std | AL7: 112000 - Student Health Plans | AM7: 113000 - Student Health - Accident Only | AN7: 202080 - Wrap - NonGap | AO7: 106410 - Individual Short Term | AP7: Other Bus(excluded by Statute) | AQ7: Stand Alone Dental
I8: ='EB PT 1'!I8 -> Individual | J8: =I8 -> Individual | K8: ='EB PT 1'!K8 -> Small Group Employer | L8: =K8 -> Small Group Employer | M8: ='EB PT 1'!M8 -> Large Group Employer | N8: =M8 -> Large Group Employer | O8: ='EB PT 1'!O8 -> Customers | P8: =O8 -> Customers | Q8: Blank Customer | R8: Customers | S8: =R8 -> Customers | T8: MLR Customers | U8: MLR Customers | V8: MLR Customers | W8: MLR Customers | X8: MLR Customers | Y8: MLR Customers | Z8: MLR Customers | AA8: MLR Customers | AB8: MLR Customers | AC8: MLR Customers | AD8: MLR Customers | AE8: MLR Customers | AF8: MLR Customers | AG8: MLR Customers | AH8: MLR Customers | AI8: MLR Customers | AJ8: MLR Customers | AK8: MLR Customers | AL8: MLR Customers | AM8: MLR Customers | AN8: MLR Customers | AO8: MLR Customers | AP8: MLR Customers | AQ8: MLR Customers
I9: ='EB PT 1'!I9 -> UnitedHealthcare Ins Co | J9: =I9 -> UnitedHealthcare Ins Co | K9: =J9 -> UnitedHealthcare Ins Co | L9: =K9 -> UnitedHealthcare Ins Co | M9: =L9 -> UnitedHealthcare Ins Co | N9: =M9 -> UnitedHealthcare Ins Co | O9: =N9 -> UnitedHealthcare Ins Co | P9: =N9 -> UnitedHealthcare Ins Co | Q9: ='EB PT 1'!Q9 -> UnitedHealthcare Ins Co | R9: =P9 -> UnitedHealthcare Ins Co | S9: =P9 -> UnitedHealthcare Ins Co | T9: =P9 -> UnitedHealthcare Ins Co | U9: =T9 -> UnitedHealthcare Ins Co | V9: UnitedHealthcare Ins Co | W9: UnitedHealthcare Ins Co | X9: UnitedHealthcare Ins Co | Y9: UnitedHealthcare Ins Co | Z9: UnitedHealthcare Ins Co | AA9: UnitedHealthcare Ins Co | AB9: UnitedHealthcare Ins Co | AC9: UnitedHealthcare Ins Co | AD9: UnitedHealthcare Ins Co | AE9: UnitedHealthcare Ins Co | AF9: UnitedHealthcare Ins Co | AG9: UnitedHealthcare Ins Co | AH9: UnitedHealthcare Ins Co | AI9: UnitedHealthcare Ins Co | AJ9: UnitedHealthcare Ins Co | AK9: UnitedHealthcare Ins Co | AL9: UnitedHealthcare Ins Co | AM9: UnitedHealthcare Ins Co | AN9: UnitedHealthcare Ins Co | AO9: UnitedHealthcare Ins Co | AP9: =AC9 -> UnitedHealthcare Ins Co | AQ9: =AP9 -> UnitedHealthcare Ins Co
I10: ='EB PT 1'!I10 -> California - CA | J10: =I10 -> California - CA | K10: =J10 -> California - CA | L10: =K10 -> California - CA | M10: =L10 -> California - CA | N10: =M10 -> California - CA | O10: =N10 -> California - CA | P10: =N10 -> California - CA | Q10: ='EB PT 1'!Q10 -> California - CA | R10: =P10 -> California - CA | S10: =P10 -> California - CA | T10: =P10 -> California - CA | U10: =T10 -> California - CA | V10: California - CA | W10: California - CA | X10: California - CA | Y10: California - CA | Z10: California - CA | AA10: California - CA | AB10: California - CA | AC10: California - CA | AD10: California - CA | AE10: California - CA | AF10: California - CA | AG10: California - CA | AH10: California - CA | AI10: California - CA | AJ10: California - CA | AK10: California - CA | AL10: California - CA | AM10: California - CA | AN10: California - CA | AO10: California - CA | AP10: =AC10 -> California - CA | AQ10: =AP10 -> California - CA
I11: ='EB PT 1'!I11 -> 2017 | J11: ='Essbase Input'!C12 -> 2018 | K11: =$I$11 -> 2017 | L11: =$J$11 -> 2018 | M11: =$I$11 -> 2017 | N11: =$J$11 -> 2018 | O11: =M11 -> 2017 | P11: =N11 -> 2018 | Q11: ='EB PT 1'!Q11 -> 2017 | R11: =O11 -> 2017 | S11: =P11 -> 2018 | T11: =O11 -> 2017 | U11: =T11 -> 2017 | V11: 2017 | W11: 2017 | X11: 2017 | Y11: 2017 | Z11: 2017 | AA11: 2017 | AB11: 2017 | AC11: 2017 | AD11: 2017 | AE11: 2017 | AF11: 2017 | AG11: 2017 | AH11: 2017 | AI11: 2017 | AJ11: 2017 | AK11: 2017 | AL11: 2017 | AM11: 2017 | AN11: 2017 | AO11: 2017 | AP11: =AC11 -> 2017 | AQ11: =AP11 -> 2017
A12: 2 | B12: 1.1 | C12: =$I$11 -> 2017 | D12: Health Premiums Earned | E12: IDB Periods | F12: Total Year | G12: NO REINSURANCE | H12: All Other Projects | I12: -2802.08 | J12: 1929.48 | K12: -16768561.83 | L12: -11865191.39 | M12: -36717063.76 | N12: -19816460.85 | O12: -53488427.67 | P12: -31679722.76 | Q12: 0 | R12: -53488427.67 | S12: -31679722.76 | T12: -1079888458 | U12: -13781195.58 | V12: -1962290.72 | W12: 0 | X12: 0 | Y12: 0 | Z12: -31187626.6 | AA12: 1404.5 | AB12: -1131911.47 | AC12: 162.35 | AD12: -5966446.73 | AE12: -130417.2 | AF12: -25130.88 | AG12: -17370.12 | AH12: -242577.35 | AI12: -11280309.15 | AJ12: -386699.28 | AK12: -796255285.9 | AL12: 0 | AM12: -152168 | AN12: -163672167.1 | AO12: -1183 | AP12: -1010702339 | AQ12: 0
A13: 2 | B13: 1.1 | C13: =$J$11 -> 2018 | D13: Health Premiums Earned | E13: =CONCATENATE("IDB ",'Essbase Input'!$C$8) -> IDB 2017 | F13: Total Year | G13: NO REINSURANCE | H13: All Other Projects | I13: -2802.08 | J13: 2802.08 | K13: -16771672.99 | L13: -22445.72 | M13: -36729959.41 | N13: -864.74 | O13: -53504434.48 | P13: -20508.38 | Q13: 0 | R13: -53504434.48 | S13: -20508.38 | T13: -1079829247 | U13: -13792364.05 | V13: -1944987.18 | W13: 0 | X13: 0 | Y13: 0 | Z13: -31105248.23 | AA13: 1266.11 | AB13: -1127807.54 | AC13: 144.76 | AD13: -5966446.73 | AE13: -130417.2 | AF13: -25130.88 | AG13: -17370.12 | AH13: -242577.35 | AI13: -11307898.85 | AJ13: -386659.28 | AK13: -796255285.9 | AL13: 0 | AM13: -150286 | AN13: -163664816.3 | AO13: 0 | AP13: -1010633147 | AQ13: 0
A14: 2 | B14: 1.1 | C14: 2018 | D14: Health Premiums Earned | E14: =CONCATENATE("IDB ",'Essbase Input'!$C$8) -> IDB 2017 | F14: March_Bal | G14: NO REINSURANCE | H14: All Other Projects | I14: 0 | J14: 2802.08 | K14: -4029602.01 | L14: -24923.58 | M14: -9055298.26 | N14: -1762.25 | O14: -13084900.27 | P14: -23883.75 | Q14: 0 | R14: -13084900.27 | S14: -23883.75 | T14: -258657883.2 | U14: -3462974.25 | V14: -324763.62 | W14: 0 | X14: 0 | Y14: 0 | Z14: -7660891.68 | AA14: 1266.11 | AB14: -290252.61 | AC14: 144.76 | AD14: -1506561.76 | AE14: -36250.7 | AF14: -6495.35 | AG14: -5150.91 | AH14: -62403.74 | AI14: -2837216.57 | AJ14: -106644.87 | AK14: -197795215.4 | AL14: 0 | AM14: -36612.43 | AN14: -31428761.96 | AO14: 0 | AP14: -241794819.4 | AQ14: 0
A15: 2 | B15: 1.2 | C15: =$I$11 -> 2017 | D15: Unearned Premium | E15: IDB Periods | F15: Begin Balance | G15: NO REINSURANCE | H15: All Other Projects | I15: 0 | J15: -1750 | K15: -4354.75 | L15: -2163.46 | M15: 0 | N15: 0 | O15: -4354.75 | P15: -3913.46 | Q15: 0 | R15: -4354.75 | S15: -3913.46 | T15: -247396.98 | U15: -647.17 | V15: 0 | W15: 0 | X15: 0 | Y15: 0 | Z15: 0 | AA15: 0 | AB15: 0 | AC15: 0 | AD15: 0 | AE15: 0 | AF15: 0 | AG15: 0 | AH15: 0 | AI15: 0 | AJ15: 0 | AK15: 0 | AL15: 0 | AM15: -87865.58 | AN15: 0 | AO15: 0 | AP15: -242399.58 | AQ15: 0
A16: 2 | B16: 1.2 | C16: =$I$11 -> 2017 | D16: Unearned Premium | E16: =CONCATENATE("IDB ",'Essbase Input'!$C$8) -> IDB 2017 | F16: March_Bal | G16: NO REINSURANCE | H16: All Other Projects | I16: 0 | J16: 0 | K16: 270.37 | L16: 0 | M16: 0 | N16: 0 | O16: 270.37 | P16: 0 | Q16: 0 | R16: 270.37 | S16: 0 | T16: 168056.03 | U16: -15.77 | V16: 0 | W16: 0 | X16: 0 | Y16: 0 | Z16: 0 | AA16: 0 | AB16: 0 | AC16: 0 | AD16: 0 | AE16: 0 | AF16: 0 | AG16: 0 | AH16: 0 | AI16: 0 | AJ16: 0 | AK16: 0 | AL16: 0 | AM16: 37301.43 | AN16: 0 | AO16: 0 | AP16: 167801.43 | AQ16: 0
A17: 2 | B17: 1.3 | C17: =$I$11 -> 2017 | D17: Unearned Premium | E17: IDB Periods | F17: December_Bal | G17: NO REINSURANCE | H17: All Other Projects | I17: -1750 | J17: -1750 | K17: -2163.46 | L17: -3021.57 | M17: 0 | N17: 0 | O17: -3913.46 | P17: -4771.57 | Q17: 0 | R17: -3913.46 | S17: -4771.57 | T17: -139373.11 | U17: -505.07 | V17: 0 | W17: 0 | X17: 0 | Y17: 0 | Z17: 0 | AA17: 0 | AB17: 0 | AC17: 0 | AD17: 0 | AE17: 0 | AF17: 0 | AG17: 0 | AH17: 0 | AI17: 0 | AJ17: 0 | AK17: 0 | AL17: 0 | AM17: -87865.58 | AN17: 0 | AO17: 0 | AP17: -134954.58 | AQ17: 0
A18: 2 | B18: 1.3 | C18: 2018 | D18: Unearned Premium | E18: =CONCATENATE("IDB ",'Essbase Input'!$C$8) -> IDB 2017 | F18: March_Bal | G18: NO REINSURANCE | H18: All Other Projects | I18: 0 | J18: 0 | K18: 270.37 | L18: 0 | M18: 0 | N18: 0 | O18: 270.37 | P18: 0 | Q18: 0 | R18: 270.37 | S18: 0 | T18: 168056.03 | U18: -15.77 | V18: 0 | W18: 0 | X18: 0 | Y18: 0 | Z18: 0 | AA18: 0 | AB18: 0 | AC18: 0 | AD18: 0 | AE18: 0 | AF18: 0 | AG18: 0 | AH18: 0 | AI18: 0 | AJ18: 0 | AK18: 0 | AL18: 0 | AM18: 37301.43 | AN18: 0 | AO18: 0 | AP18: 167801.43 | AQ18: 0
A19: 2 | B19: 1.4 | C19: 2017 | D19: Bad Debt Exp | E19: IDB Periods | F19: Total Year | G19: NO REINSURANCE | H19: All Other Projects | I19: 0 | J19: 0 | K19: 3083.67 | L19: 1373.41 | M19: 0 | N19: 0 | O19: 3083.67 | P19: 1373.41 | Q19: 0 | R19: 3083.67 | S19: 1373.41 | T19: 2248.47 | U19: 4141.88 | V19: 0 | W19: 0 | X19: 0 | Y19: 0 | Z19: 0.57 | AA19: 0 | AB19: 0 | AC19: 0 | AD19: 0 | AE19: 0 | AF19: 0 | AG19: 0 | AH19: 0 | AI19: 0 | AJ19: 0 | AK19: 0 | AL19: 0 | AM19: 0 | AN19: -4977.65 | AO19: 0 | AP19: -4977.08 | AQ19: 0
A20: 2 | B20: 2.1a | C20: 2017 | D20: Total Incurred Claims | E20: IDB Periods | F20: Total Year | G20: NO REINSURANCE | H20: All Other Projects | I20: 2318.35 | J20: 697.45 | K20: 9261613.64 | L20: 5894946.4 | M20: 28372068.01 | N20: 13679216.65 | O20: 37636000 | P20: 19574860.5 | Q20: 0 | R20: 37636000 | S20: 19574860.5 | T20: 930422825.1 | U20: 7044731.85 | V20: 1481723.14 | W20: 0 | X20: 0 | Y20: 0 | Z20: 27935259.26 | AA20: -717.75 | AB20: -7594.82 | AC20: 419.46 | AD20: 3699819.85 | AE20: 69382.94 | AF20: 16298.08 | AG20: 9439.77 | AH20: 129566.26 | AI20: 10550527.16 | AJ20: 2209838.71 | AK20: 670859976.2 | AL20: -8000 | AM20: 38031.58 | AN20: 168762806.3 | AO20: -4054.22 | AP20: 884260370.1 | AQ20: 0
A21: 2 | B21: 2.1a | C21: 2017 | D21: 50307 - Pharmacy Non-MLR Claims | E21: IDB Periods | F21: Total Year | G21: NO REINSURANCE | H21: All Other Projects | I21: 0 | J21: 0 | K21: 0 | L21: 0 | M21: 0 | N21: 0 | O21: 0 | P21: 0 | Q21: 0 | R21: 0 | S21: 0 | T21: 0 | U21: 0 | V21: 0 | W21: 0 | X21: 0 | Y21: 0 | Z21: 0 | AA21: 0 | AB21: 0 | AC21: 0 | AD21: 0 | AE21: 0 | AF21: 0 | AG21: 0 | AH21: 0 | AI21: 0 | AJ21: 0 | AK21: 0 | AL21: 0 | AM21: 0 | AN21: 0 | AO21: 0 | AP21: 0 | AQ21: 0
A22: 2 | B22: 2.1a | C22: 2017 | D22: 50010 - Physician Cap Paid - External | E22: IDB Periods | F22: Total Year | G22: NO REINSURANCE | H22: 0000003413 - General Administrative | I22: 0 | J22: 0 | K22: 0 | L22: 0 | M22: 0 | N22: 0 | O22: 0 | P22: 0 | Q22: 0 | R22: 0 | S22: 0 | T22: 0 | U22: 0 | V22: 0 | W22: 0 | X22: 0 | Y22: 0 | Z22: 0 | AA22: 0 | AB22: 0 | AC22: 0 | AD22: 0 | AE22: 0 | AF22: 0 | AG22: 0 | AH22: 0 | AI22: 0 | AJ22: 0 | AK22: 0 | AL22: 0 | AM22: 0 | AN22: 0 | AO22: 0 | AP22: 0 | AQ22: 0
A23: 2 | B23: 2.1a | C23: 2017 | D23: 50619 - Internal Capitation Pd - Other | E23: IDB Periods | F23: Total Year | G23: NO REINSURANCE | H23: All Other Projects | I23: 0 | J23: 0 | K23: 0 | L23: 0 | M23: 0 | N23: 0 | O23: 0 | P23: 0 | Q23: 0 | R23: 0 | S23: 0 | T23: 0 | U23: 0 | V23: 0 | W23: 0 | X23: 0 | Y23: 0 | Z23: 0 | AA23: 0 | AB23: 0 | AC23: 0 | AD23: 0 | AE23: 0 | AF23: 0 | AG23: 0 | AH23: 0 | AI23: 0 | AJ23: 0 | AK23: 0 | AL23: 0 | AM23: 0 | AN23: 0 | AO23: 0 | AP23: 0 | AQ23: 0
A24: 2 | B24: 2.1a | C24: 2017 | D24: Rate Credits NonTaxable | E24: IDB Periods | F24: Total Year | G24: NO REINSURANCE | H24: All Other Projects | I24: 0 | J24: 0 | K24: 0 | L24: 0 | M24: 0 | N24: 0 | O24: 0 | P24: 0 | Q24: 0 | R24: 0 | S24: 0 | T24: 0 | U24: 0 | V24: 0 | W24: 0 | X24: 0 | Y24: 0 | Z24: 0 | AA24: 0 | AB24: 0 | AC24: 0 | AD24: 0 | AE24: 0 | AF24: 0 | AG24: 0 | AH24: 0 | AI24: 0 | AJ24: 0 | AK24: 0 | AL24: 0 | AM24: 0 | AN24: 0 | AO24: 0 | AP24: 0 | AQ24: 0
D25: Direct Contract Reserve | E25: IDB Periods | F25: December_Bal | G25: NO REINSURANCE | H25: All Other Projects | I25: 0 | J25: 0 | K25: 0 | L25: 0 | M25: -138420.59 | N25: -102656.04 | O25: -138420.59 | P25: -102656.04 | Q25: 0 | R25: -138420.59 | S25: -102656.04 | T25: -343682.31 | U25: -33114.89 | V25: 0 | W25: 0 | X25: 0 | Y25: 0 | Z25: 0 | AA25: 0 | AB25: 0 | AC25: 0 | AD25: 0 | AE25: 0 | AF25: -162944.28 | AG25: -9202.55 | AH25: 0 | AI25: 0 | AJ25: 0 | AK25: 0 | AL25: 0 | AM25: 0 | AN25: 0 | AO25: 0 | AP25: -172146.83 | AQ25: 0
D26: Direct Contract Reserve | E26: IDB Periods | F26: Begin Balance | G26: NO REINSURANCE | H26: All Other Projects | I26: 0 | J26: 0 | K26: 0 | L26: 0 | M26: -101362.13 | N26: -138420.59 | O26: -101362.13 | P26: -138420.59 | Q26: 0 | R26: -101362.13 | S26: -138420.59 | T26: -341571.66 | U26: -21847.65 | V26: 0 | W26: 0 | X26: 0 | Y26: 0 | Z26: 0 | AA26: 0 | AB26: 0 | AC26: 0 | AD26: 0 | AE26: 0 | AF26: -193385.08 | AG26: -24976.8 | AH26: 0 | AI26: 0 | AJ26: 0 | AK26: 0 | AL26: 0 | AM26: 0 | AN26: 0 | AO26: 0 | AP26: -218361.88 | AQ26: 0
D27: Healthcare Receivables | E27: IDB Periods | F27: December_Bal | G27: NO REINSURANCE | H27: All Other Projects | I27: 0 | J27: 0 | K27: 0 | L27: 0 | M27: 0 | N27: 0 | O27: 0 | P27: 0 | Q27: 0 | R27: 0 | S27: 0 | T27: 105197.34 | U27: 0 | V27: 57966.4 | W27: 0 | X27: 0 | Y27: 0 | Z27: 0 | AA27: 0 | AB27: 0 | AC27: 0 | AD27: 0 | AE27: 0 | AF27: 0 | AG27: 0 | AH27: 0 | AI27: 29929.3 | AJ27: 6866.71 | AK27: -2.182787284e-11 | AL27: 0 | AM27: 0 | AN27: 10434.93 | AO27: 0 | AP27: 47230.94 | AQ27: 0
D28: Healthcare Receivables | E28: =CONCATENATE("IDB ",'Essbase Input'!$C$8) -> IDB 2017 | F28: March_Bal | G28: NO REINSURANCE | H28: All Other Projects | I28: 0 | J28: 0 | K28: 0 | L28: 0 | M28: 0 | N28: 0 | O28: 0 | P28: 0 | Q28: 0 | R28: 0 | S28: 0 | T28: 1350.33 | U28: 0 | V28: 0 | W28: 0 | X28: 0 | Y28: 0 | Z28: 0 | AA28: 0 | AB28: 0 | AC28: 0 | AD28: 0 | AE28: 0 | AF28: 0 | AG28: 0 | AH28: 0 | AI28: 1119.34 | AJ28: 230.99 | AK28: 0 | AL28: 0 | AM28: 0 | AN28: 0 | AO28: 0 | AP28: 1350.33 | AQ28: 0
D29: Healthcare Receivables | E29: IDB Periods | F29: Begin Balance | G29: NO REINSURANCE | H29: All Other Projects | I29: 0 | J29: 0 | K29: 0 | L29: 0 | M29: 0 | N29: 0 | O29: 0 | P29: 0 | Q29: 0 | R29: 0 | S29: 0 | T29: 615093.12 | U29: 0 | V29: 1174.6 | W29: 0 | X29: 0 | Y29: 0 | Z29: 0 | AA29: 0 | AB29: 0 | AC29: 0 | AD29: 0 | AE29: 0 | AF29: 0 | AG29: -68.07 | AH29: 0 | AI29: 431558.65 | AJ29: 3289.03 | AK29: 179372.83 | AL29: 0 | AM29: 0 | AN29: -352.25 | AO29: 118.33 | AP29: 613918.52 | AQ29: 0
A30: 2 | B30: 2.1b | C30: =$J$11 -> 2018 | D30: Total Incurred Claims | E30: =CONCATENATE("IDB ",'Essbase Input'!$C$8) -> IDB 2017 | F30: Total Year | G30: NO REINSURANCE | H30: All Other Projects | I30: 2255.92 | J30: 261.08 | K30: 9024573.26 | L30: 250649.75 | M30: 27843170.65 | N30: 447340.91 | O30: 36869999.83 | P30: 698251.74 | Q30: 0 | R30: 36869999.83 | S30: 698251.74 | T30: -1370890242 | U30: 7097456.42 | V30: 1259055.07 | W30: 0 | X30: 0 | Y30: 0 | Z30: 28835412.81 | AA30: -717.75 | AB30: 15761.12 | AC30: 419.46 | AD30: 147921482.7 | AE30: -17610415.68 | AF30: 345934.98 | AG30: -186152.17 | AH30: 127712.21 | AI30: 9993721.63 | AJ30: 2090687.01 | AK30: -1758055584 | AL30: 0 | AM30: 18605.12 | AN30: 170371416.3 | AO30: 7.41 | AP30: -1416116753 | AQ30: 0
A31: 2 | B31: 2.1b | C31: 2018 | D31: Total Incurred Claims | E31: =CONCATENATE("IDB ",'Essbase Input'!$C$8) -> IDB 2017 | F31: March_Bal | G31: NO REINSURANCE | H31: All Other Projects | I31: 0 | J31: 261.08 | K31: 1959903.28 | L31: 232715.19 | M31: 7005004.96 | N31: 401836.59 | O31: 8964908.24 | P31: 634812.86 | Q31: 0 | R31: 8964908.24 | S31: 634812.86 | T31: 215435935.6 | U31: 1811767.69 | V31: 202189.21 | W31: 0 | X31: 0 | Y31: 0 | Z31: 8272740.28 | AA31: -4243.91 | AB31: 39195 | AC31: 6.04 | AD31: 1142577.41 | AE31: 25301.06 | AF31: 4719.56 | AG31: 3983.33 | AH31: 62860.44 | AI31: 2811131.45 | AJ31: 398268.84 | AK31: 158815925.1 | AL31: 0 | AM31: 1101.58 | AN31: 32883504.31 | AO31: 0 | AP31: 204457070.5 | AQ31: 0
A32: 2 | B32: 2.1b | C32: 2018 | D32: 50307 - Pharmacy Non-MLR Claims | E32: =CONCATENATE("IDB ",'Essbase Input'!$C$8) -> IDB 2017 | F32: Total Year | G32: NO REINSURANCE | H32: All Other Projects | I32: 0 | J32: 0 | K32: 0 | L32: 0 | M32: 0 | N32: 0 | O32: 0 | P32: 0 | Q32: 0 | R32: 0 | S32: 0 | T32: 0 | U32: 0 | V32: 0 | W32: 0 | X32: 0 | Y32: 0 | Z32: 0 | AA32: 0 | AB32: 0 | AC32: 0 | AD32: 0 | AE32: 0 | AF32: 0 | AG32: 0 | AH32: 0 | AI32: 0 | AJ32: 0 | AK32: 0 | AL32: 0 | AM32: 0 | AN32: 0 | AO32: 0 | AP32: 0 | AQ32: 0
A33: 2 | B33: 2.1b | C33: 2018 | D33: 50307 - Pharmacy Non-MLR Claims | E33: =CONCATENATE("IDB ",'Essbase Input'!$C$8) -> IDB 2017 | F33: March_Bal | G33: NO REINSURANCE | H33: All Other Projects | I33: 0 | J33: 0 | K33: 0 | L33: 0 | M33: 0 | N33: 0 | O33: 0 | P33: 0 | Q33: 0 | R33: 0 | S33: 0 | T33: 0 | U33: 0 | V33: 0 | W33: 0 | X33: 0 | Y33: 0 | Z33: 0 | AA33: 0 | AB33: 0 | AC33: 0 | AD33: 0 | AE33: 0 | AF33: 0 | AG33: 0 | AH33: 0 | AI33: 0 | AJ33: 0 | AK33: 0 | AL33: 0 | AM33: 0 | AN33: 0 | AO33: 0 | AP33: 0 | AQ33: 0
A34: 2 | B34: 2.1b | C34: 2018 | D34: 50010 - Physician Cap Paid - External | E34: =CONCATENATE("IDB ",'Essbase Input'!$C$8) -> IDB 2017 | F34: Total Year | G34: NO REINSURANCE | H34: 0000003413 - General Administrative | I34: 0 | J34: 0 | K34: 0 | L34: 0 | M34: 0 | N34: 0 | O34: 0 | P34: 0 | Q34: 0 | R34: 0 | S34: 0 | T34: 0 | U34: 0 | V34: 0 | W34: 0 | X34: 0 | Y34: 0 | Z34: 0 | AA34: 0 | AB34: 0 | AC34: 0 | AD34: 0 | AE34: 0 | AF34: 0 | AG34: 0 | AH34: 0 | AI34: 0 | AJ34: 0 | AK34: 0 | AL34: 0 | AM34: 0 | AN34: 0 | AO34: 0 | AP34: 0 | AQ34: 0
A35: 2 | B35: 2.1b | C35: 2018 | D35: 50010 - Physician Cap Paid - External | E35: =CONCATENATE("IDB ",'Essbase Input'!$C$8) -> IDB 2017 | F35: March_Bal | G35: NO REINSURANCE | H35: 0000003413 - General Administrative | I35: 0 | J35: 0 | K35: 0 | L35: 0 | M35: 0 | N35: 0 | O35: 0 | P35: 0 | Q35: 0 | R35: 0 | S35: 0 | T35: 0 | U35: 0 | V35: 0 | W35: 0 | X35: 0 | Y35: 0 | Z35: 0 | AA35: 0 | AB35: 0 | AC35: 0 | AD35: 0 | AE35: 0 | AF35: 0 | AG35: 0 | AH35: 0 | AI35: 0 | AJ35: 0 | AK35: 0 | AL35: 0 | AM35: 0 | AN35: 0 | AO35: 0 | AP35: 0 | AQ35: 0
A36: 2 | B36: 2.1b | C36: 2018 | D36: 50619 - Internal Capitation Pd - Other | E36: =CONCATENATE("IDB ",'Essbase Input'!$C$8) -> IDB 2017 | F36: Total Year | G36: NO REINSURANCE | H36: All Other Projects | I36: 0 | J36: 0 | K36: 0 | L36: 0 | M36: 0 | N36: 0 | O36: 0 | P36: 0 | Q36: 0 | R36: 0 | S36: 0 | T36: 0 | U36: 0 | V36: 0 | W36: 0 | X36: 0 | Y36: 0 | Z36: 0 | AA36: 0 | AB36: 0 | AC36: 0 | AD36: 0 | AE36: 0 | AF36: 0 | AG36: 0 | AH36: 0 | AI36: 0 | AJ36: 0 | AK36: 0 | AL36: 0 | AM36: 0 | AN36: 0 | AO36: 0 | AP36: 0 | AQ36: 0
A37: 2 | B37: 2.1b | C37: 2018 | D37: 50619 - Internal Capitation Pd - Other | E37: =CONCATENATE("IDB ",'Essbase Input'!$C$8) -> IDB 2017 | F37: March_Bal | G37: NO REINSURANCE | H37: All Other Projects | I37: 0 | J37: 0 | K37: 0 | L37: 0 | M37: 0 | N37: 0 | O37: 0 | P37: 0 | Q37: 0 | R37: 0 | S37: 0 | T37: 0 | U37: 0 | V37: 0 | W37: 0 | X37: 0 | Y37: 0 | Z37: 0 | AA37: 0 | AB37: 0 | AC37: 0 | AD37: 0 | AE37: 0 | AF37: 0 | AG37: 0 | AH37: 0 | AI37: 0 | AJ37: 0 | AK37: 0 | AL37: 0 | AM37: 0 | AN37: 0 | AO37: 0 | AP37: 0 | AQ37: 0
A38: 2 | B38: 2.1b | C38: 2018 | D38: Rate Credits NonTaxable | E38: =CONCATENATE("IDB ",'Essbase Input'!$C$8) -> IDB 2017 | F38: Total Year | G38: NO REINSURANCE | H38: All Other Projects | I38: 0 | J38: 0 | K38: 0 | L38: 0 | M38: 0 | N38: 0 | O38: 0 | P38: 0 | Q38: 0 | R38: 0 | S38: 0 | T38: 0 | U38: 0 | V38: 0 | W38: 0 | X38: 0 | Y38: 0 | Z38: 0 | AA38: 0 | AB38: 0 | AC38: 0 | AD38: 0 | AE38: 0 | AF38: 0 | AG38: 0 | AH38: 0 | AI38: 0 | AJ38: 0 | AK38: 0 | AL38: 0 | AM38: 0 | AN38: 0 | AO38: 0 | AP38: 0 | AQ38: 0
A39: 2 | B39: 2.1b | C39: 2018 | D39: Rate Credits NonTaxable | E39: =CONCATENATE("IDB ",'Essbase Input'!$C$8) -> IDB 2017 | F39: March_Bal | G39: NO REINSURANCE | H39: All Other Projects | I39: 0 | J39: 0 | K39: 0 | L39: 0 | M39: 0 | N39: 0 | O39: 0 | P39: 0 | Q39: 0 | R39: 0 | S39: 0 | T39: 0 | U39: 0 | V39: 0 | W39: 0 | X39: 0 | Y39: 0 | Z39: 0 | AA39: 0 | AB39: 0 | AC39: 0 | AD39: 0 | AE39: 0 | AF39: 0 | AG39: 0 | AH39: 0 | AI39: 0 | AJ39: 0 | AK39: 0 | AL39: 0 | AM39: 0 | AN39: 0 | AO39: 0 | AP39: 0 | AQ39: 0
A40: 2 | B40: 2.1b | C40: =$I$11 -> 2017 | D40: Direct Contract Reserve | E40: IDB Periods | F40: December_Bal | G40: NO REINSURANCE | H40: All Other Projects | I40: 0 | J40: 0 | K40: 0 | L40: 0 | M40: -138420.59 | N40: -102656.04 | O40: -138420.59 | P40: -102656.04 | Q40: 0 | R40: -138420.59 | S40: -102656.04 | T40: -343682.31 | U40: -33114.89 | V40: 0 | W40: 0 | X40: 0 | Y40: 0 | Z40: 0 | AA40: 0 | AB40: 0 | AC40: 0 | AD40: 0 | AE40: 0 | AF40: -162944.28 | AG40: -9202.55 | AH40: 0 | AI40: 0 | AJ40: 0 | AK40: 0 | AL40: 0 | AM40: 0 | AN40: 0 | AO40: 0 | AP40: -172146.83 | AQ40: 0
A41: 2 | B41: 2.1b | C41: =$J$11 -> 2018 | D41: Healthcare Receivables | E41: =CONCATENATE("IDB ",'Essbase Input'!$C$8) -> IDB 2017 | F41: March_Bal | G41: NO REINSURANCE | H41: All Other Projects | I41: 0 | J41: 0 | K41: 0 | L41: 0 | M41: 0 | N41: 0 | O41: 0 | P41: 0 | Q41: 0 | R41: 0 | S41: 0 | T41: 1350.33 | U41: 0 | V41: 0 | W41: 0 | X41: 0 | Y41: 0 | Z41: 0 | AA41: 0 | AB41: 0 | AC41: 0 | AD41: 0 | AE41: 0 | AF41: 0 | AG41: 0 | AH41: 0 | AI41: 1119.34 | AJ41: 230.99 | AK41: 0 | AL41: 0 | AM41: 0 | AN41: 0 | AO41: 0 | AP41: 1350.33 | AQ41: 0
A42: 2 | B42: 2.2a | C42: =$I$11 -> 2017 | D42: Direct Claim Liability | E42: IDB Periods | F42: December_Bal | G42: NO REINSURANCE | H42: All Other Projects | I42: -11.95 | J42: 0 | K42: -454667.45 | L42: -408428.49 | M42: -1493585.33 | N42: -1022417.32 | O42: -1948264.73 | P42: -1430845.81 | Q42: 0 | R42: -1947881.3 | S42: -1430462.38 | T42: -92598268.7 | U42: -383433.94 | V42: -389898.52 | W42: 0 | X42: 0 | Y42: 0 | Z42: -14515.74 | AA42: -529.09 | AB42: -224.09 | AC42: -31.01 | AD42: -314079.83 | AE42: -20533.59 | AF42: -1399.19 | AG42: -2608.95 | AH42: -11674.62 | AI42: -1590203.9 | AJ42: -120070.02 | AK42: -81888448.02 | AL42: 621935.02 | AM42: -500.35 | AN42: -5964674.29 | AO42: -563356.4 | AP42: -89877054.94 | AQ42: 0
A43: 2 | B43: 2.2b | C43: 2018 | D43: Direct Claim Liability | E43: =CONCATENATE("IDB ",'Essbase Input'!$C$8) -> IDB 2017 | F43: March_Bal | G43: NO REINSURANCE | H43: All Other Projects | I43: 0 | J43: 0 | K43: -226538 | L43: -113686.81 | M43: -952353.1 | N43: -370619.19 | O43: -1178891.1 | P43: -484306 | Q43: 0 | R43: -1178891.1 | S43: -484306 | T43: -12321737.99 | U43: -317314.1 | V43: -87579.07 | W43: 0 | X43: 0 | Y43: 0 | Z43: -530.52 | AA43: -18.96 | AB43: -8.34 | AC43: -1.11 | AD43: 133225.18 | AE43: -11452.22 | AF43: 1019.77 | AG43: 243.11 | AH43: -27361.6 | AI43: 21034.12 | AJ43: -32984.74 | AK43: -5151605.36 | AL43: 0 | AM43: 1522.29 | AN43: -5689911.65 | AO43: 0 | AP43: -10737953.72 | AQ43: 0
A44: 2 | B44: 2.3 | C44: =$I$11 -> 2017 | D44: Direct Claim Liability | E44: IDB Periods | F44: Begin Balance | G44: NO REINSURANCE | H44: All Other Projects | I44: 0 | J44: -11.95 | K44: -458539.89 | L44: -454667.45 | M44: -1385605.76 | N44: -1493585.33 | O44: -1844145.65 | P44: -1948264.73 | Q44: 0 | R44: -1843738.57 | S44: -1947881.3 | T44: -84859292.51 | U44: -357115.28 | V44: -181100.72 | W44: 0 | X44: 0 | Y44: 0 | Z44: -12371.84 | AA44: -453.14 | AB44: -190.15 | AC44: -26.56 | AD44: -857050.06 | AE44: 21510.45 | AF44: 2054.25 | AG44: -3260.14 | AH44: -13198.41 | AI44: -1855829.46 | AJ44: -54161.04 | AK44: -77688148.91 | AL44: 613935.02 | AM44: -1486.5 | AN44: -2033766.79 | AO44: -568378.35 | AP44: -82477337.94 | AQ44: 0
A45: 2 | B45: 2.4a | C45: =$I$11 -> 2017 | D45: Direct Claim Reserves | E45: IDB Periods | F45: December_Bal | G45: NO REINSURANCE | H45: All Other Projects | I45: 0 | J45: 0 | K45: 0 | L45: 0 | M45: 0 | N45: 0 | O45: 0 | P45: 0 | Q45: 0 | R45: 0 | S45: 0 | T45: -30951600.54 | U45: 0 | V45: -3753003.98 | W45: 0 | X45: 0 | Y45: 0 | Z45: -4095280.14 | AA45: -480108.31 | AB45: -31195 | AC45: -15028.11 | AD45: -91262.74 | AE45: -2028.08 | AF45: -157.1 | AG45: -183.48 | AH45: -42.76 | AI45: -1422.43 | AJ45: -1725.41 | AK45: -22480163 | AL45: 0 | AM45: 0 | AN45: 0 | AO45: 0 | AP45: -27198596.56 | AQ45: 0
A46: 2 | B46: 2.4b | C46: =$J$11 -> 2018 | D46: Direct Claim Reserves | E46: =CONCATENATE("IDB ",'Essbase Input'!$C$8) -> IDB 2017 | F46: March_Bal | G46: NO REINSURANCE | H46: All Other Projects | I46: 0 | J46: 0 | K46: 0 | L46: 0 | M46: 0 | N46: 0 | O46: 0 | P46: 0 | Q46: 0 | R46: 0 | S46: 0 | T46: -5488051.61 | U46: 0 | V46: -108959.47 | W46: 0 | X46: 0 | Y46: 0 | Z46: -3544221.72 | AA46: 4262.87 | AB46: -39186.66 | AC46: -4.93 | AD46: -5889.71 | AE46: -402.07 | AF46: 28.21 | AG46: -12.65 | AH46: -29.95 | AI46: 81.47 | AJ46: 0 | AK46: -1793717 | AL46: 0 | AM46: 0 | AN46: 0 | AO46: 0 | AP46: -5379092.14 | AQ46: 0
A47: 2 | B47: 2.5 | C47: =$I$11 -> 2017 | D47: Direct Claim Reserves | E47: IDB Periods | F47: Begin Balance | G47: NO REINSURANCE | H47: All Other Projects | I47: 0 | J47: 0 | K47: 0 | L47: 0 | M47: 0 | N47: 0 | O47: 0 | P47: 0 | Q47: 0 | R47: 0 | S47: 0 | T47: -28530394.68 | U47: 0 | V47: -3026672.18 | W47: 0 | X47: 0 | Y47: 0 | Z47: -4215196.27 | AA47: -480901.9 | AB47: -38823.18 | AC47: -14613.09 | AD47: -96851.22 | AE47: -3175.43 | AF47: -218.68 | AG47: -179.87 | AH47: -64.69 | AI47: -1666.05 | AJ47: -254.12 | AK47: -20651778 | AL47: 0 | AM47: 0 | AN47: 0 | AO47: 0 | AP47: -25503722.5 | AQ47: 0
A48: 2 | B48: 2.6a | C48: =$I$11 -> 2017 | D48: Rate Credits Taxable | E48: IDB Periods | F48: Total Year | G48: NO REINSURANCE | H48: All Other Projects | I48: 0 | J48: 0 | K48: 0 | L48: 0 | M48: 0 | N48: 0 | O48: 0 | P48: 0 | Q48: 0 | R48: 0 | S48: 0 | T48: 23549805.74 | U48: 0 | V48: 0 | W48: 0 | X48: 0 | Y48: 0 | Z48: 82552.22 | AA48: 0 | AB48: 0 | AC48: 0 | AD48: 160837.47 | AE48: -127933.4 | AF48: 20101.41 | AG48: 10278.73 | AH48: 0 | AI48: 0 | AJ48: -110116.95 | AK48: 23514086.26 | AL48: 0 | AM48: 0 | AN48: 0 | AO48: 0 | AP48: 23549805.74 | AQ48: 0
A49: 2 | B49: 2.6a | C49: =$I$11 -> 2017 | D49: Reserve for Rate Credits | E49: IDB Periods | F49: December_Bal | G49: NO REINSURANCE | H49: All Other Projects | I49: 0 | J49: 0 | K49: 0 | L49: 0 | M49: 0 | N49: 0 | O49: 0 | P49: 0 | Q49: 0 | R49: 0 | S49: 0 | T49: -1047246.05 | U49: 0 | V49: 0 | W49: 0 | X49: 0 | Y49: 0 | Z49: -1142899.33 | AA49: 0 | AB49: 0 | AC49: 0 | AD49: 0 | AE49: 0 | AF49: 0 | AG49: 0 | AH49: 0 | AI49: 0 | AJ49: 95653.27 | AK49: 0 | AL49: 0.01 | AM49: 0 | AN49: 0 | AO49: 0 | AP49: -1047246.05 | AQ49: 0
A50: 2 | B50: 2.6a | C50: =$I$11 -> 2017 | D50: Estimated Rebates Unpaid | E50: IDB Periods | F50: December_Bal | G50: NO REINSURANCE | H50: All Other Projects | I50: 0 | J50: 0 | K50: 0 | L50: 0 | M50: 0 | N50: 0 | O50: 0 | P50: 0 | Q50: 0 | R50: 0 | S50: 0 | T50: 0.01 | U50: 0 | V50: 0 | W50: 0 | X50: 0 | Y50: 0 | Z50: 0 | AA50: 0 | AB50: 0 | AC50: 0 | AD50: 0 | AE50: 0 | AF50: 0 | AG50: 0 | AH50: 0 | AI50: 0 | AJ50: 0 | AK50: 0 | AL50: 0.01 | AM50: 0 | AN50: 0 | AO50: 0 | AP50: 0.01 | AQ50: 0
A51: 2 | B51: 2.6a | C51: 2017 | D51: Reserve for Rate Credits | E51: IDB Periods | F51: Begin Balance | G51: NO REINSURANCE | H51: All Other Projects | I51: 0 | J51: 0 | K51: 0 | L51: 0 | M51: 0 | N51: 0 | O51: 0 | P51: 0 | Q51: 0 | R51: 0 | S51: 0 | T51: 27425147 | U51: 0 | V51: 0 | W51: 0 | X51: 0 | Y51: 0 | Z51: -1885396.79 | AA51: 0 | AB51: 0 | AC51: 0 | AD51: 283603.38 | AE51: 11460.39 | AF51: 2347.33 | AG51: 2498.66 | AH51: 0 | AI51: 0 | AJ51: -351077 | AK51: 29361711.02 | AL51: 0.01 | AM51: 0 | AN51: 0 | AO51: 0 | AP51: 27425147 | AQ51: 0
A52: 2 | B52: 2.6a | C52: 2017 | D52: Estimated Rebates Unpaid | E52: IDB Periods | F52: Begin Balance | G52: NO REINSURANCE | H52: All Other Projects | I52: 0 | J52: 0 | K52: 0 | L52: 0 | M52: 0 | N52: 0 | O52: 0 | P52: 0 | Q52: 0 | R52: 0 | S52: 0 | T52: 0.01 | U52: 0 | V52: 0 | W52: 0 | X52: 0 | Y52: 0 | Z52: 0 | AA52: 0 | AB52: 0 | AC52: 0 | AD52: 0 | AE52: 0 | AF52: 0 | AG52: 0 | AH52: 0 | AI52: 0 | AJ52: 0 | AK52: 0 | AL52: 0.01 | AM52: 0 | AN52: 0 | AO52: 0 | AP52: 0.01 | AQ52: 0
A53: 2 | B53: 2.6b | C53: =$I$11 -> 2017 | D53: Rate Credits Taxable | E53: IDB Periods | F53: Total Year | G53: NO REINSURANCE | H53: All Other Projects | I53: 0 | J53: 0 | K53: 0 | L53: 0 | M53: 0 | N53: 0 | O53: 0 | P53: 0 | Q53: 0 | R53: 0 | S53: 0 | T53: 23549805.74 | U53: 0 | V53: 0 | W53: 0 | X53: 0 | Y53: 0 | Z53: 82552.22 | AA53: 0 | AB53: 0 | AC53: 0 | AD53: 160837.47 | AE53: -127933.4 | AF53: 20101.41 | AG53: 10278.73 | AH53: 0 | AI53: 0 | AJ53: -110116.95 | AK53: 23514086.26 | AL53: 0 | AM53: 0 | AN53: 0 | AO53: 0 | AP53: 23549805.74 | AQ53: 0
A54: 2 | B54: 2.6b | C54: =$J$11 -> 2018 | D54: Rate Credits Taxable | E54: =CONCATENATE("IDB ",'Essbase Input'!$C$8) -> IDB 2017 | F54: March_Bal | G54: NO REINSURANCE | H54: All Other Projects | I54: 0 | J54: 0 | K54: 0 | L54: 0 | M54: 0 | N54: 0 | O54: 0 | P54: 0 | Q54: 0 | R54: 0 | S54: 0 | T54: -11921143.5 | U54: 0 | V54: 0 | W54: 0 | X54: 0 | Y54: 0 | Z54: 370598.93 | AA54: 0 | AB54: 0 | AC54: 0 | AD54: 1908187.32 | AE54: -124464.25 | AF54: 3212.09 | AG54: 4655.87 | AH54: 0 | AI54: 0 | AJ54: 13710.48 | AK54: -14097043.94 | AL54: 0 | AM54: 0 | AN54: 0 | AO54: 0 | AP54: -11921143.5 | AQ54: 0
A55: 2 | B55: 2.6b | C55: =$J$11 -> 2018 | D55: Reserve for Rate Credits | E55: =CONCATENATE("IDB ",'Essbase Input'!$C$8) -> IDB 2017 | F55: March_Bal | G55: NO REINSURANCE | H55: All Other Projects | I55: 0 | J55: 0 | K55: 0 | L55: 0 | M55: 0 | N55: 0 | O55: 0 | P55: 0 | Q55: 0 | R55: 0 | S55: 0 | T55: -384309.41 | U55: 0 | V55: 0 | W55: 0 | X55: 0 | Y55: 0 | Z55: -370598.93 | AA55: 0 | AB55: 0 | AC55: 0 | AD55: 0 | AE55: 0 | AF55: 0 | AG55: 0 | AH55: 0 | AI55: 0 | AJ55: -13710.48 | AK55: 0 | AL55: 0 | AM55: 0 | AN55: 0 | AO55: 0 | AP55: -384309.41 | AQ55: 0
A56: 2 | B56: 2.6b | C56: =$J$11 -> 2018 | D56: Estimated Rebates Unpaid | E56: =CONCATENATE("IDB ",'Essbase Input'!$C$8) -> IDB 2017 | F56: March_Bal | G56: NO REINSURANCE | H56: All Other Projects | I56: 0 | J56: 0 | K56: 0 | L56: 0 | M56: 0 | N56: 0 | O56: 0 | P56: 0 | Q56: 0 | R56: 0 | S56: 0 | T56: 0 | U56: 0 | V56: 0 | W56: 0 | X56: 0 | Y56: 0 | Z56: 0 | AA56: 0 | AB56: 0 | AC56: 0 | AD56: 0 | AE56: 0 | AF56: 0 | AG56: 0 | AH56: 0 | AI56: 0 | AJ56: 0 | AK56: 0 | AL56: 0 | AM56: 0 | AN56: 0 | AO56: 0 | AP56: 0 | AQ56: 0
A57: 2 | B57: 2.9a | C57: =$I$11 -> 2017 | D57: Inc Med Inc Pools & Bonuses | E57: IDB Periods | F57: December_Bal | G57: NO REINSURANCE | H57: All Other Projects | I57: 0 | J57: 0 | K57: 0 | L57: 0 | M57: 0 | N57: 0 | O57: 0 | P57: 0 | Q57: 0 | R57: 0 | S57: 0 | T57: 3975.12 | U57: 0 | V57: 0 | W57: 0 | X57: 0 | Y57: 0 | Z57: 0 | AA57: 0 | AB57: 0 | AC57: 0 | AD57: 0 | AE57: 0 | AF57: 0 | AG57: 0 | AH57: 0 | AI57: 0 | AJ57: 3975.12 | AK57: 0 | AL57: 0 | AM57: 0 | AN57: 0 | AO57: 0 | AP57: 3975.12 | AQ57: 0
A58: 2 | B58: 2.9a | C58: =$J$11 -> 2018 | D58: Inc Med Inc Pools & Bonuses | E58: =CONCATENATE("IDB ",'Essbase Input'!$C$8) -> IDB 2017 | F58: December_YTD | G58: NO REINSURANCE | H58: All Other Projects | I58: 0 | J58: 0 | K58: 0 | L58: 0 | M58: 0 | N58: 0 | O58: 0 | P58: 0 | Q58: 0 | R58: 0 | S58: 0 | T58: 1009.92 | U58: 0 | V58: 0 | W58: 0 | X58: 0 | Y58: 0 | Z58: 0 | AA58: 0 | AB58: 0 | AC58: 0 | AD58: 0 | AE58: 0 | AF58: 0 | AG58: 0 | AH58: 0 | AI58: 0 | AJ58: 1009.92 | AK58: 0 | AL58: 0 | AM58: 0 | AN58: 0 | AO58: 0 | AP58: 1009.92 | AQ58: 0
A59: 2 | B59: 2.9a | C59: =$J$11 -> 2018 | D59: Inc Med Inc Pools & Bonuses | E59: =CONCATENATE("IDB ",'Essbase Input'!$C$8) -> IDB 2017 | F59: March_YTD | G59: NO REINSURANCE | H59: All Other Projects | I59: 0 | J59: 0 | K59: 0 | L59: 0 | M59: 0 | N59: 0 | O59: 0 | P59: 0 | Q59: 0 | R59: 0 | S59: 0 | T59: 0 | U59: 0 | V59: 0 | W59: 0 | X59: 0 | Y59: 0 | Z59: 0 | AA59: 0 | AB59: 0 | AC59: 0 | AD59: 0 | AE59: 0 | AF59: 0 | AG59: 0 | AH59: 0 | AI59: 0 | AJ59: 0 | AK59: 0 | AL59: 0 | AM59: 0 | AN59: 0 | AO59: 0 | AP59: 0 | AQ59: 0
A60: 2 | B60: 2.9b | C60: =$I$11 -> 2017 | D60: Incurred Med Inc Pools & Bonus | E60: IDB Periods | F60: December_Bal | G60: NO REINSURANCE | H60: All Other Projects | I60: 0 | J60: 0 | K60: 0 | L60: 0 | M60: 0 | N60: 0 | O60: 0 | P60: 0 | Q60: 0 | R60: 0 | S60: 0 | T60: 0 | U60: 0 | V60: 0 | W60: 0 | X60: 0 | Y60: 0 | Z60: 0 | AA60: 0 | AB60: 0 | AC60: 0 | AD60: 0 | AE60: 0 | AF60: 0 | AG60: 0 | AH60: 0 | AI60: 0 | AJ60: 0 | AK60: 0 | AL60: 0 | AM60: 0 | AN60: 0 | AO60: 0 | AP60: 0 | AQ60: 0
A61: 2 | B61: 2.9b | C61: =$J$11 -> 2018 | D61: Incurred Med Inc Pools & Bonus | E61: =CONCATENATE("IDB ",'Essbase Input'!$C$8) -> IDB 2017 | F61: March_Bal | G61: NO REINSURANCE | H61: All Other Projects | I61: 0 | J61: 0 | K61: 0 | L61: 0 | M61: 0 | N61: 0 | O61: 0 | P61: 0 | Q61: 0 | R61: 0 | S61: 0 | T61: 0 | U61: 0 | V61: 0 | W61: 0 | X61: 0 | Y61: 0 | Z61: 0 | AA61: 0 | AB61: 0 | AC61: 0 | AD61: 0 | AE61: 0 | AF61: 0 | AG61: 0 | AH61: 0 | AI61: 0 | AJ61: 0 | AK61: 0 | AL61: 0 | AM61: 0 | AN61: 0 | AO61: 0 | AP61: 0 | AQ61: 0
A62: 2 | B62: 2.9b | C62: =$I$11 -> 2017 | D62: Incurred Med Inc Pools & Bonus | E62: IDB Periods | F62: Begin Balance | G62: NO REINSURANCE | H62: All Other Projects | I62: 0 | J62: 0 | K62: 0 | L62: 0 | M62: 0 | N62: 0 | O62: 0 | P62: 0 | Q62: 0 | R62: 0 | S62: 0 | T62: 0 | U62: 0 | V62: 0 | W62: 0 | X62: 0 | Y62: 0 | Z62: 0 | AA62: 0 | AB62: 0 | AC62: 0 | AD62: 0 | AE62: 0 | AF62: 0 | AG62: 0 | AH62: 0 | AI62: 0 | AJ62: 0 | AK62: 0 | AL62: 0 | AM62: 0 | AN62: 0 | AO62: 0 | AP62: 0 | AQ62: 0

Sheet Pt 2 Premium and Claims (hidden)
B1: Department of Managed Health Care/Department of Insurance
B2: Medical Loss Ratio Reporting Form: Dental Coverage
B3: Part 2 - Premium and Claims
B5: Health Plan ID
B6: ='Cover Page'!C7 ->  | F6: Part 2
B7: Legal Name
B8: ='Cover Page'!C8 -> UnitedHealthcare Insurance Company
B9: dBA
B10: ='Cover Page'!C9 -> N/A
B11: MLR Reporting Year
B12: ='Cover Page'!C6 -> 2017
F15: Health Insurance Coverage | L15: Health Insurance Coverage | S15: UHG Other Health Reconciliation
F16: DHMO Products | L16: DPPO & Indemnity Products | S16: Subtotal of CA Dental Business | T16: Vision | U16: Life/Disability | V16: Stop Loss | W16: Stop Loss | X16: Supp Hospital | Y16: Medicare Supp | Z16: Student Health | AA16: Wrap | AB16: Ind Short Term | AC16: Other Health | AD16: Total Other Health | AE16: Federal MLR Other Health Total | AF16: Ties to | AG16: LE | AH16: Other Difference Subtotal | AI16: CA Dental MLR vs. Fed Other Health
F17: Individual | H17: Small Group | J17: Large Group | L17: Individual | N17: Small Group | P17: Large Group | V17: Prdct Range 322000 | W17: Prdct Range 150000 | X17: Prdct Range 204000 | Y17: Prdct Range 203000 | Z17: Prdct Rng 112/3000 | AA17: Prdct 202080 | AB17: Prdct 106410 | AF17: Fed MLR Lines | AG17: Blank Customers
B18: Part 2 NOTE: REFER TO MLR INSTRUCTIONS FOR IMPORTANT INFORMATION ABOUT COMPLETING EACH COLUMN AND ROW. | F18: =+'Pt 1 Summary of Data'!F17 -> Total as of 12/31/17 | G18: =+'Pt 1 Summary of Data'!G17 -> Total as of 3/31/18 | H18: =+'Pt 1 Summary of Data'!H17 -> Total as of 12/31/17 | I18: =+'Pt 1 Summary of Data'!I17 -> Total as of 3/31/18 | J18: =+'Pt 1 Summary of Data'!J17 -> Total as of 12/31/17 | K18: =+'Pt 1 Summary of Data'!K17 -> Total as of 3/31/18 | L18: =+'Pt 1 Summary of Data'!L17 -> Total as of 12/31/17 | M18: =+'Pt 1 Summary of Data'!M17 -> Total as of 3/31/18 | N18: =+'Pt 1 Summary of Data'!N17 -> Total as of 12/31/17 | O18: =+'Pt 1 Summary of Data'!O17 -> Total as of 3/31/18 | P18: =+'Pt 1 Summary of Data'!P17 -> Total as of 12/31/17 | Q18: =+'Pt 1 Summary of Data'!Q17 -> Total as of 3/31/18 | S18: =+'Pt 1 Summary of Data'!S17 -> Total as of 12/31/17 | T18: =+'Pt 1 Summary of Data'!T17 -> Total as of 12/31/17 | U18: =+'Pt 1 Summary of Data'!U17 -> Total as of 12/31/17 | V18: =+'Pt 1 Summary of Data'!U17 -> Total as of 12/31/17 | W18: =+'Pt 1 Summary of Data'!V17 -> Total as of 12/31/17 | X18: =+'Pt 1 Summary of Data'!W17 -> Total as of 12/31/17 | Y18: =+'Pt 1 Summary of Data'!X17 -> Total as of 12/31/17 | Z18: =+'Pt 1 Summary of Data'!Y17 -> Total as of 12/31/17 | AA18: =+'Pt 1 Summary of Data'!Z17 -> Total as of 12/31/17 | AB18: =+'Pt 1 Summary of Data'!AA17 -> Total as of 12/31/17 | AC18: =+'Pt 1 Summary of Data'!AC17 -> Total as of 12/31/17 | AD18: =+'Pt 1 Summary of Data'!AD17 -> Total as of 12/31/17 | AE18: =+'Pt 1 Summary of Data'!AE17 -> Total as of 12/31/17 | AF18: =+'Pt 1 Summary of Data'!AF17 -> Total as of 12/31/17 | AG18: =+'Pt 1 Summary of Data'!AG17 -> Total as of 12/31/17 | AH18: =+'Pt 1 Summary of Data'!AH17 -> Total as of 12/31/17 | AI18: =+'Pt 1 Summary of Data'!AI17 -> Total as of 12/31/17
F19: 1 | G19: 2 | H19: 3 | I19: 4 | J19: 5 | K19: 6 | L19: 7 | M19: 8 | N19: 9 | O19: 10 | P19: 11 | Q19: 12
B20: 1. | C20: Premium:
C21: 1.1 | D21: Direct premium written | F21: =IF(VLOOKUP('Essbase Input'!$C$4,Tables!$B$3:$F$7,5,FALSE)="DPPO","",-'EB PT 2'!I12-F22+F23+F24) ->  | G21: =IF(VLOOKUP('Essbase Input'!$C$4,Tables!$B$3:$F$7,5,FALSE)="DPPO","",-'EB PT 2'!I13-'EB PT 2'!J14-G22+G23+G24) ->  | H21: =IF(VLOOKUP('Essbase Input'!$C$4,Tables!$B$3:$F$7,5,FALSE)="DPPO","",-'EB PT 2'!K12-H22+H23+H24) ->  | I21: =IF(VLOOKUP('Essbase Input'!$C$4,Tables!$B$3:$F$7,5,FALSE)="DPPO","",-'EB PT 2'!K13-'EB PT 2'!L14-I22+I23+I24) ->  | J21: =IF(VLOOKUP('Essbase Input'!$C$4,Tables!$B$3:$F$7,5,FALSE)="DPPO","",-'EB PT 2'!M12-J22+J23+J24) ->  | K21: =IF(VLOOKUP('Essbase Input'!$C$4,Tables!$B$3:$F$7,5,FALSE)="DPPO","",-'EB PT 2'!M13-'EB PT 2'!N14-K22+K23+K24) ->  | L21: =IF(VLOOKUP('Essbase Input'!$C$4,Tables!$B$3:$F$7,5,FALSE)="DHMO","",IF(OR('Essbase Input'!$C$4="Golden Rule Insurance Company",'Essbase Input'!$C$4="UnitedHealthcare Life Ins Co"),-'EB PT 2'!R12-L22+L23+L24,-'EB PT 2'!I12-L22+L23+L24)) -> 4552.08 | M21: =IF(VLOOKUP('Essbase Input'!$C$4,Tables!$B$3:$F$7,5,FALSE)="DHMO","",IF(OR('Essbase Input'!$C$4="Golden Rule Insurance Company",'Essbase Input'!$C$4="UnitedHealthcare Life Ins Co"),-'EB PT 2'!R13-'EB PT 2'!S14-M22+M23+M24,-'EB PT 2'!I13-'EB PT 2'!J14-M22+M23+M24)) -> 0 | N21: =IF(VLOOKUP('Essbase Input'!$C$4,Tables!$B$3:$F$7,5,FALSE)="DHMO","",IF(OR('Essbase Input'!$C$4="Golden Rule Insurance Company",'Essbase Input'!$C$4="UnitedHealthcare Life Ins Co"),"",-'EB PT 2'!K12-N22+N23+N24)) -> 16769454.21 | O21: =IF(VLOOKUP('Essbase Input'!$C$4,Tables!$B$3:$F$7,5,FALSE)="DHMO","",IF(OR('Essbase Input'!$C$4="Golden Rule Insurance Company",'Essbase Input'!$C$4="UnitedHealthcare Life Ins Co"),"",-'EB PT 2'!K13-'EB PT 2'!L14-O22+O23+O24)) -> 16799680.24 | P21: =IF(VLOOKUP('Essbase Input'!$C$4,Tables!$B$3:$F$7,5,FALSE)="DHMO","",IF(OR('Essbase Input'!$C$4="Golden Rule Insurance Company",'Essbase Input'!$C$4="UnitedHealthcare Life Ins Co"),"",-'EB PT 2'!M12-P22+P23+P24)) -> 36717063.76 | Q21: =IF(VLOOKUP('Essbase Input'!$C$4,Tables!$B$3:$F$7,5,FALSE)="DHMO","",IF(OR('Essbase Input'!$C$4="Golden Rule Insurance Company",'Essbase Input'!$C$4="UnitedHealthcare Life Ins Co"),"",-'EB PT 2'!M13-'EB PT 2'!N14-Q22+Q23+Q24)) -> 36731721.66 | S21: =IF(P21="",0,P21)+IF(N21="",0,N21)+IF(L21="",0,L21)+IF(J21="",0,J21)+IF(H21="",0,H21)+IF(F21="",0,F21) -> 53491070.05 | T21: =-'EB PT 2'!U12-T22+T23+T24 -> 13785195.36 | U21: =-'EB PT 2'!V12-U22+U23+U24 -> 1962290.72 | V21: =(-'EB PT 2'!W12-'EB PT 2'!X12-'EB PT 2'!Y12)-V22+V23+V24 -> 0 | W21: =(-'EB PT 2'!AA12-'EB PT 2'!AB12-'EB PT 2'!Z12-'EB PT 2'!AC12)-W22+W23+W24 -> 32317971.79 | X21: =(-'EB PT 2'!AE12-'EB PT 2'!AF12-'EB PT 2'!AG12-'EB PT 2'!AD12)-X22+X23+X24 -> 6139364.93 | Y21: =(-'EB PT 2'!AI12-'EB PT 2'!AJ12-'EB PT 2'!AH12-'EB PT 2'!AK12)-Y22+Y23+Y24 -> 808164871.7 | Z21: =(-'EB PT 2'!AM12-'EB PT 2'!AL12)-Z22+Z23+Z24 -> 152168 | AA21: =-'EB PT 2'!AN12-AA22+AA23+AA24 -> 163667189.4 | AB21: =-'EB PT 2'!AO12-AB22+AB23+AB24 -> 1183 | AC21: =-'EB PT 2'!AP12-AC22+AC23+AC24-SUM(V21:AB21) -> 152145.1 | AD21: =SUM(V21:AC21) -> 1010594894 | AE21: =-'EB PT 2'!T12-AE22+AE23+AE24 -> 1079782683 | AF21: Sec 1 - 1.1 | AG21: =-'EB PT 2'!Q12-AG22+AG23+AG24 -> 0 | AH21: =SUM(AG21:AG21) -> 0 | AI21: =ROUND((S21+T21+U21+AC21+V21+W21+X21+Y21+Z21+AA21+AB21)-AE21+AH21,0) -> 50767
C22: 1.2 | D22: Unearned premium prior year | F22: =IF(VLOOKUP('Essbase Input'!$C$4,Tables!$B$3:$F$7,5,FALSE)="DPPO","",-'EB PT 2'!I15) ->  | G22: =IF(VLOOKUP('Essbase Input'!$C$4,Tables!$B$3:$F$7,5,FALSE)="DPPO","",0) ->  | H22: =IF(VLOOKUP('Essbase Input'!$C$4,Tables!$B$3:$F$7,5,FALSE)="DPPO","",-'EB PT 2'!K15) ->  | I22: =IF(VLOOKUP('Essbase Input'!$C$4,Tables!$B$3:$F$7,5,FALSE)="DPPO","",0) ->  | J22: =IF(VLOOKUP('Essbase Input'!$C$4,Tables!$B$3:$F$7,5,FALSE)="DPPO","",-'EB PT 2'!M15) ->  | K22: =IF(VLOOKUP('Essbase Input'!$C$4,Tables!$B$3:$F$7,5,FALSE)="DPPO","",0) ->  | L22: =IF(VLOOKUP('Essbase Input'!$C$4,Tables!$B$3:$F$7,5,FALSE)="DHMO","",IF(OR('Essbase Input'!$C$4="Golden Rule Insurance Company",'Essbase Input'!$C$4="UnitedHealthcare Life Ins Co"),-'EB PT 2'!R15,-'EB PT 2'!I15)) -> 0 | M22: 0 | N22: =IF(VLOOKUP('Essbase Input'!$C$4,Tables!$B$3:$F$7,5,FALSE)="DHMO","",IF(OR('Essbase Input'!$C$4="Golden Rule Insurance Company",'Essbase Input'!$C$4="UnitedHealthcare Life Ins Co"),"",-'EB PT 2'!K15)) -> 4354.75 | O22: 0 | P22: =IF(VLOOKUP('Essbase Input'!$C$4,Tables!$B$3:$F$7,5,FALSE)="DHMO","",IF(OR('Essbase Input'!$C$4="Golden Rule Insurance Company",'Essbase Input'!$C$4="UnitedHealthcare Life Ins Co"),"",-'EB PT 2'!M15)) -> 0 | Q22: 0 | S22: =IF(P22="",0,P22)+IF(N22="",0,N22)+IF(L22="",0,L22)+IF(J22="",0,J22)+IF(H22="",0,H22)+IF(F22="",0,F22) -> 4354.75 | T22: =-'EB PT 2'!U15 -> 647.17 | U22: =-'EB PT 2'!V15 -> 0 | V22: =-'EB PT 2'!W15-'EB PT 2'!X15-'EB PT 2'!Y15 -> 0 | W22: =-'EB PT 2'!AA15-'EB PT 2'!AB15-'EB PT 2'!Z15-'EB PT 2'!AC15 -> 0 | X22: =-'EB PT 2'!AE15-'EB PT 2'!AF15-'EB PT 2'!AG15-'EB PT 2'!AD15 -> 0 | Y22: =-'EB PT 2'!AH15-'EB PT 2'!AI15-'EB PT 2'!AJ15-'EB PT 2'!AK15 -> 0 | Z22: =-'EB PT 2'!AM15-'EB PT 2'!AL15 -> 87865.58 | AA22: =-'EB PT 2'!AN15 -> 0 | AB22: =-'EB PT 2'!AO15 -> 0 | AC22: =-'EB PT 2'!AP15-SUM(V22:AB22) -> 154534 | AD22: =SUM(V22:AC22) -> 242399.58 | AE22: =-'EB PT 2'!T15 -> 247396.98 | AF22: Sec 1 - 1.2 | AG22: =-'EB PT 2'!Q15 -> 0 | AH22: =SUM(AG22:AG22) -> 0 | AI22: =ROUND((S22+T22+U22+AC22+V22+W22+X22+Y22+Z22+AA22+AB22)-AE22+AH22,0) -> 5
C23: 1.3 | D23: Unearned premium MLR Reporting year | F23: =IF(VLOOKUP('Essbase Input'!$C$4,Tables!$B$3:$F$7,5,FALSE)="DPPO","",-'EB PT 2'!I17) ->  | G23: =IF(VLOOKUP('Essbase Input'!$C$4,Tables!$B$3:$F$7,5,FALSE)="DPPO","",-'EB PT 2'!J18) ->  | H23: =IF(VLOOKUP('Essbase Input'!$C$4,Tables!$B$3:$F$7,5,FALSE)="DPPO","",-'EB PT 2'!K17) ->  | I23: =IF(VLOOKUP('Essbase Input'!$C$4,Tables!$B$3:$F$7,5,FALSE)="DPPO","",-'EB PT 2'!L18) ->  | J23: =IF(VLOOKUP('Essbase Input'!$C$4,Tables!$B$3:$F$7,5,FALSE)="DPPO","",-'EB PT 2'!M17) ->  | K23: =IF(VLOOKUP('Essbase Input'!$C$4,Tables!$B$3:$F$7,5,FALSE)="DPPO","",-'EB PT 2'!N18) ->  | L23: =IF(VLOOKUP('Essbase Input'!$C$4,Tables!$B$3:$F$7,5,FALSE)="DHMO","",IF(OR('Essbase Input'!$C$4="Golden Rule Insurance Company",'Essbase Input'!$C$4="UnitedHealthcare Life Ins Co"),-'EB PT 2'!R17,-'EB PT 2'!I17)) -> 1750 | M23: =IF(VLOOKUP('Essbase Input'!$C$4,Tables!$B$3:$F$7,5,FALSE)="DHMO","",IF(OR('Essbase Input'!$C$4="Golden Rule Insurance Company",'Essbase Input'!$C$4="UnitedHealthcare Life Ins Co"),-'EB PT 2'!S18,-'EB PT 2'!J18)) -> 0 | N23: =IF(VLOOKUP('Essbase Input'!$C$4,Tables!$B$3:$F$7,5,FALSE)="DHMO","",IF(OR('Essbase Input'!$C$4="Golden Rule Insurance Company",'Essbase Input'!$C$4="UnitedHealthcare Life Ins Co"),"",-'EB PT 2'!K17)) -> 2163.46 | O23: =IF(VLOOKUP('Essbase Input'!$C$4,Tables!$B$3:$F$7,5,FALSE)="DHMO","",IF(OR('Essbase Input'!$C$4="Golden Rule Insurance Company",'Essbase Input'!$C$4="UnitedHealthcare Life Ins Co"),"",-'EB PT 2'!L18)) -> 0 | P23: =IF(VLOOKUP('Essbase Input'!$C$4,Tables!$B$3:$F$7,5,FALSE)="DHMO","",IF(OR('Essbase Input'!$C$4="Golden Rule Insurance Company",'Essbase Input'!$C$4="UnitedHealthcare Life Ins Co"),"",-'EB PT 2'!M17)) -> 0 | Q23: =IF(VLOOKUP('Essbase Input'!$C$4,Tables!$B$3:$F$7,5,FALSE)="DHMO","",IF(OR('Essbase Input'!$C$4="Golden Rule Insurance Company",'Essbase Input'!$C$4="UnitedHealthcare Life Ins Co"),"",-'EB PT 2'!N18)) -> 0 | S23: =IF(P23="",0,P23)+IF(N23="",0,N23)+IF(L23="",0,L23)+IF(J23="",0,J23)+IF(H23="",0,H23)+IF(F23="",0,F23) -> 3913.46 | T23: =-'EB PT 2'!U17 -> 505.07 | U23: =-'EB PT 2'!V17 -> 0 | V23: =-'EB PT 2'!W17-'EB PT 2'!X17-'EB PT 2'!Y17 -> 0 | W23: =-'EB PT 2'!AA17-'EB PT 2'!AB17-'EB PT 2'!Z17-'EB PT 2'!AC17 -> 0 | X23: =-'EB PT 2'!AE17-'EB PT 2'!AF17-'EB PT 2'!AG17-'EB PT 2'!AD17 -> 0 | Y23: =-'EB PT 2'!AH17-'EB PT 2'!AI17-'EB PT 2'!AJ17-'EB PT 2'!AK17 -> 0 | Z23: =-'EB PT 2'!AM17-'EB PT 2'!AL17 -> 87865.58 | AA23: =-'EB PT 2'!AN17 -> 0 | AB23: =-'EB PT 2'!AO17 -> 0 | AC23: =-'EB PT 2'!AP17-SUM(V23:AB23) -> 47089 | AD23: =SUM(V23:AC23) -> 134954.58 | AE23: =-'EB PT 2'!T17 -> 139373.11 | AF23: Sec 1 - 1.3 | AG23: =-'EB PT 2'!Q17 -> 0 | AH23: =SUM(AG23:AG23) -> 0 | AI23: =ROUND((S23+T23+U23+AC23+V23+W23+X23+Y23+Z23+AA23+AB23)-AE23+AH23,0) -> 0
C24: 1.4 | D24: Premium balances written off | F24: =IF(VLOOKUP('Essbase Input'!$C$4,Tables!$B$3:$F$7,5,FALSE)="DPPO","",'EB PT 2'!I19) ->  | G24: =IF(VLOOKUP('Essbase Input'!$C$4,Tables!$B$3:$F$7,5,FALSE)="DPPO","",F24) ->  | H24: =IF(VLOOKUP('Essbase Input'!$C$4,Tables!$B$3:$F$7,5,FALSE)="DPPO","",'EB PT 2'!K19) ->  | I24: =IF(VLOOKUP('Essbase Input'!$C$4,Tables!$B$3:$F$7,5,FALSE)="DPPO","",H24) ->  | J24: =IF(VLOOKUP('Essbase Input'!$C$4,Tables!$B$3:$F$7,5,FALSE)="DPPO","",'EB PT 2'!M19) ->  | K24: =IF(VLOOKUP('Essbase Input'!$C$4,Tables!$B$3:$F$7,5,FALSE)="DPPO","",J24) ->  | L24: =IF(VLOOKUP('Essbase Input'!$C$4,Tables!$B$3:$F$7,5,FALSE)="DHMO","",IF(OR('Essbase Input'!$C$4="Golden Rule Insurance Company",'Essbase Input'!$C$4="UnitedHealthcare Life Ins Co"),-'EB PT 2'!R19,'EB PT 2'!I19)) -> 0 | M24: =IF(VLOOKUP('Essbase Input'!$C$4,Tables!$B$3:$F$7,5,FALSE)="DHMO","",L24) -> 0 | N24: =IF(VLOOKUP('Essbase Input'!$C$4,Tables!$B$3:$F$7,5,FALSE)="DHMO","",IF(OR('Essbase Input'!$C$4="Golden Rule Insurance Company",'Essbase Input'!$C$4="UnitedHealthcare Life Ins Co"),"",'EB PT 2'!K19)) -> 3083.67 | O24: =IF(VLOOKUP('Essbase Input'!$C$4,Tables!$B$3:$F$7,5,FALSE)="DHMO","",IF(OR('Essbase Input'!$C$4="Golden Rule Insurance Company",'Essbase Input'!$C$4="UnitedHealthcare Life Ins Co"),"",N24)) -> 3083.67 | P24: =IF(VLOOKUP('Essbase Input'!$C$4,Tables!$B$3:$F$7,5,FALSE)="DHMO","",IF(OR('Essbase Input'!$C$4="Golden Rule Insurance Company",'Essbase Input'!$C$4="UnitedHealthcare Life Ins Co"),"",'EB PT 2'!M19)) -> 0 | Q24: =IF(VLOOKUP('Essbase Input'!$C$4,Tables!$B$3:$F$7,5,FALSE)="DHMO","",IF(OR('Essbase Input'!$C$4="Golden Rule Insurance Company",'Essbase Input'!$C$4="UnitedHealthcare Life Ins Co"),"",P24)) -> 0 | S24: =IF(P24="",0,P24)+IF(N24="",0,N24)+IF(L24="",0,L24)+IF(J24="",0,J24)+IF(H24="",0,H24)+IF(F24="",0,F24) -> 3083.67 | T24: ='EB PT 2'!U19 -> 4141.88 | U24: ='EB PT 2'!V19 -> 0 | V24: ='EB PT 2'!W19+'EB PT 2'!X19+'EB PT 2'!Y19 -> 0 | W24: ='EB PT 2'!AA19+'EB PT 2'!AB19+'EB PT 2'!Z19+'EB PT 2'!AC19 -> 0.57 | X24: ='EB PT 2'!AE19+'EB PT 2'!AF19+'EB PT 2'!AG19+'EB PT 2'!AD19 -> 0 | Y24: ='EB PT 2'!AH19+'EB PT 2'!AI19+'EB PT 2'!AJ19+'EB PT 2'!AK19 -> 0 | Z24: =+'EB PT 2'!AM19+'EB PT 2'!AL19 -> 0 | AA24: =+'EB PT 2'!AN19 -> -4977.65 | AB24: =+'EB PT 2'!AO19 -> 0 | AC24: ='EB PT 2'!AP19-SUM(V24:AB24) -> 0 | AD24: =SUM(V24:AC24) -> -4977.08 | AE24: ='EB PT 2'!T19 -> 2248.47 | AF24: Sec 1 - 1.7 | AG24: ='EB PT 2'!Q19 -> 0 | AH24: =SUM(AG24:AG24) -> 0 | AI24: =ROUND((S24+T24+U24+AC24+V24+W24+X24+Y24+Z24+AA24+AB24)-AE24+AH24,0) -> 0
B26: 2. | C26: Claims:
C27: 2.1 | D27: Claims Paid
D28: 2.1a Claims paid during the MLR reporting year regardless of incurred date | F28: =IF(VLOOKUP('Essbase Input'!$C$4,Tables!$B$3:$F$7,5,FALSE)="DPPO","",'EB PT 2'!I20-'EB PT 2'!I21-'EB PT 2'!I22-'EB PT 2'!I23-'EB PT 2'!I24-F31+F33-F35+F37-F39-F42+F44-F46-F47+F48-F49) ->  | H28: =IF(VLOOKUP('Essbase Input'!$C$4,Tables!$B$3:$F$7,5,FALSE)="DPPO","",'EB PT 2'!K20-'EB PT 2'!K21-'EB PT 2'!K22-'EB PT 2'!K23-'EB PT 2'!K24-H31+H33-H35+H37-H39-H42+H44-H46-H47+H48-H49) ->  | J28: =IF(VLOOKUP('Essbase Input'!$C$4,Tables!$B$3:$F$7,5,FALSE)="DPPO","",'EB PT 2'!M20-'EB PT 2'!M21-'EB PT 2'!M22-'EB PT 2'!M23-'EB PT 2'!M24-J31+J33-J35+J37-J39-J42+J44-J46-J47+J48-J49) ->  | L28: =IF(VLOOKUP('Essbase Input'!$C$4,Tables!$B$3:$F$7,5,FALSE)="DHMO","",IF(OR('Essbase Input'!$C$4="Golden Rule Insurance Company",'Essbase Input'!$C$4="UnitedHealthcare Life Ins Co"),'EB PT 2'!R20-'EB PT 2'!R21-'EB PT 2'!R22-'EB PT 2'!R23-'EB PT 2'!R24-L31+L33-L35+L37-L39-L42+L44-L46-L47+L48-L49,'EB PT 2'!I20-'EB PT 2'!I21-'EB PT 2'!I22-'EB PT 2'!I23-'EB PT 2'!I24-L31+L33-L35+L37-L39-L42+L44-L46-L47+L48-L49)) -> 2306.4 | N28: =IF(VLOOKUP('Essbase Input'!$C$4,Tables!$B$3:$F$7,5,FALSE)="DHMO","",IF(OR('Essbase Input'!$C$4="Golden Rule Insurance Company",'Essbase Input'!$C$4="UnitedHealthcare Life Ins Co"),"",'EB PT 2'!K20-'EB PT 2'!K21-'EB PT 2'!K22-'EB PT 2'!K23-'EB PT 2'!K24-N31+N33-N35+N37-N39-N42+N44-N46-N47+N48-N49)) -> 9265486.08 | P28: =IF(VLOOKUP('Essbase Input'!$C$4,Tables!$B$3:$F$7,5,FALSE)="DHMO","",IF(OR('Essbase Input'!$C$4="Golden Rule Insurance Company",'Essbase Input'!$C$4="UnitedHealthcare Life Ins Co"),"",'EB PT 2'!M20-'EB PT 2'!M21-'EB PT 2'!M22-'EB PT 2'!M23-'EB PT 2'!M24-P31+P33-P35+P37-P39-P42+P44-P46-P47+P48-P49)) -> 28264088.44 | S28: =IF(P28="",0,P28)+IF(N28="",0,N28)+IF(L28="",0,L28)+IF(J28="",0,J28)+IF(H28="",0,H28)+IF(F28="",0,F28) -> 37531880.92 | T28: ='EB PT 2'!U20-'EB PT 2'!U21-'EB PT 2'!U22-'EB PT 2'!U23-'EB PT 2'!U24-T31+T33-T35+T37-T39-T42+T44-T46-T47+T48-T49 -> 7018413.19 | U28: ='EB PT 2'!V20-'EB PT 2'!V21-'EB PT 2'!V22-'EB PT 2'!V23-'EB PT 2'!V24-U31+U33-U35+U37-U39-U42+U44-U46-U47+U48-U49 -> 546593.54 | V28: =('EB PT 2'!W20-'EB PT 2'!W21-'EB PT 2'!W22-'EB PT 2'!W23-'EB PT 2'!W24)+('EB PT 2'!X20-'EB PT 2'!X21-'EB PT 2'!X22-'EB PT 2'!X23-'EB PT 2'!X24)+('EB PT 2'!Y20-'EB PT 2'!Y21-'EB PT 2'!Y22-'EB PT 2'!Y23-'EB PT 2'!Y24)-V31+V33-V35+V37-V39-V42+V44-V46-V47+V48-V49 -> 0 | W28: =('EB PT 2'!AA20-'EB PT 2'!AA21-'EB PT 2'!AA22-'EB PT 2'!AA23-'EB PT 2'!AA24)+('EB PT 2'!AB20-'EB PT 2'!AB21-'EB PT 2'!AB22-'EB PT 2'!AB23-'EB PT 2'!AB24)+('EB PT 2'!Z20-'EB PT 2'!Z21-'EB PT 2'!Z22-'EB PT 2'!Z23-'EB PT 2'!Z24)+('EB PT 2'!AC20-'EB PT 2'!AC21-'EB PT 2'!AC22-'EB PT 2'!AC23-'EB PT 2'!AC24)-W31+W33-W35+W37-W39-W42+W44-W46-W47+W48-W49 -> 27970478.57 | X28: =('EB PT 2'!AE20-'EB PT 2'!AE21-'EB PT 2'!AE22-'EB PT 2'!AE23-'EB PT 2'!AE24)+('EB PT 2'!AF20-'EB PT 2'!AF21-'EB PT 2'!AF22-'EB PT 2'!AF23-'EB PT 2'!AF24)+('EB PT 2'!AG20-'EB PT 2'!AG21-'EB PT 2'!AG22-'EB PT 2'!AG23-'EB PT 2'!AG24)+('EB PT 2'!AD20-'EB PT 2'!AD21-'EB PT 2'!AD22-'EB PT 2'!AD23-'EB PT 2'!AD24)-X31+X33-X35+X37-X39-X42+X44-X46-X47+X48-X49 -> 4236574.17 | Y28: =('EB PT 2'!AI20-'EB PT 2'!AI21-'EB PT 2'!AI22-'EB PT 2'!AI23-'EB PT 2'!AI24)+('EB PT 2'!AJ20-'EB PT 2'!AJ21-'EB PT 2'!AJ22-'EB PT 2'!AJ23-'EB PT 2'!AJ24)+('EB PT 2'!AH20-'EB PT 2'!AH21-'EB PT 2'!AH22-'EB PT 2'!AH23-'EB PT 2'!AH24)+('EB PT 2'!AK20-'EB PT 2'!AK21-'EB PT 2'!AK22-'EB PT 2'!AK23-'EB PT 2'!AK24)-Y31+Y33-Y35+Y37-Y39-Y42+Y44-Y46-Y47+Y48-Y49 -> 654513314.4 | Z28: =+('EB PT 2'!AM20-'EB PT 2'!AM21-'EB PT 2'!AM22-'EB PT 2'!AM23-'EB PT 2'!AM24)+('EB PT 2'!AL20-'EB PT 2'!AL21-'EB PT 2'!AL22-'EB PT 2'!AL23-'EB PT 2'!AL24)-Z31+Z33-Z35+Z37-Z39-Z42+Z44-Z46-Z47+Z48-Z49 -> 39017.75 | AA28: =+('EB PT 2'!AN20-'EB PT 2'!AN21-'EB PT 2'!AN22-'EB PT 2'!AN23-'EB PT 2'!AN24)-AA31+AA33-AA35+AA37-AA39-AA42+AA44-AA46-AA47+AA48-AA49 -> 164831898.8 | AB28: =+('EB PT 2'!AO20-'EB PT 2'!AO21-'EB PT 2'!AO22-'EB PT 2'!AO23-'EB PT 2'!AO24)-AB31+AB33-AB35+AB37-AB39-AB42+AB44-AB46-AB47+AB48-AB49 -> 967.73 | AC28: ='EB PT 2'!AP20-'EB PT 2'!AP21-'EB PT 2'!AP22-'EB PT 2'!AP23-'EB PT 2'!AP24-AC31+AC33-AC35+AC37-AC39-AC42+AC44-AC46-AC47+AC48-AC49-SUM(V50:AB50) -> 19746.71 | AD28: =SUM(V28:AC28) -> 851611998.2 | AE28: ='EB PT 2'!T20-'EB PT 2'!T21-'EB PT 2'!T22-'EB PT 2'!T23-'EB PT 2'!T24-AE31+AE33-AE35+AE37-AE39-AE42+AE44-AE46-AE47+AE48-AE49 -> 896708862.2 | AF28: Sec 2 - 2.1a, Change in 2.6a, 2.7 and change in 2.12a and 2.12b | AG28: ='EB PT 2'!Q20-'EB PT 2'!Q21-'EB PT 2'!Q22-'EB PT 2'!Q23-'EB PT 2'!Q24+'EB PT 2'!Q25-'EB PT 2'!Q26+'EB PT 2'!Q27-'EB PT 2'!Q29-AG31+AG33-AG35+AG37-AG39-AG42+AG44-AG46-AG47+AG48-AG49 -> 0 | AH28: =SUM(AG28:AG28) -> 0 | AI28: =ROUND((S28+T28+U28+AC28+V28+W28+X28+Y28+Z28+AA28+AB28)-AE28+AH28,0) -> 24
D29: 2.1b Claims incurred only during the MLR reporting year, paid through 3/31 of the following year | G29: =IF(VLOOKUP('Essbase Input'!$C$4,Tables!$B$3:$F$7,5,FALSE)="DPPO","",+'EB PT 2'!I30+'EB PT 2'!J31-'EB PT 2'!I32-'EB PT 2'!J33-'EB PT 2'!I34-'EB PT 2'!J35-'EB PT 2'!I36-'EB PT 2'!J37-'EB PT 2'!I40-'EB PT 2'!J39-'EB PT 2'!J41-'EB PT 2'!I40-G32-G36-G40-G43-G46-G47-G49) ->  | I29: =IF(VLOOKUP('Essbase Input'!$C$4,Tables!$B$3:$F$7,5,FALSE)="DPPO","",+'EB PT 2'!K30+'EB PT 2'!L31-'EB PT 2'!K32-'EB PT 2'!L33-'EB PT 2'!K34-'EB PT 2'!L35-'EB PT 2'!K36-'EB PT 2'!L37-'EB PT 2'!K38-'EB PT 2'!L39-'EB PT 2'!L41-'EB PT 2'!K40-I32-I36-I40-I43-I46-I47-I49) ->  | K29: =IF(VLOOKUP('Essbase Input'!$C$4,Tables!$B$3:$F$7,5,FALSE)="DPPO","",+'EB PT 2'!M30+'EB PT 2'!N31-'EB PT 2'!M32-'EB PT 2'!N33-'EB PT 2'!M34-'EB PT 2'!N35-'EB PT 2'!M36-'EB PT 2'!N37-'EB PT 2'!M38-'EB PT 2'!N39-'EB PT 2'!N41-'EB PT 2'!M40-K32-K36-K40-K43-K46-K47-K49) ->  | M29: =IF(VLOOKUP('Essbase Input'!$C$4,Tables!$B$3:$F$7,5,FALSE)="DHMO","",IF(OR('Essbase Input'!$C$4="Golden Rule Insurance Company",'Essbase Input'!$C$4="UnitedHealthcare Life Ins Co"),+'EB PT 2'!R30+'EB PT 2'!S31-'EB PT 2'!R32-'EB PT 2'!S33-'EB PT 2'!R34-'EB PT 2'!S35-'EB PT 2'!R36-'EB PT 2'!S37-'EB PT 2'!R40-'EB PT 2'!S39-'EB PT 2'!S41-'EB PT 2'!R40-M32-M36-M40-M43-M46-M47-M49,+'EB PT 2'!I30+'EB PT 2'!J31-'EB PT 2'!I32-'EB PT 2'!J33-'EB PT 2'!I34-'EB PT 2'!J35-'EB PT 2'!I36-'EB PT 2'!J37-'EB PT 2'!I40-'EB PT 2'!J39-'EB PT 2'!J41-'EB PT 2'!I40-M32-M36-M40-M43-M46-M47-M49)) -> 2517 | O29: =IF(VLOOKUP('Essbase Input'!$C$4,Tables!$B$3:$F$7,5,FALSE)="DHMO","",IF(OR('Essbase Input'!$C$4="Golden Rule Insurance Company",'Essbase Input'!$C$4="UnitedHealthcare Life Ins Co"),"",+'EB PT 2'!K30+'EB PT 2'!L31-'EB PT 2'!K32-'EB PT 2'!L33-'EB PT 2'!K34-'EB PT 2'!L35-'EB PT 2'!K36-'EB PT 2'!L37-'EB PT 2'!K38-'EB PT 2'!L39-'EB PT 2'!K40-'EB PT 2'!L41-O32-O36-O40-O43-O46-O47-O49)) -> 9143601.64 | Q29: =IF(VLOOKUP('Essbase Input'!$C$4,Tables!$B$3:$F$7,5,FALSE)="DHMO","",IF(OR('Essbase Input'!$C$4="Golden Rule Insurance Company",'Essbase Input'!$C$4="UnitedHealthcare Life Ins Co"),"",+'EB PT 2'!M30+'EB PT 2'!N31-'EB PT 2'!M32-'EB PT 2'!N33-'EB PT 2'!M34-'EB PT 2'!N35-'EB PT 2'!M36-'EB PT 2'!N37-'EB PT 2'!M38-'EB PT 2'!N39-'EB PT 2'!N41-'EB PT 2'!M40-Q32-Q36-Q40-Q43-Q46-Q47-Q49)) -> 28012808.64
C30: 2.2 | D30: Direct claim liability
D31: 2.2a Liability as of 12/31 of MLR reporting year for all claims regardless of incurred date | F31: =IF(VLOOKUP('Essbase Input'!$C$4,Tables!$B$3:$F$7,5,FALSE)="DPPO","",-'EB PT 2'!I42) ->  | H31: =IF(VLOOKUP('Essbase Input'!$C$4,Tables!$B$3:$F$7,5,FALSE)="DPPO","",-'EB PT 2'!K42) ->  | J31: =IF(VLOOKUP('Essbase Input'!$C$4,Tables!$B$3:$F$7,5,FALSE)="DPPO","",-'EB PT 2'!M42) ->  | L31: =IF(VLOOKUP('Essbase Input'!$C$4,Tables!$B$3:$F$7,5,FALSE)="DHMO","",IF(OR('Essbase Input'!$C$4="Golden Rule Insurance Company",'Essbase Input'!$C$4="UnitedHealthcare Life Ins Co"),-'EB PT 2'!R42,-'EB PT 2'!I42)) -> 11.95 | N31: =IF(VLOOKUP('Essbase Input'!$C$4,Tables!$B$3:$F$7,5,FALSE)="DHMO","",IF(OR('Essbase Input'!$C$4="Golden Rule Insurance Company",'Essbase Input'!$C$4="UnitedHealthcare Life Ins Co"),"",-'EB PT 2'!K42)) -> 454667.45 | P31: =IF(VLOOKUP('Essbase Input'!$C$4,Tables!$B$3:$F$7,5,FALSE)="DHMO","",IF(OR('Essbase Input'!$C$4="Golden Rule Insurance Company",'Essbase Input'!$C$4="UnitedHealthcare Life Ins Co"),"",-'EB PT 2'!M42)) -> 1493585.33 | S31: =IF(P31="",0,P31)+IF(N31="",0,N31)+IF(L31="",0,L31)+IF(J31="",0,J31)+IF(H31="",0,H31)+IF(F31="",0,F31) -> 1948264.73 | T31: =-'EB PT 2'!U42 -> 383433.94 | U31: =-'EB PT 2'!V42 -> 389898.52 | V31: =-'EB PT 2'!W42-'EB PT 2'!X42-'EB PT 2'!Y42 -> 0 | W31: =-'EB PT 2'!AA42-'EB PT 2'!AB42-'EB PT 2'!Z42-'EB PT 2'!AC42 -> 15299.93 | X31: =-'EB PT 2'!AE42-'EB PT 2'!AF42-'EB PT 2'!AG42-'EB PT 2'!AD42 -> 338621.56 | Y31: =-'EB PT 2'!AI42-'EB PT 2'!AJ42-'EB PT 2'!AH42-'EB PT 2'!AK42 -> 83610396.56 | Z31: =-'EB PT 2'!AM42-'EB PT 2'!AL42 -> -621434.67 | AA31: =-'EB PT 2'!AN42 -> 5964674.29 | AB31: =-'EB PT 2'!AO42 -> 563356.4 | AC31: =-'EB PT 2'!AP42-SUM(V31:AB31) -> 6140.87 | AD31: =SUM(V31:AC31) -> 89877054.94 | AE31: =-'EB PT 2'!T42 -> 92598268.7 | AF31: Sec 2 - 2.2a | AG31: =-'EB PT 2'!Q42 -> 0 | AH31: =SUM(AG31:AG31) -> 0 | AI31: =ROUND((S31+T31+U31+AC31+V31+W31+X31+Y31+Z31+AA31+AB31)-AE31+AH31,0) -> 383
D32: 2.2b Liability for claims incurred only during the MLR reporting year, calculated as of 3/31 of the following year | G32: =IF(VLOOKUP('Essbase Input'!$C$4,Tables!$B$3:$F$7,5,FALSE)="DPPO","",-'EB PT 2'!J43) ->  | I32: =IF(VLOOKUP('Essbase Input'!$C$4,Tables!$B$3:$F$7,5,FALSE)="DPPO","",-'EB PT 2'!L43) ->  | K32: =IF(VLOOKUP('Essbase Input'!$C$4,Tables!$B$3:$F$7,5,FALSE)="DPPO","",-'EB PT 2'!N43) ->  | M32: =IF(VLOOKUP('Essbase Input'!$C$4,Tables!$B$3:$F$7,5,FALSE)="DHMO","",IF(OR('Essbase Input'!$C$4="Golden Rule Insurance Company",'Essbase Input'!$C$4="UnitedHealthcare Life Ins Co"),-'EB PT 2'!S43,-'EB PT 2'!J43)) -> 0 | O32: =IF(VLOOKUP('Essbase Input'!$C$4,Tables!$B$3:$F$7,5,FALSE)="DHMO","",IF(OR('Essbase Input'!$C$4="Golden Rule Insurance Company",'Essbase Input'!$C$4="UnitedHealthcare Life Ins Co"),"",-'EB PT 2'!L43)) -> 113686.81 | Q32: =IF(VLOOKUP('Essbase Input'!$C$4,Tables!$B$3:$F$7,5,FALSE)="DHMO","",IF(OR('Essbase Input'!$C$4="Golden Rule Insurance Company",'Essbase Input'!$C$4="UnitedHealthcare Life Ins Co"),"",-'EB PT 2'!N43)) -> 370619.19
C33: 2.3 | D33: Direct claim liability prior year | F33: =IF(VLOOKUP('Essbase Input'!$C$4,Tables!$B$3:$F$7,5,FALSE)="DPPO","",-'EB PT 2'!I44) ->  | H33: =IF(VLOOKUP('Essbase Input'!$C$4,Tables!$B$3:$F$7,5,FALSE)="DPPO","",-'EB PT 2'!K44) ->  | J33: =IF(VLOOKUP('Essbase Input'!$C$4,Tables!$B$3:$F$7,5,FALSE)="DPPO","",-'EB PT 2'!M44) ->  | L33: =IF(VLOOKUP('Essbase Input'!$C$4,Tables!$B$3:$F$7,5,FALSE)="DHMO","",IF(OR('Essbase Input'!$C$4="Golden Rule Insurance Company",'Essbase Input'!$C$4="UnitedHealthcare Life Ins Co"),-'EB PT 2'!R44,-'EB PT 2'!I44)) -> 0 | N33: =IF(VLOOKUP('Essbase Input'!$C$4,Tables!$B$3:$F$7,5,FALSE)="DHMO","",IF(OR('Essbase Input'!$C$4="Golden Rule Insurance Company",'Essbase Input'!$C$4="UnitedHealthcare Life Ins Co"),"",-'EB PT 2'!K44)) -> 458539.89 | P33: =IF(VLOOKUP('Essbase Input'!$C$4,Tables!$B$3:$F$7,5,FALSE)="DHMO","",IF(OR('Essbase Input'!$C$4="Golden Rule Insurance Company",'Essbase Input'!$C$4="UnitedHealthcare Life Ins Co"),"",-'EB PT 2'!M44)) -> 1385605.76 | S33: =IF(P33="",0,P33)+IF(N33="",0,N33)+IF(L33="",0,L33)+IF(J33="",0,J33)+IF(H33="",0,H33)+IF(F33="",0,F33) -> 1844145.65 | T33: =-'EB PT 2'!U44 -> 357115.28 | U33: =-'EB PT 2'!V44 -> 181100.72 | V33: =-'EB PT 2'!W44-'EB PT 2'!X44-'EB PT 2'!Y44 -> 0 | W33: =-'EB PT 2'!AA44-'EB PT 2'!AB44-'EB PT 2'!Z44-'EB PT 2'!AC44 -> 13041.69 | X33: =-'EB PT 2'!AE44-'EB PT 2'!AF44-'EB PT 2'!AG44-'EB PT 2'!AD44 -> 836745.5 | Y33: =-'EB PT 2'!AI44-'EB PT 2'!AJ44-'EB PT 2'!AH44-'EB PT 2'!AK44 -> 79611337.82 | Z33: =-'EB PT 2'!AM44-'EB PT 2'!AL44 -> -612448.52 | AA33: =-'EB PT 2'!AN44 -> 2033766.79 | AB33: =-'EB PT 2'!AO44 -> 568378.35 | AC33: =-'EB PT 2'!AP44-SUM(V33:AB33) -> 26516.31 | AD33: =SUM(V33:AC33) -> 82477337.94 | AE33: =-'EB PT 2'!T44 -> 84859292.51 | AF33: Sec 2 - 2.3a | AG33: =-'EB PT 2'!Q44 -> 0 | AH33: =SUM(AG33:AG33) -> 0 | AI33: =ROUND((S33+T33+U33+AC33+V33+W33+X33+Y33+Z33+AA33+AB33)-AE33+AH33,0) -> 407
C34: 2.4 | D34: Direct claim reserves
D35: 2.4a Reserves as of 12/31 of MLR reporting year for all claims regardless of incurred date | F35: =IF(VLOOKUP('Essbase Input'!$C$4,Tables!$B$3:$F$7,5,FALSE)="DPPO","",-'EB PT 2'!I45) ->  | H35: =IF(VLOOKUP('Essbase Input'!$C$4,Tables!$B$3:$F$7,5,FALSE)="DPPO","",-'EB PT 2'!K45) ->  | J35: =IF(VLOOKUP('Essbase Input'!$C$4,Tables!$B$3:$F$7,5,FALSE)="DPPO","",-'EB PT 2'!M45) ->  | L35: =IF(VLOOKUP('Essbase Input'!$C$4,Tables!$B$3:$F$7,5,FALSE)="DHMO","",IF(OR('Essbase Input'!$C$4="Golden Rule Insurance Company",'Essbase Input'!$C$4="UnitedHealthcare Life Ins Co"),-'EB PT 2'!R45,-'EB PT 2'!I45)) -> 0 | N35: =IF(VLOOKUP('Essbase Input'!$C$4,Tables!$B$3:$F$7,5,FALSE)="DHMO","",IF(OR('Essbase Input'!$C$4="Golden Rule Insurance Company",'Essbase Input'!$C$4="UnitedHealthcare Life Ins Co"),"",-'EB PT 2'!K45)) -> 0 | P35: =IF(VLOOKUP('Essbase Input'!$C$4,Tables!$B$3:$F$7,5,FALSE)="DHMO","",IF(OR('Essbase Input'!$C$4="Golden Rule Insurance Company",'Essbase Input'!$C$4="UnitedHealthcare Life Ins Co"),"",-'EB PT 2'!M45)) -> 0 | S35: =IF(P35="",0,P35)+IF(N35="",0,N35)+IF(L35="",0,L35)+IF(J35="",0,J35)+IF(H35="",0,H35)+IF(F35="",0,F35) -> 0 | T35: =-'EB PT 2'!U45 -> 0 | U35: =-'EB PT 2'!V45 -> 3753003.98 | V35: =-'EB PT 2'!W45-'EB PT 2'!X45-'EB PT 2'!Y45 -> 0 | W35: =-'EB PT 2'!AA45-'EB PT 2'!AB45-'EB PT 2'!Z45-'EB PT 2'!AC45 -> 4621611.56 | X35: =-'EB PT 2'!AE45-'EB PT 2'!AF45-'EB PT 2'!AG45-'EB PT 2'!AD45 -> 93631.4 | Y35: =-'EB PT 2'!AI45-'EB PT 2'!AJ45-'EB PT 2'!AH45-'EB PT 2'!AK45 -> 22483353.6 | Z35: =-'EB PT 2'!AM45-'EB PT 2'!AL45 -> 0 | AA35: =-'EB PT 2'!AN45 -> 0 | AB35: =-'EB PT 2'!AO45 -> 0 | AC35: =-'EB PT 2'!AP45-SUM(V35:AB35) -> 0 | AD35: =SUM(V35:AC35) -> 27198596.56 | AE35: =-'EB PT 2'!T45 -> 30951600.54 | AF35: Sec 2 - 2.4a | AG35: =-'EB PT 2'!Q45 -> 0 | AH35: =SUM(AG35:AG35) -> 0 | AI35: =ROUND((S35+T35+U35+AC35+V35+W35+X35+Y35+Z35+AA35+AB35)-AE35+AH35,0) -> 0
D36: 2.4b Reserves for claims incurred only during the MLR reporting year, calculated as of 3/31 of the following year | G36: =IF(VLOOKUP('Essbase Input'!$C$4,Tables!$B$3:$F$7,5,FALSE)="DPPO","",-'EB PT 2'!J46) ->  | I36: =IF(VLOOKUP('Essbase Input'!$C$4,Tables!$B$3:$F$7,5,FALSE)="DPPO","",-'EB PT 2'!L46) ->  | K36: =IF(VLOOKUP('Essbase Input'!$C$4,Tables!$B$3:$F$7,5,FALSE)="DPPO","",-'EB PT 2'!N46) ->  | M36: =IF(VLOOKUP('Essbase Input'!$C$4,Tables!$B$3:$F$7,5,FALSE)="DHMO","",IF(OR('Essbase Input'!$C$4="Golden Rule Insurance Company",'Essbase Input'!$C$4="UnitedHealthcare Life Ins Co"),-'EB PT 2'!S46,-'EB PT 2'!J46)) -> 0 | O36: =IF(VLOOKUP('Essbase Input'!$C$4,Tables!$B$3:$F$7,5,FALSE)="DHMO","",IF(OR('Essbase Input'!$C$4="Golden Rule Insurance Company",'Essbase Input'!$C$4="UnitedHealthcare Life Ins Co"),"",-'EB PT 2'!L46)) -> 0 | Q36: =IF(VLOOKUP('Essbase Input'!$C$4,Tables!$B$3:$F$7,5,FALSE)="DHMO","",IF(OR('Essbase Input'!$C$4="Golden Rule Insurance Company",'Essbase Input'!$C$4="UnitedHealthcare Life Ins Co"),"",-'EB PT 2'!N46)) -> 0
